Workbook

Sheet Readme
B2: Macroframework Foundations Tool (MFT) 1.0
B3: The Macroframework Foundations Tool (MFT) is a macroeconomic projection tool based on a multi-sector macroeconomic framework that can be used for forecasting and policy analysis, developed by the IMF Institute for Capacity Development (Version: 1.0, May 2025).
B5: Basic Inputs
C6: Use drop-down list below
B7: Select country | C7: Macrofoundland | E7: General conventions
B9: IFS Code | C9: =VLOOKUP(C7,'IFS CODES AND COUNTRIES'!$B$3:$C$201,2,FALSE) -> 999 | F9: = yellow shade generally indicates cells that users need to provide inputs or make assumptions or discretions.
B11: First year of projection | C11: 2024 | E11: red | F11: = red font color indicates hard numbers
B13: Definition of the public sector | C13: General Government | E13: blue | F13: = blue font color indicates users' assumptions on policy or exogenous variables during the projection years.
F14: The value could be entered as hard number or based on projection formula created by users.
B15: Includes public guarantees? | C15: Yes
B17: Six-step Process for Building the MFT and Generating Projection
B18: Step 1 (Sheet: Source Data):
B19: Collect input data comprising of: 1) country data during the historical period and 2) external data (e.g., global and trading partner’s economic indicators) during the historical and projection period.
B20: Step 2 (Sheet: Source Data, SEI):
B21: Analyze input data to ensure they are consistent across sectors and produce coherent macroeconomic developments in recent years.
B22: Compare macroeconomic indicators during the historical period in the SEI sheet with those published by the country authorities and/or the IMF Article IV Consultation Staff Reports
B23: Step 3 (Sheet: GDP&Prices)
B24: Specify the MFT behavioral equations and customize to the country’s context, choose the parameter estimates, and confirm their signs and magnitudes to ensure meaningful economic relationships.
B25: Modify, estimate, and calibrate the MFT equations as needed.
B26: Step 4 (Sheet: GDP&Prices, Deficits&Financing, Policies&Assumptions)
B27: Verify assumptions on policy and exogenous variables that are needed for making projections (e.g., potential GDP, structural unemployment, money demand parameters, tax elasticity, etc.)
B28: Step 5 (Sheet: GDP&Prices, Deficits&Financing, Policies&Assumptions)
B29: Solve the model to generate projections by using Goal Seek to reach convergence solution of simultaneously determined variables. Check the results and iterate the process as needed.
B30: Complete the baseline projection before working on the alternative scenarios.
B31: Step 6 (Sheet: SEI, Control Panel)
B32: Analyze the projection results and build alternative scenarios for policy analysis.
B34: Notes on DDT sheets:
B35: DDT Input: Presents macroeconomic projection produced by the MFT in a specific format used as Input for the Public Debt Dynamics Tool (DDT).
B36: DDT Debt Dynamics: Shows the calculation of debt dynamics and projection based on the DDT.
B37: DDT Output: Presents public debt projection that has been reconciled between the MFT and DDT in the DDT format.
B53: Steps for changing the first year of projection (for example from 2024 to 2025):
B54: 1. In the "Readme" sheet, use the drop down menu (row 11) to change the first of year of projection from "2024" to "2025".
B55: 2. The first year of projection in all other worksheets would automatically change to "2025." The projection years become 2025-29 (from 2024-28).
B56: 3. In the "Source Data" sheet, copy and paste values (do not cut and paste) input data during 2014-24 to 2013-2023 (moving the hard coded data 1 column to the left) so that the 2013-23 data are in correct years.
B57: Note: If users want to keep the 2012 data in the file, then first insert a new column on the left of the 2013 data to store the 2012 data.
B58: 4. In the "Source Data" sheet, enter the 2024 input data hard coded in column "2024."
B59: 5. Finally, in "SEI" sheet, check and verify whether the macroframework indicators for the historical years (now up to 2024) make sense.

Sheet List of countries (hidden)
C2: Countries | D2: Years | E2: Definition public sector | F2: Guarantees
C3: Choose Country | D3: Choose Year | E3: Choose Sector | F3: Choose Guarantees
C4: Afghanistan | D4: 2010 | E4: Consolidated Public Sector | F4: Yes
C5: Albania | D5: 2011 | E5: Non-financial Public Sector | F5: No
C6: Algeria | D6: 2012 | E6: General Government
C7: Angola | D7: 2013 | E7: Central Government
C8: Anguilla | D8: 2014 | E8: Other
C9: Antigua and Barbuda | D9: 2015
C10: Argentina | D10: 2016
C11: Armenia | D11: 2017
C12: Australia | D12: 2018
C13: Austria | D13: 2019
C14: Azerbaijan | D14: 2020
C15: Bahamas, The | D15: 2021
C16: Bahrain | D16: 2022
C17: Bangladesh | D17: 2023
C18: Barbados | D18: 2024
C19: Belarus | D19: 2025
C20: Belgium | D20: 2026
C21: Belize | D21: 2027
C22: Benin | D22: 2028
C23: Bhutan | D23: 2029
C24: Bolivia | D24: 2030
C25: Bosnia and Herzegovina | D25: 2031
C26: Botswana | D26: 2032
C27: Brazil | D27: 2033
C28: Brunei Darussalam | D28: 2034
C29: Bulgaria | D29: 2035
C30: Burkina Faso | D30: 2036
C31: Burundi
C32: Cambodia
C33: Cameroon
C34: Canada
C35: Cabo Verde
C36: Central African Republic
C37: Chad
C38: Chile
C39: China
C40: Colombia
C41: Comoros
C42: Democratic Republic of the Congo
C43: Congo, Republic of
C44: Costa Rica
C45: Côte d'Ivoire
C46: Croatia
C47: Cyprus
C48: Czech Republic
C49: Czechoslovakia, former
C50: Denmark
C51: Djibouti
C52: Dominica
C53: Dominican Republic
C54: Eastern Caribbean Currency Union
C55: Ecuador
C56: Egypt
C57: El Salvador
C58: Equatorial Guinea
C59: Eritrea
C60: Estonia
C61: Ethiopia
C62: Euro area
C63: Fiji
C64: Finland
C65: France
C66: Gabon
C67: Gambia, The
C68: Georgia
C69: Germany
C70: Ghana
C71: Greece
C72: Grenada
C73: Guatemala
C74: Guinea
C75: Guinea-Bissau
C76: Guyana
C77: Haiti
C78: Honduras
C79: Hong Kong SAR
C80: Hungary
C81: Iceland
C82: India
C83: Indonesia
C84: Iran
C85: Iraq
C86: Ireland
C87: Israel
C88: Italy
C89: Jamaica
C90: Japan
C91: Jordan
C92: Kazakhstan
C93: Kenya
C94: Kiribati
C95: Korea
C96: Kosovo
C97: Kuwait
C98: Kyrgyz Republic
C99: Lao P.D.R.
C100: Latvia
C101: Lebanon
C102: Lesotho
C103: Liberia
C104: Libya
C105: Lithuania
C106: Luxembourg
C107: FYR Macedonia
C108: Macondo
C109: Macroland
C110: Madagascar
C111: Malawi
C112: Malaysia
C113: Maldives
C114: Mali
C115: Malta
C116: Marshall Islands
C117: Mauritania
C118: Mauritius
C119: Mexico
C120: Micronesia, Fed. States of
C121: Moldova
C122: Mongolia
C123: Montenegro, Rep. of
C124: Montserrat
C125: Morocco
C126: Mozambique
C127: Myanmar
C128: Namibia
C129: Nepal
C130: Netherlands
C131: Netherlands Antilles
C132: New Zealand
C133: Nicaragua
C134: Niger
C135: Nigeria
C136: Norway
C137: Oman
C138: Pakistan
C139: Palau
C140: Panama
C141: Papua New Guinea
C142: Paraguay
C143: Peru
C144: Philippines
C145: Poland
C146: Portugal
C147: Qatar
C148: Romania
C149: Russia
C150: Rwanda
C151: Samoa
C152: San Marino
C153: São Tomé and Príncipe
C154: Saudi Arabia
C155: Senegal
C156: Serbia
C157: Serbia and Montenegro
C158: Seychelles
C159: Sierra Leone
C160: Singapore
C161: Slovak Republic
C162: Slovenia
C163: Solomon Islands
C164: Somalia
C165: South Africa
C166: South Sudan
C167: Spain
C168: Sri Lanka
C169: St. Kitts and Nevis
C170: St. Lucia
C171: St. Vincent and the Grenadines
C172: Sudan
C173: Suriname
C174: Swaziland
C175: Sweden
C176: Switzerland
C177: Syria
C178: Taiwan Province of China
C179: Tajikistan
C180: Tanzania
C181: Thailand
C182: Timor-Leste, Dem. Rep. of
C183: Togo
C184: Tonga
C185: Trinidad and Tobago
C186: Tunisia
C187: Turkey
C188: Turkmenistan
C189: Tuvalu
C190: Uganda
C191: Ukraine
C192: United Arab Emirates
C193: United Kingdom
C194: United States
C195: Uruguay
C196: Uzbekistan
C197: Vanuatu
C198: Venezuela
C199: Vietnam
C200: Yemen, Former P. D. Rep. of
C201: Yemen
... 3 more rows

Sheet IFS CODES AND COUNTRIES (hidden)
A1: List of Countries
A2: # | B2: Name | C2: Code | D2: ISO-3 code | E2: ISO-2 code
A3: 1 | B3: Afghanistan | C3: 512 | D3: AFG | E3: AF
A4: 2 | B4: Albania | C4: 914 | D4: ALB | E4: AL
A5: 3 | B5: Algeria | C5: 612 | D5: DZA | E5: DZ
A6: 4 | B6: Angola | C6: 614 | D6: AGO | E6: AO
A7: 5 | B7: Anguilla | C7: 312 | D7: AIA | E7: AI
A8: 6 | B8: Antigua and Barbuda | C8: 311 | D8: ATG | E8: AG
A9: 7 | B9: Argentina | C9: 213 | D9: ARG | E9: AR
A10: 8 | B10: Armenia | C10: 911 | D10: ARM | E10: AM
A11: 9 | B11: Aruba | C11: 314 | D11: ABW | E11: AW
A12: 10 | B12: Australia | C12: 193 | D12: AUS | E12: AU
A13: 11 | B13: Austria | C13: 122 | D13: AUT | E13: AT
A14: 12 | B14: Azerbaijan | C14: 912 | D14: AZE | E14: AZ
A15: 13 | B15: Bahamas, The | C15: 313 | D15: BHS | E15: BS
A16: 14 | B16: Bahrain | C16: 419 | D16: BHR | E16: BH
A17: 15 | B17: Bangladesh | C17: 513 | D17: BGD | E17: BD
A18: 16 | B18: Barbados | C18: 316 | D18: BRB | E18: BB
A19: 17 | B19: Belarus | C19: 913 | D19: BLR | E19: BY
A20: 18 | B20: Belgium | C20: 124 | D20: BEL | E20: BE
A21: 19 | B21: Belize | C21: 339 | D21: BLZ | E21: BZ
A22: 20 | B22: Benin | C22: 638 | D22: BEN | E22: BJ
A23: 21 | B23: Bhutan | C23: 514 | D23: BTN | E23: BT
A24: 22 | B24: Bolivia | C24: 218 | D24: BOL | E24: BO
A25: 23 | B25: Bosnia and Herzegovina | C25: 963 | D25: BIH | E25: BA
A26: 24 | B26: Botswana | C26: 616 | D26: BWA | E26: BW
A27: 25 | B27: Brazil | C27: 223 | D27: BRA | E27: BR
A28: 26 | B28: Brunei Darussalam | C28: 516 | D28: BRN | E28: BN
A29: 27 | B29: Bulgaria | C29: 918 | D29: BGR | E29: BG
A30: 28 | B30: Burkina Faso | C30: 748 | D30: BFA | E30: BF
A31: 29 | B31: Burundi | C31: 618 | D31: BDI | E31: BI
A32: 30 | B32: Cambodia | C32: 522 | D32: KHM | E32: KH
A33: 31 | B33: Cameroon | C33: 622 | D33: CMR | E33: CM
A34: 32 | B34: Canada | C34: 156 | D34: CAN | E34: CA
A35: 33 | B35: Cabo Verde | C35: 624 | D35: CPV | E35: CV
A36: 34 | B36: Central African Republic | C36: 626 | D36: CAF | E36: CF
A37: 35 | B37: Chad | C37: 628 | D37: TCD | E37: TD
A38: 36 | B38: Chile | C38: 228 | D38: CHL | E38: CL
A39: 37 | B39: China | C39: 924 | D39: CHN | E39: CN
A40: 38 | B40: Colombia | C40: 233 | D40: COL | E40: CO
A41: 39 | B41: Comoros | C41: 632 | D41: COM | E41: KM
A42: 40 | B42: Democratic Republic of the Congo | C42: 636 | D42: COD | E42: CD
A43: 41 | B43: Congo, Republic of | C43: 634 | D43: COG | E43: CG
A44: 42 | B44: Costa Rica | C44: 238 | D44: CRI | E44: CR
A45: 43 | B45: Côte d'Ivoire | C45: 662 | D45: CIV | E45: CI
A46: 44 | B46: Croatia | C46: 960 | D46: HRV | E46: HR
A47: 45 | B47: Cyprus | C47: 423 | D47: CYP | E47: CY
A48: 46 | B48: Czech Republic | C48: 935 | D48: CZE | E48: CZ
A49: 47 | B49: Denmark | C49: 128 | D49: DNK | E49: DK
A50: 48 | B50: Djibouti | C50: 611 | D50: DJI | E50: DJ
A51: 49 | B51: Dominica | C51: 321 | D51: DMA | E51: DM
A52: 50 | B52: Dominican Republic | C52: 243 | D52: DOM | E52: DO
A53: 51 | B53: Eastern Caribbean Currency Union | C53: 309
A54: 52 | B54: Ecuador | C54: 248 | D54: ECU | E54: EC
A55: 53 | B55: Egypt | C55: 469 | D55: EGY | E55: EG
A56: 54 | B56: El Salvador | C56: 253 | D56: SLV | E56: SV
A57: 55 | B57: Equatorial Guinea | C57: 642 | D57: GNQ | E57: GQ
A58: 56 | B58: Eritrea | C58: 643 | D58: ERI | E58: ER
A59: 57 | B59: Estonia | C59: 939 | D59: EST | E59: EE
A60: 58 | B60: Eswatini | C60: 734 | D60: SWZ | E60: SZ
A61: 59 | B61: Ethiopia | C61: 644 | D61: ETH | E61: ET
A62: 60 | B62: Euro area | C62: 163
A63: 61 | B63: Fiji | C63: 819 | D63: FJI | E63: FJ
A64: 62 | B64: Finland | C64: 172 | D64: FIN | E64: FI
A65: 63 | B65: France | C65: 132 | D65: FRA | E65: FR
A66: 64 | B66: Gabon | C66: 646 | D66: GAB | E66: GA
A67: 65 | B67: Gambia, The | C67: 648 | D67: GMB | E67: GM
A68: 66 | B68: Georgia | C68: 915 | D68: GEO | E68: GE
A69: 67 | B69: Germany | C69: 134 | D69: DEU | E69: DE
A70: 68 | B70: Ghana | C70: 652 | D70: GHA | E70: GH
A71: 69 | B71: Greece | C71: 174 | D71: GRC | E71: GR
A72: 70 | B72: Grenada | C72: 328 | D72: GRD | E72: GD
A73: 71 | B73: Guatemala | C73: 258 | D73: GTM | E73: GT
A74: 72 | B74: Guinea | C74: 656 | D74: GIN | E74: GN
A75: 73 | B75: Guinea-Bissau | C75: 654 | D75: GNB | E75: GW
A76: 74 | B76: Guyana | C76: 336 | D76: GUY | E76: GY
A77: 75 | B77: Haiti | C77: 263 | D77: HTI | E77: HT
A78: 76 | B78: Honduras | C78: 268 | D78: HND | E78: HN
A79: 77 | B79: Hong Kong SAR | C79: 532 | D79: HKG | E79: HK
A80: 78 | B80: Hungary | C80: 944 | D80: HUN | E80: HU
A81: 79 | B81: Iceland | C81: 176 | D81: ISL | E81: IS
A82: 80 | B82: India | C82: 534 | D82: IND | E82: IN
A83: 81 | B83: Indonesia | C83: 536 | D83: IDN | E83: ID
A84: 82 | B84: Iran | C84: 429 | D84: IRN | E84: IR
A85: 83 | B85: Iraq | C85: 433 | D85: IRQ | E85: IQ
A86: 84 | B86: Ireland | C86: 178 | D86: IRL | E86: IE
A87: 85 | B87: Israel | C87: 436 | D87: ISR | E87: IL
A88: 86 | B88: Italy | C88: 136 | D88: ITA | E88: IT
A89: 87 | B89: Jamaica | C89: 343 | D89: JAM | E89: JM
A90: 88 | B90: Japan | C90: 158 | D90: JPN | E90: JP
A91: 89 | B91: Jordan | C91: 439 | D91: JOR | E91: JO
A92: 90 | B92: Kazakhstan | C92: 916 | D92: KAZ | E92: KZ
A93: 91 | B93: Kenya | C93: 664 | D93: KEN | E93: KE
A94: 92 | B94: Kiribati | C94: 826 | D94: KIR | E94: KI
A95: 93 | B95: Korea | C95: 542 | D95: KOR | E95: KR
A96: 94 | B96: Kosovo | C96: 967 | D96: KOS | E96: KV
A97: 95 | B97: Kuwait | C97: 443 | D97: KWT | E97: KW
A98: 96 | B98: Kyrgyz Republic | C98: 917 | D98: KGZ | E98: KG
A99: 97 | B99: Lao P.D.R. | C99: 544 | D99: LAO | E99: LA
A100: 98 | B100: Latvia | C100: 941 | D100: LVA | E100: LV
A101: 99 | B101: Lebanon | C101: 446 | D101: LBN | E101: LB
A102: 100 | B102: Lesotho | C102: 666 | D102: LSO | E102: LS
A103: 101 | B103: Liberia | C103: 668 | D103: LBR | E103: LR
A104: 102 | B104: Libya | C104: 672 | D104: LBY | E104: LY
A105: 103 | B105: Lithuania | C105: 946 | D105: LTU | E105: LT
A106: 104 | B106: Luxembourg | C106: 137 | D106: LUX | E106: LU
A107: 105 | B107: Macao SAR | C107: 546 | D107: MAC | E107: MO
A108: 106 | B108: Madagascar | C108: 674 | D108: MDG | E108: MG
A109: 107 | B109: Malawi | C109: 676 | D109: MWI | E109: MW
A110: 108 | B110: Malaysia | C110: 548 | D110: MYS | E110: MY
A111: 109 | B111: Maldives | C111: 556 | D111: MDV | E111: MV
A112: 110 | B112: Mali | C112: 678 | D112: MLI | E112: ML
A113: 111 | B113: Malta | C113: 181 | D113: MLT | E113: MT
A114: 112 | B114: Marshall Islands | C114: 867 | D114: MHL | E114: MH
A115: 113 | B115: Mauritania | C115: 682 | D115: MRT | E115: MR
A116: 114 | B116: Mauritius | C116: 684 | D116: MUS | E116: MU
A117: 115 | B117: Mexico | C117: 273 | D117: MEX | E117: MX
A118: 116 | B118: Micronesia, Fed. States of | C118: 868 | D118: FSM | E118: FM
A119: 117 | B119: Moldova | C119: 921 | D119: MDA | E119: MD
A120: 118 | B120: Mongolia | C120: 948 | D120: MNG | E120: MN
A121: 119 | B121: Montenegro, Rep. of | C121: 943 | D121: MNE | E121: ME
A122: 120 | B122: Montserrat | C122: 351 | D122: MSR | E122: MS
A123: 121 | B123: Morocco | C123: 686 | D123: MAR | E123: MA
A124: 122 | B124: Mozambique | C124: 688 | D124: MOZ | E124: MZ
A125: 123 | B125: Myanmar | C125: 518 | D125: MMR | E125: MM
A126: 124 | B126: Namibia | C126: 728 | D126: NAM | E126: NA
A127: 125 | B127: Nauru | C127: 836 | D127: NRU | E127: NR
A128: 126 | B128: Nepal | C128: 558 | D128: NPL | E128: NP
A129: 127 | B129: Netherlands | C129: 138 | D129: NLD | E129: NL
A130: 128 | B130: New Zealand | C130: 196 | D130: NZL | E130: NZ
A131: 129 | B131: Nicaragua | C131: 278 | D131: NIC | E131: NI
A132: 130 | B132: Niger | C132: 692 | D132: NER | E132: NE
A133: 131 | B133: Nigeria | C133: 694 | D133: NGA | E133: NG
A134: 132 | B134: North Macedonia | C134: 962 | D134: MKD | E134: MK
A135: 133 | B135: Norway | C135: 142 | D135: NOR | E135: NO
A136: 134 | B136: Oman | C136: 449 | D136: OMN | E136: OM
A137: 135 | B137: Pakistan | C137: 564 | D137: PAK | E137: PK
A138: 136 | B138: Palau | C138: 565 | D138: PLW | E138: PW
A139: 137 | B139: Panama | C139: 283 | D139: PAN | E139: PA
A140: 138 | B140: Papua New Guinea | C140: 853 | D140: PNG | E140: PG
A141: 139 | B141: Paraguay | C141: 288 | D141: PRY | E141: PY
A142: 140 | B142: Peru | C142: 293 | D142: PER | E142: PE
A143: 141 | B143: Philippines | C143: 566 | D143: PHL | E143: PH
A144: 142 | B144: Poland | C144: 964 | D144: POL | E144: PL
A145: 143 | B145: Portugal | C145: 182 | D145: PRT | E145: PT
A146: 144 | B146: Puerto Rico | C146: 359 | D146: PRI | E146: PR
A147: 145 | B147: Qatar | C147: 453 | D147: QAT | E147: QA
A148: 146 | B148: Romania | C148: 968 | D148: ROU | E148: RO
A149: 147 | B149: Russia | C149: 922 | D149: RUS | E149: RU
A150: 148 | B150: Rwanda | C150: 714 | D150: RWA | E150: RW
A151: 149 | B151: Samoa | C151: 862 | D151: WSM | E151: WS
A152: 150 | B152: San Marino | C152: 135 | D152: SMR | E152: SM
A153: 151 | B153: São Tomé and Príncipe | C153: 716 | D153: STP | E153: ST
A154: 152 | B154: Saudi Arabia | C154: 456 | D154: SAU | E154: SA
A155: 153 | B155: Senegal | C155: 722 | D155: SEN | E155: SN
A156: 154 | B156: Serbia | C156: 942 | D156: SRB | E156: RS
A157: 155 | B157: Seychelles | C157: 718 | D157: SYC | E157: SC
A158: 156 | B158: Sierra Leone | C158: 724 | D158: SLE | E158: SL
A159: 157 | B159: Singapore | C159: 576 | D159: SGP | E159: SG
A160: 158 | B160: Slovak Republic | C160: 936 | D160: SVK | E160: SK
A161: 159 | B161: Slovenia | C161: 961 | D161: SVN | E161: SI
A162: 160 | B162: Solomon Islands | C162: 813 | D162: SLB | E162: SB
A163: 161 | B163: Somalia | C163: 726 | D163: SOM | E163: SO
A164: 162 | B164: South Africa | C164: 199 | D164: ZAF | E164: ZA
A165: 163 | B165: South Sudan | C165: 733 | D165: SSD | E165: SS
A166: 164 | B166: Spain | C166: 184 | D166: ESP | E166: ES
A167: 165 | B167: Sri Lanka | C167: 524 | D167: LKA | E167: LK
A168: 166 | B168: St. Kitts and Nevis | C168: 361 | D168: KNA | E168: KN
A169: 167 | B169: St. Lucia | C169: 362 | D169: LCA | E169: LC
A170: 168 | B170: St. Vincent and the Grenadines | C170: 364 | D170: VCT | E170: VC
A171: 169 | B171: Sudan | C171: 732 | D171: SDN | E171: SD
A172: 170 | B172: Suriname | C172: 366 | D172: SUR | E172: SR
A173: 171 | B173: Sweden | C173: 144 | D173: SWE | E173: SE
A174: 172 | B174: Switzerland | C174: 146 | D174: CHE | E174: CH
A175: 173 | B175: Syria | C175: 463 | D175: SYR | E175: SY
A176: 174 | B176: Taiwan Province of China | C176: 528 | D176: TWN | E176: TW
A177: 175 | B177: Tajikistan | C177: 923 | D177: TJK | E177: TJ
A178: 176 | B178: Tanzania | C178: 738 | D178: TZA | E178: TZ
A179: 177 | B179: Thailand | C179: 578 | D179: THA | E179: TH
A180: 178 | B180: Timor-Leste, Dem. Rep. of | C180: 537 | D180: TLS | E180: TL
A181: 179 | B181: Togo | C181: 742 | D181: TGO | E181: TG
A182: 180 | B182: Tonga | C182: 866 | D182: TON | E182: TO
A183: 181 | B183: Trinidad and Tobago | C183: 369 | D183: TTO | E183: TT
A184: 182 | B184: Tunisia | C184: 744 | D184: TUN | E184: TN
A185: 183 | B185: Turkey | C185: 186 | D185: TUR | E185: TR
A186: 184 | B186: Turkmenistan | C186: 925 | D186: TKM | E186: TM
A187: 185 | B187: Tuvalu | C187: 869 | D187: TUV | E187: TV
A188: 186 | B188: Uganda | C188: 746 | D188: UGA | E188: UG
A189: 187 | B189: Ukraine | C189: 926 | D189: UKR | E189: UA
A190: 188 | B190: United Arab Emirates | C190: 466 | D190: ARE | E190: AE
A191: 189 | B191: United Kingdom | C191: 112 | D191: GBR | E191: GB
A192: 190 | B192: United States | C192: 111 | D192: USA | E192: US
A193: 191 | B193: Uruguay | C193: 298 | D193: URY | E193: UY
A194: 192 | B194: Uzbekistan | C194: 927 | D194: UZB | E194: UZ
A195: 193 | B195: Vanuatu | C195: 846 | D195: VUT | E195: VU
A196: 194 | B196: Venezuela | C196: 299 | D196: VEN | E196: VE
A197: 195 | B197: Vietnam | C197: 582 | D197: VNM | E197: VN
A198: 196 | B198: Yemen | C198: 474 | D198: YEM | E198: YE
A199: 197 | B199: Zambia | C199: 754 | D199: ZMB | E199: ZM
A200: 198 | B200: Zimbabwe | C200: 698 | D200: ZWE | E200: ZW
... 1 more rows

Sheet Source Data
B1: ="Country:"&" "&Country_Name &" - Historical Source Data" -> Country: Macrofoundland - Historical Source Data
O2: First Year of Projection
B3: Year/Variable | C3: =+D3-1 -> 2012 | D3: 2013 | E3: 2014 | F3: 2015 | G3: 2016 | H3: 2017 | I3: 2018 | J3: 2019 | K3: 2020 | L3: 2021 | M3: 2022 | N3: =+O3-1 -> 2023 | O3: =First_Year -> 2024 | P3: =O3+1 -> 2025 | Q3: =P3+1 -> 2026 | R3: 2027 | S3: 2028
B4: National Accounts: Expenditure, constant prices, local currency (LC) in billions
B5: Private consumption | C5: 915.5960999 | D5: 935.9500066 | E5: 985.6196342 | F5: 1049.05889 | G5: 1112.376189 | H5: 1160.765217 | I5: 1226.6913 | J5: 1283.428789 | K5: 1240.117561 | L5: 1321.949836 | M5: 1389.544963 | N5: 1435.094792 | T5: ='GDP&Prices'!T9 -> 0
B6: Public consumption | C6: 109.7237637 | D6: 116.614849 | E6: 121.6467364 | F6: 130.0428715 | G6: 132.5776508 | H6: 133.6736706 | I6: 137.4397353 | J6: 146.159684 | K6: 153.369575 | L6: 153.463868 | M6: 159.4093427 | N6: 171.8480065
B7: Gross capital formation | C7: 286.0282933 | D7: 278.9753126 | E7: 305.0571018 | F7: 362.6444736 | G7: 407.311747 | H7: 406.2438027 | I7: 460.4090122 | J7: 497.8249617 | K7: 437.76157 | L7: 534.381809 | M7: 555.8642714 | N7: 566.9815568
B8: Private capital formation | C8: 219.6151838 | D8: 234.9469278 | E8: 263.802699 | F8: 307.6119162 | G8: 362.9314402 | H8: 353.2379083 | I8: 408.8852053 | J8: 446.2641142 | K8: 378.9726347 | L8: 480.4905014 | M8: 502.3273165 | N8: 500.3240217
B9: Public capital formation | C9: 66.41310954 | D9: 44.02838482 | E9: 41.25440287 | F9: 55.03255744 | G9: 44.38030681 | H9: 53.00589433 | I9: 51.52380691 | J9: 51.5608475 | K9: 58.78893532 | L9: 53.89130764 | M9: 53.5369549 | N9: 66.6575352
B10: Exports of goods and services (G&S) | C10: 313.5084364 | D10: 341.8759471 | E10: 376.7383773 | F10: 383.1424922 | G10: 416.850909 | H10: 431.8433338 | I10: 447.9909878 | J10: 465.0282391 | K10: 334.0377536 | L10: 431.2337537 | M10: 501.6622585 | N10: 503.4959781
B11: Imports of goods and services (G&S) | C11: 409.0047324 | D11: 400.0644189 | E11: 419.1725414 | F11: 465.3820557 | G11: 503.1848038 | H11: 488.211874 | I11: 529.835131 | J11: 560.6338138 | K11: 479.2896369 | L11: 602.3023013 | M11: 689.0030096 | N11: 660.9620137
B12: Real GDP * | C12: 1220.730613 | D12: 1280.243734 | E12: 1375.506853 | F12: 1465.44212 | G12: 1568.028846 | H12: 1635.970786 | I12: 1740.202898 | J12: 1838.626089 | K12: 1725.066014 | L12: 1915.538748 | M12: 2019.08766 | N12: 2077.718647
B13: CHECK: Statistical Discrepancy GDP-(C+G+I+X-M) | C13: =C12-(C5+C6+C7+C10-C11) -> 4.878751902 | D13: =D12-(D5+D6+D7+D10-D11) -> 6.892037416 | E13: 5.617545026 | F13: 5.935449073 | G13: 2.097154309 | H13: -8.343363845 | I13: -2.493006315 | J13: 6.818229116 | K13: 39.06919179 | L13: 76.81178279 | M13: 101.6098341 | N13: 61.26032727
B14: National Accounts: Expenditure, current prices, in billions
B15: Private consumption | C15: 1253.333749 | D15: 1341.919559 | E15: 1466.536114 | F15: 1591.34861 | G15: 1720.791658 | H15: 1848.668209 | I15: 2025.086462 | J15: 2165.203556 | K15: 2174.172606 | L15: 2506.996242 | M15: 2869.829158 | N15: 3105.753176
B16: Public consumption | C16: 165.1195417 | D16: 191.6056106 | E16: 214.4484128 | F16: 230.8751994 | G16: 251.4994656 | H16: 291.1712707 | I16: 322.0048307 | J16: 353.4891861 | K16: 393.9074895 | L16: 432.79651 | M16: 497.1496858 | N16: 561.591863
B17: Gross capital formation | C17: 402.1876523 | D17: 409.196853 | E17: 466.5340786 | F17: 521.8498207 | G17: 560.115094 | H17: 631.6660487 | I17: 764.4292887 | J17: 855.0403946 | K17: 853.0919689 | L17: 1169.972399 | M17: 1453.985535 | N17: 1394.30961
B18: Private capital formation | C18: 308.8034199 | D18: 344.6166708 | E18: 403.4423337 | F18: 442.6572993 | G18: 499.0854775 | H18: 549.247502 | I18: 678.8829462 | J18: 766.4819437 | K18: 738.5264793 | L18: 1051.983086 | M18: 1313.947828 | N18: 1230.386744
B19: Public capital formation | C19: 93.38423238 | D19: 64.58018217 | E19: 63.09174484 | F19: 79.19252138 | G19: 61.02961651 | H19: 82.41854671 | I19: 85.54634254 | J19: 88.55845084 | K19: 114.5654896 | L19: 117.9893129 | M19: 140.0377071 | N19: 163.9228663
B20: Exports of goods and services (G&S) | C20: 410.5910325 | D20: 461.5251184 | E20: 5150.918194 | F20: 533.2000684 | G20: 593.6530013 | H20: 630.3853268 | I20: 678.321779 | J20: 736.7324139 | K20: 590.7635759 | L20: 801.1427229 | M20: 966.8760027 | N20: 1035.521282
B21: Imports of goods and services (G&S) | C21: 564.6232392 | D21: 577.9269107 | E21: 621.4558221 | F21: 637.4973143 | G21: 675.6145979 | H21: 706.5356503 | I21: 845.1858994 | J21: 892.3414284 | K21: 811.0479826 | L21: 1169.545706 | M21: 1409.76356 | N21: 1378.092586
B22: Nominal GDP * | C22: 1670.211373 | D22: 1833.838788 | E22: 2057.965571 | F22: 2243.958595 | G22: 2451.104759 | H22: 2661.859041 | I22: 2945.092737 | J22: 3193.564553 | K22: 3139.660164 | L22: 3754.899871 | M22: 4382.394813 | N22: 4712.736882
B23: CHECK: Statistical Discrepancy GDP-(C+G+I+X-M) | C23: =C22-(C15+C16+C17+C20-C21) -> 3.602636202 | D23: =D22-(D15+D16+D17+D20-D21) -> 7.518557371 | E23: -4619.015406 | F23: 4.182210694 | G23: 0.6601381946 | H23: -33.49616435 | I23: 0.4362761025 | J23: -24.55956899 | K23: -61.22749438 | L23: 13.53770468 | M23: 4.317992326 | N23: -6.346463593
B24: National Accounts: Production, constant prices, in billions
B25: Agriculture | C25: 84.77856611 | D25: 87.21253065 | E25: 89.31864011 | F25: 91.41452796 | G25: 96.5742729 | H25: 102.1941518 | I25: 107.8139429 | J25: 112.2222054 | K25: 115.4043768 | L25: 118.4492423 | M25: 124.4159282 | N25: 127.4125635
B26: Manufacturing | C26: 335.856794 | D26: 368.2585565 | E26: 401.6003862 | F26: 432.314687 | G26: 460.4099043 | H26: 486.7219469 | I26: 523.9309517 | J26: 556.7258204 | K26: 528.5898484 | L26: 626.1351093 | M26: 620.3013939 | N26: 635.2417403
B27: Services | C27: 698.707023 | D27: 721.3035397 | E27: 768.3610247 | F27: 815.4915239 | G27: 866.8828333 | H27: 899.2779997 | I27: 950.6310747 | J27: 990.2711787 | K27: 912.4237653 | L27: 984.0685892 | M27: 1063.573146 | N27: 1089.18997
B28: Factor cost adjustment (taxes minus subsidies) | C28: 101.3882297 | D28: 103.4691069 | E28: 116.2268023 | F28: 126.2213815 | G28: 144.1618354 | H28: 147.7766878 | I28: 157.8269282 | J28: 179.4068842 | K28: 168.6480237 | L28: 186.8858073 | M28: 210.7971914 | N28: 225.8743733
B29: Real GDP * | C29: 1220.730613 | D29: 1280.243734 | E29: 1375.506853 | F29: 1465.44212 | G29: 1568.028846 | H29: 1635.970786 | I29: 1740.202898 | J29: 1838.626089 | K29: 1725.066014 | L29: 1915.538748 | M29: 2019.08766 | N29: 2077.718647
B30: Prices and Unemployment, percent (for 5.3% enter 5.3)
B31: Unemployment rate | C31: 8.239047655 | D31: 9.011614021 | E31: 8.366893836 | F31: 7.181445753 | G31: 6.938469869 | H31: 5.618970148 | I31: 5.76879761 | J31: 6.290347298 | K31: 5.945543738 | L31: 7.236260852 | M31: 5.399060775 | N31: 6.076
B32: Consumer Price Index (CPI), average | C32: 3.620607137 | D32: 4.734331948 | E32: 2.938669416 | F32: 0.8200114198 | G32: 1.581882751 | H32: 3.213965808 | I32: 3.493145575 | J32: 1.81060377 | K32: 3.705411163 | L32: 8.077738123 | M32: 7.735348817 | N32: 4.690196693
B33: Consumer Price Index (CPI), end period | C33: 3.828693393 | D33: 3.79851746 | E33: 1.55033961 | F33: 2.297587812 | G33: 1.661429044 | H33: 4.120191917 | I33: 1.147182769 | J33: 3.656278926 | K33: 5.442574873 | L33: 8.325785007 | M33: 7.670723633 | N33: 3.497185865
B34: Inflation target | C34: 5.5 | D34: 5 | E34: 4.5 | F34: 4 | G34: 4 | H34: 4 | I34: 4 | J34: 4 | K34: 4 | L34: 4 | M34: 4 | N34: 4
B35: Interest and Exchange Rates, percent unless indicated (for 5.3% enter 5.3)
B36: Policy rate | C36: 5 | D36: 6.25 | E36: 6.25 | F36: 5.25 | G36: 5.5 | H36: 5.5 | I36: 5.5 | J36: 4.75 | K36: 3 | L36: 3.25 | M36: 7.75 | N36: 6.75
B37: Representative market rate, average | C37: 8.074825 | D37: 6.068775 | E37: 6.452691667 | F37: 5.900958333 | G37: 6.051666667 | H37: 6.3 | I37: 5.696733333 | J37: 6.118725274 | K37: 5.372447483 | L37: 4.240731108 | M37: 7.987738703 | N37: 10.09643842
B38: Average lending rate (domestic currency) | C38: 15.4825 | D38: 13.59140054 | E38: 13.9025 | F38: 14.87666667 | G38: 15.08416667 | H38: 13.91 | I38: 12.5337 | J38: 12.48676667 | K38: 10.97964167 | L38: 9.608308333 | M38: 11.85005 | N38: 13.93454167
B39: Average lending rate (foreign currency) | C39: 6.855833333 | D39: 6.623333333 | E39: 6.519166667 | F39: 6.364166667 | G39: 6.015833333 | H39: 5.898333333 | I39: 5.773625 | J39: 5.713183333 | K39: 4.511066667 | L39: 3.49315 | M39: 4.678741667 | N39: 7.800983333
B40: Share of foreign currency lending (%) | C40: 17.27504753 | D40: 20.33887959 | E40: 20.54030645 | F40: 21.48059024 | G40: 21.08610764 | H40: 20.43977165 | I40: 20.76970116 | J40: 21.09916404 | K40: 19.65568577 | L40: 17.34277484 | M40: 20.00280289 | N40: 20.27557843
B41: Exchange rate (Local currency/US$, end period) | C41: 39.522371 | D41: 41.876625 | E41: 43.394204 | F41: 44.601515 | G41: 45.728417 | H41: 47.281227 | I41: 49.23471 | J41: 51.872527 | K41: 57.05511 | L41: 56.196336 | M41: 54.88 | N41: 55.86
B42: Exchange rate (Local currency/US$, average) | C42: 38.4925342 | D42: 40.90892764 | E42: 42.62556729 | F42: 44.08933195 | G42: 45.09998253 | H42: 46.53504956 | I42: 48.47777427 | J42: 50.21800553 | K42: 55.33917337 | L42: 55.94932369 | M42: 53.9 | N42: 55.86
B43: Real Effective Exchange Rate % appreciation | C43: -0.9489473734 | D43: -5.022985354 | E43: -2.395600842 | F43: 3.838930379 | G43: 0.5319790473 | H43: -3.620615289 | I43: -4.141314524 | J43: -0.2995639255 | K43: -7.632862518 | L43: -2.874360697 | M43: 8.672257865 | N43: 1.355322306
B44: Nominal Effective Exchange Rate % appreciation | C44: -0.09434978058 | D44: -2.854001569 | E44: -2.018941378 | F44: 2.798088741 | G44: -0.6008576996 | H44: -3.092905723 | I44: -3.303591843 | J44: -0.9354285648 | K44: -6.419532271 | L44: 0.3080588726 | M44: 8.59409888 | N44: -0.3458189355
B45: Balance of Payments, US$ millions
B46: Current account
B47: Goods & services balance | C47: -3875.41 | D47: -2620.24 | E47: -2303.21 | F47: -2167.83 | G47: -1833.58 | H47: -1434.93 | I47: -2843.89 | J47: -2811.76 | K47: -3788.75 | L47: -5662.37 | M47: -8168.23 | N47: -6028.75
B48: Oil imports: share of total G&S (%) | C48: 23.23329355 | D48: 22.22784034 | E48: 19.15535817 | F48: 12.66900725 | G48: 11.19644456 | H48: 13.63223755 | I48: 15.40490329 | J48: 14.50542282 | K48: 9.9379861 | L48: 13.06736192 | M48: 16.47685237 | N48: 14.64348522
B49: Oil exports: share of total G&S (%) | C49: 0 | D49: 0 | E49: 0 | F49: 0 | G49: 0 | H49: 0 | I49: 0 | J49: 0 | K49: 0 | L49: 0 | M49: 0 | N49: 0
B50: Primary income from abroad | C50: -1640.499 | D50: -2080.61 | E50: -2273.18 | F50: -2055.48 | G50: -2277.17 | H50: -2655.66 | I50: -2584.19 | J50: -2848.23 | K50: -2677.5 | L50: -3297.35 | M50: -3017.7 | N50: -3806.32
B51: Secondary income from abroad | C51: 2736.51 | D51: 2903.32 | E51: 3057.25 | F51: 3327.1 | G51: 3540.46 | H51: 3997.42 | I51: 4503.03 | J51: 4828.46 | K51: 5530.14 | L51: 7080.01 | M51: 6601.7 | N51: 6771.66
B52: Government grants | C52: 3444.290709 | D52: 2153.479006 | E52: 1470.764032 | F52: 67310.31738 | G52: 716.5893469 | H52: 1292.41 | I52: 1432.170388 | J52: 1548.435668 | K52: 1693.178529 | L52: 1849.072372 | M52: 2018.611505 | N52: 2203.69547
B53: Current account balance (US$) | C53: -2779.399 | D53: -1797.53 | E53: -1519.14 | F53: -896.21 | G53: -570.29 | H53: -93.17 | I53: -925.05 | J53: -831.53 | K53: -936.11 | L53: -1879.71 | M53: -4584.23 | N53: -3063.41
B54: Reserves and financial flows
B55: Gross international reserves | C55: 2920.691448 | D55: 3728.263255 | E55: 3833.518213 | F55: 4117.078395 | G55: 4846.969525 | H55: 5216.478897 | I55: 5799.746767 | J55: 6594.384915 | K55: 7989.909105 | L55: 9512.472259 | M55: 10500.945 | N55: 10588.58137
B56: Net international reserves | C56: 2246.86687 | D56: 3070.552934 | E56: 3255.314046 | F56: 3636.53787 | G56: 4232.689984 | H56: 4746.282156 | I56: 5338.975519 | J56: 6146.98082 | K56: 7526.131834 | L56: 9060.065705 | M56: 10065.26595 | N56: 10156.37801
B57: Foreign direct investment (FDI), net inflow | C57: 2391.13 | D57: 1119.93 | E57: 1669.71 | F57: 1559.11 | G57: 1761.27 | H57: 2518.53 | I57: 1921.15 | J57: 1980.44 | K57: 1722.42 | L57: 2344.79 | M57: 2773.12 | N57: 2884.0448
B58: External debt
B59: Total external debt | C59: 18838.134 | D59: 20658.442 | E59: 21521.22 | F59: 20688.1397 | G59: 22152.844 | H59: 23479.98044 | I59: 24106.97324 | J59: 26101.60691 | K59: 31109.54457 | L59: 32110.07961 | M59: 32287.60661 | N59: 34263.71405
B60: Short-term external debt | C60: 2852.962 | D60: 2958.529 | E60: 3061.702 | F60: 2689.425809 | G60: 2613.814 | H60: 2244.851 | I60: 1911.168 | J60: 1498.56 | K60: 2254.952 | L60: 2384.844 | M60: 3248.126 | N60: 3168.052741
B61: Government Accounts, current prices, in billions
B62: Revenues
B63: Tax revenue | C63: 215.5797039 | D63: 245.517946 | E63: 272.2282853 | F63: 286.9432592 | G63: 314.0363862 | H63: 345.3355327 | I63: 384.9590842 | J63: 423.7657197 | K63: 385.4235898 | L63: 541.7762412 | M63: 604.5311814 | N63: 678.3152646
B64: Nontax revenue | C64: 6.122140252 | D64: 9.323288299 | E64: 14.8734197 | F64: 18.21258699 | G64: 22.7062532 | H64: 23.46008343 | I64: 33.38902229 | J64: 33.4680067 | K64: 44.54110498 | L64: 42.0818777 | M64: 59.39875554 | N64: 64.24915859
B65: Grants | C65: 3.444290709 | D65: 2.153479006 | E65: 3.613703248 | F65: 67.38381738 | G65: 0.7830799584 | H65: 1.397371739 | I65: 0.6758310927 | J65: 0.7269085026 | K65: 10.74943912 | L65: 2.577016672 | M65: 1.613691504 | N65: 4.792397213
B66: Expenditure
B67: Total expenditure | C67: 330.450355 | D67: 338.8429475 | E67: 348.1509234 | F67: 374.3182149 | G67: 414.3638184 | H67: 454.2227833 | I67: 484.8413877 | J67: 570.4126487 | K67: 689.2207843 | L67: 699.7853429 | M67: 811.2989886 | N67: 905.6484565
B68: Domestic interest spending | C68: 39.35347651 | D68: 41.45323066 | E68: 49.02175434 | F68: 56.08356572 | G68: 66.93125764 | H68: 76.36322974 | I68: 85.65872602 | J68: 103.5167325 | K68: 114.3902394 | L68: 125.9026489 | M68: 139.061715 | N68: 153.5292593
B69: External interest spending | C69: 12.38556959 | D69: 14.37391418 | E69: 17.79700301 | F69: 23.0632744 | G69: 28.93768654 | H69: 32.98704088 | I69: 37.78352033 | J69: 50.38094336 | K69: 55.81634705 | L69: 60.53876957 | M69: 66.32693005 | N69: 73.35340462
B70: Acquisition of nonfinancial assets | C70: 83.33813505 | D70: 54.87967687 | E70: 41.74426725 | F70: 48.14005729 | G70: 40.7351299 | H70: 47.74327673 | I70: 44.92580134 | J70: 48.05791724 | K70: 52.15434805 | L70: 57.60114405 | M70: 75.54230558 | N70: 101.9417389
B71: Financing
B72: External budget financing (in local currency) | C72: 77.75114575 | D72: 60.4324687 | E72: 42.13013833 | F72: -49.98234971 | G72: 37.01318312 | H72: 57.7322855 | I72: 59.28052655 | J72: 58.43108142 | K72: 247.5200403 | L72: 55.63519471 | M72: 121.47885 | N72: 114.5605604
B73: Public debt
B74: External debt (in Local currency) | C74: 386.8300478 | D74: 474.052954 | E74: 528.2576431 | F74: 535.3945684 | G74: 592.9084443 | H74: 655.2598012 | I74: 774.6072413 | J74: 881.2239988 | K74: 1268.728166 | L74: 1380.356209 | M74: 1488.495821 | N74: 1654.424457
B75: Domestic debt (in local currency) | C75: 320.0109865 | D75: 382.6177223 | E75: 391.5054683 | F75: 467.3738391 | G75: 544.434926 | H75: 646.5602618 | I75: 721.7351999 | J75: 829.8641178 | K75: 963.0815299 | L75: 1006.362882 | M75: 1121.093967 | N75: 1210.888294
B76: Monetary Survey, current prices, end period, in millions
B77: Net Foreign Assets (NFA) | C77: 49311.34759 | D77: 86217.06219 | E77: 105569.2712 | F77: 109355.4428 | G77: 135640.8754 | H77: 174511.4708 | I77: 219420.3423 | J77: 256421.8911 | K77: 435894.5695 | L77: 463548.151 | M77: 458549.0636 | N77: 506532.6592
B78: o.w., Monetary Authorities | C78: 50659.23635 | D78: 91170.92419 | E78: 113353.4397 | F78: 143878.9212 | G78: 176210.3804 | H78: 210406.2137 | I78: 252943.8586 | J78: 311450.337 | K78: 394012.2256 | L78: 454764.3299 | M78: 476614.7659 | N78: 523548.872
B79: Net Domestic Assets (NDA) | C79: 498387.1443 | D79: 527347.5288 | E79: 562784.6026 | F79: 641128.8822 | G79: 688208.1998 | H79: 727446.4149 | I79: 744916.7768 | J79: 823813.3528 | K79: 872399.0825 | L79: 1020861.85 | M79: 1120710.372 | N79: 1299212.188
B80: Claims on government | C80: 295738.5721 | D80: 317154.3376 | E80: 332459.7144 | F80: 384220.6154 | G80: 424045.5312 | H80: 450343.0411 | I80: 456879.9647 | J80: 510900.8971 | K80: 511887.5072 | L80: 569602.5199 | M80: 593879.0301 | N80: 637610.1057
B81: Credit private sector | C81: 362895.1261 | D81: 417292.6314 | E81: 498725.5654 | F81: 561862.6482 | G81: 629872.7353 | H81: 693771.8428 | I81: 771073.0192 | J81: 862411.3132 | K81: 908307.1395 | L81: 1013729.932 | M81: 1182327.935 | N81: 1415099.687
B82: Exogenous Global Indicators, percent unless indicated (for 5.3% enter 5.3
B83: Partners' real GDP | C83: 3.682484465 | D83: 3.283956225 | E83: 3.082793128 | F83: 2.722189533 | G83: 1.083969622 | H83: 2.020833572 | I83: 1.886966447 | J83: 0.8305383476 | K83: -4.945487588 | L83: 6.269534846 | M83: 3.450561764 | N83: 3.062892006 | O83: 2.887929256 | P83: 2.611768756 | Q83: 2.418702969 | R83: 2.421329936 | S83: 2.402726498
B84: Partners' nonoil imports | C84: 2.167758531 | D84: 5.112073291 | E84: 6.914504792 | F84: 5.077183164 | G84: 1.034414724 | H84: 4.961370103 | I84: 5.461485302 | J84: -0.48417529 | K84: -5.89594438 | L84: 13.252916 | M84: 5.623301427 | N84: -1.040101626 | O84: 1.10090829 | P84: 2.927958095 | Q84: 3.05917469 | R84: 3.097297011 | S84: 2.988721971
B85: Partners' nonoil export deflators (US$) | C85: 2.14801043 | D85: -2.333724945 | E85: -1.417937464 | F85: -7.251748564 | G85: -4.289460764 | H85: 6.282615185 | I85: 6.872494455 | J85: 2.981969933 | K85: 7.84412241 | L85: 36.80410778 | M85: 0.9926487238 | N85: -3.745165621 | O85: 0.3357986106 | P85: 1.762651317 | Q85: 2.207556085 | R85: 1.875933626 | S85: 1.897176301
B86: Partners' CPI (US$) | C86: 3.116309955 | D86: 2.464197059 | E86: 2.372469681 | F86: 1.561337287 | G86: 1.990749672 | H86: 2.704568196 | I86: 3.091593863 | J86: 3.310674432 | K86: 2.481533763 | L86: 4.387145914 | M86: 8.235045345 | N86: 6.57254212 | O86: 7.941764092 | P86: 3.700441486 | Q86: 2.955716404 | R86: 2.631606253 | S86: 2.487453911
B87: Average petroleum spot price (APSP) | C87: 0.9877764139 | D87: -0.8799536968 | E87: -7.531488018 | F87: -47.14630018 | G87: -15.0221495 | H87: 22.45243102 | I87: 29.36122534 | J87: -10.36033041 | K87: -32.01381948 | L87: 65.80666405 | M87: 39.15103208 | N87: -16.36240652 | O87: -2.463597693 | P87: -6.271333627 | Q87: -4.232280458 | R87: -2.648121786 | S87: -1.334910344
B88: Foreign interest rate | C88: 0.6867833333 | D88: 0.4089333333 | E88: 0.329375 | F88: 0.4843166667 | G88: 1.056441667 | H88: 1.475958333 | I88: 2.489941667 | J88: 2.320416667 | K88: 0.6907916667 | L88: 0.197725 | M88: 2.854616667 | N88: 5.581433333 | O88: 5.519883333 | P88: 4.644883333 | Q88: 3.832383333 | R88: 3.623332221 | S88: 3.301133333
B89: Doodle pad to facilitate calculation
B90: Total consumption (current price) | C90: =C15+C16 -> 1418.453291 | D90: 1533.52517 | E90: 1680.984527 | F90: 1822.22381 | G90: 1972.291123 | H90: 2139.83948 | I90: 2347.091292 | J90: 2518.692742 | K90: 2568.080096 | L90: 2939.792752 | M90: 3366.978844 | N90: 3667.345039
B91: Percent change | D91: =D90/C90-1 -> 0.08112489793 | E91: =E90/D90-1 -> 0.09615711577 | F91: =F90/E90-1 -> 0.08402176274 | G91: =G90/F90-1 -> 0.08235394171 | H91: =H90/G90-1 -> 0.08495112844 | I91: =I90/H90-1 -> 0.09685390635 | J91: =J90/I90-1 -> 0.07311238811 | K91: =K90/J90-1 -> 0.01960832823 | L91: =L90/K90-1 -> 0.1447434043 | M91: =M90/L90-1 -> 0.1453116353 | N91: =N90/M90-1 -> 0.08920940966
B92: Total consumption (constant price) | C92: =C5+C6 -> 1025.319864 | D92: 1052.564856 | E92: 1107.266371 | F92: 1179.101761 | G92: 1244.953839 | H92: 1294.438888 | I92: 1364.131035 | J92: 1429.588473 | K92: 1393.487136 | L92: 1475.413704 | M92: 1548.954305 | N92: 1606.942798
B93: Percent change | D93: =D92/C92-1 -> 0.02657218776 | E93: =E92/D92-1 -> 0.0519697335 | F93: =F92/E92-1 -> 0.06487634095 | G93: =G92/F92-1 -> 0.05584935961 | H93: =H92/G92-1 -> 0.03974850033 | I93: =I92/H92-1 -> 0.05383965827 | J93: =J92/I92-1 -> 0.04798471407 | K93: =K92/J92-1 -> -0.02525295733 | L93: =L92/K92-1 -> 0.0587924825 | M93: =M92/L92-1 -> 0.04984405487 | N93: =N92/M92-1 -> 0.03743718763
B94: Deflators
B95: Consumption deflator | C95: =100*C90/C92 -> 138.3425155 | D95: 145.6941263 | E95: 151.813924 | F95: 154.543388 | G95: 158.4228315 | H95: 165.3101974 | I95: 172.0576127 | J95: 176.1830618 | K95: 184.2916257 | L95: 199.2520975 | M95: 217.3710891 | N95: =100*N90/N92 -> 228.2187669
B96: Percent change | D96: =D95/C95-1 -> 0.05314064692 | E96: 0.04200442358 | F96: 0.01797900944 | G96: 0.02510261702 | H96: 0.0434745788 | I96: =I95/H95-1 -> 0.04081669137 | J96: =J95/I95-1 -> 0.02397713794 | K96: =K95/J95-1 -> 0.04602351544 | L96: =L95/K95-1 -> 0.08117825092 | M96: 0.09093501075 | N96: 0.04990395819
B97: Investment deflator | C97: =100*C17/C7 -> 140.6111429 | D97: 146.6785176 | E97: 152.9333609 | F97: 143.9012197 | G97: 137.5150847 | H97: 155.4893994 | I97: 166.0326511 | J97: 171.7552273 | K97: 194.8759387 | L97: 218.9394135 | M97: 261.5720437 | N97: 245.9179833
B98: Percent change | D98: =D97/C97-1 -> 0.04315002739 | E98: 0.04264321341 | F98: -0.05905932616 | G98: -0.04437860202 | H98: 0.1307079487 | I98: =I97/H97-1 -> 0.06780688426 | J98: =J97/I97-1 -> 0.03446657162 | K98: =K97/J97-1 -> 0.1346143099 | L98: =L97/K97-1 -> 0.123480995 | M98: 0.1947234144 | N98: -0.05984607576
B99: Export deflator | C99: =100*C20/C10 -> 130.9665019 | D99: 134.9978325 | E99: 1367.240107 | F99: 139.1649528 | G99: 142.4137476 | H99: 145.9754678 | I99: 151.4141573 | J99: 158.4274571 | K99: 176.8553314 | L99: 185.7792244 | M99: 192.7344516 | N99: 205.666247
B100: Percent change | D100: =D99/C99-1 -> 0.03078138683 | E100: 9.127867106 | F100: -0.8982146939 | G100: 0.02334492083 | H100: 0.02500966585 | I100: =I99/H99-1 -> 0.03725755811 | J100: =J99/I99-1 -> 0.04631865265 | K100: =K99/J99-1 -> 0.1163174278 | L100: =L99/K99-1 -> 0.05045871631 | M100: 0.03743813241 | N100: 0.0670964395
B101: Import deflator | C101: =100*C21/C11 -> 138.0480944 | D101: 144.458463 | E101: 148.2577604 | F101: 136.9836474 | G101: 134.2676871 | H101: 144.7190632 | I101: 159.5186596 | J101: 159.1665373 | K101: 169.2187605 | L101: 194.1791861 | M101: 204.6092021 | N101: 208.4980009
B102: Percent change | D102: =D101/C101-1 -> 0.0464357633 | E102: 0.02630027546 | F102: -0.07604399908 | G102: -0.01982689447 | H102: 0.07783984579 | I102: =I101/H101-1 -> 0.1022643194 | J102: =J101/I101-1 -> -0.002207405294 | K102: =K101/J101-1 -> 0.06315538014 | L102: =L101/K101-1 -> 0.1475038909 | M102: 0.05371335746 | N102: 0.01900598206
B103: GNDI | C103: =C22+C42*(C50+C51)/1000 -> 1712.399614 | D103: 1867.494971 | E103: 2091.387 | F103: 2300.023472 | G103: 2508.079116 | H103: 2724.297909 | I103: 3038.113829 | J103: 3293.007754 | K103: 3297.522903 | L103: 3966.53714 | M103: 4575.572413 | N103: =N22+N42*(N50+N51)/1000 -> 4878.380775
C104: =C63/C22 -> 0.1290733062 | D104: 0.1338819681 | E104: 0.1322802913 | F104: 0.1278736871 | G104: 0.1281203445 | H104: 0.1297347183 | I104: 0.1307120416 | J104: 0.1326936446 | K104: 0.1227596522 | L104: 0.1442851367 | M104: 0.1379453945 | N104: 0.1439323437
B105: Real GNDI | C105: =C103/(C22/C12) -> 1251.565319 | D105: 1303.739866 | E105: 1397.84513 | F105: 1502.055911 | G105: 1604.47667 | H105: 1674.345532 | I105: 1795.167406 | J105: 1895.878372 | K105: 1811.802678 | L105: 2023.504181 | M105: 2108.089798 | N105: 2150.746574
B106: Real Private DI | C106: =C105*(1-C104) -> 1090.021645 | D106: 1129.192607 | E106: 1212.937769 | F106: 1309.982484 | G106: 1398.910566 | H106: =H105*(1-H104) -> 1457.124786 | I106: =I105*(1-I104) -> 1560.517409 | J106: =J105*(1-J104) -> 1644.307362 | K106: 1589.386411 | L106: 1731.542603 | M106: 1817.288519 | N106: =N105*(1-N104) -> 1841.184579
B107: Percent change | D107: =D106/C106-1 -> 0.03593594813 | E107: 0.07416375341 | F107: 0.08000799175 | G107: 0.06788494004 | H107: 0.04161396823 | I107: =I106/H106-1 -> 0.07095660186 | J107: =J106/I106-1 -> 0.05369369903 | K107: -0.03340065955 | L107: 0.08944092595 | M107: 0.04951995727 | N107: 0.01314929318
B108: Inflation rate | D108: =D32/100 -> 0.04734331948 | E108: 0.02938669416 | F108: 0.008200114198 | G108: 0.01581882751 | H108: 0.03213965808 | I108: 0.03493145575 | J108: 0.0181060377 | K108: 0.03705411163 | L108: 0.08077738123 | M108: 0.07735348817 | N108: 0.04690196693
B109: Depreciation rate | D109: =D42/C42-1 -> 0.06277563942 | E109: 0.04196247 | F109: 0.03434006272 | G109: 0.02292279205 | H109: 0.0318196802 | I109: 0.04174755876 | J109: 0.03589750734 | K109: 0.1019787183 | L109: 0.01102564945 | M109: -0.03662821209 | N109: 0.03636363636
B110: FX lending share | D110: =D40/100 -> 0.2033887959 | E110: 0.2054030645 | F110: 0.2148059024 | G110: 0.2108610764 | H110: 0.2043977165 | I110: 0.2076970116 | J110: 0.2109916404 | K110: 0.1965568577 | L110: 0.1734277484 | M110: 0.2000280289 | N110: 0.2027557843
B111: Domestic currency lending rate | D111: =D38/100 -> 0.1359140054 | E111: 0.139025 | F111: 0.1487666667 | G111: 0.1508416667 | H111: 0.1391 | I111: 0.125337 | J111: 0.1248676667 | K111: 0.1097964167 | L111: 0.09608308333 | M111: 0.1185005 | N111: 0.1393454167
B112: FX lending rate + depreciation | D112: =(D39+D109)/100 -> 0.06686108973 | E112: 0.06561129137 | F112: 0.06398506729 | G112: 0.06038756125 | H112: 0.05930153014 | I112: 0.05815372559 | J112: 0.05749080841 | K112: 0.04613045385 | L112: 0.03504175649 | M112: 0.04642113455 | N112: 0.0783734697
B113: Effective lending rate | D113: =((1-D110)*D38+D110*(D39+D109))/100 -> 0.121869416 | E113: 0.1239455993 | F113: 0.1305550787 | G113: 0.1317684166 | H113: 0.122789375 | I113: 0.1113832347 | J113: 0.1106517128 | K113: 0.09728243507 | L113: 0.08549682346 | M113: 0.1040826066 | N113: 0.1269830017
B114: Effective real lending rate | D114: =((1+D113)/(1+D108)-1) -> 0.07115727492 | E114: 0.09185945928 | F114: 0.1213598003 | G114: 0.1141439654 | H114: 0.08782698755 | I114: 0.0738713453 | J114: 0.09089983919 | K114: 0.05807635568 | L114: 0.004366710767 | M114: 0.02480997994 | N114: =((1+N113)/(1+N108)-1) -> 0.0764933464
B115: Change in real effective lending rate | D115: =D114-C114 -> 0.07115727492 | E115: 0.02070218436 | F115: 0.02950034101 | G115: -0.007215834869 | H115: -0.02631697787 | I115: =I114-H114 -> -0.01395564225 | J115: =J114-I114 -> 0.0170284939 | K115: -0.03282348352 | L115: =L114-K114 -> -0.05370964491 | M115: 0.02044326918 | N115: 0.05168336646

Sheet GDP&Prices
B1: ="Country:"&" "&Country_Name&" - Output, Demand & Prices" -> Country: Macrofoundland - Output, Demand & Prices
B3: Instructions: Calibration of behavioral equations can be found at the bottom of the sheet.
O4: First Year of Projection
B5: Year/Variable | E5: =F5-1 -> 2014 | F5: 2015 | G5: 2016 | H5: 2017 | I5: 2018 | J5: 2019 | K5: 2020 | L5: 2021 | M5: 2022 | N5: =O5-1 -> 2023 | O5: =First_Year -> 2024 | P5: =O5+1 -> 2025 | Q5: =P5+1 -> 2026 | R5: 2027 | S5: 2028
B6: Real Expenditure, [Units], constant prices
B7: Consumption | E7: =E9+E13 -> 1107.266371 | F7: 1179.101761 | G7: 1244.953839 | H7: 1294.438888 | I7: 1364.131035 | J7: 1429.588473 | K7: 1393.487136 | L7: 1475.413704 | M7: 1548.954305 | N7: =N9+N13 -> 1606.942798 | O7: =O9+O13 -> 1685.094372 | P7: =P9+P13 -> 1773.714562 | Q7: =Q9+Q13 -> 1868.737377 | R7: 1966.769844 | S7: 2069.017521
B8: Growth rate | E8: =E7/('Source Data'!D5+'Source Data'!D6)-1 -> 0.0519697335 | F8: =F7/E7-1 -> 0.06487634095 | G8: 0.05584935961 | H8: 0.03974850033 | I8: 0.05383965827 | J8: =J7/I7-1 -> 0.04798471407 | K8: =K7/J7-1 -> -0.02525295733 | L8: 0.0587924825 | M8: =M7/L7-1 -> 0.04984405487 | N8: =N7/M7-1 -> 0.03743718763 | O8: =O7/N7-1 -> 0.04863369994 | P8: 0.05259063908 | Q8: =Q7/P7-1 -> 0.05357277714 | R8: =R7/Q7-1 -> 0.05245919968 | S8: =S7/R7-1 -> 0.05198761677
B9: Private | E9: ='Source Data'!E5 -> 985.6196342 | F9: ='Source Data'!F5 -> 1049.05889 | G9: ='Source Data'!G5 -> 1112.376189 | H9: ='Source Data'!H5 -> 1160.765217 | I9: ='Source Data'!I5 -> 1226.6913 | J9: ='Source Data'!J5 -> 1283.428789 | K9: ='Source Data'!K5 -> 1240.117561 | L9: ='Source Data'!L5 -> 1321.949836 | M9: ='Source Data'!M5 -> 1389.544963 | N9: ='Source Data'!N5 -> 1435.094792 | O9: =N9*(1+O10) -> 1503.282013 | P9: 1580.583637 | Q9: =P9*(1+Q10) -> 1663.181997 | R9: =Q9*(1+R10) -> 1747.836778 | S9: =R9*(1+S10) -> 1835.815662
B10: Actual | E10: =E9/'Source Data'!D5-1 -> 0.05306867593 | F10: =F9/E9-1 -> 0.06436484556 | G10: 0.0603562865 | H10: 0.04350059701 | I10: 0.05679536373 | J10: =J9/I9-1 -> 0.0462524589 | K10: =K9/J9-1 -> -0.0337464985 | L10: 0.06598751409 | M10: 0.0511328986 | N10: 0.03278039246 | O10: =O11+O12 -> 0.04751408822 | P10: =P11+P12 -> 0.05142190481 | Q10: =Q11+Q12 -> 0.05225813961 | R10: 0.0508992884 | S10: 0.05033586949
B11: Fitted | F11: =$E$123*F82+$E$124*E10+$E$125*F91 -> 0.06054451697 | G11: 0.07072829198 | H11: 0.05715239033 | I11: 0.06747963092 | J11: 0.04818456759 | K11: -0.001083391515 | L11: 0.08092199184 | M11: 0.04967657987 | N11: -0.0016108957 | O11: 0.04751408822 | P11: 0.05142190481 | Q11: 0.05225813961 | R11: 0.0508992884 | S11: 0.05033586949
B12: Add factor | E12: =E10-E11 -> 0.05306867593 | F12: 0.003820328585 | G12: -0.01037200548 | H12: -0.01365179332 | I12: -0.01068426719 | J12: =J10-J11 -> -0.001932108688 | K12: =K10-K11 -> -0.03266310699 | L12: -0.01493447775 | M12: 0.001456318726 | N12: 0.03439128816
B13: Public | E13: ='Source Data'!E6 -> 121.6467364 | F13: ='Source Data'!F6 -> 130.0428715 | G13: ='Source Data'!G6 -> 132.5776508 | H13: ='Source Data'!H6 -> 133.6736706 | I13: ='Source Data'!I6 -> 137.4397353 | J13: ='Source Data'!J6 -> 146.159684 | K13: ='Source Data'!K6 -> 153.369575 | L13: ='Source Data'!L6 -> 153.463868 | M13: ='Source Data'!M6 -> 159.4093427 | N13: ='Source Data'!N6 -> 171.8480065 | O13: =N13*(1+O14) -> 181.8123598 | P13: 193.1309252 | Q13: =P13*(1+Q14) -> 205.5553798 | R13: =Q13*(1+R14) -> 218.9330669 | S13: =R13*(1+S14) -> 233.2018599
B14: Growth rate | E14: =E13/'Source Data'!D6-1 -> 0.04314962884 | F14: =F13/E13-1 -> 0.06902063547 | G14: 0.01949187481 | H14: 0.008267002632 | I14: 0.02817357099 | J14: =J13/I13-1 -> 0.06344561654 | K14: =K13/J13-1 -> 0.04932886275 | L14: 0.0006148091925 | M14: 0.03874185358 | N14: 0.07802970349 | O14: =(1+'Policies&Assumptions'!O18)/(1+'GDP&Prices'!O71)-1 -> 0.05798352591 | P14: =(1+'Policies&Assumptions'!P18)/(1+'GDP&Prices'!P71)-1 -> 0.06225410309 | Q14: =(1+'Policies&Assumptions'!Q18)/(1+'GDP&Prices'!Q71)-1 -> 0.06433177165 | R14: =(1+'Policies&Assumptions'!R18)/(1+'GDP&Prices'!R71)-1 -> 0.06508069552 | S14: =(1+'Policies&Assumptions'!S18)/(1+'GDP&Prices'!S71)-1 -> 0.06517422529
B15: Gross capital formation | E15: ='Source Data'!E7 -> 305.0571018 | F15: ='Source Data'!F7 -> 362.6444736 | G15: ='Source Data'!G7 -> 407.311747 | H15: ='Source Data'!H7 -> 406.2438027 | I15: ='Source Data'!I7 -> 460.4090122 | J15: ='Source Data'!J7 -> 497.8249617 | K15: ='Source Data'!K7 -> 437.76157 | L15: ='Source Data'!L7 -> 534.381809 | M15: ='Source Data'!M7 -> 555.8642714 | N15: ='Source Data'!N7 -> 566.9815568 | O15: =O17+O21 -> 607.1885359 | P15: =P17+P21 -> 648.7418386 | Q15: =Q17+Q21 -> 679.2706058 | R15: 713.2520444 | S15: 748.9059799
B16: Growth rate | E16: =E15/'Source Data'!D7-1 -> 0.09349138822 | F16: =F15/E15-1 -> 0.1887757127 | G16: =G15/F15-1 -> 0.123170975 | H16: =H15/G15-1 -> -0.002621933593 | I16: =I15/H15-1 -> 0.1333317805 | J16: =J15/I15-1 -> 0.08126676164 | K16: =K15/J15-1 -> -0.1206516271 | L16: 0.2207143013 | M16: 0.04020058695 | N16: 0.02 | O16: 0.07091408633 | P16: 0.06843558498 | Q16: =Q15/P15-1 -> 0.04705842201 | R16: =R15/Q15-1 -> 0.05002636406 | S16: =S15/R15-1 -> 0.04998784895
B17: Private | E17: =E15-E21 -> 277.7613784 | F17: 329.19093 | G17: 377.6894478 | H17: 375.5386376 | I17: 433.3505987 | J17: =J15-J21 -> 469.8444932 | K17: =K15-K21 -> 410.9987237 | L17: =L15-L21 -> 508.0726383 | M17: =M15-M21 -> 526.984157 | N17: =N15-N21 -> 525.5280049 | O17: 563.116008 | P17: =O17*(1+P18) -> 601.9442033 | Q17: =P17*(1+Q18) -> 629.6982199 | R17: 660.708684 | S17: 693.2692739
B18: Actual | E18: … | F18: =F17/E17-1 -> 0.1851573172 | G18: 0.1473264095 | H18: -0.005694652539 | I18: 0.1539441093 | J18: =J17/I17-1 -> 0.08421332434 | K18: =K17/J17-1 -> -0.1252452043 | L18: 0.2361903069 | M18: 0.03722207655 | N18: -0.002763179947 | O18: =O19+O20 -> 0.07152426261 | P18: =P19+P20 -> 0.06895239127 | Q18: =Q19+Q20 -> 0.04610729109 | R18: 0.04924654877 | S18: 0.04928131075
B19: Fitted | E19: =$E$132*(E55-D55)+$E$133*E57+$E$134*(E90-D90) -> 0.08435058799 | F19: 0.02959154202 | G19: 0.05851995722 | H19: 0.03324130632 | I19: 0.07514300586 | J19: 0.0364061291 | K19: -0.07990067471 | L19: 0.2406155939 | M19: -0.0111410643 | N19: -0.001174244927 | O19: 0.07152426261 | P19: 0.06895239127 | Q19: 0.04610729109 | R19: 0.04924654877 | S19: 0.04928131075
B20: Add factor | F20: =F18-F19 -> 0.1555657751 | G20: 0.08880645225 | H20: -0.03893595886 | I20: 0.07880110339 | J20: =J18-J19 -> 0.04780719524 | K20: =K18-K19 -> -0.04534452957 | L20: -0.004425286969 | M20: 0.04836314085 | N20: -0.00158893502
B21: Public | E21: ='Deficits&Financing'!E14/('GDP&Prices'!E72/100) -> 27.29572344 | F21: ='Deficits&Financing'!F14/('GDP&Prices'!F72/100) -> 33.45354361 | G21: ='Deficits&Financing'!G14/('GDP&Prices'!G72/100) -> 29.62229924 | H21: ='Deficits&Financing'!H14/('GDP&Prices'!H72/100) -> 30.70516506 | I21: ='Deficits&Financing'!I14/('GDP&Prices'!I72/100) -> 27.05841354 | J21: ='Deficits&Financing'!J14/('GDP&Prices'!J72/100) -> 27.98046848 | K21: ='Deficits&Financing'!K14/('GDP&Prices'!K72/100) -> 26.76284635 | L21: ='Deficits&Financing'!L14/('GDP&Prices'!L72/100) -> 26.30917071 | M21: ='Deficits&Financing'!M14/('GDP&Prices'!M72/100) -> 28.88011445 | N21: ='Deficits&Financing'!N14/('GDP&Prices'!N72/100) -> 41.45355193 | O21: ='Deficits&Financing'!O14/('GDP&Prices'!O72/100) -> 44.07252797 | P21: ='Deficits&Financing'!P14/('GDP&Prices'!P72/100) -> 46.7976353 | Q21: ='Deficits&Financing'!Q14/('GDP&Prices'!Q72/100) -> 49.57238592 | R21: ='Deficits&Financing'!R14/('GDP&Prices'!R72/100) -> 52.54336045 | S21: ='Deficits&Financing'!S14/('GDP&Prices'!S72/100) -> 55.63670594
B22: Growth rate | F22: =F21/E21-1 -> 0.2255965183 | G22: -0.1145243211 | H22: 0.03655576536 | I22: -0.1187667128 | J22: =J21/I21-1 -> 0.03407645961 | K22: =K21/J21-1 -> -0.04351685995 | L22: -0.01695169629 | M22: 0.0977204401 | N22: 0.4353666086 | O22: 0.06317856761 | P22: 0.06183233557 | Q22: =Q21/P21-1 -> 0.05929253899 | R22: =R21/Q21-1 -> 0.05993204632 | S22: =S21/R21-1 -> 0.05887224314
B23: Exports of goods and services | E23: ='Source Data'!E10 -> 376.7383773 | F23: ='Source Data'!F10 -> 383.1424922 | G23: ='Source Data'!G10 -> 416.850909 | H23: ='Source Data'!H10 -> 431.8433338 | I23: ='Source Data'!I10 -> 447.9909878 | J23: ='Source Data'!J10 -> 465.0282391 | K23: ='Source Data'!K10 -> 334.0377536 | L23: ='Source Data'!L10 -> 431.2337537 | M23: ='Source Data'!M10 -> 501.6622585 | N23: ='Source Data'!N10 -> 503.4959781 | O23: =N23*(1+O24) -> 523.771205 | P23: 542.5726347 | Q23: =P23*(1+Q24) -> 561.1624089 | R23: =Q23*(1+R24) -> 579.8683866 | S23: =R23*(1+S24) -> 598.3838024
B24: Actual | E24: =E23/'Source Data'!D10-1 -> 0.1019739191 | F24: =F23/E23-1 -> 0.01699883873 | G24: 0.08797880016 | H24: 0.03596591612 | I24: 0.03739238924 | J24: =J23/I23-1 -> 0.03803034384 | K24: =K23/J23-1 -> -0.2816828626 | L24: 0.2909730985 | M24: 0.1633186275 | N24: 0.003655287124 | O24: =O25+O26 -> 0.04026889541 | P24: =P25+P26 -> 0.0358962644 | Q24: =Q25+Q26 -> 0.03426227761 | R24: 0.03333433851 | S24: 0.03193037632
B25: Fitted | E25: =$E$142*E99/100+$E$143*E96 -> 0.06037953775 | F25: 0.01634563025 | G25: 0.004581007828 | H25: 0.05283266717 | I25: 0.04127041668 | J25: 0.0158299697 | K25: -0.003107298074 | L25: 0.1071422155 | M25: -0.003998179336 | N25: -0.01405732291 | O25: 0.04026889541 | P25: 0.0358962644 | Q25: 0.03426227761 | R25: 0.03333433851 | S25: 0.03193037632
B26: Add factor | E26: =E24-E25 -> 0.04159438138 | F26: 0.0006532084816 | G26: 0.08339779234 | H26: -0.01686675105 | I26: =I24-I25 -> -0.003878027435 | J26: =J24-J25 -> 0.02220037414 | K26: -0.2785755645 | L26: 0.183830883 | M26: 0.1673168069 | N26: 0.01771261004
B27: Imports of goods and services | E27: ='Source Data'!E11 -> 419.1725414 | F27: ='Source Data'!F11 -> 465.3820557 | G27: ='Source Data'!G11 -> 503.1848038 | H27: ='Source Data'!H11 -> 488.211874 | I27: ='Source Data'!I11 -> 529.835131 | J27: ='Source Data'!J11 -> 560.6338138 | K27: ='Source Data'!K11 -> 479.2896369 | L27: ='Source Data'!L11 -> 602.3023013 | M27: ='Source Data'!M11 -> 689.0030096 | N27: ='Source Data'!N11 -> 660.9620137 | O27: =N27*(1+O28) -> 662.3908993 | P27: 688.182253 | Q27: =P27*(1+Q28) -> 713.4684814 | R27: =Q27*(1+R28) -> 740.225874 | S27: =R27*(1+S28) -> 767.9839742
B28: Actual | E28: =E27/'Source Data'!D11-1 -> 0.04776261418 | F28: =F27/E27-1 -> 0.110239841 | G28: 0.08122949235 | H28: -0.02975632355 | I28: 0.08525654383 | J28: =J27/I27-1 -> 0.05812880445 | K28: =K27/J27-1 -> -0.1450932407 | L28: 0.2566562157 | M28: =M27/L27-1 -> 0.1439488247 | N28: =N27/M27-1 -> -0.04069792948 | O28: =O29+O30 -> 0.002161826972 | P28: =P29+P30 -> 0.03893675734 | Q28: =Q29+Q30 -> 0.03674350554 | R28: 0.03750325809 | S28: 0.03749950008
B29: Fitted | E29: =$E$151*E55+$E$152*E96 -> 0.05871163186 | F29: 0.08130884891 | G29: 0.06916364034 | H29: 0.02305996937 | I29: 0.05748704283 | J29: 0.03451133762 | K29: -0.09683968509 | L29: 0.09052220964 | M29: 0.09471575358 | N29: 0.03436305009 | O29: 0.002161826972 | P29: 0.03893675734 | Q29: 0.03674350554 | R29: 0.03750325809 | S29: 0.03749950008 | X29: This Excel Macro
B30: Add factor | E30: =E28-E29 -> -0.01094901768 | F30: 0.02893099211 | G30: 0.01206585201 | H30: -0.05281629292 | I30: 0.027769501 | J30: =J28-J29 -> 0.02361746682 | K30: -0.04825355564 | L30: 0.1661340061 | M30: 0.04923307109 | N30: -0.07506097957 | X30: performs Goal Seeks
B31: Statistical discrepancy | E31: =E36-(E7+E15+E23-E27) -> 5.617545026 | F31: 5.935449073 | G31: 2.097154309 | H31: -8.343363845 | I31: =I36-(I7+I15+I23-I27) -> -2.493006315 | J31: 6.818229116 | K31: 39.06919179 | L31: 76.81178279 | M31: 101.6098341 | N31: 61.26032727 | O31: 0 | P31: 0 | Q31: 0 | R31: 0 | S31: 0 | X31: automatically during
B32: GDP | E32: =E36 -> 1375.506853 | F32: 1465.44212 | G32: 1568.028846 | H32: 1635.970786 | I32: =I36 -> 1740.202898 | J32: =J36 -> 1838.626089 | K32: 1725.066014 | L32: 1915.538748 | M32: =M36 -> 2019.08766 | N32: 2077.718647 | O32: =O7+O15+O23-O27+O31 -> 2153.663214 | P32: =P7+P15+P23-P27+P31 -> 2276.846783 | Q32: =Q7+Q15+Q23-Q27+Q31 -> 2395.701911 | R32: 2519.664401 | S32: 2648.323329 | X32: the projection years.
B33: Growth rate | E33: =E37 -> 0.07441014323 | F33: 0.06538336528 | G33: 0.07000394221 | H33: 0.04332952192 | I33: =I37 -> 0.06371269725 | J33: =J32/I32-1 -> 0.05655845721 | K33: -0.06176355 | L33: 0.1104147507 | M33: 0.0540573308 | N33: 0.02903835638 | O33: =O32/N32-1 -> 0.03655190137 | P33: 0.05719722924 | Q33: =Q32/P32-1 -> 0.05220163644 | R33: 0.05174370418 | S33: 0.05106193028
B35: Real Output by Sector, [Units], constant prices
B36: GDP | E36: ='Source Data'!E12 -> 1375.506853 | F36: ='Source Data'!F12 -> 1465.44212 | G36: ='Source Data'!G12 -> 1568.028846 | H36: ='Source Data'!H12 -> 1635.970786 | I36: ='Source Data'!I12 -> 1740.202898 | J36: ='Source Data'!J12 -> 1838.626089 | K36: ='Source Data'!K12 -> 1725.066014 | L36: ='Source Data'!L12 -> 1915.538748 | M36: ='Source Data'!M12 -> 2019.08766 | N36: ='Source Data'!N12 -> 2077.718647 | O36: =N36*(1+O37) -> 2153.663341 | P36: =O36*(1+P37) -> 2276.846797 | Q36: =P36*(1+Q37) -> 2395.70194 | R36: 2519.664429 | S36: 2648.323328 | T36: Goal seek: | U36: Basic model solution and goal seek
B37: Growth rate | E37: ='Source Data'!E12/'Source Data'!D12-1 -> 0.07441014323 | F37: =F36/E36-1 -> 0.06538336528 | G37: =G36/F36-1 -> 0.07000394221 | H37: =H36/G36-1 -> 0.04332952192 | I37: =I36/H36-1 -> 0.06371269725 | J37: =J36/I36-1 -> 0.05655845721 | K37: -0.06176355 | L37: 0.1104147507 | M37: 0.0540573308 | N37: 0.02903835638 | O37: 0.03655196247 | P37: 0.05719717376 | Q37: 0.05220164244 | R37: 0.05174370266 | S37: 0.05106191852 | T37: Change this row | U37: Use goal seek to eliminate the difference in the
B38: Check: GDP Expenditure - GDP Production | E38: =E32-E36 -> 0 | F38: 0 | G38: 0 | H38: 0 | I38: =I32-I36 -> 0 | J38: 0 | K38: 0 | L38: 0 | M38: 0 | N38: 0 | O38: -0.0001269550276 | P38: -1.474815826e-05 | Q38: =Q32-Q36 -> -2.917209713e-05 | R38: -2.705971019e-05 | S38: 1.180776508e-06 | T38: to make this = zero | U38: GDPs by adjusting initial GDP growth estimate (orange)
B39: ='Source Data'!B25 -> Agriculture | E39: ='Source Data'!E25 -> 89.31864011 | F39: ='Source Data'!F25 -> 91.41452796 | G39: ='Source Data'!G25 -> 96.5742729 | H39: ='Source Data'!H25 -> 102.1941518 | I39: ='Source Data'!I25 -> 107.8139429 | J39: ='Source Data'!J25 -> 112.2222054 | K39: ='Source Data'!K25 -> 115.4043768 | L39: ='Source Data'!L25 -> 118.4492423 | M39: ='Source Data'!M25 -> 124.4159282 | N39: ='Source Data'!N25 -> 127.4125635 | O39: =N39*(1+O40) -> 131.6191648 | P39: =O39*(1+P40) -> 138.8752643 | Q39: =P39*(1+Q40) -> 143.6447295 | R39: 150.0358101 | S39: 156.4917906 | U39: Notes:
B40: Growth rate | E40: ='Source Data'!E25/'Source Data'!D25-1 -> 0.02414916118 | F40: =F39/E39-1 -> 0.02346529064 | G40: =G39/F39-1 -> 0.05644338001 | H40: =H39/G39-1 -> 0.05819229813 | I40: =I39/H39-1 -> 0.05499131802 | J40: =J39/I39-1 -> 0.04088768495 | K40: =K39/J39-1 -> 0.02835598738 | L40: =L39/K39-1 -> 0.02638431525 | M40: =M39/L39-1 -> 0.05037335642 | N40: 0.02408562441 | O40: =AVERAGE(J40:N40)/AVERAGE(J37:N37)*O37 -> 0.03301559223 | P40: =AVERAGE(K40:O40)/AVERAGE(K37:O37)*P37 -> 0.05512950573 | Q40: 0.03434351876 | R40: 0.04449227317 | S40: 0.04302959767 | U40: Basic model set up to use external estimate for production GDP
B41: ='Source Data'!B26 -> Manufacturing | E41: ='Source Data'!E26 -> 401.6003862 | F41: ='Source Data'!F26 -> 432.314687 | G41: ='Source Data'!G26 -> 460.4099043 | H41: ='Source Data'!H26 -> 486.7219469 | I41: ='Source Data'!I26 -> 523.9309517 | J41: ='Source Data'!J26 -> 556.7258204 | K41: ='Source Data'!K26 -> 528.5898484 | L41: ='Source Data'!L26 -> 626.1351093 | M41: ='Source Data'!M26 -> 620.3013939 | N41: ='Source Data'!N26 -> 635.2417403 | O41: =N41*(1+O42) -> 661.3042191 | P41: =O41*(1+P42) -> 703.96052 | Q41: =P41*(1+Q42) -> 742.9571751 | R41: 772.4460808 | S41: 811.5357071 | U41: which goal seek then adjusts to bring in line with expenditure
B42: Growth rate | E42: ='Source Data'!E26/'Source Data'!D26-1 -> 0.09053918537 | F42: =F41/E41-1 -> 0.07647975909 | G42: =G41/F41-1 -> 0.06498788526 | H42: =H41/G41-1 -> 0.05714916718 | I42: =I41/H41-1 -> 0.07644817554 | J42: =J41/I41-1 -> 0.06259387529 | K42: =K41/J41-1 -> -0.05053829179 | L42: =L41/K41-1 -> 0.1845386574 | M42: =M41/L41-1 -> -0.009317023331 | N42: 0.02408562441 | O42: =AVERAGE(J42:N42)/AVERAGE(J37:N37)*O37 -> 0.04102765466 | P42: =AVERAGE(K42:O42)/AVERAGE(K37:O37)*P37 -> 0.06450329465 | Q42: 0.0553960827 | R42: 0.03969125899 | S42: 0.05060499016 | U42: based projection. To make the expenditure GDP the adjusting
B43: ='Source Data'!B27 -> Services | E43: ='Source Data'!E27 -> 768.3610247 | F43: ='Source Data'!F27 -> 815.4915239 | G43: ='Source Data'!G27 -> 866.8828333 | H43: ='Source Data'!H27 -> 899.2779997 | I43: ='Source Data'!I27 -> 950.6310747 | J43: ='Source Data'!J27 -> 990.2711787 | K43: ='Source Data'!K27 -> 912.4237653 | L43: ='Source Data'!L27 -> 984.0685892 | M43: ='Source Data'!M27 -> 1063.573146 | N43: ='Source Data'!N27 -> 1089.18997 | O43: =N43*(1+O44) -> 1120.160282 | P43: =O43*(1+P44) -> 1170.876351 | Q43: =P43*(1+Q44) -> 1225.582672 | R43: 1287.964295 | S43: 1344.646987 | U43: outcome, manually adjust expenditure add factors until the GDPs
B44: Growth rate | E44: ='Source Data'!E27/'Source Data'!D27-1 -> 0.0652395037 | F44: =F43/E43-1 -> 0.06133900303 | G44: =G43/F43-1 -> 0.06301881491 | H44: =H43/G43-1 -> 0.03736971725 | I44: =I43/H43-1 -> 0.05710478303 | J44: =J43/I43-1 -> 0.04169872518 | K44: =K43/J43-1 -> -0.07861221757 | L44: =L43/K43-1 -> 0.07852143555 | M44: =M43/L43-1 -> 0.08079168272 | N44: 0.02408562441 | O44: =AVERAGE(J44:N44)/AVERAGE(J37:N37)*O37 -> 0.02843426122 | P44: =AVERAGE(K44:O44)/AVERAGE(K37:O37)*P37 -> 0.045275725 | Q44: 0.04672254346 | R44: 0.05089956381 | S44: 0.04400952103 | U44: are aligned or choose one expenditure equation add factor as the
B45: Other - [residual] | E45: =E47-E39-E41-E43 -> 0 | F45: 0 | G45: 0 | H45: 0 | I45: 0 | J45: 0 | K45: 0 | L45: 0 | M45: 0 | N45: 0 | O45: =O36-O39-O41-O43-O48 -> 6.44915028 | P45: =P36-P39-P41-P43-P48 -> 15.61253303 | Q45: =Q36-Q39-Q41-Q43-Q48 -> 23.07417213 | R45: 35.29875632 | S45: 47.742503 | T45: Should be small | U45: quantity that adjusts to align expenditure GDP with production
B46: Growth rate | U46: GDP.
B47: = Total value added | E47: =E36-E48 -> 1259.280051 | F47: 1339.220739 | G47: 1423.867011 | H47: 1488.194098 | I47: 1582.375969 | J47: 1659.219204 | K47: 1556.417991 | L47: 1728.652941 | M47: 1808.290469 | N47: 1851.844274 | O47: =SUM(O39,O41,O43,O45) -> 1919.532816 | P47: =SUM(P39,P41,P43,P45) -> 2029.324668 | Q47: =SUM(Q39,Q41,Q43,Q45) -> 2135.258749 | R47: =SUM(R39,R41,R43,R45) -> 2245.744943 | S47: =SUM(S39,S41,S43,S45) -> 2360.416988
B48: plus: Taxes minus Subsidies | E48: ='Source Data'!E28 -> 116.2268023 | F48: ='Source Data'!F28 -> 126.2213815 | G48: ='Source Data'!G28 -> 144.1618354 | H48: ='Source Data'!H28 -> 147.7766878 | I48: ='Source Data'!I28 -> 157.8269282 | J48: ='Source Data'!J28 -> 179.4068842 | K48: ='Source Data'!K28 -> 168.6480237 | L48: ='Source Data'!L28 -> 186.8858073 | M48: ='Source Data'!M28 -> 210.7971914 | N48: ='Source Data'!N28 -> 225.8743733 | O48: =N48*(1+O37) -> 234.130525 | P48: =O48*(1+P37) -> 247.5221293 | Q48: 260.443191 | R48: 273.919486 | S48: 287.9063405 | U48: Taxes & subsidies could be linked to fiscal projections depending
B49: = GDP | E49: ='Source Data'!E29 -> 1375.506853 | F49: ='Source Data'!F29 -> 1465.44212 | G49: ='Source Data'!G29 -> 1568.028846 | H49: ='Source Data'!H29 -> 1635.970786 | I49: ='Source Data'!I29 -> 1740.202898 | J49: ='Source Data'!J29 -> 1838.626089 | K49: ='Source Data'!K29 -> 1725.066014 | L49: ='Source Data'!L29 -> 1915.538748 | M49: ='Source Data'!M29 -> 2019.08766 | N49: ='Source Data'!N29 -> 2077.718647 | O49: =O47+O48 -> 2153.663341 | P49: =P47+P48 -> 2276.846797 | Q49: 2395.70194 | R49: 2519.664429 | S49: 2648.323328 | U49: data availability. Reminder to check the "residual" should be small.
B50: Growth rate | E50: =E37 -> 0.07441014323 | F50: =F49/E49-1 -> 0.06538336528 | G50: 0.07000394221 | H50: 0.04332952192 | I50: 0.06371269725 | J50: =J49/I49-1 -> 0.05655845721 | K50: =K49/J49-1 -> -0.06176355 | L50: =L49/K49-1 -> 0.1104147507 | M50: =M49/L49-1 -> 0.0540573308 | N50: =N49/M49-1 -> 0.02903835638 | O50: 0.03655196247 | P50: 0.05719717376 | Q50: =Q49/P49-1 -> 0.05220164244 | R50: =R49/Q49-1 -> 0.05174370266 | S50: =S49/R49-1 -> 0.05106191852
B52: Output Gaps, Unemployment & Inflation, in percent | U52: The basic model does not use a "bottom-up" production forecast.
B53: Business Cycle | U53: If used, this GDP should drive the production estimate
B54: GDP | E54: =E36 -> 1375.506853 | F54: 1465.44212 | G54: 1568.028846 | H54: 1635.970786 | I54: 1740.202898 | J54: 1838.626089 | K54: 1725.066014 | L54: 1915.538748 | M54: 2019.08766 | N54: 2077.718647 | O54: 2153.663341 | P54: 2276.846797 | Q54: 2395.70194 | R54: 2519.664429 | S54: 2648.323328 | U54: and GDP expenditure adjusted accordingly to obtain a coherent solution.
B55: Growth rate | E55: =E37 -> 0.07441014323 | F55: =F54/E54-1 -> 0.06538336528 | G55: 0.07000394221 | H55: 0.04332952192 | I55: 0.06371269725 | J55: =J54/I54-1 -> 0.05655845721 | K55: =K54/J54-1 -> -0.06176355 | L55: 0.1104147507 | M55: 0.0540573308 | N55: 0.02903835638 | O55: 0.03655196247 | P55: 0.05719717376 | Q55: =Q54/P54-1 -> 0.05220164244 | R55: =R54/Q54-1 -> 0.05174370266 | S55: =S54/R54-1 -> 0.05106191852
B56: Potential GDP | E56: =E54 -> 1375.506853 | F56: =E56*(1+F57) -> 1444.282196 | G56: 1516.496306 | H56: 1592.321121 | I56: 1671.937177 | J56: =I56*(1+J57) -> 1755.534036 | K56: =J56*(1+K57) -> 1808.200057 | L56: =K56*(1+L57) -> 1880.528059 | M56: 1974.554462 | N56: 2073.282185 | O56: 2176.946295 | P56: 2285.793609 | Q56: =P56*(1+Q57) -> 2400.08329 | R56: =Q56*(1+R57) -> 2520.087454 | S56: =R56*(1+S57) -> 2646.091827
E57: 0.05 | F57: 0.05 | G57: 0.05 | H57: 0.05 | I57: 0.05 | J57: 0.05 | K57: 0.03 | L57: 0.04 | M57: 0.05 | N57: 0.05 | O57: 0.05 | P57: 0.05 | Q57: 0.05 | R57: 0.05 | S57: 0.05 | U57: Forecast assumption
B58: Output gap | E58: =(E54-E56)/E56 -> 0 | F58: 0.01465082408 | G58: 0.03398131594 | H58: 0.02741260193 | I58: =(I54-I56)/I56 -> 0.04083031428 | J58: =(J54-J56)/J56 -> 0.04733149626 | K58: =(K54-K56)/K56 -> -0.04597613105 | L58: 0.01861747746 | M58: 0.02255354229 | N58: 0.002139825205 | O58: -0.01069523573 | P58: =(P54-P56)/P56 -> -0.003914094495 | Q58: -0.001825499255 | R58: -0.0001678616024 | S58: 0.0008433196044
B59: Unemployment rate | E59: ='Source Data'!E31 -> 8.366893836 | F59: ='Source Data'!F31 -> 7.181445753 | G59: ='Source Data'!G31 -> 6.938469869 | H59: ='Source Data'!H31 -> 5.618970148 | I59: ='Source Data'!I31 -> 5.76879761 | J59: ='Source Data'!J31 -> 6.290347298 | K59: ='Source Data'!K31 -> 5.945543738 | L59: ='Source Data'!L31 -> 7.236260852 | M59: ='Source Data'!M31 -> 5.399060775 | N59: ='Source Data'!N31 -> 6.076 | O59: =O60+O61 -> 6.427809429 | P59: =P60+P61 -> 6.15656378 | Q59: =Q60+Q61 -> 6.07301997 | R59: 6.006714464 | S59: 5.966267216
B60: Structural unemployment | E60: 6 | F60: 6 | G60: 6 | H60: 6 | I60: 6 | J60: 6 | K60: 6 | L60: 6 | M60: 6 | N60: 6 | O60: =N60 -> 6 | P60: =O60 -> 6 | Q60: =P60 -> 6 | R60: =Q60 -> 6 | S60: =R60 -> 6 | U60: Forecast assumption
B61: Cyclical unemployment | E61: =E59-E60 -> 2.366893836 | F61: 1.181445753 | G61: 0.9384698686 | H61: -0.3810298523 | I61: -0.23120239 | J61: 0.2903472982 | K61: =K59-K60 -> -0.05445626159 | L61: 1.236260852 | M61: -0.6009392255 | N61: 0.076 | O61: =-100*O58*$E$170 -> 0.4278094291 | P61: =-100*P58*$E$170 -> 0.1565637798 | Q61: =-100*Q58*$E$170 -> 0.07301997021 | R61: =-100*R58*$E$170 -> 0.006714464097 | S61: =-100*S58*$E$170 -> -0.03373278418
B62: Key Prices
B63: Consumer Price Index (CPI), average | E63: ='Source Data'!E32/100 -> 0.02938669416 | F63: ='Source Data'!F32/100 -> 0.008200114198 | G63: ='Source Data'!G32/100 -> 0.01581882751 | H63: ='Source Data'!H32/100 -> 0.03213965808 | I63: ='Source Data'!I32/100 -> 0.03493145575 | J63: ='Source Data'!J32/100 -> 0.0181060377 | K63: ='Source Data'!K32/100 -> 0.03705411163 | L63: ='Source Data'!L32/100 -> 0.08077738123 | M63: ='Source Data'!M32/100 -> 0.07735348817 | N63: ='Source Data'!N32/100 -> 0.04690196693 | O63: =O64+O65 -> 0.04443970339 | P63: =P64+P65 -> 0.0402407454 | Q63: =Q64+Q65 -> 0.03821010462 | R63: 0.03748007512 | S63: 0.03738897709
B64: Fitted | E64: =$E$161*E58+$E$162*D63+$E$163*E107+$E$164*E115 -> 0.0225 | F64: 0.0376235119 | G64: 0.03089632029 | H64: 0.03339193414 | I64: 0.04423589189 | J64: 0.04693202713 | K64: 0.01985779264 | L64: 0.04225055131 | M64: 0.06489939907 | N64: 0.05910470912 | O64: 0.04443970339 | P64: 0.0402407454 | Q64: 0.03821010462 | R64: 0.03748007512 | S64: 0.03738897709
B65: Add factor | E65: =E63-E64 -> 0.00688669416 | F65: -0.0294233977 | G65: -0.01507749278 | H65: -0.001252276062 | I65: -0.009304436145 | J65: =J63-J64 -> -0.02882598942 | K65: =K63-K64 -> 0.01719631899 | L65: 0.03852682993 | M65: 0.01245408909 | N65: -0.01220274219
B66: Consumer Price Index, end period | E66: ='Source Data'!E33/100 -> 0.0155033961 | F66: ='Source Data'!F33/100 -> 0.02297587812 | G66: ='Source Data'!G33/100 -> 0.01661429044 | H66: ='Source Data'!H33/100 -> 0.04120191917 | I66: ='Source Data'!I33/100 -> 0.01147182769 | J66: ='Source Data'!J33/100 -> 0.03656278926 | K66: ='Source Data'!K33/100 -> 0.05442574873 | L66: ='Source Data'!L33/100 -> 0.08325785007 | M66: ='Source Data'!M33/100 -> 0.07670723633 | N66: ='Source Data'!N33/100 -> 0.03497185865
B67: GDP Deflator | E67: =100*'Deficits&Financing'!E20/'GDP&Prices'!E36 -> 149.6150722 | F67: =100*'Deficits&Financing'!F20/'GDP&Prices'!F54 -> 153.1250238 | G67: =100*'Deficits&Financing'!G20/'GDP&Prices'!G54 -> 156.3175808 | H67: =100*'Deficits&Financing'!H20/'GDP&Prices'!H54 -> 162.7082258 | I67: =100*'Deficits&Financing'!I20/'GDP&Prices'!I54 -> 169.2384687 | J67: =100*'Deficits&Financing'!J20/'GDP&Prices'!J54 -> 173.6929859 | K67: =100*'Deficits&Financing'!K20/'GDP&Prices'!K54 -> 182.0023198 | L67: =100*'Deficits&Financing'!L20/'GDP&Prices'!L54 -> 196.0231749 | M67: =100*'Deficits&Financing'!M20/'GDP&Prices'!M54 -> 217.0482689 | N67: =100*'Deficits&Financing'!N20/'GDP&Prices'!N54 -> 226.8226687 | O67: =100*'Deficits&Financing'!O20/'GDP&Prices'!O54 -> 244.2673062 | P67: =100*'Deficits&Financing'!P20/'GDP&Prices'!P54 -> 254.8814376 | Q67: =100*'Deficits&Financing'!Q20/'GDP&Prices'!Q54 -> 265.4383577 | R67: =100*'Deficits&Financing'!R20/'GDP&Prices'!R54 -> 276.127368 | S67: =100*'Deficits&Financing'!S20/'GDP&Prices'!S54 -> 287.1807575
B68: Growth rate | E68: =('Source Data'!E22/'Source Data'!E12)/('Source Data'!D22/'Source Data'!D12)-1 -> 0.04449616792 | F68: =F67/E67-1 -> 0.02345987981 | G68: 0.02084934904 | H68: 0.04088244532 | I68: =I67/H67-1 -> 0.04013468227 | J68: =J67/I67-1 -> 0.02632094932 | K68: =K67/J67-1 -> 0.0478392022 | L68: 0.07703668386 | M68: 0.1072582053 | N68: 0.04503329986 | O68: =O67/N67-1 -> 0.07690870428 | P68: 0.04345293507 | Q68: =Q67/P67-1 -> 0.04141894453 | R68: =R67/Q67-1 -> 0.0402692753 | S68: =S67/R67-1 -> 0.04003003944
B69: Deflators
B70: Consumption | E70: =100*'Deficits&Financing'!E7/'GDP&Prices'!E7 -> 151.813924 | F70: =100*'Deficits&Financing'!F7/'GDP&Prices'!F7 -> 154.543388 | G70: =100*'Deficits&Financing'!G7/'GDP&Prices'!G7 -> 158.4228315 | H70: =100*'Deficits&Financing'!H7/'GDP&Prices'!H7 -> 165.3101974 | I70: =100*'Deficits&Financing'!I7/'GDP&Prices'!I7 -> 172.0576127 | J70: =100*'Deficits&Financing'!J7/'GDP&Prices'!J7 -> 176.1830618 | K70: =100*'Deficits&Financing'!K7/'GDP&Prices'!K7 -> 184.2916257 | L70: =100*'Deficits&Financing'!L7/'GDP&Prices'!L7 -> 199.2520975 | M70: =100*'Deficits&Financing'!M7/'GDP&Prices'!M7 -> 217.3710891 | N70: =100*'Deficits&Financing'!N7/'GDP&Prices'!N7 -> 228.2187669 | O70: =N70*(1+O71) -> 238.3607412 | P70: 247.9525551 | Q70: =P70*(1+Q71) -> 257.4268481 | R70: =Q70*(1+R71) -> 267.0752257 | S70: =R70*(1+S71) -> 277.0608952
B71: Growth rate | E71: =(('Source Data'!E15+'Source Data'!E16)/('Source Data'!E5+'Source Data'!E6))/(('Source Data'!D15+'Source Data'!D16)/('Source Data'!D5+'Source Data'!D6))-1 -> 0.04200442358 | F71: =F70/E70-1 -> 0.01797900944 | G71: 0.02510261702 | H71: 0.0434745788 | I71: 0.04081669137 | J71: =J70/I70-1 -> 0.02397713794 | K71: =K70/J70-1 -> 0.04602351544 | L71: 0.08117825092 | M71: 0.09093501075 | N71: 0.04990395819 | O71: =O63 -> 0.04443970339 | P71: =P63 -> 0.0402407454 | Q71: =Q63 -> 0.03821010462 | R71: 0.03748007512 | S71: 0.03738897709
B72: Gross capital formation | E72: =100*'Deficits&Financing'!E11/'GDP&Prices'!E15 -> 152.9333609 | F72: =100*'Deficits&Financing'!F11/'GDP&Prices'!F15 -> 143.9012197 | G72: =100*'Deficits&Financing'!G11/'GDP&Prices'!G15 -> 137.5150847 | H72: =100*'Deficits&Financing'!H11/'GDP&Prices'!H15 -> 155.4893994 | I72: =100*'Deficits&Financing'!I11/'GDP&Prices'!I15 -> 166.0326511 | J72: =100*'Deficits&Financing'!J11/'GDP&Prices'!J15 -> 171.7552273 | K72: =100*'Deficits&Financing'!K11/'GDP&Prices'!K15 -> 194.8759387 | L72: =100*'Deficits&Financing'!L11/'GDP&Prices'!L15 -> 218.9394135 | M72: =100*'Deficits&Financing'!M11/'GDP&Prices'!M15 -> 261.5720437 | N72: =100*'Deficits&Financing'!N11/'GDP&Prices'!N15 -> 245.9179833 | O72: =N72*(1+O73) -> 255.5914687 | P72: 265.9822681 | Q72: =P72*(1+Q73) -> 277.4591488 | R72: =Q72*(1+R73) -> 289.2566184 | S72: =R72*(1+S73) -> 301.8575332
B73: Growth rate | E73: =('Source Data'!E17/'Source Data'!E7)/('Source Data'!D17/'Source Data'!D7)-1 -> 0.04264321341 | F73: =F72/E72-1 -> -0.05905932616 | G73: -0.04437860202 | H73: 0.1307079487 | I73: 0.06780688426 | J73: =J72/I72-1 -> 0.03446657162 | K73: =K72/J72-1 -> 0.1346143099 | L73: 0.123480995 | M73: 0.1947234144 | N73: -0.05984607576 | O73: =0.5*O71+0.5*O77 -> 0.03933622598 | P73: =0.5*P71+0.5*P77 -> 0.04065393658 | Q73: 0.0431490446 | R73: 0.04251966325 | S73: 0.04356309948
B74: Exports of goods and services | E74: =100*'Deficits&Financing'!E15/'GDP&Prices'!E23 -> 1367.240107 | F74: =100*'Deficits&Financing'!F15/'GDP&Prices'!F23 -> 139.1649528 | G74: =100*'Deficits&Financing'!G15/'GDP&Prices'!G23 -> 142.4137476 | H74: =100*'Deficits&Financing'!H15/'GDP&Prices'!H23 -> 145.9754678 | I74: =100*'Deficits&Financing'!I15/'GDP&Prices'!I23 -> 151.4141573 | J74: =100*'Deficits&Financing'!J15/'GDP&Prices'!J23 -> 158.4274571 | K74: =100*'Deficits&Financing'!K15/'GDP&Prices'!K23 -> 176.8553314 | L74: =100*'Deficits&Financing'!L15/'GDP&Prices'!L23 -> 185.7792244 | M74: =100*'Deficits&Financing'!M15/'GDP&Prices'!M23 -> 192.7344516 | N74: =100*'Deficits&Financing'!N15/'GDP&Prices'!N23 -> 205.666247 | O74: =N74*(1+O75) -> 213.5793619 | P74: 224.9510621 | Q74: =P74*(1+Q75) -> 237.9640774 | R74: =Q74*(1+R75) -> 250.9131099 | S74: =R74*(1+S75) -> 264.6219421
B75: Growth rate | E75: =('Source Data'!E20/'Source Data'!E10)/('Source Data'!D20/'Source Data'!D10)-1 -> 9.127867106 | F75: =F74/E74-1 -> -0.8982146939 | G75: 0.02334492083 | H75: 0.02500966585 | I75: 0.03725755811 | J75: =J74/I74-1 -> 0.04631865265 | K75: =K74/J74-1 -> 0.1163174278 | L75: 0.05045871631 | M75: 0.03743813241 | N75: 0.0670964395 | O75: =(1-O105)*((1+O100/100)*(1+O94)-1)+O105*((1+O102/100)*(1+O94)-1) -> 0.03847551562 | P75: =(1-P105)*((1+P100/100)*(1+P94)-1)+P105*((1+P102/100)*(1+P94)-1) -> 0.05324344113 | Q75: =(1-Q105)*((1+Q100/100)*(1+Q94)-1)+Q105*((1+Q102/100)*(1+Q94)-1) -> 0.05784820548 | R75: 0.05441591303 | S75: 0.05463577471
B76: Imports of goods and services | E76: =100*'Deficits&Financing'!E17/'GDP&Prices'!E27 -> 148.2577604 | F76: =100*'Deficits&Financing'!F17/'GDP&Prices'!F27 -> 136.9836474 | G76: =100*'Deficits&Financing'!G17/'GDP&Prices'!G27 -> 134.2676871 | H76: =100*'Deficits&Financing'!H17/'GDP&Prices'!H27 -> 144.7190632 | I76: =100*'Deficits&Financing'!I17/'GDP&Prices'!I27 -> 159.5186596 | J76: =100*'Deficits&Financing'!J17/'GDP&Prices'!J27 -> 159.1665373 | K76: =100*'Deficits&Financing'!K17/'GDP&Prices'!K27 -> 169.2187605 | L76: =100*'Deficits&Financing'!L17/'GDP&Prices'!L27 -> 194.1791861 | M76: =100*'Deficits&Financing'!M17/'GDP&Prices'!M27 -> 204.6092021 | N76: =100*'Deficits&Financing'!N17/'GDP&Prices'!N27 -> 208.4980009 | O76: =N76*(1+O77) -> 215.6354606 | P76: 224.4909896 | Q76: =P76*(1+Q77) -> 235.2863088 | R76: =Q76*(1+R77) -> 246.4763495 | S76: =R76*(1+S77) -> 258.7353984
B77: Growth rate | E77: =('Source Data'!E21/'Source Data'!E11)/('Source Data'!D21/'Source Data'!D11)-1 -> 0.02630027546 | F77: =F76/E76-1 -> -0.07604399908 | G77: -0.01982689447 | H77: 0.07783984579 | I77: 0.1022643194 | J77: =J76/I76-1 -> -0.002207405294 | K77: =K76/J76-1 -> 0.06315538014 | L77: 0.1475038909 | M77: 0.05371335746 | N77: 0.01900598206 | O77: =(1-O104)*((1+O100/100)*(1+O94)-1)+O104*((1+O102/100)*(1+O94)-1) -> 0.03423274857 | P77: =(1-P104)*((1+P100/100)*(1+P94)-1)+P104*((1+P102/100)*(1+P94)-1) -> 0.04106712776 | Q77: =(1-Q104)*((1+Q100/100)*(1+Q94)-1)+Q104*((1+Q102/100)*(1+Q94)-1) -> 0.04808798458 | R77: 0.04755925139 | S77: 0.04973722187
B79: Assumptions
B80: Disposable income:
B81: Real private disposable income | E81: ='Deficits&Financing'!E27*(1-'GDP&Prices'!E83) -> 1212.937769 | F81: ='Deficits&Financing'!F27*(1-'GDP&Prices'!F83) -> 1309.982484 | G81: ='Deficits&Financing'!G27*(1-'GDP&Prices'!G83) -> 1398.910566 | H81: ='Deficits&Financing'!H27*(1-'GDP&Prices'!H83) -> 1457.124786 | I81: ='Deficits&Financing'!I27*(1-'GDP&Prices'!I83) -> 1560.517409 | J81: ='Deficits&Financing'!J27*(1-'GDP&Prices'!J83) -> 1644.307362 | K81: ='Deficits&Financing'!K27*(1-'GDP&Prices'!K83) -> 1589.386411 | L81: ='Deficits&Financing'!L27*(1-'GDP&Prices'!L83) -> 1731.542603 | M81: ='Deficits&Financing'!M27*(1-'GDP&Prices'!M83) -> 1817.288519 | N81: ='Deficits&Financing'!N27*(1-'GDP&Prices'!N83) -> 1841.184579 | O81: ='Deficits&Financing'!O27*(1-'GDP&Prices'!O83) -> 1903.441116 | P81: ='Deficits&Financing'!P27*(1-'GDP&Prices'!P83) -> 2009.110645 | Q81: ='Deficits&Financing'!Q27*(1-'GDP&Prices'!Q83) -> 2111.657792 | R81: ='Deficits&Financing'!R27*(1-'GDP&Prices'!R83) -> 2218.801372 | S81: ='Deficits&Financing'!S27*(1-'GDP&Prices'!S83) -> 2330.067884
B82: Growth rate | E82: … | F82: =F81/E81-1 -> 0.08000799175 | G82: 0.06788494004 | H82: 0.04161396823 | I82: 0.07095660186 | J82: =J81/I81-1 -> 0.05369369903 | K82: =K81/J81-1 -> -0.03340065955 | L82: 0.08944092595 | M82: 0.04951995727 | N82: 0.01314929318 | O82: 0.03381330566 | P82: 0.05551499768 | Q82: =Q81/P81-1 -> 0.05104106536 | R82: =R81/Q81-1 -> 0.05073908281 | S82: =S81/R81-1 -> 0.05014712583
B83: Taxes minus transfers/GDP | E83: ='Policies&Assumptions'!E33/100 -> 0.1322802913 | F83: ='Policies&Assumptions'!F33/100 -> 0.1278736871 | G83: ='Policies&Assumptions'!G33/100 -> 0.1281203445 | H83: ='Policies&Assumptions'!H33/100 -> 0.1297347183 | I83: ='Policies&Assumptions'!I33/100 -> 0.1307120416 | J83: ='Policies&Assumptions'!J33/100 -> 0.1326936446 | K83: ='Policies&Assumptions'!K33/100 -> 0.1227596522 | L83: ='Policies&Assumptions'!L33/100 -> 0.1442851367 | M83: ='Policies&Assumptions'!M33/100 -> 0.1379453945 | N83: ='Policies&Assumptions'!N33/100 -> 0.1439323437 | O83: ='Policies&Assumptions'!O33/100 -> 0.1420542916 | P83: ='Policies&Assumptions'!P33/100 -> 0.1420542916 | Q83: ='Policies&Assumptions'!Q33/100 -> 0.1420542916 | R83: ='Policies&Assumptions'!R33/100 -> 0.1420542916 | S83: ='Policies&Assumptions'!S33/100 -> 0.1420542916 | U83: Linked to tax/GDP since there is no information on transfers
B84: Interest rates:
B85: Average lending rate (domestic currency) | E85: ='Policies&Assumptions'!E89 -> 0.139025 | F85: ='Policies&Assumptions'!F89 -> 0.1487666667 | G85: ='Policies&Assumptions'!G89 -> 0.1508416667 | H85: ='Policies&Assumptions'!H89 -> 0.1391 | I85: ='Policies&Assumptions'!I89 -> 0.125337 | J85: ='Policies&Assumptions'!J89 -> 0.1248676667 | K85: ='Policies&Assumptions'!K89 -> 0.1097964167 | L85: ='Policies&Assumptions'!L89 -> 0.09608308333 | M85: ='Policies&Assumptions'!M89 -> 0.1185005 | N85: ='Policies&Assumptions'!N89 -> 0.1393454167 | O85: ='Policies&Assumptions'!O89 -> 0.1014229583 | P85: ='Policies&Assumptions'!P89 -> 0.1014229583 | Q85: ='Policies&Assumptions'!Q89 -> 0.09642295833 | R85: ='Policies&Assumptions'!R89 -> 0.09642295833 | S85: ='Policies&Assumptions'!S89 -> 0.09642295833
B86: Average lending rate (foreign currency) | E86: ='Policies&Assumptions'!E91 -> 0.06519166667 | F86: ='Policies&Assumptions'!F91 -> 0.06364166667 | G86: ='Policies&Assumptions'!G91 -> 0.06015833333 | H86: ='Policies&Assumptions'!H91 -> 0.05898333333 | I86: ='Policies&Assumptions'!I91 -> 0.05773625 | J86: ='Policies&Assumptions'!J91 -> 0.05713183333 | K86: ='Policies&Assumptions'!K91 -> 0.04511066667 | L86: ='Policies&Assumptions'!L91 -> 0.0349315 | M86: ='Policies&Assumptions'!M91 -> 0.04678741667 | N86: ='Policies&Assumptions'!N91 -> 0.07800983333 | O86: ='Policies&Assumptions'!O91 -> 0.034898625 | P86: ='Policies&Assumptions'!P91 -> 0.034898625 | Q86: ='Policies&Assumptions'!Q91 -> 0.029898625 | R86: ='Policies&Assumptions'!R91 -> 0.029898625 | S86: ='Policies&Assumptions'!S91 -> 0.029898625
B87: Exchange rate adjusted forex lending rate | E87: =E86+E94 -> 0.1071541367 | F87: 0.09798172938 | G87: 0.08308112538 | H87: 0.09080301354 | I87: =I86+I94 -> 0.09948380876 | J87: 0.09302934067 | K87: 0.147089385 | L87: 0.04595714945 | M87: 0.01015920458 | N87: 0.1143734697 | O87: 0.069898625 | P87: =P86+P94 -> 0.069898625 | Q87: =Q86+Q94 -> 0.064898625 | R87: 0.064898625 | S87: 0.064898625
B88: Share of foreign currency lending | E88: ='Source Data'!E40/100 -> 0.2054030645 | F88: ='Source Data'!F40/100 -> 0.2148059024 | G88: ='Source Data'!G40/100 -> 0.2108610764 | H88: ='Source Data'!H40/100 -> 0.2043977165 | I88: ='Source Data'!I40/100 -> 0.2076970116 | J88: ='Source Data'!J40/100 -> 0.2109916404 | K88: ='Source Data'!K40/100 -> 0.1965568577 | L88: ='Source Data'!L40/100 -> 0.1734277484 | M88: ='Source Data'!M40/100 -> 0.2000280289 | N88: ='Source Data'!N40/100 -> 0.2027557843 | O88: =N88 -> 0.2027557843 | P88: =O88 -> 0.2027557843 | Q88: =P88 -> 0.2027557843 | R88: 0.2027557843 | S88: 0.2027557843 | U88: Forecast assumption
B89: Effective average lending rate | E89: =(1-E88)*E85+E88*E87 -> 0.132478627 | F89: 0.1378577624 | G89: 0.136553606 | H89: 0.1292282063 | I89: 0.1199673694 | J89: =(1-J88)*J85+J88*J87 -> 0.118150046 | K89: 0.1171266053 | L89: 0.08738985549 | M89: 0.09682920423 | N89: =(1-N88)*N85+N88*N87 -> 0.13428221 | O89: =(1-O88)*O85+O88*O87 -> 0.0950312174 | P89: 0.0950312174 | Q89: =(1-Q88)*Q85+Q88*Q87 -> 0.0900312174 | R89: 0.0900312174 | S89: 0.0900312174
B90: Effective REAL average lending rate | E90: =(1+E89)/(1+E63)-1 -> 0.1001488881 | F90: 0.1286030882 | G90: 0.1188546375 | H90: 0.09406532092 | I90: =(1+I89)/(1+I63)-1 -> 0.08216574462 | J90: 0.09826482176 | K90: 0.07721149051 | L90: 0.006118257437 | M90: 0.01807736855 | N90: 0.08346554482 | O90: 0.04843890351 | P90: 0.05267095357 | Q90: =(1+Q89)/(1+Q63)-1 -> 0.04991389754 | R90: 0.05065267618 | S90: 0.05074493895
B91: Change in eff. real lending rate | E91: … | F91: =F90-E90 -> 0.02845420008 | G91: -0.009748450708 | H91: -0.02478931655 | I91: -0.0118995763 | J91: =J90-I90 -> 0.01609907714 | K91: =K90-J90 -> -0.02105333126 | L91: -0.07109323307 | M91: 0.01195911111 | N91: 0.06538817627 | O91: -0.03502664131 | P91: 0.004232050067 | Q91: =Q90-P90 -> -0.002757056038 | R91: =R90-Q90 -> 0.0007387786427 | S91: =S90-R90 -> 9.226277194e-05
B92: Exchange rates:
B93: Exchange rate (LC/US$, average) | E93: ='Policies&Assumptions'!E106 -> 42.62556729 | F93: ='Policies&Assumptions'!F106 -> 44.08933195 | G93: ='Policies&Assumptions'!G106 -> 45.09998253 | H93: ='Policies&Assumptions'!H106 -> 46.53504956 | I93: ='Policies&Assumptions'!I106 -> 48.47777427 | J93: ='Policies&Assumptions'!J106 -> 50.21800553 | K93: ='Policies&Assumptions'!K106 -> 55.33917337 | L93: ='Policies&Assumptions'!L106 -> 55.94932369 | M93: ='Policies&Assumptions'!M106 -> 53.9 | N93: ='Policies&Assumptions'!N106 -> 55.86 | O93: ='Policies&Assumptions'!O106 -> 57.8151 | P93: ='Policies&Assumptions'!P106 -> 59.8386285 | Q93: ='Policies&Assumptions'!Q106 -> 61.9329805 | R93: ='Policies&Assumptions'!R106 -> 64.10063481 | S93: ='Policies&Assumptions'!S106 -> 66.34415703
B94: Percent change | E94: ='Policies&Assumptions'!E107 -> 0.04196247 | F94: =F93/E93-1 -> 0.03434006272 | G94: 0.02292279205 | H94: 0.0318196802 | I94: 0.04174755876 | J94: =J93/I93-1 -> 0.03589750734 | K94: =K93/J93-1 -> 0.1019787183 | L94: 0.01102564945 | M94: -0.03662821209 | N94: =N93/M93-1 -> 0.03636363636 | O94: =O93/N93-1 -> 0.035 | P94: 0.035 | Q94: =Q93/P93-1 -> 0.035 | R94: =R93/Q93-1 -> 0.035 | S94: =S93/R93-1 -> 0.035
B95: REER (appreciation = +) | E95: ='Policies&Assumptions'!E115 -> 100 | F95: ='Policies&Assumptions'!F115 -> 103.8389304 | G95: ='Policies&Assumptions'!G115 -> 104.3913317 | H95: ='Policies&Assumptions'!H115 -> 100.6117232 | I95: ='Policies&Assumptions'!E115 -> 100 | J95: ='Policies&Assumptions'!J115 -> 96.15616065 | K95: ='Policies&Assumptions'!K115 -> 88.81669311 | L95: ='Policies&Assumptions'!L115 -> 86.26378099 | M95: ='Policies&Assumptions'!M115 -> 93.74479852 | N95: ='Policies&Assumptions'!N115 -> 95.01534269 | O95: ='Policies&Assumptions'!O115 -> 88.82746139 | P95: ='Policies&Assumptions'!P115 -> 86.0914765 | Q95: ='Policies&Assumptions'!Q115 -> 83.87926048 | R95: ='Policies&Assumptions'!R115 -> 81.92432692 | S95: ='Policies&Assumptions'!S115 -> 80.12046424
B96: Appreciation (+)/ Depreciation (-) | E96: ='Policies&Assumptions'!E116 -> -0.02395600842 | F96: =F95/E95-1 -> 0.03838930379 | G96: 0.005319790473 | H96: -0.03620615289 | I96: -0.006080039128 | J96: =J95/I95-1 -> -0.03843839346 | K96: =K95/J95-1 -> -0.07632862518 | L96: -0.02874360697 | M96: 0.08672257865 | N96: 0.01355322306 | O96: -0.06512507475 | P96: -0.03080111548 | Q96: =Q95/P95-1 -> -0.02569610956 | R96: =R95/Q95-1 -> -0.02330651888 | S96: =S95/R95-1 -> -0.02201864504
B97: Global Indicators: E.g., Source, IMF WEO
B98: Partners' Real GDP | E98: ='Source Data'!E83 -> 3.082793128 | F98: ='Source Data'!F83 -> 2.722189533 | G98: ='Source Data'!G83 -> 1.083969622 | H98: ='Source Data'!H83 -> 2.020833572 | I98: ='Source Data'!I83 -> 1.886966447 | J98: ='Source Data'!J83 -> 0.8305383476 | K98: ='Source Data'!K83 -> -4.945487588 | L98: ='Source Data'!L83 -> 6.269534846 | M98: ='Source Data'!M83 -> 3.450561764 | N98: ='Source Data'!N83 -> 3.062892006 | O98: ='Source Data'!O83 -> 2.887929256 | P98: ='Source Data'!P83 -> 2.611768756 | Q98: ='Source Data'!Q83 -> 2.418702969 | R98: ='Source Data'!R83 -> 2.421329936 | S98: ='Source Data'!S83 -> 2.402726498 | U98: Forecast assumptions
B99: Partners' nonoil imports | E99: ='Source Data'!E84 -> 6.914504792 | F99: ='Source Data'!F84 -> 5.077183164 | G99: ='Source Data'!G84 -> 1.034414724 | H99: ='Source Data'!H84 -> 4.961370103 | I99: ='Source Data'!I84 -> 5.461485302 | J99: ='Source Data'!J84 -> -0.48417529 | K99: ='Source Data'!K84 -> -5.89594438 | L99: ='Source Data'!L84 -> 13.252916 | M99: ='Source Data'!M84 -> 5.623301427 | N99: ='Source Data'!N84 -> -1.040101626 | O99: ='Source Data'!O84 -> 1.10090829 | P99: ='Source Data'!P84 -> 2.927958095 | Q99: ='Source Data'!Q84 -> 3.05917469 | R99: ='Source Data'!R84 -> 3.097297011 | S99: ='Source Data'!S84 -> 2.988721971 | U99: Forecast assumptions
B100: Partners' nonoil export deflators (US$) | E100: ='Source Data'!E85 -> -1.417937464 | F100: ='Source Data'!F85 -> -7.251748564 | G100: ='Source Data'!G85 -> -4.289460764 | H100: ='Source Data'!H85 -> 6.282615185 | I100: ='Source Data'!I85 -> 6.872494455 | J100: ='Source Data'!J85 -> 2.981969933 | K100: ='Source Data'!K85 -> 7.84412241 | L100: ='Source Data'!L85 -> 36.80410778 | M100: ='Source Data'!M85 -> 0.9926487238 | N100: ='Source Data'!N85 -> -3.745165621 | O100: ='Source Data'!O85 -> 0.3357986106 | P100: ='Source Data'!P85 -> 1.762651317 | Q100: ='Source Data'!Q85 -> 2.207556085 | R100: ='Source Data'!R85 -> 1.875933626 | S100: ='Source Data'!S85 -> 1.897176301 | U100: Forecast assumptions
B101: Partners' CPI (US$) | E101: ='Source Data'!E86 -> 2.372469681 | F101: ='Source Data'!F86 -> 1.561337287 | G101: ='Source Data'!G86 -> 1.990749672 | H101: ='Source Data'!H86 -> 2.704568196 | I101: ='Source Data'!I86 -> 3.091593863 | J101: ='Source Data'!J86 -> 3.310674432 | K101: ='Source Data'!K86 -> 2.481533763 | L101: ='Source Data'!L86 -> 4.387145914 | M101: ='Source Data'!M86 -> 8.235045345 | N101: ='Source Data'!N86 -> 6.57254212 | O101: ='Source Data'!O86 -> 7.941764092 | P101: ='Source Data'!P86 -> 3.700441486 | Q101: ='Source Data'!Q86 -> 2.955716404 | R101: ='Source Data'!R86 -> 2.631606253 | S101: ='Source Data'!S86 -> 2.487453911 | U101: Forecast assumptions
B102: Average petroleum spot price (APSP) | E102: ='Source Data'!E87 -> -7.531488018 | F102: ='Source Data'!F87 -> -47.14630018 | G102: ='Source Data'!G87 -> -15.0221495 | H102: ='Source Data'!H87 -> 22.45243102 | I102: ='Source Data'!I87 -> 29.36122534 | J102: ='Source Data'!J87 -> -10.36033041 | K102: ='Source Data'!K87 -> -32.01381948 | L102: ='Source Data'!L87 -> 65.80666405 | M102: ='Source Data'!M87 -> 39.15103208 | N102: ='Source Data'!N87 -> -16.36240652 | O102: ='Source Data'!O87 -> -2.463597693 | P102: ='Source Data'!P87 -> -6.271333627 | Q102: ='Source Data'!Q87 -> -4.232280458 | R102: ='Source Data'!R87 -> -2.648121786 | S102: ='Source Data'!S87 -> -1.334910344 | U102: Forecast assumptions
B103: Other Assumptions:
B104: Oil imports: share of total G&S | E104: ='Source Data'!E48/100 -> 0.1915535817 | F104: ='Source Data'!F48/100 -> 0.1266900725 | G104: ='Source Data'!G48/100 -> 0.1119644456 | H104: ='Source Data'!H48/100 -> 0.1363223755 | I104: ='Source Data'!I48/100 -> 0.1540490329 | J104: ='Source Data'!J48/100 -> 0.1450542282 | K104: ='Source Data'!K48/100 -> 0.099379861 | L104: ='Source Data'!L48/100 -> 0.1306736192 | M104: ='Source Data'!M48/100 -> 0.1647685237 | N104: ='Source Data'!N48/100 -> 0.1464348522 | O104: =N104 -> 0.1464348522 | P104: =O104 -> 0.1464348522 | Q104: 0.1464348522 | R104: 0.1464348522 | S104: 0.1464348522 | U104: Forecast assumption
B105: Oil exports: share of total G&S | E105: ='Source Data'!E49/100 -> 0 | F105: ='Source Data'!F49/100 -> 0 | G105: ='Source Data'!G49/100 -> 0 | H105: ='Source Data'!H49/100 -> 0 | I105: ='Source Data'!I49/100 -> 0 | J105: ='Source Data'!J49/100 -> 0 | K105: ='Source Data'!K49/100 -> 0 | L105: ='Source Data'!L49/100 -> 0 | M105: ='Source Data'!M49/100 -> 0 | N105: ='Source Data'!N49/100 -> 0 | O105: =N105 -> 0 | P105: =O105 -> 0 | Q105: 0 | R105: 0 | S105: 0 | U105: Forecast assumption
B107: Inflation target | E107: ='Source Data'!E34/100 -> 0.045 | F107: ='Source Data'!F34/100 -> 0.04 | G107: ='Source Data'!G34/100 -> 0.04 | H107: ='Source Data'!H34/100 -> 0.04 | I107: ='Source Data'!I34/100 -> 0.04 | J107: ='Source Data'!J34/100 -> 0.04 | K107: ='Source Data'!K34/100 -> 0.04 | L107: ='Source Data'!L34/100 -> 0.04 | M107: ='Source Data'!M34/100 -> 0.04 | N107: ='Source Data'!N34/100 -> 0.04 | O107: =N107 -> 0.04 | P107: =O107 -> 0.04 | Q107: =P107 -> 0.04 | R107: =Q107 -> 0.04 | S107: =R107 -> 0.04 | U107: Forecast assumption
B108: Partners' CPI (percent change) | E108: ='Source Data'!E86/100 -> 0.02372469681 | F108: ='Source Data'!F86/100 -> 0.01561337287 | G108: ='Source Data'!G86/100 -> 0.01990749672 | H108: ='Source Data'!H86/100 -> 0.02704568196 | I108: ='Source Data'!I86/100 -> 0.03091593863 | J108: ='Source Data'!J86/100 -> 0.03310674432 | K108: ='Source Data'!K86/100 -> 0.02481533763 | L108: ='Source Data'!L86/100 -> 0.04387145914 | M108: ='Source Data'!M86/100 -> 0.08235045345 | N108: ='Source Data'!N86/100 -> 0.0657254212 | O108: ='Source Data'!O86/100 -> 0.07941764092 | P108: ='Source Data'!P86/100 -> 0.03700441486 | Q108: ='Source Data'!Q86/100 -> 0.02955716404 | R108: ='Source Data'!R86/100 -> 0.02631606253 | S108: ='Source Data'!S86/100 -> 0.02487453911
B109: Oil prices change | E109: ='Source Data'!E87/100 -> -0.07531488018 | F109: ='Source Data'!F87/100 -> -0.4714630018 | G109: ='Source Data'!G87/100 -> -0.150221495 | H109: ='Source Data'!H87/100 -> 0.2245243102 | I109: ='Source Data'!I87/100 -> 0.2936122534 | J109: ='Source Data'!J87/100 -> -0.1036033041 | K109: ='Source Data'!K87/100 -> -0.3201381948 | L109: ='Source Data'!L87/100 -> 0.6580666405 | M109: ='Source Data'!M87/100 -> 0.3915103208 | N109: ='Source Data'!N87/100 -> -0.1636240652 | O109: ='Source Data'!O87/100 -> -0.02463597693 | P109: ='Source Data'!P87/100 -> -0.06271333627 | Q109: ='Source Data'!Q87/100 -> -0.04232280458 | R109: ='Source Data'!R87/100 -> -0.02648121786 | S109: ='Source Data'!S87/100 -> -0.01334910344
B110: Share of oil imports | E110: ='Source Data'!E48/100 -> 0.1915535817 | F110: ='Source Data'!F48/100 -> 0.1266900725 | G110: ='Source Data'!G48/100 -> 0.1119644456 | H110: ='Source Data'!H48/100 -> 0.1363223755 | I110: ='Source Data'!I48/100 -> 0.1540490329 | J110: ='Source Data'!J48/100 -> 0.1450542282 | K110: ='Source Data'!K48/100 -> 0.099379861 | L110: ='Source Data'!L48/100 -> 0.1306736192 | M110: ='Source Data'!M48/100 -> 0.1647685237 | N110: ='Source Data'!N48/100 -> 0.1464348522 | O110: =O104 -> 0.1464348522 | P110: =P104 -> 0.1464348522 | Q110: 0.1464348522 | R110: 0.1464348522 | S110: 0.1464348522
B111: Ex rate depreciation | E111: =E94 -> 0.04196247 | F111: =F94 -> 0.03434006272 | G111: 0.02292279205 | H111: 0.0318196802 | I111: 0.04174755876 | J111: 0.03589750734 | K111: 0.1019787183 | L111: 0.01102564945 | M111: -0.03662821209 | N111: 0.03636363636 | O111: 0.035 | P111: 0.035 | Q111: 0.035 | R111: 0.035 | S111: 0.035
B112: Import prices (percent change) | E112: =((E109*E110)+((1-E110)*E108))*(1+E111) -> 0.004952771776 | F112: =((F109*F110)+((1-F110)*F108))*(1+F111) -> -0.04767725183 | G112: 0.0008787914152 | H112: 0.05568363247 | I112: 0.07436416178 | J112: 0.01375296249 | K112: -0.01043143686 | L112: 0.1254991865 | M112: 0.1284080842 | N112: 0.03330941443 | O112: 0.06642688453 | P112: 0.02318633983 | Q112: 0.01969753156 | R112: 0.0192351651 | S112: 0.01995196996
B113: Import prices trend 3 year average | E113: =AVERAGE(B112:E112) -> 0.004952771776 | F113: -0.02136224003 | G113: -0.01394856288 | H113: 0.003459485956 | I113: 0.02081233346 | J113: 0.03616988704 | K113: 0.03334232997 | L113: 0.05079621847 | M113: 0.06430719907 | N113: 0.06919631206 | O113: 0.08841089241 | P113: 0.06283268074 | Q113: 0.03565504259 | R113: 0.03213648025 | S113: =AVERAGE(O112:S112) -> 0.0296995782
B114: - long term trend (steady state) | O114: =P114 -> 0.03514921382 | P114: 0.03514921382 | Q114: 0.03514921382 | R114: =S114 -> 0.03514921382 | S114: =AVERAGE(E112:S112) -> 0.03514921382
B115: - deviation from long term trend | O115: =O112-O114 -> 0.03127767071 | P115: -0.01196287399 | Q115: -0.01545168226 | R115: -0.01591404872 | S115: =S112-S114 -> -0.01519724386
B116: Exchange rate depreciation/appreciation | E116: =E94 -> 0.04196247 | F116: 0.03434006272 | G116: 0.02292279205 | H116: 0.0318196802 | I116: 0.04174755876 | J116: 0.03589750734 | K116: 0.1019787183 | L116: 0.01102564945 | M116: -0.03662821209 | N116: 0.03636363636 | O116: 0.035 | P116: 0.035 | Q116: 0.035 | R116: 0.035 | S116: 0.035
B117: - long term trend (steady state) | O117: =P117 -> 0.03309532421 | P117: 0.03309532421 | Q117: =R117 -> 0.03309532421 | R117: =S117 -> 0.03309532421 | S117: =AVERAGE(E116:S116) -> 0.03309532421
B118: - deviation from long term trend | O118: =O116-O117 -> 0.001904675794 | P118: 0.001904675794 | Q118: 0.001904675794 | R118: 0.001904675794 | S118: =S116-S117 -> 0.001904675794
B120: Behavioral Equations
B121: Real Private Consumption Equation
B122: Coefficient on:
B123: Disposable income | E123: 0.7
B124: Lagged consumption | E124: =1-E123 -> 0.3
B125: Real interest rate change | E125: -0.4
B126: Mean Error | E126: =AVERAGE(F12:N12) -> -0.004952202661
B127: Root Mean Square Error (RMSE) | E127: =(AVERAGE(F12^2,G12^2,H12^2,I12^2,J12^2,K12^2,L12^2,M12^2,N12^2))^0.5 -> 0.01795435641
B130: Real Private Investment Equation
B131: Coefficient on:
B132: GDP acceleration | E132: 1
B133: Potential GDP | E133: 1
B134: Real interest rate change | E134: -0.4
B135: Mean Error | E135: =AVERAGE(F20:N20) -> 0.03656099516
B136: Root Mean Square Error (RMSE) | E136: =(AVERAGE(F20^2,G20^2,H20^2,I20^2,J20^2,K20^2,L20^2,M20^2,N20^2))^0.5 -> 0.07189164277
B140: Exports Equation
B141: Elasticity wrt:
B142: Partners' imports | E142: 0.7
B143: Real Effective Exchange Rate (REER) | E143: -0.5
B144: Mean Error | E144: =AVERAGE(F26:N26) -> 0.01953237021
B145: Root Mean Square Error (RMSE) | E145: =(AVERAGE(F26^2,G26^2,H26^2,I26^2,J26^2,K26^2,L26^2,M26^2,N26^2))^0.5 -> 0.1279994751
B149: Imports Equation
B150: Elasticity wrt:
B151: Real GDP | E151: 0.95
B152: Real Effective Exchange Rate (REER) | E152: 0.5
B153: Mean Error | E153: =AVERAGE(F30:N30) -> 0.01462445122
B154: Root Mean Square Error (RMSE) | E154: =(AVERAGE(F30^2,G30^2,H30^2,I30^2,J30^2,K30^2,L30^2,M30^2,N30^2))^0.5 -> 0.06919219397
B159: Inflation Equation
B160: Coefficient on:
B161: Output gap | E161: 0.2
B162: Lagged inflation | E162: 0.5
B163: Inflation target | E163: =1-E162 -> 0.5
B164: Import prices | E164: 0.1
B165: Mean Error | E165: =AVERAGE(F65:N65) -> -0.003101010698
B166: Root Mean Square Error (RMSE) | E166: =(AVERAGE(F65^2,G65^2,H65^2,I65^2,J65^2,K65^2,L65^2,M65^2,N65^2))^0.5 -> 0.02133381973
B169: Unemployment
B170: Okun coefficient | E170: 0.4

Sheet Deficits&Financing
B1: ="Country:"&" "&Country_Name&" - Deficits & Financing" -> Country: Macrofoundland - Deficits & Financing
B3: Instructions: Calibration of behavioral equations can be found at the bottom of the sheet.
O4: First Year of Projection
B5: Year/Variable | E5: =+F5-1 -> 2014 | F5: 2015 | G5: 2016 | H5: 2017 | I5: 2018 | J5: 2019 | K5: 2020 | L5: 2021 | M5: 2022 | N5: =+O5-1 -> 2023 | O5: =First_Year -> 2024 | P5: =+O5+1 -> 2025 | Q5: =+P5+1 -> 2026 | R5: 2027 | S5: 2028
B6: Nominal GDP & National Income, [Units], current prices
B7: Consumption | E7: =E9+E10 -> 1680.984527 | F7: 1822.22381 | G7: 1972.291123 | H7: 2139.83948 | I7: 2347.091292 | J7: 2518.692742 | K7: =K9+K10 -> 2568.080096 | L7: 2939.792752 | M7: =M9+M10 -> 3366.978844 | N7: =N9+N10 -> 3667.345039 | O7: 4018.4558 | P7: =P9+P10 -> 4402.105838 | Q7: =Q9+Q10 -> 4817.742149 | R7: 5263.870236 | S7: 5748.437434
E8: =E7/('Source Data'!D15+'Source Data'!D16)-1 -> 0.09615711577 | F8: =F7/E7-1 -> 0.08402176274 | G8: 0.08235394171 | H8: 0.08495112844 | I8: 0.09685390635 | J8: =J7/I7-1 -> 0.07311238811 | K8: =K7/J7-1 -> 0.01960832823 | L8: 0.1447434043 | M8: 0.1453116353 | N8: 0.08920940966 | O8: 0.0957397674 | P8: =P7/O7-1 -> 0.09547200657 | Q8: =Q7/P7-1 -> 0.09441760977 | R8: 0.09260107173 | S8: 0.09205530841
B9: Private | E9: ='Source Data'!E15 -> 1466.536114 | F9: ='Source Data'!F15 -> 1591.34861 | G9: ='Source Data'!G15 -> 1720.791658 | H9: ='Source Data'!H15 -> 1848.668209 | I9: ='Source Data'!I15 -> 2025.086462 | J9: ='Source Data'!J15 -> 2165.203556 | K9: ='Source Data'!K15 -> 2174.172606 | L9: ='Source Data'!L15 -> 2506.996242 | M9: ='Source Data'!M15 -> 2869.829158 | N9: ='Source Data'!N15 -> 3105.753176 | O9: =N9*(1+'GDP&Prices'!O10)*(1+'GDP&Prices'!O71) -> 3397.896791 | P9: =O9*(1+'GDP&Prices'!P10)*(1+'GDP&Prices'!P71) -> 3716.388134 | Q9: =P9*(1+'GDP&Prices'!Q10)*(1+'GDP&Prices'!Q71) -> 4060.024086 | R9: =Q9*(1+'GDP&Prices'!R10)*(1+'GDP&Prices'!R71) -> 4426.591775 | S9: =R9*(1+'GDP&Prices'!S10)*(1+'GDP&Prices'!S71) -> 4823.244735
B10: Public | E10: ='Source Data'!E16 -> 214.4484128 | F10: ='Source Data'!F16 -> 230.8751994 | G10: ='Source Data'!G16 -> 251.4994656 | H10: ='Source Data'!H16 -> 291.1712707 | I10: ='Source Data'!I16 -> 322.0048307 | J10: ='Source Data'!J16 -> 353.4891861 | K10: ='Source Data'!K16 -> 393.9074895 | L10: ='Source Data'!L16 -> 432.79651 | M10: ='Source Data'!M16 -> 497.1496858 | N10: ='Source Data'!N16 -> 561.591863 | O10: =N10*(1+'GDP&Prices'!O14)*(1+'GDP&Prices'!O71) -> 620.5590087 | P10: =O10*(1+'GDP&Prices'!P14)*(1+'GDP&Prices'!P71) -> 685.7177046 | Q10: =P10*(1+'GDP&Prices'!Q14)*(1+'GDP&Prices'!Q71) -> 757.7180636 | R10: =Q10*(1+'GDP&Prices'!R14)*(1+'GDP&Prices'!R71) -> 837.2784602 | S10: =R10*(1+'GDP&Prices'!S14)*(1+'GDP&Prices'!S71) -> 925.1926986
B11: Gross capital formation | E11: ='Source Data'!E17 -> 466.5340786 | F11: ='Source Data'!F17 -> 521.8498207 | G11: ='Source Data'!G17 -> 560.115094 | H11: ='Source Data'!H17 -> 631.6660487 | I11: ='Source Data'!I17 -> 764.4292887 | J11: ='Source Data'!J17 -> 855.0403946 | K11: ='Source Data'!K17 -> 853.0919689 | L11: ='Source Data'!L17 -> 1169.972399 | M11: ='Source Data'!M17 -> 1453.985535 | N11: ='Source Data'!N17 -> 1394.30961 | O11: =O13+O14 -> 1551.922097 | P11: =P13+P14 -> 1725.538256 | Q11: =Q13+Q14 -> 1884.698441 | R11: 2063.128744 | S11: 2260.629117
E12: =E11/'Source Data'!D17-1 -> 0.1401213749 | F12: =F11/E11-1 -> 0.1185674201 | G12: 0.07332621726 | H12: 0.1277433075 | I12: 0.2101794774 | J12: =J11/I11-1 -> 0.1185343199 | K12: =K11/J11-1 -> -0.002278752809 | L12: =L11/K11-1 -> 0.3714493177 | M12: =M11/L11-1 -> 0.2427519969 | N12: =N11/M11-1 -> -0.04104299727 | O12: =O11/N11-1 -> 0.1130398048 | P12: =P11/O11-1 -> 0.1118716975 | Q12: =Q11/P11-1 -> 0.09223799256 | R12: 0.09467313147 | S12: 0.09572857407
B13: Private | E13: =E11-E14 -> 424.7898113 | F13: 473.7097634 | G13: 519.3799641 | H13: 583.922772 | I13: =I11-I14 -> 719.5034874 | J13: =J11-J14 -> 806.9824773 | K13: =K11-K14 -> 800.9376208 | L13: 1112.371255 | M13: 1378.443229 | N13: 1292.367872 | O13: =N13*(1+'GDP&Prices'!O18)*(1+'GDP&Prices'!O73) -> 1439.276475 | P13: =O13*(1+'GDP&Prices'!P18)*(1+'GDP&Prices'!P73) -> 1601.064844 | Q13: =P13*(1+'GDP&Prices'!Q18)*(1+'GDP&Prices'!Q73) -> 1747.155321 | R13: =Q13*(1+'GDP&Prices'!R18)*(1+'GDP&Prices'!R73) -> 1911.143597 | S13: =R13*(1+'GDP&Prices'!S18)*(1+'GDP&Prices'!S73) -> 2092.685529
B14: Public | E14: ='Policies&Assumptions'!E25 -> 41.74426725 | F14: ='Policies&Assumptions'!F25 -> 48.14005729 | G14: ='Policies&Assumptions'!G25 -> 40.7351299 | H14: ='Policies&Assumptions'!H25 -> 47.74327673 | I14: ='Policies&Assumptions'!I25 -> 44.92580134 | J14: ='Policies&Assumptions'!J25 -> 48.05791724 | K14: ='Policies&Assumptions'!K25 -> 52.15434805 | L14: ='Policies&Assumptions'!L25 -> 57.60114405 | M14: ='Policies&Assumptions'!M25 -> 75.54230558 | N14: ='Policies&Assumptions'!N25 -> 101.9417389 | O14: ='Policies&Assumptions'!O25 -> 112.6456215 | P14: ='Policies&Assumptions'!P25 -> 124.4734118 | Q14: ='Policies&Assumptions'!Q25 -> 137.54312 | R14: ='Policies&Assumptions'!R25 -> 151.9851476 | S14: ='Policies&Assumptions'!S25 -> 167.9435881
B15: Exports of G&S | E15: ='Source Data'!E20 -> 5150.918194 | F15: ='Source Data'!F20 -> 533.2000684 | G15: ='Source Data'!G20 -> 593.6530013 | H15: ='Source Data'!H20 -> 630.3853268 | I15: ='Source Data'!I20 -> 678.321779 | J15: ='Source Data'!J20 -> 736.7324139 | K15: ='Source Data'!K20 -> 590.7635759 | L15: ='Source Data'!L20 -> 801.1427229 | M15: ='Source Data'!M20 -> 966.8760027 | N15: ='Source Data'!N20 -> 1035.521282 | O15: =N15*(1+'GDP&Prices'!O24)*(1+'GDP&Prices'!O75) -> 1118.667198 | P15: =O15*(1+'GDP&Prices'!P24)*(1+'GDP&Prices'!P75) -> 1220.522904 | Q15: =P15*(1+'GDP&Prices'!Q24)*(1+'GDP&Prices'!Q75) -> 1335.364949 | R15: =Q15*(1+'GDP&Prices'!R24)*(1+'GDP&Prices'!R75) -> 1454.965802 | S15: =R15*(1+'GDP&Prices'!S24)*(1+'GDP&Prices'!S75) -> 1583.454839
E16: =E15/'Source Data'!D20-1 -> 10.16064541 | F16: =F15/E15-1 -> -0.8964844619 | G16: 0.1133775791 | H16: 0.06187507751 | I16: 0.07604309647 | J16: =J15/I15-1 -> 0.08611051078 | K16: =K15/J15-1 -> -0.1981300608 | L16: =L15/K15-1 -> 0.3561139439 | M16: =M15/L15-1 -> 0.2068711044 | N16: =N15/M15-1 -> 0.07099698337 | O16: =O15/N15-1 -> 0.08029377754 | P16: =P15/O15-1 -> 0.09105094618 | Q16: =Q15/P15-1 -> 0.09409249437 | R16: 0.08956417001 | S16: 0.08831069188
B17: Imports of G&S | E17: ='Source Data'!E21 -> 621.4558221 | F17: ='Source Data'!F21 -> 637.4973143 | G17: ='Source Data'!G21 -> 675.6145979 | H17: ='Source Data'!H21 -> 706.5356503 | I17: ='Source Data'!I21 -> 845.1858994 | J17: ='Source Data'!J21 -> 892.3414284 | K17: ='Source Data'!K21 -> 811.0479826 | L17: ='Source Data'!L21 -> 1169.545706 | M17: ='Source Data'!M21 -> 1409.76356 | N17: ='Source Data'!N21 -> 1378.092586 | O17: =N17*(1+'GDP&Prices'!O28)*(1+'GDP&Prices'!O77) -> 1428.349666 | P17: =O17*(1+'GDP&Prices'!P28)*(1+'GDP&Prices'!P77) -> 1544.90715 | Q17: =P17*(1+'GDP&Prices'!Q28)*(1+'GDP&Prices'!Q77) -> 1678.693654 | R17: =Q17*(1+'GDP&Prices'!R28)*(1+'GDP&Prices'!R77) -> 1824.481712 | S17: =R17*(1+'GDP&Prices'!S28)*(1+'GDP&Prices'!S77) -> 1987.046395 | T17: =S17/R17*S17 -> 2164.095891 | U17: Add T+1 est. to avoid missing value of reserves adequacy at time t
E18: =E17/'Source Data'!D21-1 -> 0.07531905954 | F18: =F17/E17-1 -> 0.02581276357 | G18: =G17/F17-1 -> 0.05979206931 | H18: =H17/G17-1 -> 0.0457672946 | I18: 0.1962395656 | J18: =J17/I17-1 -> 0.05579308532 | K18: =K17/J17-1 -> -0.09110127936 | L18: =L17/K17-1 -> 0.4420178971 | M18: =M17/L17-1 -> 0.2053941568 | N18: =N17/M17-1 -> -0.02246545153 | O18: =O17/N17-1 -> 0.03646858082 | P18: =P17/O17-1 -> 0.08160290589 | Q18: =Q17/P17-1 -> 0.08659841124 | R18: 0.08684613636 | S18: 0.0891018429
B19: Statistical discrepancy | E19: =E20-(E7+E11+E15-E17) -> -4619.015406 | F19: 4.182210694 | G19: 0.6601381946 | H19: -33.49616435 | I19: =I20-(I7+I11+I15-I17) -> 0.4362761025 | J19: -24.55956899 | K19: -61.22749438 | L19: 13.53770468 | M19: 4.317992326 | N19: -6.346463593 | O19: 0 | P19: 0 | Q19: 0 | R19: 0 | S19: 0
B20: Nominal GDP | E20: ='Source Data'!E22 -> 2057.965571 | F20: ='Source Data'!F22 -> 2243.958595 | G20: ='Source Data'!G22 -> 2451.104759 | H20: ='Source Data'!H22 -> 2661.859041 | I20: ='Source Data'!I22 -> 2945.092737 | J20: ='Source Data'!J22 -> 3193.564553 | K20: ='Source Data'!K22 -> 3139.660164 | L20: ='Source Data'!L22 -> 3754.899871 | M20: ='Source Data'!M22 -> 4382.394813 | N20: ='Source Data'!N22 -> 4712.736882 | O20: =O7+O11+O15-O17+O19 -> 5260.695428 | P20: =P7+P11+P15-P17+P19 -> 5803.259849 | Q20: =Q7+Q11+Q15-Q17+Q19 -> 6359.111885 | R20: =R7+R11+R15-R17+R19 -> 6957.48307 | S20: 7605.474994
E21: =E20/'Source Data'!D22-1 -> 0.1222172774 | F21: =F20/E20-1 -> 0.09037713098 | G21: =G20/F20-1 -> 0.09231282788 | H21: =H20/G20-1 -> 0.08598338404 | I21: 0.1064044684 | J21: =J20/I20-1 -> 0.08436807882 | K21: =K20/J20-1 -> -0.01687906676 | L21: 0.1959574208 | M21: 0.1671136283 | N21: 0.07537934925 | O21: 0.1162718308 | P21: =P20/O20-1 -> 0.1031354939 | Q21: =Q20/P20-1 -> 0.0957827239 | R21: 0.09409665937 | S21: 0.09313596857
B22: + Primary income from abroad | E22: =E60/1000*E103 -> -96.89558706 | F22: =F60/1000*F103 -> -90.62474003 | G22: -102.7003272 | H22: -123.5812697 | I22: -125.2757795 | J22: -143.0324299 | K22: -148.1706367 | L22: -184.4845025 | M22: -162.65403 | N22: -212.6210352 | O22: -232.1662239 | P22: -253.508104 | Q22: -276.8118364 | R22: -302.2577645 | S22: -330.0428095
B23: + Secondary income from abroad | E23: =E61/1000*E103 -> 130.3170156 | F23: =F61/1000*F103 -> 146.6896163 | G23: 159.6746842 | H23: 186.0201378 | I23: 218.2968719 | J23: 242.475631 | K23: 306.0333762 | L23: 396.1217712 | M23: 355.83163 | N23: 378.2649276 | O23: 402.0637995 | P23: 439.0235142 | Q23: 479.3807508 | R23: 523.4478263 | S23: 571.5657677
B24: o.w. Budget grants | E24: ='Policies&Assumptions'!E13 -> 3.613703248 | F24: ='Policies&Assumptions'!F13 -> 67.38381738 | G24: ='Policies&Assumptions'!G13 -> 0.7830799584 | H24: ='Policies&Assumptions'!H13 -> 1.397371739 | I24: ='Policies&Assumptions'!I13 -> 0.6758310927 | J24: ='Policies&Assumptions'!J13 -> 0.7269085026 | K24: ='Policies&Assumptions'!K13 -> 10.74943912 | L24: ='Policies&Assumptions'!L13 -> 2.577016672 | M24: ='Policies&Assumptions'!M13 -> 1.613691504 | N24: ='Policies&Assumptions'!N13 -> 4.792397213 | O24: =O63*O103/1000 -> 3.289486246 | P24: =P63*P103/1000 -> 3.591872269 | Q24: 3.922055127 | R24: 4.282590045 | S24: 4.676267135
B25: = Gross National Disposable Income | E25: =E20+E22+E23 -> 2091.387 | F25: =F20+F22+F23 -> 2300.023472 | G25: 2508.079116 | H25: 2724.297909 | I25: =I20+I22+I23 -> 3038.113829 | J25: 3293.007754 | K25: 3297.522903 | L25: 3966.53714 | M25: 4575.572413 | N25: 4878.380775 | O25: 5430.593003 | P25: 5988.775259 | Q25: =Q20+Q22+Q23 -> 6561.680799 | R25: 7178.673131 | S25: 7846.997952
B26: Memo:
B27: Real GNDI | E27: =100*E25/'GDP&Prices'!E67 -> 1397.84513 | F27: =100*F25/'GDP&Prices'!F67 -> 1502.055911 | G27: =100*G25/'GDP&Prices'!G67 -> 1604.47667 | H27: =100*H25/'GDP&Prices'!H67 -> 1674.345532 | I27: =100*I25/'GDP&Prices'!I67 -> 1795.167406 | J27: =100*J25/'GDP&Prices'!J67 -> 1895.878372 | K27: =100*K25/'GDP&Prices'!K67 -> 1811.802678 | L27: =100*L25/'GDP&Prices'!L67 -> 2023.504181 | M27: =100*M25/'GDP&Prices'!M67 -> 2108.089798 | N27: =100*N25/'GDP&Prices'!N67 -> 2150.746574 | O27: =N27*(1+O28) -> 2218.603225 | P27: =O27*(1+P28) -> 2341.768978 | Q27: =P27*(1+Q28) -> 2461.295362 | R27: 2586.179231 | S27: 2715.868686
E28: =E27/((('Source Data'!D22+('Source Data'!D50+'Source Data'!D51)*'Source Data'!D42))/('Source Data'!D22/'Source Data'!D12))-1 -> -0.9435815336 | F28: =F27/E27-1 -> 0.07455102097 | G28: 0.06818704802 | H28: 0.04354619999 | I28: 0.07216065722 | J28: 0.05610115586 | K28: -0.04434656563 | L28: 0.1168457833 | M28: =M27/L27-1 -> 0.04180155302 | N28: =N27/M27-1 -> 0.02023480013 | O28: =($M$20/$M$25)*'GDP&Prices'!O55+(1-$M$20/$M$25)*(((O60+O61)/(N60+N61))/(1+'GDP&Prices'!O101/100)-1) -> 0.0315502776 | P28: =($M$20/$M$25)*'GDP&Prices'!P55+(1-$M$20/$M$25)*(((P60+P61)/(O60+O61))/(1+'GDP&Prices'!P101/100)-1) -> 0.05551499768 | Q28: =($M$20/$M$25)*'GDP&Prices'!Q55+(1-$M$20/$M$25)*(((Q60+Q61)/(P60+P61))/(1+'GDP&Prices'!Q101/100)-1) -> 0.05104106536 | R28: =($M$20/$M$25)*'GDP&Prices'!R55+(1-$M$20/$M$25)*(((R60+R61)/(Q60+Q61))/(1+'GDP&Prices'!R101/100)-1) -> 0.05073908281 | S28: =($M$20/$M$25)*'GDP&Prices'!S55+(1-$M$20/$M$25)*(((S60+S61)/(R60+R61))/(1+'GDP&Prices'!S101/100)-1) -> 0.05014712583
B30: Savings - Investment, in percent of GDP
B31: Private Net Savings | E31: =E40-E35 -> -0.355627387 | F31: -1.681615203 | G31: 2.085509799 | H31: 2.993927311 | I31: 0.7121366587 | J31: 2.21364668 | K31: 6.265107897 | L31: 0.217894069 | M31: -2.312311902 | N31: -0.2722504324 | O31: 0.1102551294 | P31: -0.09144140496 | Q31: =Q40-Q35 -> -0.158755818 | R31: -0.02030904442 | S31: 0.000690172637
B32: Financed by:
B33: Bank credit | E33: =100*(E92-D92)/(E20*1000) -> 24.23391199 | F33: =100*(F92-E92)/(F20*1000) -> 2.813647406 | G33: =100*(G92-F92)/(G20*1000) -> 2.774670762 | H33: 2.400544376 | I33: 2.624745068 | J33: 2.860073519 | K33: 1.461808726 | L33: 2.807605968 | M33: 3.847165992 | N33: 4.939205345 | O33: 3.554458038 | P33: 3.86707313 | Q33: 3.845998772 | R33: 3.46930824 | S33: 3.581886052
B34: Other | E34: =-E31-E33 -> -23.87828461 | F34: -1.132032203 | G34: -4.860180561 | H34: -5.394471686 | I34: -3.336881726 | J34: =-J31-J33 -> -5.073720198 | K34: -7.726916624 | L34: -3.025500037 | M34: =-M31-M33 -> -1.534854091 | N34: -4.666954913 | O34: -3.664713168 | P34: =-P31-P33 -> -3.775631725 | Q34: =-Q31-Q33 -> -3.687242954 | R34: -3.448999196 | S34: -3.582576225
B35: Public Net Savings | E35: =100*'Policies&Assumptions'!E29/E20 -> -2.790888045 | F35: =100*'Policies&Assumptions'!F29/F20 -> -0.07925954198 | G35: =100*'Policies&Assumptions'!G29/G20 -> -3.134835372 | H35: =100*'Policies&Assumptions'!H29/H20 -> -3.156808609 | I35: =100*'Policies&Assumptions'!I29/I20 -> -2.234817576 | J35: =100*'Policies&Assumptions'!J29/J20 -> -3.521206851 | K35: =100*'Policies&Assumptions'!K29/K20 -> -7.915081171 | L35: =100*'Policies&Assumptions'!L29/L20 -> -3.018727829 | M35: =100*'Policies&Assumptions'!M29/M20 -> -3.32592946 | N35: =100*'Policies&Assumptions'!N29/N20 -> -3.358804873 | O35: =100*'Policies&Assumptions'!O29/O20 -> -2.767411299 | P35: =100*'Policies&Assumptions'!P29/P20 -> -2.301503917 | Q35: =100*'Policies&Assumptions'!Q29/Q20 -> -2.054757542 | R35: =100*'Policies&Assumptions'!R29/R20 -> -2.111580418 | S35: =100*'Policies&Assumptions'!S29/S20 -> -2.131636607
B36: Financed by:
B37: External borrowing (net) | E37: =100*E68/E105 -> 2.047174108 | F37: -2.227418537 | G37: 1.510061249 | H37: 2.168870876 | I37: 2.012857721 | J37: 1.829650863 | K37: =100*K68/K105 -> 7.883657065 | L37: 1.481669195 | M37: 2.771974118 | N37: 2.430871132 | O37: 2.365398409 | P37: 2.166987374 | Q37: =100*Q68/Q105 -> 2.071490161 | R37: 1.947915218 | S37: 1.849851639
B38: Bank credit (net) | E38: =100*(E91-'Source Data'!D80)/(E20*1000) -> 0.7437139373 | F38: =100*(F91-E91)/(F20*1000) -> 2.306678079 | G38: =100*(G91-F91)/(G20*1000) -> 1.624774123 | H38: 0.9879377332 | I38: 0.2219598545 | J38: 1.691555987 | K38: 0.03142410619 | L38: 1.537058633 | M38: 0.5539553423 | N38: 0.9279337413 | O38: 0.4020128898 | P38: 0.1345165423 | Q38: -0.0167326185 | R38: 0.1636652001 | S38: 0.2817849686
B39: Other | E39: =-E35-(E37+E38) -> 0 | F39: -5.967448757e-16 | G39: 0 | H39: 0 | I39: 0 | J39: 0 | K39: =-K35-(K37+K38) -> 0 | L39: 0 | M39: =-M35-(M37+M38) -> 0 | N39: 0 | O39: 0 | P39: =-P35-(P37+P38) -> 0 | Q39: =-Q35-(Q37+Q38) -> 0 | R39: 0 | S39: 0
B40: External ( = Current Account Balance) | E40: =100*E65/E105 -> -3.146515432 | F40: -1.760874745 | G40: -1.049325572 | H40: -0.1628812984 | I40: -1.522680917 | J40: -1.307560171 | K40: =100*K65/K105 -> -1.649973274 | L40: =100*L65/L105 -> -2.80083376 | M40: =100*M65/M105 -> -5.638241362 | N40: =100*N65/N105 -> -3.631055306 | O40: =100*(O15-O17+O22+O23)/O20 -> -2.657156169 | P40: =100*(P15-P17+P22+P23)/P20 -> -2.392945322 | Q40: =100*(Q15-Q17+Q22+Q23)/Q20 -> -2.21351336 | R40: -2.131889462 | S40: -2.130946435
B41: Financed by:
B42: Government borrowing | E42: =100*E68/E105 -> 2.047174108 | F42: -2.227418537 | G42: 1.510061249 | H42: 2.168870876 | I42: 2.012857721 | J42: =100*J68/J105 -> 1.829650863 | K42: 7.883657065 | L42: 1.481669195 | M42: 2.771974118 | N42: 2.430871132 | O42: 2.365398409 | P42: 2.166987374 | Q42: =100*Q68/Q105 -> 2.071490161 | R42: 1.947915218 | S42: 1.849851639
B43: Private capital inflows (net) | E43: =100*(E69+E70)/E105 -> 1.317350428 | F43: 4.73732242 | G43: 0.6361758209 | H43: -1.108119449 | I43: 0.4854276196 | J43: =100*(J69+J70)/J105 -> 0.748477478 | K43: -3.802813153 | L43: 3.604779776 | M43: 4.102584267 | N43: 1.308179165 | O43: 0.6062259735 | P43: 0.6000652683 | Q43: =100*(Q69+Q70)/Q105 -> 0.5979527271 | R43: 0.5967658579 | S43: 0.5961047647
B44: Change in net international reserves (+ = decline) | E44: =-E40-(E42+E43) -> -0.2180091037 | F44: -0.749029139 | G44: -1.096911497 | H44: -0.8978701288 | I44: -0.9756044238 | J44: =-J40-(J42+J43) -> -1.27056817 | K44: =-K40-(K42+K43) -> -2.430870639 | L44: -2.285615212 | M44: =-M40-(M42+M43) -> -1.236317023 | N44: -0.1079949915 | O44: -0.3144682132 | P44: =-P40-(P42+P43) -> -0.374107321 | Q44: =-Q40-(Q42+Q43) -> -0.4559295276 | R44: -0.4127916134 | S44: -0.3150099688
B46: Key Economic Health Indicators
B47: International Reserves
B48: Months of prospective imports | E48: =E78/(F17*1000/E103)*12 -> 3.075888507 | F48: =F78/(G17*1000/F103)*12 -> 3.224073072 | G48: 3.712733943 | H48: 3.446566312 | I48: 3.780958351 | J48: 4.899688283 | K48: 4.536684247 | L48: 4.530260856 | M48: 4.928559441 | N48: 4.969187887 | O48: 4.883579745 | P48: 4.806872289 | Q48: 4.768262178 | R48: 4.704838445 | S48: 4.603970645
B49: Ratio to short-term debt | E49: =E78/E83 -> 1.252087307 | F49: 1.530839178 | G49: 1.854366655 | H49: 2.323752845 | I49: =I78/I83 -> 3.034660881 | J49: 4.400481072 | K49: =K78/K83 -> 3.543272364 | L49: 3.988718868 | M49: 3.232924153 | N49: =N78/N83 -> 3.342299586 | O49: 3.405385698 | P49: 3.506817874 | Q49: =Q78/Q83 -> 3.649077324 | R49: 3.798745811 | S49: 3.93507313
B50: External Debt (% of GDP)
B51: Total | E51: =E81/E105 -> 0.4457578028 | F51: 0.4064808773 | G51: 0.4076092113 | H51: 0.4104808093 | I51: 0.3968134492 | J51: =J81/J105 -> 0.410441254 | K51: 0.5483321095 | L51: 0.4784514367 | M51: 0.3971120975 | N51: 0.4061272917 | O51: 0.3795700947 | P51: 0.3573630053 | Q51: =Q81/Q105 -> 0.3378943242 | R51: 0.3188020594 | S51: 0.3000479637
B52: Government | E52: =E82/E105 -> 0.256689252 | F52: 0.2385937822 | G52: 0.2418943711 | H52: 0.2461662286 | I52: =I82/I105 -> 0.2630162479 | J52: 0.2759374311 | K52: 0.4040972908 | L52: 0.367614652 | M52: 0.3396535193 | N52: 0.3510538565 | O52: 0.3609558081 | P52: 0.3496528224 | Q52: =Q82/Q105 -> 0.3620638726 | R52: 0.3519138005 | S52: 0.3620799825
B53: Money and Credit
B54: Broad Money growth | E54: =E95 -> 0.08929668291 | F54: 0.1228846791 | G54: 0.09775653882 | H54: 0.09480961133 | I54: 0.06915980704 | J54: =J95 -> 0.1201842411 | K54: =K95 -> 0.2111192071 | L54: 0.1346153054 | M54: 0.06389705942 | N54: =N95 -> 0.1434124166 | O54: 0.1076740824 | P54: =P95 -> 0.09147256836 | Q54: =Q95 -> 0.1073270572 | R54: 0.0821486105 | S54: 0.1032892488
B55: Private credit growth | E55: =E92/'Source Data'!D81-1 -> 0.1951458711 | F55: =F92/'Source Data'!E81-1 -> 0.1265968444 | G55: =G92/'Source Data'!F81-1 -> 0.1210439728 | H55: =H92/'Source Data'!G81-1 -> 0.1014476479 | I55: =I92/'Source Data'!H81-1 -> 0.1114216109 | J55: =J92/I92-1 -> 0.1184560889 | K55: 0.05321802433 | L55: 0.1160651373 | M55: 0.1663145158 | N55: 0.1968757948 | O55: 0.1321385434 | P55: 0.1400773094 | Q55: =Q92/P92-1 -> 0.1339012694 | R55: =R92/Q92-1 -> 0.1165464075 | S55: =S92/R92-1 -> 0.1178053938
B56: Change in private credit/GDP | F56: =(F92-E92)/(E20*1000) -> 0.03067936786 | G56: =(G92-F92)/(F20*1000) -> 0.03030808467 | H56: 0.02606951304 | I56: 0.02904029671 | J56: 0.03101372427 | K56: 0.01437134759 | L56: 0.03357777192 | M56: 0.0449007986 | N56: 0.0531151943 | O56: =(O92-N92)/(N20*1000) -> 0.03967741382 | P56: 0.04265905628 | Q56: 0.04214379011 | R56: 0.03795758556 | S56: 0.03915488479
B58: Balance of Payments, in million of US dollars
B59: Goods & Services Balance | E59: =E65-E60-E61 -> -2303.21 | F59: -2167.83 | G59: -1833.58 | H59: -1434.93 | I59: =I65-I60-I61 -> -2843.89 | J59: -2811.76 | K59: -3788.75 | L59: -5662.37 | M59: -8168.23 | N59: -6028.75 | O59: =(O15-O17)/O103*1000 -> -5356.428835 | P59: =(P15-P17)/P103*1000 -> -5420.98396 | Q59: -5543.552122 | R59: -5764.621696 | S59: -6083.3022
B60: Primary income from abroad | E60: ='Source Data'!E50 -> -2273.18 | F60: ='Source Data'!F50 -> -2055.48 | G60: ='Source Data'!G50 -> -2277.17 | H60: ='Source Data'!H50 -> -2655.66 | I60: ='Source Data'!I50 -> -2584.19 | J60: ='Source Data'!J50 -> -2848.23 | K60: ='Source Data'!K50 -> -2677.5 | L60: ='Source Data'!L50 -> -3297.35 | M60: ='Source Data'!M50 -> -3017.7 | N60: ='Source Data'!N50 -> -3806.32 | O60: =AVERAGE(N60:N60)*(1+'GDP&Prices'!O57+'GDP&Prices'!O107-'GDP&Prices'!O94) -> -4015.6676 | P60: =O60*(1+'GDP&Prices'!P57+'GDP&Prices'!P107-'GDP&Prices'!P94) -> -4236.529318 | Q60: =P60*(1+'GDP&Prices'!Q57+'GDP&Prices'!Q107-'GDP&Prices'!Q94) -> -4469.53843 | R60: =Q60*(1+'GDP&Prices'!R57+'GDP&Prices'!R107-'GDP&Prices'!R94) -> -4715.363044 | S60: =R60*(1+'GDP&Prices'!S57+'GDP&Prices'!S107-'GDP&Prices'!S94) -> -4974.708012 | U60: Forecast assumption
B61: Secondary income from abroad | E61: ='Source Data'!E51 -> 3057.25 | F61: ='Source Data'!F51 -> 3327.1 | G61: ='Source Data'!G51 -> 3540.46 | H61: ='Source Data'!H51 -> 3997.42 | I61: ='Source Data'!I51 -> 4503.03 | J61: ='Source Data'!J51 -> 4828.46 | K61: ='Source Data'!K51 -> 5530.14 | L61: ='Source Data'!L51 -> 7080.01 | M61: ='Source Data'!M51 -> 6601.7 | N61: ='Source Data'!N51 -> 6771.66 | O61: =O62+O64 -> 6954.304316 | P61: =P62+P64 -> 7336.791054 | Q61: =Q62+Q64 -> 7740.314562 | R61: 8166.031862 | S61: 8615.163615
B62: Government grants | E62: ='Source Data'!E52 -> 1470.764032 | F62: ='Source Data'!F52 -> 67310.31738 | G62: ='Source Data'!G52 -> 716.5893469 | H62: ='Source Data'!H52 -> 1292.41 | I62: ='Source Data'!I52 -> 1432.170388 | J62: ='Source Data'!J52 -> 1548.435668 | K62: ='Source Data'!K52 -> 1693.178529 | L62: ='Source Data'!L52 -> 1849.072372 | M62: ='Source Data'!M52 -> 2018.611505 | N62: ='Source Data'!N52 -> 2203.69547 | O62: =AVERAGE(L62:N62)*(1+'GDP&Prices'!O57+'GDP&Prices'!O107-'GDP&Prices'!O94) -> 2135.101737 | P62: =O62*(1+'GDP&Prices'!P57+'GDP&Prices'!P107-'GDP&Prices'!P94) -> 2252.532333 | Q62: =P62*(1+'GDP&Prices'!Q57+'GDP&Prices'!Q107-'GDP&Prices'!Q94) -> 2376.421611 | R62: =Q62*(1+'GDP&Prices'!R57+'GDP&Prices'!R107-'GDP&Prices'!R94) -> 2507.1248 | S62: =R62*(1+'GDP&Prices'!S57+'GDP&Prices'!S107-'GDP&Prices'!S94) -> 2645.016664 | U62: Forecast assumption
B63: o.w. Budget grants | E63: =E24*1000/E103 -> 84.77783354 | F63: =F24*1000/F103 -> 1528.347435 | G63: 17.36319871 | H63: 30.02837115 | I63: 13.94105037 | J63: 14.4750572 | K63: 194.2464707 | L63: 46.05983597 | M63: 29.93861788 | N63: 85.79300416 | O63: =AVERAGE(L63:N63)*(1+'GDP&Prices'!O57+'GDP&Prices'!O107-'GDP&Prices'!O94) -> 56.89666274 | P63: =O63*(1+'GDP&Prices'!P57+'GDP&Prices'!P107-'GDP&Prices'!P94) -> 60.02597919 | Q63: =P63*(1+'GDP&Prices'!Q57+'GDP&Prices'!Q107-'GDP&Prices'!Q94) -> 63.32740804 | R63: =Q63*(1+'GDP&Prices'!R57+'GDP&Prices'!R107-'GDP&Prices'!R94) -> 66.81041548 | S63: =R63*(1+'GDP&Prices'!S57+'GDP&Prices'!S107-'GDP&Prices'!S94) -> 70.48498833 | U63: Forecast assumption
B64: Other | E64: =E61-E62 -> 1586.485968 | F64: -63983.21738 | G64: 2823.870653 | H64: 2705.01 | I64: =I61-I62 -> 3070.859612 | J64: =J61-J62 -> 3280.024332 | K64: =K61-K62 -> 3836.961471 | L64: =L61-L62 -> 5230.937628 | M64: =M61-M62 -> 4583.088495 | N64: 4567.96453 | O64: =AVERAGE(N64:N64)*((1+'GDP&Prices'!O57+'GDP&Prices'!O107-'GDP&Prices'!O94)) -> 4819.202579 | P64: =O64*(1+'GDP&Prices'!P57+'GDP&Prices'!P107-'GDP&Prices'!P94) -> 5084.258721 | Q64: =P64*(1+'GDP&Prices'!Q57+'GDP&Prices'!Q107-'GDP&Prices'!Q94) -> 5363.89295 | R64: =Q64*(1+'GDP&Prices'!R57+'GDP&Prices'!R107-'GDP&Prices'!R94) -> 5658.907063 | S64: =R64*(1+'GDP&Prices'!S57+'GDP&Prices'!S107-'GDP&Prices'!S94) -> 5970.146951 | U64: Forecast assumption
B65: = Current Account Balance (US$) | E65: ='Source Data'!E53 -> -1519.14 | F65: ='Source Data'!F53 -> -896.21 | G65: ='Source Data'!G53 -> -570.29 | H65: ='Source Data'!H53 -> -93.17 | I65: ='Source Data'!I53 -> -925.05 | J65: ='Source Data'!J53 -> -831.53 | K65: ='Source Data'!K53 -> -936.11 | L65: ='Source Data'!L53 -> -1879.71 | M65: ='Source Data'!M53 -> -4584.23 | N65: ='Source Data'!N53 -> -3063.41 | O65: =(O40/100)*O105 -> -2417.792118 | P65: =(P40/100)*P105 -> -2320.722225 | Q65: =(Q40/100)*Q105 -> -2272.775991 | R65: -2313.952878 | S65: -2442.846597
B66: Capital and Financial Account
B67: Net inflows 1/ | E67: =E75-E65 -> 1624.394958 | F67: 1179.770182 | G67: 1300.181129 | H67: 462.6793726 | I67: 1508.31787 | J67: =J75-J65 -> 1626.168148 | K67: =K75-K65 -> 2331.63419 | L67: =L75-L65 -> 3402.273154 | M67: =M75-M65 -> 5572.702737 | N67: =N75-N65 -> 3151.04637 | O67: =O68+O69+O70+O73 -> 2703.932156 | P67: =P68+P69+P70+P73 -> 2683.53836 | Q67: =Q68+Q69+Q70+Q73 -> 2740.912169 | R67: 2761.996906 | S67: 2803.963619
B68: Government borrowing (net) | E68: ='Policies&Assumptions'!E51*1000/E103 -> 988.3771878 | F68: ='Policies&Assumptions'!F51*1000/F103 -> -1133.660854 | G68: ='Policies&Assumptions'!G51*1000/G103 -> 820.6917397 | H68: ='Policies&Assumptions'!H51*1000/H103 -> 1240.619405 | I68: ='Policies&Assumptions'!I51*1000/I103 -> 1222.839279 | J68: ='Policies&Assumptions'!J51*1000/J103 -> 1163.548429 | K68: ='Policies&Assumptions'!K51*1000/K103 -> 4472.781671 | L68: ='Policies&Assumptions'!L51*1000/L103 -> 994.385473 | M68: ='Policies&Assumptions'!M51*1000/M103 -> 2253.782003 | N68: ='Policies&Assumptions'!N51*1000/N103 -> 2050.851421 | O68: ='Policies&Assumptions'!O51*1000/O103 -> 2152.316712 | P68: ='Policies&Assumptions'!P51*1000/P103 -> 2101.584067 | Q68: ='Policies&Assumptions'!Q51*1000/Q103 -> 2126.950389 | R68: ='Policies&Assumptions'!R51*1000/R103 -> 2114.267228 | S68: ='Policies&Assumptions'!S51*1000/S103 -> 2120.608809
B69: Banks' (net) | F69: =-1*(F89/F104-E89/E104) -> 594.6600509 | G69: =-1*(G89/G104-F89/F104) -> 113.1409457 | H69: -128.0083066 | I69: -78.28344644 | J69: 379.9479708 | K69: -1794.908129 | L69: 577.7622971 | M69: 485.4914761 | N69: -24.5630386 | O69: =AVERAGE(N69,N69)*(1+'GDP&Prices'!O57+'GDP&Prices'!O107-'GDP&Prices'!O94) -> -25.91400573 | P69: =O69*(1+'GDP&Prices'!P57+'GDP&Prices'!P107-'GDP&Prices'!P94) -> -27.33927604 | Q69: =P69*(1+'GDP&Prices'!Q57+'GDP&Prices'!Q107-'GDP&Prices'!Q94) -> -28.84293622 | R69: =Q69*(1+'GDP&Prices'!R57+'GDP&Prices'!R107-'GDP&Prices'!R94) -> -30.42929771 | S69: =R69*(1+'GDP&Prices'!S57+'GDP&Prices'!S107-'GDP&Prices'!S94) -> -32.10290909 | U69: Forecast assumption
B70: Nonbank private inflows (net) 1/ | E70: =E67-E68-E69-E73 -> 636.0177702 | F70: 1816.434628 | G70: 232.6094282 | H70: -505.848926 | I70: 373.1875294 | J70: 96.03890232 | K70: -362.6125277 | L70: =L67-L68-L69-L73 -> 1841.4961 | M70: 2850.156764 | N70: 1128.23368 | O70: =O71+O72 -> 577.5294499 | P70: =P71+P72 -> 609.2935697 | Q70: =Q71+Q72 -> 642.804716 | R70: 678.1589754 | S70: 715.4577191
B71: o.w. FDI (net inflow) | E71: ='Source Data'!E57 -> 1669.71 | F71: ='Source Data'!F57 -> 1559.11 | G71: ='Source Data'!G57 -> 1761.27 | H71: ='Source Data'!H57 -> 2518.53 | I71: ='Source Data'!I57 -> 1921.15 | J71: ='Source Data'!J57 -> 1980.44 | K71: ='Source Data'!K57 -> 1722.42 | L71: ='Source Data'!L57 -> 2344.79 | M71: ='Source Data'!M57 -> 2773.12 | N71: ='Source Data'!N57 -> 2884.0448 | O71: =AVERAGE(K71,N71)*(1+'GDP&Prices'!O57+'GDP&Prices'!O107-'GDP&Prices'!O94) -> 2429.910182 | P71: =O71*(1+'GDP&Prices'!P57+'GDP&Prices'!P107-'GDP&Prices'!P94) -> 2563.555242 | Q71: =P71*(1+'GDP&Prices'!Q57+'GDP&Prices'!Q107-'GDP&Prices'!Q94) -> 2704.55078 | R71: =Q71*(1+'GDP&Prices'!R57+'GDP&Prices'!R107-'GDP&Prices'!R94) -> 2853.301073 | S71: =R71*(1+'GDP&Prices'!S57+'GDP&Prices'!S107-'GDP&Prices'!S94) -> 3010.232632 | U71: Forecast assumption
B72: Other | E72: =E70-E71 -> -1033.69223 | F72: 257.3246276 | G72: -1528.660572 | H72: -3024.378926 | I72: =I70-I71 -> -1547.962471 | J72: -1884.401098 | K72: -2085.032528 | L72: -503.2938997 | M72: 77.03676351 | N72: -1755.81112 | O72: =AVERAGE(N72,N72)*(1+'GDP&Prices'!O57+'GDP&Prices'!O107-'GDP&Prices'!O94) -> -1852.380732 | P72: =O72*(1+'GDP&Prices'!P57+'GDP&Prices'!P107-'GDP&Prices'!P94) -> -1954.261672 | Q72: =P72*(1+'GDP&Prices'!Q57+'GDP&Prices'!Q107-'GDP&Prices'!Q94) -> -2061.746064 | R72: =Q72*(1+'GDP&Prices'!R57+'GDP&Prices'!R107-'GDP&Prices'!R94) -> -2175.142098 | S72: =R72*(1+'GDP&Prices'!S57+'GDP&Prices'!S107-'GDP&Prices'!S94) -> -2294.774913 | U72: Forecast assumption
B73: IMF (net) | F73: =F78-E78-(F79-E79) -> -97.66364205 | G73: 133.7390159 | H73: -144.0827999 | I73: -9.425492313 | J73: =J78-I78-(J79-I79) -> -13.36715393 | K73: =K78-J78-(K79-J79) -> 16.37317549 | L73: =L78-K78-(L79-K79) -> -11.37071605 | M73: =M78-L78-(M79-L79) -> -16.72750566 | N73: =N78-M78-(N79-M79) -> -3.4756925 | O73: 0 | P73: 0 | Q73: 0 | R73: 0 | S73: 0 | U73: IMF lending improves gross FX reserves
B74: 1/ Including errors and omissions. | U74: (but not net FX reserves)
B75: Overall balance | E75: ='Source Data'!E55-'Source Data'!D55 -> 105.254958 | F75: =F78-E78 -> 283.5601825 | G75: 729.8911294 | H75: 369.5093726 | I75: 583.2678699 | J75: =J78-I78 -> 794.6381477 | K75: =K78-J78 -> 1395.52419 | L75: 1522.563154 | M75: 988.4727371 | N75: 87.63636973 | O75: =O65+O67 -> 286.140038 | P75: =P65+P67 -> 362.8161356 | Q75: =Q65+Q67 -> 468.1361779 | R75: 448.0440279 | S75: 361.1170219
B76: ( = change in gross international reserves)
B77: International Reserves
B78: Gross international reserves | E78: ='Source Data'!E55 -> 3833.518213 | F78: ='Source Data'!F55 -> 4117.078395 | G78: ='Source Data'!G55 -> 4846.969525 | H78: ='Source Data'!H55 -> 5216.478897 | I78: ='Source Data'!I55 -> 5799.746767 | J78: ='Source Data'!J55 -> 6594.384915 | K78: ='Source Data'!K55 -> 7989.909105 | L78: ='Source Data'!L55 -> 9512.472259 | M78: ='Source Data'!M55 -> 10500.945 | N78: ='Source Data'!N55 -> 10588.58137 | O78: =N78+O75 -> 10874.7214 | P78: =O78+P75 -> 11237.53754 | Q78: =P78+Q75 -> 11705.67372 | R78: 12153.71775 | S78: 12514.83477
B79: Net international reserves | E79: ='Source Data'!E56 -> 3255.314046 | F79: ='Source Data'!F56 -> 3636.53787 | G79: ='Source Data'!G56 -> 4232.689984 | H79: ='Source Data'!H56 -> 4746.282156 | I79: ='Source Data'!I56 -> 5338.975519 | J79: ='Source Data'!J56 -> 6146.98082 | K79: ='Source Data'!K56 -> 7526.131834 | L79: ='Source Data'!L56 -> 9060.065705 | M79: ='Source Data'!M56 -> 10065.26595 | N79: ='Source Data'!N56 -> 10156.37801 | O79: =N79+O75-O73 -> 10442.51805 | P79: =O79+P75-P73 -> 10805.33418 | Q79: =P79+Q75-Q73 -> 11273.47036 | R79: 11721.51439 | S79: 12082.63141
B80: External Debt
B81: Total | E81: ='Source Data'!E59 -> 21521.22 | F81: ='Source Data'!F59 -> 20688.1397 | G81: ='Source Data'!G59 -> 22152.844 | H81: ='Source Data'!H59 -> 23479.98044 | I81: ='Source Data'!I59 -> 24106.97324 | J81: ='Source Data'!J59 -> 26101.60691 | K81: ='Source Data'!K59 -> 31109.54457 | L81: ='Source Data'!L59 -> 32110.07961 | M81: ='Source Data'!M59 -> 32287.60661 | N81: ='Source Data'!N59 -> 34263.71405 | O81: =N81+O67-O71 -> 34537.73602 | P81: =O81+P67-P71 -> 34657.71914 | Q81: =P81+Q67-Q71 -> 34694.08053 | R81: 34602.77636 | S81: 34396.50735
B82: o.w. Government | E82: ='Policies&Assumptions'!E63/E103*1000 -> 12392.97625 | F82: ='Policies&Assumptions'!F63/F103*1000 -> 12143.40397 | G82: ='Policies&Assumptions'!G63/G103*1000 -> 13146.53379 | H82: ='Policies&Assumptions'!H63/H103*1000 -> 14080.99502 | I82: ='Policies&Assumptions'!I63/I103*1000 -> 15978.60572 | J82: ='Policies&Assumptions'!J63/J103*1000 -> 17547.96889 | K82: ='Policies&Assumptions'!K63/K103*1000 -> 22926.40256 | L82: ='Policies&Assumptions'!L63/L103*1000 -> 24671.54415 | M82: ='Policies&Assumptions'!M63/M103*1000 -> 27615.87795 | N82: ='Policies&Assumptions'!N63/N103*1000 -> 29617.33722 | O82: ='Policies&Assumptions'!O63/O103*1000 -> 32843.99005 | P82: ='Policies&Assumptions'!P63/P103*1000 -> 33909.97147 | Q82: ='Policies&Assumptions'!Q63/Q103*1000 -> 37175.74476 | R82: ='Policies&Assumptions'!R63/R103*1000 -> 38196.72482 | S82: ='Policies&Assumptions'!S63/S103*1000 -> 41507.65306
B83: o.w. Short-term debt | E83: ='Source Data'!E60 -> 3061.702 | F83: ='Source Data'!F60 -> 2689.425809 | G83: ='Source Data'!G60 -> 2613.814 | H83: ='Source Data'!H60 -> 2244.851 | I83: ='Source Data'!I60 -> 1911.168 | J83: ='Source Data'!J60 -> 1498.56 | K83: ='Source Data'!K60 -> 2254.952 | L83: ='Source Data'!L60 -> 2384.844 | M83: ='Source Data'!M60 -> 3248.126 | N83: ='Source Data'!N60 -> 3168.052741 | O83: =N83/N81*O81 -> 3193.389051 | P83: =O83/O81*P81 -> 3204.482794 | Q83: =P83/P81*Q81 -> 3207.8448 | R83: 3199.402737 | S83: 3180.330925
B85: Money and Credit, [Units], current prices
B86: Monetary Survey
B87: Net Foreign Assets | E87: ='Source Data'!E77 -> 105569.2712 | F87: ='Source Data'!F77 -> 109355.4428 | G87: ='Source Data'!G77 -> 135640.8754 | H87: ='Source Data'!H77 -> 174511.4708 | I87: ='Source Data'!I77 -> 219420.3423 | J87: ='Source Data'!J77 -> 256421.8911 | K87: ='Source Data'!K77 -> 435894.5695 | L87: ='Source Data'!L77 -> 463548.151 | M87: ='Source Data'!M77 -> 458549.0636 | N87: ='Source Data'!N77 -> 506532.6592 | O87: =O88+O89 -> 560641.478 | P87: =P88+P89 -> 585298.2523 | Q87: =Q88+Q89 -> 656671.4633 | R87: 690320.0462 | S87: 762404.1988
B88: Monetary Authorities | E88: ='Source Data'!E78 -> 113353.4397 | F88: ='Source Data'!F78 -> 143878.9212 | G88: ='Source Data'!G78 -> 176210.3804 | H88: ='Source Data'!H78 -> 210406.2137 | I88: ='Source Data'!I78 -> 252943.8586 | J88: ='Source Data'!J78 -> 311450.337 | K88: ='Source Data'!K78 -> 394012.2256 | L88: ='Source Data'!L78 -> 454764.3299 | M88: ='Source Data'!M78 -> 476614.7659 | N88: ='Source Data'!N78 -> 523548.872 | O88: =O104*(N88/N104+(O75-O73)) -> 577299.9403 | P88: =P104*(O88/O104+(P75-P73)) -> 600357.0423 | Q88: =Q104*(P88/P104+(Q75-Q73)) -> 670904.0003 | R88: =R104*(Q88/Q104+(R75-R73)) -> 702660.8108 | S88: =S104*(R88/R104+(S75-S73)) -> 773355.1449
B89: Commercial banks | E89: =E87-E88 -> -7784.168538 | F89: -34523.4784 | G89: -40569.50504 | H89: -35894.74292 | I89: =I87-I88 -> -33523.51631 | J89: =J87-J88 -> -55028.44597 | K89: =K87-K88 -> 41882.34396 | L89: 8783.821074 | M89: -18065.70227 | N89: =N87-N88 -> -17016.21276 | O89: =O104*(N89/N104-O69) -> -16658.46235 | P89: =P104*(O89/O104-P69) -> -15058.78999 | Q89: =Q104*(P89/P104-Q69) -> -14232.537 | R89: =R104*(Q89/Q104-R69) -> -12340.7646 | S89: -10950.94611
B90: Net Domestic assets | E90: ='Source Data'!E79 -> 562784.6026 | F90: ='Source Data'!F79 -> 641128.8822 | G90: ='Source Data'!G79 -> 688208.1998 | H90: ='Source Data'!H79 -> 727446.4149 | I90: ='Source Data'!I79 -> 744916.7768 | J90: ='Source Data'!J79 -> 823813.3528 | K90: ='Source Data'!K79 -> 872399.0825 | L90: ='Source Data'!L79 -> 1020861.85 | M90: ='Source Data'!M79 -> 1120710.372 | N90: ='Source Data'!N79 -> 1299212.188 | O90: =O94-O87 -> 1439535.289 | P90: =P94-P87 -> 1597839.821 | Q90: =Q94-Q87 -> 1760776.395 | R90: 1925717.794 | S90: 2123842.225
B91: Claims on Government | E91: ='Source Data'!E80 -> 332459.7144 | F91: ='Source Data'!F80 -> 384220.6154 | G91: ='Source Data'!G80 -> 424045.5312 | H91: ='Source Data'!H80 -> 450343.0411 | I91: ='Source Data'!I80 -> 456879.9647 | J91: ='Source Data'!J80 -> 510900.8971 | K91: ='Source Data'!K80 -> 511887.5072 | L91: ='Source Data'!L80 -> 569602.5199 | M91: ='Source Data'!M80 -> 593879.0301 | N91: ='Source Data'!N80 -> 637610.1057 | O91: =N91+('Policies&Assumptions'!O50*1000) -> 658758.7794 | P91: =O91+('Policies&Assumptions'!P50*1000) -> 666565.1239 | Q91: =P91+('Policies&Assumptions'!Q50*1000) -> 665501.078 | R91: =Q91+('Policies&Assumptions'!R50*1000) -> 676888.0566 | S91: =R91+('Policies&Assumptions'!S50*1000) -> 698319.1419
B92: Credit Private Sector | E92: ='Source Data'!E81 -> 498725.5654 | F92: ='Source Data'!F81 -> 561862.6482 | G92: ='Source Data'!G81 -> 629872.7353 | H92: ='Source Data'!H81 -> 693771.8428 | I92: ='Source Data'!I81 -> 771073.0192 | J92: ='Source Data'!J81 -> 862411.3132 | K92: ='Source Data'!K81 -> 908307.1395 | L92: ='Source Data'!L81 -> 1013729.932 | M92: ='Source Data'!M81 -> 1182327.935 | N92: ='Source Data'!N81 -> 1415099.687 | O92: =O90-O91-O93 -> 1602088.899 | P92: =P90-P91-P93 -> 1826505.201 | Q92: =Q90-Q91-Q93 -> 2071076.566 | R92: 2312453.1 | S92: 2584872.548
B93: Other Items (net) | E93: =E90-E91-E92 -> -268400.6772 | F93: -304954.3814 | G93: -365710.0668 | H93: -416668.469 | I93: =I90-I91-I92 -> -483036.2071 | J93: =J90-J91-J92 -> -549498.8575 | K93: -547795.5642 | L93: -562470.6018 | M93: -655496.5934 | N93: -753497.6046 | O93: =N93*(1+'GDP&Prices'!O57+'GDP&Prices'!O107) -> -821312.389 | P93: =O93*(1+'GDP&Prices'!P57+'GDP&Prices'!P107) -> -895230.504 | Q93: =P93*(1+'GDP&Prices'!Q57+'GDP&Prices'!Q107) -> -975801.2493 | R93: =Q93*(1+'GDP&Prices'!R57+'GDP&Prices'!R107) -> -1063623.362 | S93: =R93*(1+'GDP&Prices'!S57+'GDP&Prices'!S107) -> -1159349.464 | U93: Forecast assumption
B94: = Broad Money Supply | E94: =E87+E90 -> 668353.8738 | F94: 750484.325 | G94: 823849.0751 | H94: 901957.8857 | I94: =I87+I90 -> 964337.119 | J94: 1080235.244 | K94: 1308293.652 | L94: 1484410.002 | M94: 1579259.436 | N94: 1805744.848 | O94: =2*O96-N94 -> 2000176.767 | P94: =2*P96-O94 -> 2183138.073 | Q94: =2*Q96-P94 -> 2417447.858 | R94: 2616037.841 | S94: 2886246.424
B95: % change | E95: =E94/('Source Data'!D77+'Source Data'!D79)-1 -> 0.08929668291 | F95: =F94/E94-1 -> 0.1228846791 | G95: 0.09775653882 | H95: 0.09480961133 | I95: 0.06915980704 | J95: =J94/I94-1 -> 0.1201842411 | K95: =K94/J94-1 -> 0.2111192071 | L95: =L94/K94-1 -> 0.1346153054 | M95: 0.06389705942 | N95: 0.1434124166 | O95: 0.1076740824 | P95: 0.09147256836 | Q95: =Q94/P94-1 -> 0.1073270572 | R95: =R94/Q94-1 -> 0.0821486105 | S95: =S94/R94-1 -> 0.1032892488
B96: Money Supply, average | E96: =(E94+'Source Data'!D77+'Source Data'!D79)/2 -> 640959.2324 | F96: =(F94+E94)/2 -> 709419.0994 | G96: 787166.7001 | H96: 862903.4804 | I96: 933147.5024 | J96: =(J94+I94)/2 -> 1022286.181 | K96: =(K94+J94)/2 -> 1194264.448 | L96: 1396351.827 | M96: 1531834.719 | N96: 1692502.142 | O96: =(O20*1000)/O97 -> 1902960.807 | P96: =(P20*1000)/P97 -> 2091657.42 | Q96: =(Q20*1000)/Q97 -> 2300292.966 | R96: 2516742.849 | S96: 2751142.132
B97: Velocity (GDP/M) | E97: =E20*1000/(E96) -> 3.210758918 | F97: =F20*1000/(F96) -> 3.163093011 | G97: 3.113831872 | H97: 3.084770315 | I97: 3.156084895 | J97: 3.123943775 | K97: 2.628948864 | L97: 2.68907864 | M97: 2.860879676 | N97: =N20*1000/(N96) -> 2.784479125 | O97: =N97+O98 -> 2.764479125 | P97: =O97+P98 -> 2.774479125 | Q97: =P97+Q98 -> 2.764479125 | R97: 2.764479125 | S97: 2.764479125
B98: Change in velocity | F98: =F97-E97 -> -0.04766590655 | G98: -0.04926113962 | H98: -0.02906155693 | I98: 0.07131458021 | J98: =J97-I97 -> -0.03214111965 | K98: =K97-J97 -> -0.4949949112 | L98: =L97-K97 -> 0.06012977617 | M98: 0.1718010357 | N98: -0.07640055095 | O98: =O99+O100 -> -0.02 | P98: =P99+P100 -> 0.01 | Q98: =Q99+Q100 -> -0.01 | R98: -1.387778781e-17 | S98: 1.387778781e-17
B99: Estimated change in velocity | F99: =$E$111+$E$112*(F106-E106) -> -0.01103466667 | G99: 0.003014166667 | H99: 0.004966666667 | I99: -0.01206533333 | J99: 0.00843983882 | K99: -0.01492555582 | L99: -0.02263432751 | M99: 0.07494015191 | N99: 0.04217399434 | O99: -0.02 | P99: 0.01 | Q99: =$E$111+$E$112*(Q106-P106) -> -0.01 | R99: =$E$111+$E$112*(R106-Q106) -> -1.387778781e-17 | S99: =$E$111+$E$112*(S106-R106) -> 1.387778781e-17 | U99: Forecast assumption
B100: Add factor | E100: =E98-E99 -> 0 | F100: -0.03663123988 | G100: -0.05227530629 | H100: -0.0340282236 | I100: 0.08337991354 | J100: =J98-J99 -> -0.04058095847 | K100: =K98-K99 -> -0.4800693554 | L100: =L98-L99 -> 0.08276410368 | M100: 0.09686088381 | N100: =N98-N99 -> -0.1185745453
B102: ASSUMPTIONS
B103: Average exchange rate (LC/$) | E103: ='Policies&Assumptions'!E106 -> 42.62556729 | F103: ='Policies&Assumptions'!F106 -> 44.08933195 | G103: ='Policies&Assumptions'!G106 -> 45.09998253 | H103: ='Policies&Assumptions'!H106 -> 46.53504956 | I103: ='Policies&Assumptions'!I106 -> 48.47777427 | J103: ='Policies&Assumptions'!J106 -> 50.21800553 | K103: ='Policies&Assumptions'!K106 -> 55.33917337 | L103: ='Policies&Assumptions'!L106 -> 55.94932369 | M103: ='Policies&Assumptions'!M106 -> 53.9 | N103: ='Policies&Assumptions'!N106 -> 55.86 | O103: ='Policies&Assumptions'!O106 -> 57.8151 | P103: ='Policies&Assumptions'!P106 -> 59.8386285 | Q103: ='Policies&Assumptions'!Q106 -> 61.9329805 | R103: ='Policies&Assumptions'!R106 -> 64.10063481 | S103: ='Policies&Assumptions'!S106 -> 66.34415703
B104: End-period exchange rate | E104: ='Policies&Assumptions'!E110 -> 43.394204 | F104: ='Policies&Assumptions'!F110 -> 44.601515 | G104: ='Policies&Assumptions'!G110 -> 45.728417 | H104: ='Policies&Assumptions'!H110 -> 47.281227 | I104: ='Policies&Assumptions'!I110 -> 49.23471 | J104: ='Policies&Assumptions'!J110 -> 51.872527 | K104: ='Policies&Assumptions'!K110 -> 57.05511 | L104: ='Policies&Assumptions'!L110 -> 56.196336 | M104: ='Policies&Assumptions'!M110 -> 54.88 | N104: ='Policies&Assumptions'!N110 -> 55.86 | O104: ='Policies&Assumptions'!O110 -> 59.7702 | P104: ='Policies&Assumptions'!P110 -> 59.907057 | Q104: ='Policies&Assumptions'!Q110 -> 63.95890399 | R104: ='Policies&Assumptions'!R110 -> 64.24236563 | S104: ='Policies&Assumptions'!S110 -> 68.44594843
B105: GDP in millions of US dollars | E105: =E20*1000/E103 -> 48280.07466 | F105: =F20*1000/F103 -> 50895.72684 | G105: 54348.24187 | H105: 57201.16485 | I105: 60751.40167 | J105: 63594.01413 | K105: 56734.85838 | L105: 67112.51582 | M105: 81306.02622 | N105: 84366.93309 | O105: 90991.72063 | P105: 96981.83254 | Q105: 102677.3108 | R105: 108540.0026 | S105: 114636.6965
B106: Representative market interest rate | E106: ='Policies&Assumptions'!E87 -> 0.06452691667 | F106: ='Policies&Assumptions'!F87 -> 0.05900958333 | G106: ='Policies&Assumptions'!G87 -> 0.06051666667 | H106: ='Policies&Assumptions'!H87 -> 0.063 | I106: ='Policies&Assumptions'!I87 -> 0.05696733333 | J106: ='Policies&Assumptions'!J87 -> 0.06118725274 | K106: ='Policies&Assumptions'!K87 -> 0.05372447483 | L106: ='Policies&Assumptions'!L87 -> 0.04240731108 | M106: ='Policies&Assumptions'!M87 -> 0.07987738703 | N106: ='Policies&Assumptions'!N87 -> 0.1009643842 | O106: ='Policies&Assumptions'!O87 -> 0.06292088562 | P106: ='Policies&Assumptions'!P87 -> 0.06292088562 | Q106: ='Policies&Assumptions'!Q87 -> 0.05792088562 | R106: ='Policies&Assumptions'!R87 -> 0.05792088562 | S106: ='Policies&Assumptions'!S87 -> 0.05792088562
B107: Potential GDP in USD
B108: Behavioral Equations
B109: Money Demand
B110: Money demand parameters:
B111: Trend velocity | E111: 0
B112: Interest sensitivity | E112: 2

Sheet Policies&Assumptions
B1: ="Country:"&" "&Country_Name&" - Fiscal & Monetary Policies" -> Country: Macrofoundland - Fiscal & Monetary Policies
B3: Instructions: Calibration of behavioral equations can be found at the bottom of the sheet.
O4: First Year of Projection
B5: Year/Variable | E5: =F5-1 -> 2014 | F5: 2015 | G5: 2016 | H5: 2017 | I5: 2018 | J5: 2019 | K5: 2020 | L5: 2021 | M5: 2022 | N5: =O5-1 -> 2023 | O5: =First_Year -> 2024 | P5: ='Source Data'!P3 -> 2025 | Q5: =+P5+1 -> 2026 | R5: =+Q5+1 -> 2027 | S5: 2028
B6: Government Budget, [Units], current prices
B7: Total revenue | E7: =E9+E11+E13 -> 290.7154083 | F7: 372.5396636 | G7: 337.5257194 | H7: 370.1929879 | I7: =I9+I11+I13 -> 419.0239376 | J7: 457.9606349 | K7: 440.7141339 | L7: 586.4351356 | M7: 665.5436284 | N7: 747.3568204 | O7: 822.3133746 | P7: =P9+P11+P13 -> 907.0861938 | Q7: 993.9555239 | R7: 1087.474901 | S7: 1188.752743
E8: =E7/SUM('Source Data'!D63:D65)-1 -> 0.131211629 | F8: =F7/E7-1 -> 0.2814582681 | G8: -0.09398715797 | H8: 0.09678453115 | I8: 0.1319067386 | J8: =J7/I7-1 -> 0.09292236986 | K8: =K7/J7-1 -> -0.03765935259 | L8: 0.3306474435 | M8: 0.1348972599 | N8: 0.1229268654 | O8: 0.1002955377 | P8: 0.1030906488 | Q8: =Q7/P7-1 -> 0.09576744812 | R8: =R7/Q7-1 -> 0.0940880902 | S8: =S7/R7-1 -> 0.09313119965
B9: Tax revenue | E9: ='Source Data'!E63 -> 272.2282853 | F9: ='Source Data'!F63 -> 286.9432592 | G9: ='Source Data'!G63 -> 314.0363862 | H9: ='Source Data'!H63 -> 345.3355327 | I9: ='Source Data'!I63 -> 384.9590842 | J9: ='Source Data'!J63 -> 423.7657197 | K9: ='Source Data'!K63 -> 385.4235898 | L9: ='Source Data'!L63 -> 541.7762412 | M9: ='Source Data'!M63 -> 604.5311814 | N9: ='Source Data'!N63 -> 678.3152646 | O9: =(O33/100)*O79 -> 747.3043624 | P9: =(P33/100)*P79 -> 824.377967 | Q9: 903.3391342 | R9: 988.340329 | S9: 1080.390363
E10: ='Source Data'!E63/'Source Data'!D63-1 -> 0.1087918002 | F10: =F9/E9-1 -> 0.05405380226 | G10: 0.09441980644 | H10: 0.09966726107 | I10: 0.1147392832 | J10: =J9/I9-1 -> 0.1008071691 | K10: =K9/J9-1 -> -0.09047954598 | L10: 0.4056644573 | M10: 0.1158318424 | N10: 0.1220517411 | O10: 0.1017065388 | P10: 0.1031354939 | Q10: =Q9/P9-1 -> 0.0957827239 | R10: =R9/Q9-1 -> 0.09409665937 | S10: =S9/R9-1 -> 0.09313596857
B11: Nontax revenue | E11: ='Source Data'!E64 -> 14.8734197 | F11: ='Source Data'!F64 -> 18.21258699 | G11: ='Source Data'!G64 -> 22.7062532 | H11: ='Source Data'!H64 -> 23.46008343 | I11: ='Source Data'!I64 -> 33.38902229 | J11: ='Source Data'!J64 -> 33.4680067 | K11: ='Source Data'!K64 -> 44.54110498 | L11: ='Source Data'!L64 -> 42.0818777 | M11: ='Source Data'!M64 -> 59.39875554 | N11: ='Source Data'!N64 -> 64.24915859 | O11: =O79*O38/100 -> 71.71952589 | P11: =P79*P38/100 -> 79.11635462 | Q11: 86.69433457 | R11: 94.85198184 | S11: 103.686113
E12: ='Source Data'!E64/'Source Data'!D64-1 -> 0.595297627 | F12: =F11/E11-1 -> 0.2245056856 | G12: 0.2467340976 | H12: 0.03319923475 | I12: 0.4232269199 | J12: =J11/I11-1 -> 0.002365580298 | K12: =K11/J11-1 -> 0.3308562229 | L12: -0.05521253411 | M12: 0.4115044 | N12: =N11/M11-1 -> 0.08165832787 | O12: =O11/N11-1 -> 0.1162718308 | P12: 0.1031354939 | Q12: =Q11/P11-1 -> 0.0957827239 | R12: =R11/Q11-1 -> 0.09409665937 | S12: =S11/R11-1 -> 0.09313596857
B13: Grants | E13: ='Source Data'!E65 -> 3.613703248 | F13: ='Source Data'!F65 -> 67.38381738 | G13: ='Source Data'!G65 -> 0.7830799584 | H13: ='Source Data'!H65 -> 1.397371739 | I13: ='Source Data'!I65 -> 0.6758310927 | J13: ='Source Data'!J65 -> 0.7269085026 | K13: ='Source Data'!K65 -> 10.74943912 | L13: ='Source Data'!L65 -> 2.577016672 | M13: ='Source Data'!M65 -> 1.613691504 | N13: ='Source Data'!N65 -> 4.792397213 | O13: ='Deficits&Financing'!O24 -> 3.289486246 | P13: ='Deficits&Financing'!P24 -> 3.591872269 | Q13: ='Deficits&Financing'!Q24 -> 3.922055127 | R13: ='Deficits&Financing'!R24 -> 4.282590045 | S13: ='Deficits&Financing'!S24 -> 4.676267135
E14: ='Source Data'!E65/'Source Data'!D65-1 -> 0.6780768412 | F14: =F13/E13-1 -> 17.64674899 | G14: -0.9883788128 | H14: 0.7844560118 | I14: -0.5163555455 | J14: =J13/I13-1 -> 0.07557718259 | K14: =K13/J13-1 -> 13.78788469 | L14: -0.7602650107 | M14: -0.3738141001 | N14: 1.969834817 | O14: -0.3136031719 | P14: 0.091925 | Q14: =Q13/P13-1 -> 0.091925 | R14: =R13/Q13-1 -> 0.091925 | S14: =S13/R13-1 -> 0.091925
B15: Total expenditure | E15: ='Source Data'!E67 -> 348.1509234 | F15: ='Source Data'!F67 -> 374.3182149 | G15: ='Source Data'!G67 -> 414.3638184 | H15: ='Source Data'!H67 -> 454.2227833 | I15: ='Source Data'!I67 -> 484.8413877 | J15: ='Source Data'!J67 -> 570.4126487 | K15: ='Source Data'!K67 -> 689.2207843 | L15: ='Source Data'!L67 -> 699.7853429 | M15: ='Source Data'!M67 -> 811.2989886 | N15: ='Source Data'!N67 -> 905.6484565 | O15: =O17+O21+O25 -> 967.8984542 | P15: =P17+P21+P25 -> 1040.648447 | Q15: 1124.619855 | R15: 1234.387751 | S15: 1350.873832
E16: ='Source Data'!E67/'Source Data'!D67-1 -> 0.02746988217 | F16: =F15/E15-1 -> 0.07516077013 | G16: =G15/F15-1 -> 0.1069827806 | H16: =H15/G15-1 -> 0.09619315954 | I16: =I15/H15-1 -> 0.06740878169 | J16: =J15/I15-1 -> 0.1764933094 | K16: =K15/J15-1 -> 0.208284539 | L16: =L15/K15-1 -> 0.01532826463 | M16: =M15/L15-1 -> 0.1593540745 | N16: 0.1162943246 | O16: =O15/N15-1 -> 0.06873527723 | P16: 0.07516283554 | Q16: =Q15/P15-1 -> 0.08069142718 | R16: =R15/Q15-1 -> 0.09760444432 | S16: =S15/R15-1 -> 0.09436749602
B17: Noninterest expenses | E17: =E15-E21-E25 -> 239.5878988 | F17: 247.0313175 | G17: 277.7597443 | H17: 297.1292359 | I17: =I15-I21-I25 -> 316.47334 | J17: 368.4570556 | K17: 466.8598498 | L17: 455.7427804 | M17: 530.3680379 | N17: 576.8240537 | O17: =N17*(1+O18) -> 637.3905793 | P17: =O17*(1+P18) -> 704.3165901 | Q17: =P17*(1+Q18) -> 778.2698321 | R17: 859.9881644 | S17: 950.2869217
E18: =E17/('Source Data'!D67-'Source Data'!D68-'Source Data'!D69-'Source Data'!D70)-1 -> 0.05019710449 | F18: =F17/E17-1 -> 0.03106759044 | G18: 0.1243908145 | H18: 0.06973469706 | I18: 0.06510333468 | J18: =J17/I17-1 -> 0.1642593831 | K18: =K17/J17-1 -> 0.2670672002 | L18: -0.02381243411 | M18: 0.1637442451 | N18: 0.08759203493 | O18: =O19+O20 -> 0.105 | P18: =P19+P20 -> 0.105 | Q18: =Q19+Q20 -> 0.105 | R18: 0.105 | S18: 0.105
N19: Baseline | O19: ='Control Panel'!D13 -> 0.095 | P19: ='Control Panel'!E13 -> 0.095 | Q19: ='Control Panel'!F13 -> 0.095 | R19: ='Control Panel'!G13 -> 0.095 | S19: ='Control Panel'!H13 -> 0.095 | T19: << Baseline | U19: Expenditure growth assumption/target
N20: Scenario/Measures | O20: ='Control Panel'!D16 -> 0.01 | P20: ='Control Panel'!E16 -> 0.01 | Q20: ='Control Panel'!F16 -> 0.01 | R20: ='Control Panel'!G16 -> 0.01 | S20: ='Control Panel'!H16 -> 0.01 | T20: << Scenario | U20: For simulations: link to Control Panel
B21: Interest | E21: =E23+E24 -> 66.81875735 | F21: 79.14684013 | G21: 95.86894418 | H21: 109.3502706 | I21: =I23+I24 -> 123.4422464 | J21: =J23+J24 -> 153.8976759 | K21: =K23+K24 -> 170.2065865 | L21: =L23+L24 -> 186.4414185 | M21: =M23+M24 -> 205.3886451 | N21: 226.8826639 | O21: 217.8622534 | P21: =P23+P24 -> 211.8584447 | Q21: 208.8069028 | R21: =R23+R24 -> 222.4144389 | S21: 232.6433223
E22: =E21/('Source Data'!D68+'Source Data'!D69)-1 -> 0.1968865245 | F22: =F21/('Source Data'!E68+'Source Data'!E69)-1 -> 0.1845003298 | G22: =G21/('Source Data'!F68+'Source Data'!F69)-1 -> 0.2112794905 | H22: =H21/('Source Data'!G68+'Source Data'!G69)-1 -> 0.1406224565 | I22: =I21/('Source Data'!H68+'Source Data'!H69)-1 -> 0.1288700582 | J22: =J21/I21-1 -> 0.2467180438 | K22: =K21/J21-1 -> 0.1059724293 | L22: 0.09538310075 | M22: 0.10162563 | N22: 0.104650473 | O22: -0.03975804204 | P22: =P21/O21-1 -> -0.02755781993 | Q22: =Q21/P21-1 -> -0.01440368289 | R22: =R21/Q21-1 -> 0.06516803733 | S22: =S21/R21-1 -> 0.04599019495
B23: Domestic | E23: ='Source Data'!E68 -> 49.02175434 | F23: ='Source Data'!F68 -> 56.08356572 | G23: ='Source Data'!G68 -> 66.93125764 | H23: ='Source Data'!H68 -> 76.36322974 | I23: ='Source Data'!I68 -> 85.65872602 | J23: ='Source Data'!J68 -> 103.5167325 | K23: ='Source Data'!K68 -> 114.3902394 | L23: ='Source Data'!L68 -> 125.9026489 | M23: ='Source Data'!M68 -> 139.061715 | N23: ='Source Data'!N68 -> 153.5292593 | O23: =O77*(N58+O61/2) -> 119.7931627 | P23: =P77*(O58+P61/2) -> 120.6328256 | Q23: =Q77*(P58+Q61/2) -> 125.8064694 | R23: =R77*(Q58+R61/2) -> 136.345099 | S23: =S77*(R58+S61/2) -> 146.7771377
B24: External | E24: ='Source Data'!E69 -> 17.79700301 | F24: ='Source Data'!F69 -> 23.0632744 | G24: ='Source Data'!G69 -> 28.93768654 | H24: ='Source Data'!H69 -> 32.98704088 | I24: ='Source Data'!I69 -> 37.78352033 | J24: ='Source Data'!J69 -> 50.38094336 | K24: ='Source Data'!K69 -> 55.81634705 | L24: ='Source Data'!L69 -> 60.53876957 | M24: ='Source Data'!M69 -> 66.32693005 | N24: ='Source Data'!N69 -> 73.35340462 | O24: =O78*(N63+O63)/2 -> 98.06909077 | P24: =P78*(O63+P63)/2 -> 91.22561909 | Q24: =Q78*(P63+Q63)/2 -> 83.00043339 | R24: =R78*(Q63+R63)/2 -> 86.06933984 | S24: =S78*(R63+S63)/2 -> 85.86618454
B25: Acquisition of nonfinancial assets | E25: ='Source Data'!E70 -> 41.74426725 | F25: ='Source Data'!F70 -> 48.14005729 | G25: ='Source Data'!G70 -> 40.7351299 | H25: ='Source Data'!H70 -> 47.74327673 | I25: ='Source Data'!I70 -> 44.92580134 | J25: ='Source Data'!J70 -> 48.05791724 | K25: ='Source Data'!K70 -> 52.15434805 | L25: ='Source Data'!L70 -> 57.60114405 | M25: ='Source Data'!M70 -> 75.54230558 | N25: ='Source Data'!N70 -> 101.9417389 | O25: =N25*(1+O26) -> 112.6456215 | P25: =O25*(1+P26) -> 124.4734118 | Q25: =P25*(1+Q26) -> 137.54312 | R25: 151.9851476 | S25: 167.9435881
E26: =E25/'Source Data'!D70-1 -> -0.2393492522 | F26: =F25/E25-1 -> 0.1532136138 | G26: =G25/F25-1 -> -0.1538204938 | H26: =H25/G25-1 -> 0.1720418431 | I26: =I25/H25-1 -> -0.05901302928 | J26: =J25/I25-1 -> 0.06971752997 | K26: =K25/J25-1 -> 0.08523945783 | L26: =L25/K25-1 -> 0.1044360863 | M26: =M25/L25-1 -> 0.3114723123 | N26: 0.3494655498 | O26: =O27+O28 -> 0.105 | P26: =P27+P28 -> 0.105 | Q26: =Q27+Q28 -> 0.105 | R26: 0.105 | S26: 0.105
N27: Baseline | O27: ='Control Panel'!D14 -> 0.095 | P27: ='Control Panel'!E14 -> 0.095 | Q27: ='Control Panel'!F14 -> 0.095 | R27: ='Control Panel'!G14 -> 0.095 | S27: ='Control Panel'!H14 -> 0.095 | T27: << Baseline | U27: Investment growth assumption/target
N28: Scenario/Measures | O28: ='Control Panel'!D17 -> 0.01 | P28: ='Control Panel'!E17 -> 0.01 | Q28: ='Control Panel'!F17 -> 0.01 | R28: ='Control Panel'!G17 -> 0.01 | S28: ='Control Panel'!H17 -> 0.01 | T28: << Scenario | U28: For simulations: link to Control Panel
B29: Net lending (=overall balance) | E29: =E7-E15 -> -57.43551511 | F29: -1.778551305 | G29: -76.83809898 | H29: -84.02979536 | I29: =I7-I15 -> -65.8174501 | J29: =J7-J15 -> -112.4520138 | K29: =K7-K15 -> -248.5066505 | L29: -113.3502074 | M29: -145.7553602 | N29: -158.2916361 | O29: -145.5850797 | P29: =P7-P15 -> -133.5622527 | Q29: -130.6643311 | R29: -146.9128501 | S29: -162.1210891
B31: Government Budget, in percent of GDP
B32: Total revenue | E32: =100*E7/E79 -> 14.12634946 | F32: 16.60189561 | G32: 13.77035062 | H32: 13.90730998 | I32: =100*I7/I79 -> 14.22786904 | J32: 14.34010891 | K32: 14.03700117 | L32: 15.61786348 | M32: 15.18675648 | N32: 15.85823353 | O32: =100*O7/O79 -> 15.6312675 | P32: 15.63063205 | Q32: 15.63041415 | R32: 15.63029173 | S32: 15.63022354
B33: Tax revenue | E33: =100*E9/E79 -> 13.22802913 | F33: 12.78736871 | G33: 12.81203445 | H33: 12.97347183 | I33: =100*I9/I79 -> 13.07120416 | J33: 13.26936446 | K33: 12.27596522 | L33: 14.42851367 | M33: 13.79453945 | N33: 14.39323437 | O33: =O34+O35 -> 14.20542916 | P33: =P34+P35 -> 14.20542916 | Q33: 14.20542916 | R33: 14.20542916 | S33: 14.20542916 | U33: Choose Tax Model 1 or 2 below
B34: Model 1: unitary tax elasticity | E34: =100*'Source Data'!D63/'Source Data'!D22 -> 13.38819681 | F34: =100*'Source Data'!E63/'Source Data'!E22 -> 13.22802913 | G34: =100*'Source Data'!F63/'Source Data'!F22 -> 12.78736871 | H34: =100*'Source Data'!G63/'Source Data'!G22 -> 12.81203445 | I34: =100*'Source Data'!H63/'Source Data'!H22 -> 12.97347183 | J34: =I33 -> 13.07120416 | K34: 13.26936446 | L34: 12.27596522 | M34: 14.42851367 | N34: 13.79453945 | O34: =AVERAGE(L33:N33) -> 14.20542916 | P34: =O33 -> 14.20542916 | Q34: =P33 -> 14.20542916 | R34: =Q33 -> 14.20542916 | S34: =R33 -> 14.20542916 | U34: For simulations link measures to Control Panel
B35: Add factor/measures | E35: =E33-E34 -> -0.1601676734 | F35: -0.4406604256 | G35: 0.0246657468 | H35: 0.1614373723 | I35: =I33-I34 -> 0.09773232872 | J35: =J33-J34 -> 0.1981603009 | K35: =K33-K34 -> -0.9933992349 | L35: 2.152548446 | M35: -0.6339742169 | N35: =N33-N34 -> 0.5986949176 | O35: ='Control Panel'!D10 -> 0 | P35: ='Control Panel'!E10 -> 0 | Q35: ='Control Panel'!F10 -> 0 | R35: ='Control Panel'!G10 -> 0 | S35: ='Control Panel'!H10 -> 0
B36: Model 2: cyclical tax ratio | E36: =$O$122*(1+$O$123*E103) -> 14.5 | F36: 14.71243695 | G36: 14.99272908 | H36: 14.89748273 | I36: 15.09203956 | J36: 15.1863067 | K36: 13.8333461 | L36: 14.76995342 | M36: 14.82702636 | N36: 14.53102747 | O36: 14.34491908 | P36: 14.44324563 | Q36: 14.47353026 | R36: 14.49756601 | S36: 14.51222813
B37: Add factor/measures | E37: =E33-E36 -> -1.271970866 | F37: -1.925068241 | G37: -2.180694626 | H37: -1.924010901 | I37: =I33-I36 -> -2.020835401 | J37: -1.916942239 | K37: -1.557380878 | L37: -0.3414397551 | M37: -1.032486912 | N37: -0.1377930967 | O37: ='Control Panel'!D10 -> 0 | P37: ='Control Panel'!E10 -> 0 | Q37: ='Control Panel'!F10 -> 0 | R37: ='Control Panel'!G10 -> 0 | S37: ='Control Panel'!H10 -> 0
B38: Nontax revenue | E38: =100*E11/E79 -> 0.7227244181 | F38: 0.8116275864 | G38: 0.9263681253 | H38: 0.8813420649 | I38: =100*I11/I79 -> 1.133717179 | J38: 1.047982784 | K38: 1.418660067 | L38: 1.120719038 | M38: 1.355394894 | N38: 1.363308842 | O38: =N38 -> 1.363308842 | P38: =O38 -> 1.363308842 | Q38: =P38 -> 1.363308842 | R38: 1.363308842 | S38: 1.363308842 | U38: Forecast assumption
B39: Grants | E39: =100*E13/E79 -> 0.175595904 | F39: 3.002899319 | G39: 0.03194804121 | H39: 0.0524960833 | I39: =100*I13/I79 -> 0.02294770159 | J39: 0.02276166617 | K39: 0.3423758801 | L39: 0.0686307694 | M39: 0.03682213887 | N39: 0.1016903199 | O39: =100*O13/O79 -> 0.06252949426 | P39: 0.06189404511 | Q39: 0.06167614595 | R39: 0.06155372571 | S39: 0.06148553691
B40: Total expenditure | E40: =100*E15/E79 -> 16.9172375 | F40: 16.68115516 | G40: 16.90518599 | H40: 17.06411858 | I40: =100*I15/I79 -> 16.46268661 | J40: 17.86131576 | K40: 21.95208234 | L40: 18.6365913 | M40: 18.51268594 | N40: 19.2170384 | O40: =O41+O42+O45 -> 18.3986788 | P40: =P41+P42+P45 -> 17.93213597 | Q40: =Q41+Q42+Q45 -> 17.68517169 | R40: 17.74187215 | S40: 17.76186015
B41: Noninterest expenses | E41: =100*E17/E79 -> 11.64197799 | F41: 11.00872886 | G41: 11.33202256 | H41: 11.16247072 | I41: =100*I17/I79 -> 10.74578522 | J41: 11.53748576 | K41: 14.86975741 | L41: 12.13728185 | M41: 12.10224228 | N41: 12.23968297 | O41: 12.11608975 | P41: 12.13656821 | Q41: 12.23865606 | R41: 12.36062173 | S41: 12.49477413
B42: Interest | E42: =100*E21/E79 -> 3.24683553 | F42: 3.527107866 | G42: 3.911254459 | H42: 4.108041371 | I42: =100*I21/I79 -> 4.191455325 | J42: 4.81899374 | K42: 5.42117865 | L42: 4.965283359 | M42: 4.68667598 | N42: 4.81424424 | O42: 4.14132041 | P42: 3.650679966 | Q42: 3.283585925 | R42: 3.196765794 | S42: 3.058892738
B43: Domestic | E43: =100*E23/E79 -> 2.382049293 | F43: 2.49931375 | G43: 2.730656754 | H43: 2.868793147 | I43: =100*I23/I79 -> 2.908523896 | J43: 3.241416631 | K43: 3.643395573 | L43: 3.353022802 | M43: 3.173190024 | N43: 3.25775156 | O43: 2.277135491 | P43: 2.07870798 | Q43: 1.978365403 | R43: 1.959689986 | S43: 1.929887848
B44: External | E44: =100*E24/E79 -> 0.8647862364 | F44: 1.027794116 | G44: 1.180597705 | H44: 1.239248224 | I44: =100*I24/I79 -> 1.282931429 | J44: 1.577577109 | K44: 1.777783076 | L44: 1.612260557 | M44: 1.513485956 | N44: 1.556492681 | O44: 1.864184918 | P44: 1.571971986 | Q44: 1.305220523 | R44: 1.237075807 | S44: 1.129004889
B45: Acquisition of nonfinancial assets | E45: =100*E25/E79 -> 2.028423985 | F45: 2.145318429 | G45: 1.661908972 | H45: 1.793606498 | I45: =100*I25/I79 -> 1.525446068 | J45: 1.504836256 | K45: 1.661146281 | L45: 1.5340261 | M45: 1.723767684 | N45: 2.163111192 | O45: 2.141268642 | P45: 2.144887788 | Q45: 2.162929706 | R45: 2.18448462 | S45: 2.208193285
B46: Net lending (overall balance) | E46: =E32-E40 -> -2.790888045 | F46: -0.07925954198 | G46: -3.134835372 | H46: -3.156808609 | I46: =I32-I40 -> -2.234817576 | J46: -3.521206851 | K46: -7.915081171 | L46: -3.018727829 | M46: -3.32592946 | N46: -3.358804873 | O46: -2.767411299 | P46: -2.301503917 | Q46: =Q32-Q40 -> -2.054757542 | R46: -2.111580418 | S46: -2.131636607
B48: Government & Financing, [Units],current prices
B49: Net budget financing | E49: =-E29 -> 57.43551511 | F49: 1.778551305 | G49: 76.83809898 | H49: 84.02979536 | I49: 65.8174501 | J49: =-J29 -> 112.4520138 | K49: 248.5066505 | L49: 113.3502074 | M49: 145.7553602 | N49: 158.2916361 | O49: 145.5850797 | P49: 133.5622527 | Q49: =-Q29 -> 130.6643311 | R49: 146.9128501 | S49: 162.1210891
B50: Domestic | E50: =E49-E51 -> 15.30537678 | F50: 51.76090101 | G50: 39.82491585 | H50: 26.29750987 | I50: 6.536923555 | J50: =J49-J51 -> 54.02093241 | K50: 0.9866101437 | L50: 57.71501265 | M50: =M49-M51 -> 24.27651019 | N50: 43.73107567 | O50: 21.14867371 | P50: =P49-P51 -> 7.806344492 | Q50: -1.064045931 | R50: 11.38697859 | S50: 21.43108532
B51: External | E51: ='Source Data'!E72 -> 42.13013833 | F51: ='Source Data'!F72 -> -49.98234971 | G51: ='Source Data'!G72 -> 37.01318312 | H51: ='Source Data'!H72 -> 57.7322855 | I51: ='Source Data'!I72 -> 59.28052655 | J51: ='Source Data'!J72 -> 58.43108142 | K51: ='Source Data'!K72 -> 247.5200403 | L51: ='Source Data'!L72 -> 55.63519471 | M51: ='Source Data'!M72 -> 121.47885 | N51: ='Source Data'!N72 -> 114.5605604 | O51: =O66*O106 -> 124.4364059 | P51: =P66*P106 -> 125.7559082 | Q51: =Q66*Q106 -> 131.728377 | R51: =R66*R106 -> 135.5258715 | S51: =S66*S106 -> 140.6900038
B52: Other debt creating financing (net)
B53: Domestic | E53: =E58-'Source Data'!D75-E50 -> -6.417630829 | F53: =F58-'Source Data'!E75-F50 -> 24.10746984 | G53: =G58-'Source Data'!F75-G50 -> 37.23617098 | H53: =H58-'Source Data'!G75-H50 -> 75.827826 | I53: =I58-'Source Data'!H75-I50 -> 68.63801455 | J53: =J58-I58-J50 -> 54.1079855 | K53: 132.2308019 | L53: =L58-K58-L50 -> -14.43366011 | M53: =M58-L58-M50 -> 90.45457455 | N53: =N58-M58-N50 -> 46.06325087 | O53: =N53*(1+'GDP&Prices'!O57+'GDP&Prices'!O107) -> 50.20894345 | P53: =O53*(1+'GDP&Prices'!P57+'GDP&Prices'!P107) -> 54.72774836 | Q53: =P53*(1+'GDP&Prices'!Q57+'GDP&Prices'!Q107) -> 59.65324571 | R53: =Q53*(1+'GDP&Prices'!R57+'GDP&Prices'!R107) -> 65.02203783 | S53: =R53*(1+'GDP&Prices'!S57+'GDP&Prices'!S107) -> 70.87402123 | U53: Forecast assumption
B54: External (including ER revaluation) | E54: =E63-'Source Data'!D74*'Source Data'!D41-E51 -> -19365.61028 | F54: =F63-E63-F51 -> 57.11927499 | G54: 20.50069269 | H54: 4.61907149 | I54: 60.06691354 | J54: =J63-I63-J51 -> 48.18567608 | K54: 139.9841271 | L54: 55.99284851 | M54: -13.33923813 | N54: 51.36807534 | O54: 120.0177064 | P54: 4.491707773 | Q54: 141.5501127 | R54: 10.50376234 | S54: 164.6659401
B55: Public debt | X55: This Excel Macro
B56: Consolidated public debt | E56: =E58+E63 -> 919.7631114 | F56: 1002.768408 | G56: 1137.34337 | H56: 1301.820063 | I56: =I58+I63 -> 1496.342441 | J56: 1711.088117 | K56: 2231.809696 | L56: 2386.719092 | M56: 2609.589788 | N56: 2865.312751 | O56: 3181.12448 | P56: 3373.906189 | Q56: 3705.773879 | R56: 3928.212529 | S56: 4325.873579 | X56: performs Goal Seeks
B57: % GDP | E57: =E56/'Deficits&Financing'!E20 -> 0.4469283278 | F57: =F56/'Deficits&Financing'!F20 -> 0.4468747372 | G57: =G56/'Deficits&Financing'!G20 -> 0.4640125503 | H57: =H56/'Deficits&Financing'!H20 -> 0.4890642379 | I57: =I56/'Deficits&Financing'!I20 -> 0.5080799061 | J57: =J56/'Deficits&Financing'!J20 -> 0.5357925566 | K57: =K56/'Deficits&Financing'!K20 -> 0.7108443525 | L57: =L56/'Deficits&Financing'!L20 -> 0.6356278925 | M57: =M56/'Deficits&Financing'!M20 -> 0.595471175 | N57: =N56/'Deficits&Financing'!N20 -> 0.607993364 | O57: =O56/'Deficits&Financing'!O20 -> 0.6046965699 | P57: =P56/'Deficits&Financing'!P20 -> 0.5813812025 | Q57: =Q56/'Deficits&Financing'!Q20 -> 0.5827502245 | R57: =R56/'Deficits&Financing'!R20 -> 0.5646025279 | S57: =S56/'Deficits&Financing'!S20 -> 0.5687841433 | X57: automatically during
B58: Domestic debt | E58: ='Source Data'!E75 -> 391.5054683 | F58: ='Source Data'!F75 -> 467.3738391 | G58: ='Source Data'!G75 -> 544.434926 | H58: ='Source Data'!H75 -> 646.5602618 | I58: ='Source Data'!I75 -> 721.7351999 | J58: ='Source Data'!J75 -> 829.8641178 | K58: ='Source Data'!K75 -> 963.0815299 | L58: ='Source Data'!L75 -> 1006.362882 | M58: ='Source Data'!M75 -> 1121.093967 | N58: ='Source Data'!N75 -> 1210.888294 | O58: =N58+O50+O53 -> 1282.245911 | P58: =O58+P50+P53 -> 1344.780004 | Q58: =P58+Q50+Q53 -> 1403.369204 | R58: 1479.77822 | S58: 1572.083326 | X58: the projection years.
B59: % GDP | E59: =E58/'Deficits&Financing'!E20 -> 0.1902390758 | F59: =F58/'Deficits&Financing'!F20 -> 0.208280955 | G59: =G58/'Deficits&Financing'!G20 -> 0.2221181792 | H59: =H58/'Deficits&Financing'!H20 -> 0.2428980092 | I59: =I58/'Deficits&Financing'!I20 -> 0.2450636582 | J59: =J58/'Deficits&Financing'!J20 -> 0.2598551255 | K59: =K58/'Deficits&Financing'!K20 -> 0.3067470617 | L59: =L58/'Deficits&Financing'!L20 -> 0.2680132405 | M59: =M58/'Deficits&Financing'!M20 -> 0.2558176556 | N59: =N58/'Deficits&Financing'!N20 -> 0.2569395075 | O59: =O58/'Deficits&Financing'!O20 -> 0.2437407618 | P59: =P58/'Deficits&Financing'!P20 -> 0.23172838 | Q59: =Q58/'Deficits&Financing'!Q20 -> 0.220686352 | R59: =R58/'Deficits&Financing'!R20 -> 0.2126887274 | S59: =S58/'Deficits&Financing'!S20 -> 0.2067041608
B60: Change in domestic debt | E60: =+'Source Data'!E75/'Source Data'!D75-1 -> 0.02322878798 | F60: =F58-E58 -> 75.86837085 | G60: 77.06108683 | H60: 102.1253359 | I60: 75.17493811 | J60: =J58-I58 -> 108.1289179 | K60: 133.217412 | L60: 43.28135254 | M60: 114.7310847 | N60: 89.79432654 | O60: 71.35761716 | P60: 62.53409285 | Q60: =Q58-P58 -> 58.58919978 | R60: 76.40901642 | S60: 92.30510656 | T60: Goal seek:
B61: Estimated change in domestic debt | E61: =+'Source Data'!E75/'Source Data'!D75-1 -> 0.02322878798 | F61: =F58-E58 -> 75.86837085 | G61: 77.06108683 | H61: 102.1253359 | I61: 75.17493811 | J61: =J58-I58 -> 108.1289179 | K61: =K58-J58 -> 133.217412 | L61: =L58-K58 -> 43.28135254 | M61: =M58-L58 -> 114.7310847 | N61: =N58-M58 -> 89.79432654 | O61: 71.35761716 | P61: 62.53409285 | Q61: 58.58919978 | R61: 76.40901642 | S61: 92.30510656 | T61: Change this row | U61: Goal seek to calculate domestic interest payments.
B62: Difference | E62: =E60-E61 -> 0 | F62: 0 | G62: 0 | H62: 0 | I62: 0 | J62: =J60-J61 -> 0 | K62: =K60-K61 -> 0 | L62: 0 | M62: 0 | N62: =N60-N61 -> 0 | O62: =O60-O61 -> 0 | P62: -3.126388037e-13 | Q62: 1.492139745e-13 | R62: 0 | S62: -7.247535905e-13 | T62: to make this = zero | U62: Adjust estimates change in domestic debt (orange)
B63: External (Forex) debt | E63: ='Source Data'!E74 -> 528.2576431 | F63: ='Source Data'!F74 -> 535.3945684 | G63: ='Source Data'!G74 -> 592.9084443 | H63: ='Source Data'!H74 -> 655.2598012 | I63: ='Source Data'!I74 -> 774.6072413 | J63: ='Source Data'!J74 -> 881.2239988 | K63: ='Source Data'!K74 -> 1268.728166 | L63: ='Source Data'!L74 -> 1380.356209 | M63: ='Source Data'!M74 -> 1488.495821 | N63: ='Source Data'!N74 -> 1654.424457 | O63: =(N63/N110+O66)*O110 -> 1898.878569 | P63: =(O63/O110+P66)*P110 -> 2029.126185 | Q63: 2302.404675 | R63: 2448.434309 | S63: 2753.790253 | U63: to eliminate difference with forecast change.
B64: % GDP | E64: =E63/'Deficits&Financing'!E20 -> 0.256689252 | F64: =F63/'Deficits&Financing'!F20 -> 0.2385937822 | G64: =G63/'Deficits&Financing'!G20 -> 0.2418943711 | H64: =H63/'Deficits&Financing'!H20 -> 0.2461662286 | I64: =I63/'Deficits&Financing'!I20 -> 0.2630162479 | J64: =J63/'Deficits&Financing'!J20 -> 0.2759374311 | K64: =K63/'Deficits&Financing'!K20 -> 0.4040972908 | L64: =L63/'Deficits&Financing'!L20 -> 0.367614652 | M64: =M63/'Deficits&Financing'!M20 -> 0.3396535193 | N64: =N63/'Deficits&Financing'!N20 -> 0.3510538565 | O64: =O63/'Deficits&Financing'!O20 -> 0.3609558081 | P64: =P63/'Deficits&Financing'!P20 -> 0.3496528224 | Q64: =Q63/'Deficits&Financing'!Q20 -> 0.3620638726 | R64: =R63/'Deficits&Financing'!R20 -> 0.3519138005 | S64: =S63/'Deficits&Financing'!S20 -> 0.3620799825
B65: Memo:
B66: Net external financing in US$ | E66: =E51/E106 -> 0.9883771878 | F66: -1.133660854 | G66: 0.8206917397 | H66: 1.240619405 | I66: 1.222839279 | J66: 1.163548429 | K66: 4.472781671 | L66: 0.994385473 | M66: 2.253782003 | N66: 2.050851421 | O66: =AVERAGE(M66:N66) -> 2.152316712 | P66: =AVERAGE(N66:O66) -> 2.101584067 | Q66: 2.126950389 | R66: 2.114267228 | S66: 2.120608809 | U66: Forecast assumption
B68: Fiscal Analysis (Cyclical Adjustment)
B69: Primary balance | E69: =E32-E41-E45 -> 0.4559474841 | F69: =F32-F41-F45 -> 3.447848324 | G69: 0.7764190876 | H69: 0.9512327614 | I69: =I32-I41-I45 -> 1.95663775 | J69: 1.297786889 | K69: -2.493902521 | L69: 1.94655553 | M69: 1.36074652 | N69: 1.455439367 | O69: 1.373909111 | P69: 1.349176049 | Q69: =Q32-Q41-Q45 -> 1.228828383 | R69: 1.085185376 | S69: 0.9272561304
B70: Target | E70: 0 | F70: 0 | G70: 0 | H70: 0 | I70: 0 | J70: 0 | K70: 0 | L70: 0 | M70: 0 | N70: 0 | O70: 0 | P70: 0 | Q70: 0 | R70: 0 | S70: 0
B71: Cyclical component of primary balance | E71: =(E33/100)*(E74-1)*E76-(E41/100)*(E75-1)*E76 -> 0 | F71: 0.001612869498 | G71: 0.003850770389 | H71: 0.003059923663 | I71: =(I33/100)*(I74-1)*I76-(I41/100)*(I75-1)*I76 -> 0.004387537876 | J71: 0.005460864642 | K71: -0.006836539153 | L71: 0.002259655712 | M71: 0.00272948433 | N71: 0.0002619078212 | O71: -0.001295844359 | P71: -0.0004750367483 | Q71: =(Q33/100)*(Q74-1)*Q76-(Q41/100)*(Q75-1)*Q76 -> -0.0002234165753 | R71: -2.074873771e-05 | S71: 0.0001053708797
B72: Cyclically adjusted primary balance | E72: =E46/100-E71+E42/100 -> 0.004559474841 | F72: 0.03286561374 | G72: 0.003913420488 | H72: 0.006452403951 | I72: =I46/100-I71+I42/100 -> 0.01517883962 | J72: 0.00751700425 | K72: -0.01810248606 | L72: 0.01720589959 | M72: 0.01087798087 | N72: 0.01429248585 | O72: 0.01503493547 | P72: 0.01396679724 | Q72: =Q46/100-Q71+Q42/100 -> 0.01251170041 | R72: 0.01087260249 | S72: 0.009167190424
B73: Assumptions:
B74: Tax elasticity | E74: 1 | F74: 1 | G74: 1 | H74: 1 | I74: 1 | J74: 1 | K74: 1 | L74: 1 | M74: 1 | N74: 1 | O74: 1 | P74: 1 | Q74: 1 | R74: 1 | S74: 1 | U74: Forecast assumption
B75: Expenditure elasticity | E75: 0 | F75: 0 | G75: 0 | H75: 0 | I75: 0 | J75: 0 | K75: 0 | L75: 0 | M75: 0 | N75: 0 | O75: 0 | P75: 0 | Q75: 0 | R75: 0 | S75: 0 | U75: Forecast assumption
B76: Output gap | E76: ='GDP&Prices'!E58 -> 0 | F76: ='GDP&Prices'!F58 -> 0.01465082408 | G76: ='GDP&Prices'!G58 -> 0.03398131594 | H76: ='GDP&Prices'!H58 -> 0.02741260193 | I76: ='GDP&Prices'!I58 -> 0.04083031428 | J76: ='GDP&Prices'!J58 -> 0.04733149626 | K76: ='GDP&Prices'!K58 -> -0.04597613105 | L76: ='GDP&Prices'!L58 -> 0.01861747746 | M76: ='GDP&Prices'!M58 -> 0.02255354229 | N76: ='GDP&Prices'!N58 -> 0.002139825205 | O76: ='GDP&Prices'!O58 -> -0.01069523573 | P76: ='GDP&Prices'!P58 -> -0.003914094495 | Q76: ='GDP&Prices'!Q58 -> -0.001825499255 | R76: ='GDP&Prices'!R58 -> -0.0001678616024 | S76: ='GDP&Prices'!S58 -> 0.0008433196044
B77: Interest rate on domestic debt | E77: .. | F77: .. | G77: .. | H77: .. | I77: .. | J77: .. | K77: .. | L77: =2*L23/(K58+L58) -> 0.1278560066 | M77: =2*M23/(L58+M58) -> 0.1307304682 | N77: =2*N23/(M58+N58) -> 0.1316727506 | O77: =O89*(O99/N99) -> 0.09609844704 | P77: =P89*(P99/O99) -> 0.09183984438 | Q77: 0.09155723358 | R77: 0.09458073348 | S77: 0.09618859538 | U77: Forecast assumption, could be based on inflation path
B78: Interest rate on external debt | E78: .. | F78: .. | G78: .. | H78: .. | I78: .. | J78: .. | K78: .. | L78: =2*L24/(K63+L63) -> 0.04570542949 | M78: =2*M24/(L63+M63) -> 0.04623935242 | N78: =2*N24/(M63+N63) -> 0.0466785016 | O78: =O94 -> 0.05519883333 | P78: =P94 -> 0.04644883333 | Q78: 0.03832383333 | R78: 0.03623332221 | S78: 0.03301133333 | U78: Forecast assumption, could be projected based on foreign interest rate
B79: Nominal GDP | E79: ='Deficits&Financing'!E20 -> 2057.965571 | F79: ='Deficits&Financing'!F20 -> 2243.958595 | G79: ='Deficits&Financing'!G20 -> 2451.104759 | H79: ='Deficits&Financing'!H20 -> 2661.859041 | I79: ='Deficits&Financing'!I20 -> 2945.092737 | J79: ='Deficits&Financing'!J20 -> 3193.564553 | K79: ='Deficits&Financing'!K20 -> 3139.660164 | L79: ='Deficits&Financing'!L20 -> 3754.899871 | M79: ='Deficits&Financing'!M20 -> 4382.394813 | N79: ='Deficits&Financing'!N20 -> 4712.736882 | O79: ='Deficits&Financing'!O20 -> 5260.695428 | P79: ='Deficits&Financing'!P20 -> 5803.259849 | Q79: ='Deficits&Financing'!Q20 -> 6359.111885 | R79: ='Deficits&Financing'!R20 -> 6957.48307 | S79: ='Deficits&Financing'!S20 -> 7605.474994
B80: *Balance when economy is at potential. | E80: ='Deficits&Financing'!E21 -> 0.1222172774 | F80: ='Deficits&Financing'!F21 -> 0.09037713098 | G80: ='Deficits&Financing'!G21 -> 0.09231282788 | H80: ='Deficits&Financing'!H21 -> 0.08598338404 | I80: ='Deficits&Financing'!I21 -> 0.1064044684 | J80: ='Deficits&Financing'!J21 -> 0.08436807882 | K80: ='Deficits&Financing'!K21 -> -0.01687906676 | L80: ='Deficits&Financing'!L21 -> 0.1959574208 | M80: ='Deficits&Financing'!M21 -> 0.1671136283 | N80: ='Deficits&Financing'!N21 -> 0.07537934925 | O80: ='Deficits&Financing'!O21 -> 0.1162718308 | P80: ='Deficits&Financing'!P21 -> 0.1031354939 | Q80: ='Deficits&Financing'!Q21 -> 0.0957827239 | R80: ='Deficits&Financing'!R21 -> 0.09409665937 | S80: ='Deficits&Financing'!S21 -> 0.09313596857
B82: Monetary Policy Rule & Exchange Rate, in percent
B83: Interest Rates
B84: Policy rate | E84: ='Source Data'!E36/100 -> 0.0625 | F84: ='Source Data'!F36/100 -> 0.0525 | G84: ='Source Data'!G36/100 -> 0.055 | H84: ='Source Data'!H36/100 -> 0.055 | I84: ='Source Data'!I36/100 -> 0.055 | J84: ='Source Data'!J36/100 -> 0.0475 | K84: ='Source Data'!K36/100 -> 0.03 | L84: ='Source Data'!L36/100 -> 0.0325 | M84: ='Source Data'!M36/100 -> 0.0775 | N84: ='Source Data'!N36/100 -> 0.0675 | O84: =O85+O86 -> 0.045 | P84: =P85+P86 -> 0.045 | Q84: 0.04 | R84: 0.04 | S84: 0.04
N85: Baseline | O85: ='Control Panel'!D23 -> 0.05 | P85: ='Control Panel'!E23 -> 0.05 | Q85: ='Control Panel'!F23 -> 0.045 | R85: ='Control Panel'!G23 -> 0.043 | S85: ='Control Panel'!H23 -> 0.042 | T85: << Baseline
N86: Additional rate change | O86: ='Control Panel'!D25 -> -0.005 | P86: ='Control Panel'!E25 -> -0.005 | Q86: ='Control Panel'!F25 -> -0.005 | R86: ='Control Panel'!G25 -> -0.003 | S86: ='Control Panel'!H25 -> -0.002 | T86: << Scenario | U86: For simulations: link to Control Panel
B87: Representative market rate, average | E87: ='Source Data'!E37/100 -> 0.06452691667 | F87: ='Source Data'!F37/100 -> 0.05900958333 | G87: ='Source Data'!G37/100 -> 0.06051666667 | H87: ='Source Data'!H37/100 -> 0.063 | I87: ='Source Data'!I37/100 -> 0.05696733333 | J87: ='Source Data'!J37/100 -> 0.06118725274 | K87: ='Source Data'!K37/100 -> 0.05372447483 | L87: ='Source Data'!L37/100 -> 0.04240731108 | M87: ='Source Data'!M37/100 -> 0.07987738703 | N87: ='Source Data'!N37/100 -> 0.1009643842 | O87: =O84+O88 -> 0.06292088562 | P87: =P84+P88 -> 0.06292088562 | Q87: =Q84+Q88 -> 0.05792088562 | R87: 0.05792088562 | S87: 0.05792088562
B88: Market rate/Policy rate differential | E88: =E87-E84 -> 0.002026916667 | F88: 0.006509583333 | G88: 0.005516666667 | H88: 0.008 | I88: 0.001967333333 | J88: 0.01368725274 | K88: 0.02372447483 | L88: =L87-L84 -> 0.009907311078 | M88: =M87-M84 -> 0.002377387032 | N88: =N87-N84 -> 0.0334643842 | O88: =AVERAGE(M88:N88) -> 0.01792088562 | P88: =O88 -> 0.01792088562 | Q88: =P88 -> 0.01792088562 | R88: 0.01792088562 | S88: 0.01792088562 | U88: Forecast assumption
B89: Average lending rate (domestic currency) | E89: ='Source Data'!E38/100 -> 0.139025 | F89: ='Source Data'!F38/100 -> 0.1487666667 | G89: ='Source Data'!G38/100 -> 0.1508416667 | H89: ='Source Data'!H38/100 -> 0.1391 | I89: ='Source Data'!I38/100 -> 0.125337 | J89: ='Source Data'!J38/100 -> 0.1248676667 | K89: ='Source Data'!K38/100 -> 0.1097964167 | L89: ='Source Data'!L38/100 -> 0.09608308333 | M89: ='Source Data'!M38/100 -> 0.1185005 | N89: ='Source Data'!N38/100 -> 0.1393454167 | O89: =O87+O90 -> 0.1014229583 | P89: =P87+P90 -> 0.1014229583 | Q89: 0.09642295833 | R89: 0.09642295833 | S89: 0.09642295833
B90: Differential with market rate | E90: =E89-E87 -> 0.07449808333 | F90: 0.08975708333 | G90: 0.090325 | H90: 0.0761 | I90: 0.06836966667 | J90: 0.06368041392 | K90: =K89-K87 -> 0.05607194183 | L90: 0.05367577226 | M90: 0.03862311297 | N90: =N89-N87 -> 0.03838103246 | O90: =AVERAGE(M90:N90) -> 0.03850207272 | P90: =O90 -> 0.03850207272 | Q90: =P90 -> 0.03850207272 | R90: 0.03850207272 | S90: 0.03850207272 | U90: Forecast assumption
B91: Average lending rate (foreign currency) | E91: ='Source Data'!E39/100 -> 0.06519166667 | F91: ='Source Data'!F39/100 -> 0.06364166667 | G91: ='Source Data'!G39/100 -> 0.06015833333 | H91: ='Source Data'!H39/100 -> 0.05898333333 | I91: ='Source Data'!I39/100 -> 0.05773625 | J91: ='Source Data'!J39/100 -> 0.05713183333 | K91: ='Source Data'!K39/100 -> 0.04511066667 | L91: ='Source Data'!L39/100 -> 0.0349315 | M91: ='Source Data'!M39/100 -> 0.04678741667 | N91: ='Source Data'!N39/100 -> 0.07800983333 | O91: =O87+O92 -> 0.034898625 | P91: =P87+P92 -> 0.034898625 | Q91: 0.029898625 | R91: 0.029898625 | S91: 0.029898625
B92: Differential with market rate | E92: =E91-E87 -> 0.00066475 | F92: 0.004632083333 | G92: -0.0003583333333 | H92: -0.004016666667 | I92: =I91-I87 -> 0.0007689166667 | J92: =J91-J87 -> -0.00405541941 | K92: =K91-K87 -> -0.008613808168 | L92: -0.007475811078 | M92: -0.03308997037 | N92: =N91-N87 -> -0.02295455087 | O92: =AVERAGE(M92:N92) -> -0.02802226062 | P92: =O92 -> -0.02802226062 | Q92: =P92 -> -0.02802226062 | R92: -0.02802226062 | S92: -0.02802226062 | U92: Forecast assumption
B93: Memo:
B94: Foreign interest rate | E94: ='Source Data'!E88/100 -> 0.00329375 | F94: ='Source Data'!F88/100 -> 0.004843166667 | G94: ='Source Data'!G88/100 -> 0.01056441667 | H94: ='Source Data'!H88/100 -> 0.01475958333 | I94: ='Source Data'!I88/100 -> 0.02489941667 | J94: ='Source Data'!J88/100 -> 0.02320416667 | K94: ='Source Data'!K88/100 -> 0.006907916667 | L94: ='Source Data'!L88/100 -> 0.00197725 | M94: ='Source Data'!M88/100 -> 0.02854616667 | N94: ='Source Data'!N88/100 -> 0.05581433333 | O94: ='Source Data'!O88/100 -> 0.05519883333 | P94: ='Source Data'!P88/100 -> 0.04644883333 | Q94: ='Source Data'!Q88/100 -> 0.03832383333 | R94: ='Source Data'!R88/100 -> 0.03623332221 | S94: ='Source Data'!S88/100 -> 0.03301133333 | U94: Forecast assumption from Source Data
B95: Taylor Rule
B96: Taylor Rule | E96: =E101+E104+$O$125*(E101-E102)+$O$126*E103 -> 0.05329002062 | F96: 0.04347549769 | G96: 0.0588547786 | H96: 0.06781104452 | I96: 0.07661374895 | J96: 0.06724527641 | K96: 0.0348025182 | L96: 0.09989177466 | M96: 0.09929188727 | N96: 0.0662463878 | O96: 0.05798215968 | P96: 0.0582235118 | Q96: 0.05774482884 | R96: 0.05802612554 | S96: 0.05846339262 | U96: Calibration of behavioral equation is at the bottom of the sheet.
B97: Difference: Market Rate minus Taylor Rule | E97: =E87-E96 -> 0.01123689605 | F97: 0.01553408565 | G97: 0.001661888066 | H97: -0.004811044523 | I97: =I87-I96 -> -0.01964641562 | J97: -0.006058023665 | K97: 0.01892195663 | L97: -0.05748446358 | M97: -0.01941450024 | N97: 0.0347179964 | O97: 0.004938725937 | P97: 0.004697373816 | Q97: =Q87-Q96 -> 0.0001760567789 | R97: -0.0001052399196 | S97: -0.0005425070051
B99: CPI inflation (average) | E99: ='GDP&Prices'!E63 -> 0.02938669416 | F99: ='GDP&Prices'!F63 -> 0.008200114198 | G99: ='GDP&Prices'!G63 -> 0.01581882751 | H99: ='GDP&Prices'!H63 -> 0.03213965808 | I99: ='GDP&Prices'!I63 -> 0.03493145575 | J99: ='GDP&Prices'!J63 -> 0.0181060377 | K99: ='GDP&Prices'!K63 -> 0.03705411163 | L99: ='GDP&Prices'!L63 -> 0.08077738123 | M99: ='GDP&Prices'!M63 -> 0.07735348817 | N99: ='GDP&Prices'!N63 -> 0.04690196693 | O99: ='GDP&Prices'!O63 -> 0.04443970339 | P99: ='GDP&Prices'!P63 -> 0.0402407454 | Q99: ='GDP&Prices'!Q63 -> 0.03821010462 | R99: ='GDP&Prices'!R63 -> 0.03748007512 | S99: ='GDP&Prices'!S63 -> 0.03738897709
B100: CPI inflation (end period) | E100: ='GDP&Prices'!E66 -> 0.0155033961 | F100: ='GDP&Prices'!F66 -> 0.02297587812 | G100: ='GDP&Prices'!G66 -> 0.01661429044 | H100: ='GDP&Prices'!H66 -> 0.04120191917 | I100: ='GDP&Prices'!I66 -> 0.01147182769 | J100: ='GDP&Prices'!J66 -> 0.03656278926 | K100: ='GDP&Prices'!K66 -> 0.05442574873 | L100: ='GDP&Prices'!L66 -> 0.08325785007 | M100: ='GDP&Prices'!M66 -> 0.07670723633 | N100: ='GDP&Prices'!N66 -> 0.03497185865
B101: Inflation expectations | E101: =(E99+E102)/2 -> 0.03719334708 | F101: 0.0241000571 | G101: 0.02790941376 | H101: 0.03606982904 | I101: =(I99+I102)/2 -> 0.03746572787 | J101: =(J99+J102)/2 -> 0.02905301885 | K101: 0.03852705582 | L101: 0.06038869062 | M101: 0.05867674408 | N101: =(N99+N102)/2 -> 0.04345098347 | O101: =(O99+O102)/2 -> 0.0422198517 | P101: =(P99+P102)/2 -> 0.0401203727 | Q101: 0.03910505231 | R101: 0.03874003756 | S101: 0.03869448855
B102: Inflation target (mid) | E102: ='Source Data'!E34/100 -> 0.045 | F102: ='Source Data'!F34/100 -> 0.04 | G102: ='Source Data'!G34/100 -> 0.04 | H102: ='Source Data'!H34/100 -> 0.04 | I102: ='Source Data'!I34/100 -> 0.04 | J102: ='Source Data'!J34/100 -> 0.04 | K102: ='Source Data'!K34/100 -> 0.04 | L102: ='Source Data'!L34/100 -> 0.04 | M102: ='Source Data'!M34/100 -> 0.04 | N102: ='Source Data'!N34/100 -> 0.04 | O102: ='GDP&Prices'!O107 -> 0.04 | P102: ='GDP&Prices'!P107 -> 0.04 | Q102: ='GDP&Prices'!Q107 -> 0.04 | R102: ='GDP&Prices'!R107 -> 0.04 | S102: ='GDP&Prices'!S107 -> 0.04 | U102: Policy variable/assumptions
B103: Output gap | E103: ='GDP&Prices'!E58 -> 0 | F103: ='GDP&Prices'!F58 -> 0.01465082408 | G103: ='GDP&Prices'!G58 -> 0.03398131594 | H103: ='GDP&Prices'!H58 -> 0.02741260193 | I103: ='GDP&Prices'!I58 -> 0.04083031428 | J103: ='GDP&Prices'!J58 -> 0.04733149626 | K103: ='GDP&Prices'!K58 -> -0.04597613105 | L103: ='GDP&Prices'!L58 -> 0.01861747746 | M103: ='GDP&Prices'!M58 -> 0.02255354229 | N103: ='GDP&Prices'!N58 -> 0.002139825205 | O103: ='GDP&Prices'!O58 -> -0.01069523573 | P103: ='GDP&Prices'!P58 -> -0.003914094495 | Q103: ='GDP&Prices'!Q58 -> -0.001825499255 | R103: ='GDP&Prices'!R58 -> -0.0001678616024 | S103: ='GDP&Prices'!S58 -> 0.0008433196044
B104: Equilibrium interest rate | E104: 0.02 | F104: 0.02 | G104: 0.02 | H104: 0.02 | I104: 0.02 | J104: 0.02 | K104: 0.02 | L104: 0.02 | M104: 0.02 | N104: 0.02 | O104: 0.02 | P104: 0.02 | Q104: 0.02 | R104: 0.02 | S104: 0.02 | U104: Forecast assumption
B105: Exchange Rates
B106: Exchange rate (LC/US$, average) | E106: ='Source Data'!E42 -> 42.62556729 | F106: ='Source Data'!F42 -> 44.08933195 | G106: ='Source Data'!G42 -> 45.09998253 | H106: ='Source Data'!H42 -> 46.53504956 | I106: ='Source Data'!I42 -> 48.47777427 | J106: ='Source Data'!J42 -> 50.21800553 | K106: ='Source Data'!K42 -> 55.33917337 | L106: ='Source Data'!L42 -> 55.94932369 | M106: ='Source Data'!M42 -> 53.9 | N106: ='Source Data'!N42 -> 55.86 | O106: =N106*(1+O108+O109) -> 57.8151 | P106: =O106*(1+P108+P109) -> 59.8386285 | Q106: =P106*(1+Q108+Q109) -> 61.9329805 | R106: =Q106*(1+R108+R109) -> 64.10063481 | S106: =R106*(1+S108+S109) -> 66.34415703
E107: ='Source Data'!E42/'Source Data'!D42-1 -> 0.04196247 | F107: =F106/E106-1 -> 0.03434006272 | G107: 0.02292279205 | H107: 0.0318196802 | I107: 0.04174755876 | J107: =J106/I106-1 -> 0.03589750734 | K107: =K106/J106-1 -> 0.1019787183 | L107: 0.01102564945 | M107: -0.03662821209 | N107: 0.03636363636 | O107: 0.035 | P107: 0.035 | Q107: =Q106/P106-1 -> 0.035 | R107: =R106/Q106-1 -> 0.035 | S107: =S106/R106-1 -> 0.035
N108: Baseline | O108: ='Control Panel'!D26 -> 0.035 | P108: ='Control Panel'!E26 -> 0.035 | Q108: ='Control Panel'!F26 -> 0.035 | R108: ='Control Panel'!G26 -> 0.035 | S108: ='Control Panel'!H26 -> 0.035 | T108: << Baseline | U108: ER Exogenous in basic MFT
N109: Additional rate change | O109: ='Control Panel'!D28 -> 0 | P109: ='Control Panel'!E28 -> 0 | Q109: ='Control Panel'!F28 -> 0 | R109: ='Control Panel'!G28 -> 0 | S109: ='Control Panel'!H28 -> 0 | T109: << Scenario | U109: For simulations: link to Control Panel
B110: Exchange rate (LC/US$, end pd.) | E110: ='Source Data'!E41 -> 43.394204 | F110: ='Source Data'!F41 -> 44.601515 | G110: ='Source Data'!G41 -> 45.728417 | H110: ='Source Data'!H41 -> 47.281227 | I110: ='Source Data'!I41 -> 49.23471 | J110: ='Source Data'!J41 -> 51.872527 | K110: ='Source Data'!K41 -> 57.05511 | L110: ='Source Data'!L41 -> 56.196336 | M110: ='Source Data'!M41 -> 54.88 | N110: ='Source Data'!N41 -> 55.86 | O110: =2*O106-N110+O112 -> 59.7702 | P110: =2*P106-O110+P112 -> 59.907057 | Q110: =2*Q106-P110+Q112 -> 63.95890399 | R110: 64.24236563 | S110: 68.44594843
E111: ='Source Data'!E41/'Source Data'!D41-1 -> 0.03623928624 | F111: =F110/E110-1 -> 0.02782194138 | G111: =G110/F110-1 -> 0.02526600274 | H111: =H110/G110-1 -> 0.03395722183 | I111: =I110/H110-1 -> 0.0413162501 | J111: =J110/I110-1 -> 0.05357636919 | K111: 0.0999099774 | L111: -0.01505165795 | M111: -0.02342387589 | N111: 0.01785714286 | O111: 0.07 | P111: 0.002289719626 | Q111: =Q110/P110-1 -> 0.06763555411 | R111: =R110/Q110-1 -> 0.004431933978 | S111: =S110/R110-1 -> 0.06543318814
B112: Adjuster for end period rate | O112: 0 | P112: 0 | Q112: 0 | R112: 0 | S112: 0
B113: NEER (+ = Appreciation) | E113: 100 | F113: =E113*(1+F114) -> 102.7980887 | G113: 102.1804185 | H113: 99.0200745 | I113: 95.74885539 | J113: =I113*(1+J114) -> 94.85319325 | K113: =J113*(1+K114) -> 88.7640619 | L113: 89.03750747 | M113: =L113*(1+M114) -> 96.6894789 | N113: =M113*(1+N114) -> 96.35510837 | O113: 93.09672307 | P113: 89.9485247 | Q113: =P113*(1+Q114) -> 86.90678715 | R113: =Q113*(1+R114) -> 83.96791029 | S113: =R113*(1+S114) -> 81.12841574
E114: ='Source Data'!E44/100 -> -0.02018941378 | F114: ='Source Data'!F44/100 -> 0.02798088741 | G114: ='Source Data'!G44/100 -> -0.006008576996 | H114: ='Source Data'!H44/100 -> -0.03092905723 | I114: ='Source Data'!I44/100 -> -0.03303591843 | J114: ='Source Data'!J44/100 -> -0.009354285648 | K114: ='Source Data'!K44/100 -> -0.06419532271 | L114: ='Source Data'!L44/100 -> 0.003080588726 | M114: ='Source Data'!M44/100 -> 0.0859409888 | N114: ='Source Data'!N44/100 -> -0.003458189355 | O114: =(N106/O106-1) -> -0.03381642512 | P114: -0.03381642512 | Q114: =(P106/Q106-1) -> -0.03381642512 | R114: =(Q106/R106-1) -> -0.03381642512 | S114: =(R106/S106-1) -> -0.03381642512
B115: REER (+ = Appreciation) | E115: 100 | F115: =E115*(1+F116) -> 103.8389304 | G115: =F115*(1+G116) -> 104.3913317 | H115: =G115*(1+H116) -> 100.6117232 | I115: =H115*(1+I116) -> 96.44507531 | J115: =I115*(1+J116) -> 96.15616065 | K115: =J115*(1+K116) -> 88.81669311 | L115: 86.26378099 | M115: 93.74479852 | N115: 95.01534269 | O115: =N115*(1+O114)*(1+O99)/(1+O117/100) -> 88.82746139 | P115: =O115*(1+P114)*(1+P99)/(1+P117/100) -> 86.0914765 | Q115: =P115*(1+Q114)*(1+Q99)/(1+Q117/100) -> 83.87926048 | R115: =Q115*(1+R114)*(1+R99)/(1+R117/100) -> 81.92432692 | S115: =R115*(1+S114)*(1+S99)/(1+S117/100) -> 80.12046424
B116: Appreciation rate | E116: ='Source Data'!E43/100 -> -0.02395600842 | F116: ='Source Data'!F43/100 -> 0.03838930379 | G116: ='Source Data'!G43/100 -> 0.005319790473 | H116: ='Source Data'!H43/100 -> -0.03620615289 | I116: ='Source Data'!I43/100 -> -0.04141314524 | J116: ='Source Data'!J43/100 -> -0.002995639255 | K116: ='Source Data'!K43/100 -> -0.07632862518 | L116: ='Source Data'!L43/100 -> -0.02874360697 | M116: ='Source Data'!M43/100 -> 0.08672257865 | N116: ='Source Data'!N43/100 -> 0.01355322306 | O116: =O115/N115-1 -> -0.06512507475 | P116: -0.03080111548 | Q116: =Q115/P115-1 -> -0.02569610956 | R116: =R115/Q115-1 -> -0.02330651888 | S116: =S115/R115-1 -> -0.02201864504
B117: Memo item: Partner's inflation | E117: ='GDP&Prices'!E101 -> 2.372469681 | F117: ='GDP&Prices'!F101 -> 1.561337287 | G117: ='GDP&Prices'!G101 -> 1.990749672 | H117: ='GDP&Prices'!H101 -> 2.704568196 | I117: ='GDP&Prices'!I101 -> 3.091593863 | J117: ='GDP&Prices'!J101 -> 3.310674432 | K117: ='GDP&Prices'!K101 -> 2.481533763 | L117: ='GDP&Prices'!L101 -> 4.387145914 | M117: ='GDP&Prices'!M101 -> 8.235045345 | N117: ='GDP&Prices'!N101 -> 6.57254212 | O117: ='GDP&Prices'!O101 -> 7.941764092 | P117: ='GDP&Prices'!P101 -> 3.700441486 | Q117: ='GDP&Prices'!Q101 -> 2.955716404 | R117: ='GDP&Prices'!R101 -> 2.631606253 | S117: ='GDP&Prices'!S101 -> 2.487453911
B119: Behavioral Equations
B120: Cyclical tax model
B121: Parameters:
B122: Full employment tax ratio | O122: 14.5
B123: Sensitivity of tax ratio to gap | O123: 1
B124: Taylor Rule Parameters
B125: Inflation gap | O125: 0.5
B126: Output gap | O126: 0.5
B129: The assumptions of parameters and exogenous variables are needed to generate projections for MFT. If needed, users could endogenize these variables by modifying the MFT model and structure. Some exogenous variables are policy variables since their values are determined based on policy stance or policy assumption pursued by the authorities.
B130: ="Country:"&" "&Country_Name&" - Assumptions of Policy and Exogenous Variables" -> Country: Macrofoundland - Assumptions of Policy and Exogenous Variables
O131: First Year of Projection
O132: =First_Year -> 2024 | P132: 2025 | Q132: 2026 | R132: 2027 | S132: 2028
B133: REAL SECTOR
B134: MFT Behavioral Equations
B135: Real Private Consumption Function: Coefficient on
B136: Disposable income | O136: ='GDP&Prices'!E123 -> 0.7
B137: Lagged consumption | O137: ='GDP&Prices'!E124 -> 0.3
B138: Real interest rate change | O138: ='GDP&Prices'!E125 -> -0.4
B139: Real Private Investment Function: Coefficient on
B140: GDP acceleration | O140: ='GDP&Prices'!E132 -> 1
B141: Potential GDP | O141: ='GDP&Prices'!E133 -> 1
B142: Real interest rate change | O142: ='GDP&Prices'!E134 -> -0.4
B143: Export Equation: Elasticity wrt:
B144: Partners' imports | O144: ='GDP&Prices'!E142 -> 0.7
B145: REER | O145: ='GDP&Prices'!E143 -> -0.5
B146: Import Equation: Elasticity wrt:
B147: Real GDP | O147: ='GDP&Prices'!E151 -> 0.95
B148: REER | O148: ='GDP&Prices'!E152 -> 0.5
B149: Inflation: Coefficient on
B150: Output gap | O150: ='GDP&Prices'!E161 -> 0.2
B151: Lagged inflation | O151: ='GDP&Prices'!E162 -> 0.5
B152: Inflation target | O152: ='GDP&Prices'!E163 -> 0.5
B153: Import prices or exchange rates | O153: ='GDP&Prices'!E164 -> 0.1
B154: Unemployment: Okun coefficient | O154: ='GDP&Prices'!E170 -> 0.4
B155: Potential GDP growth rate | O155: ='GDP&Prices'!O57 -> 0.05 | P155: ='GDP&Prices'!P57 -> 0.05 | Q155: ='GDP&Prices'!Q57 -> 0.05 | R155: ='GDP&Prices'!R57 -> 0.05 | S155: ='GDP&Prices'!S57 -> 0.05
B156: Structural unemployment rate | O156: ='GDP&Prices'!O60/100 -> 0.06 | P156: ='GDP&Prices'!P60/100 -> 0.06 | Q156: ='GDP&Prices'!Q60/100 -> 0.06 | R156: ='GDP&Prices'!R60/100 -> 0.06 | S156: ='GDP&Prices'!S60/100 -> 0.06
B157: EXTERNAL SECTOR
B158: Current account
B159: Primary income from abroad | O159: ='Deficits&Financing'!O60 -> -4015.6676 | P159: ='Deficits&Financing'!P60 -> -4236.529318 | Q159: ='Deficits&Financing'!Q60 -> -4469.53843 | R159: ='Deficits&Financing'!R60 -> -4715.363044 | S159: ='Deficits&Financing'!S60 -> -4974.708012
B160: Secondary income from abroad
B161: Government grants | O161: ='Deficits&Financing'!O62 -> 2135.101737 | P161: ='Deficits&Financing'!P62 -> 2252.532333 | Q161: ='Deficits&Financing'!Q62 -> 2376.421611 | R161: ='Deficits&Financing'!R62 -> 2507.1248 | S161: ='Deficits&Financing'!S62 -> 2645.016664
B162: o.w., Budget grants | O162: ='Deficits&Financing'!O63 -> 56.89666274 | P162: ='Deficits&Financing'!P63 -> 60.02597919 | Q162: ='Deficits&Financing'!Q63 -> 63.32740804 | R162: ='Deficits&Financing'!R63 -> 66.81041548 | S162: ='Deficits&Financing'!S63 -> 70.48498833
B163: Other | O163: ='Deficits&Financing'!O64 -> 4819.202579 | P163: ='Deficits&Financing'!P64 -> 5084.258721 | Q163: ='Deficits&Financing'!Q64 -> 5363.89295 | R163: ='Deficits&Financing'!R64 -> 5658.907063 | S163: ='Deficits&Financing'!S64 -> 5970.146951
B164: Net inflows (capital and financial account)
B165: Bank (net) | O165: ='Deficits&Financing'!O69 -> -25.91400573 | P165: ='Deficits&Financing'!P69 -> -27.33927604 | Q165: ='Deficits&Financing'!Q69 -> -28.84293622 | R165: ='Deficits&Financing'!R69 -> -30.42929771 | S165: ='Deficits&Financing'!S69 -> -32.10290909
B166: Nonbank private inflows, FDI (foreign direct investment) | O166: ='Deficits&Financing'!O71 -> 2429.910182 | P166: ='Deficits&Financing'!P71 -> 2563.555242 | Q166: ='Deficits&Financing'!Q71 -> 2704.55078 | R166: ='Deficits&Financing'!R71 -> 2853.301073 | S166: ='Deficits&Financing'!S71 -> 3010.232632
B167: Nonbank private inflows, Others | O167: ='Deficits&Financing'!O72 -> -1852.380732 | P167: ='Deficits&Financing'!P72 -> -1954.261672 | Q167: ='Deficits&Financing'!Q72 -> -2061.746064 | R167: ='Deficits&Financing'!R72 -> -2175.142098 | S167: ='Deficits&Financing'!S72 -> -2294.774913
B168: IMF (net) | O168: ='Deficits&Financing'!O73 -> 0 | P168: ='Deficits&Financing'!P73 -> 0 | Q168: ='Deficits&Financing'!Q73 -> 0 | R168: ='Deficits&Financing'!R73 -> 0 | S168: ='Deficits&Financing'!S73 -> 0
B169: Oil imports: share of total G&S | O169: ='GDP&Prices'!O104 -> 0.1464348522 | P169: ='GDP&Prices'!P104 -> 0.1464348522 | Q169: ='GDP&Prices'!Q104 -> 0.1464348522 | R169: ='GDP&Prices'!R104 -> 0.1464348522 | S169: ='GDP&Prices'!S104 -> 0.1464348522
B170: Oil exports: share of total G&S | O170: ='GDP&Prices'!O105 -> 0 | P170: ='GDP&Prices'!P105 -> 0 | Q170: ='GDP&Prices'!Q105 -> 0 | R170: ='GDP&Prices'!R105 -> 0 | S170: ='GDP&Prices'!S105 -> 0
B171: FISCAL SECTOR
B172: Tax revenue-to-GDP ratios
B173: Model 1: Unitary tax elasticity | O173: =O34 -> 14.20542916 | P173: =P34 -> 14.20542916 | Q173: 14.20542916 | R173: 14.20542916 | S173: 14.20542916 | U173: Policy Variable
B174: Model 2: Cyclical tax ratio, parameters: | U174: Policy Variable
B175: Full employment tax ratio | O175: =O122 -> 14.5
B176: Sensitivity of tax ratio to gap | O176: =O123 -> 1
B177: Nontax revenue (percent of GDP) | O177: =O38 -> 1.363308842 | P177: =P38 -> 1.363308842 | Q177: 1.363308842 | R177: 1.363308842 | S177: 1.363308842 | U177: Policy Variable
B178: Elasticity of tax revenue to the output gap | O178: =O74 -> 1 | P178: =P74 -> 1 | Q178: 1 | R178: 1 | S178: 1
B179: Elasticity of expenditures to the output gap | O179: =O75 -> 0 | P179: =P75 -> 0 | Q179: 0 | R179: 0 | S179: 0
B180: Total expenditure
B181: Noninterest expenses, percent change. | O181: =O18 -> 0.105 | P181: =P18 -> 0.105 | Q181: 0.105 | R181: 0.105 | S181: 0.105 | U181: Policy Variable
B182: Acquisition of nonfinancial assets, percent change | O182: =O26 -> 0.105 | P182: =P26 -> 0.105 | Q182: 0.105 | R182: 0.105 | S182: 0.105 | U182: Policy Variable
B183: Interest rate on domestic debt | O183: =O77 -> 0.09609844704 | P183: =P77 -> 0.09183984438 | Q183: 0.09155723358 | R183: 0.09458073348 | S183: 0.09618859538
B184: Interest rate on external debt | O184: =O78 -> 0.05519883333 | P184: =P78 -> 0.04644883333 | Q184: 0.03832383333 | R184: 0.03623332221 | S184: 0.03301133333
B185: Budget financing
B186: Budget financing: Other debt creating financing (net), domestic | O186: =O53 -> 50.20894345 | P186: =P53 -> 54.72774836 | Q186: 59.65324571 | R186: 65.02203783 | S186: 70.87402123 | U186: Policy Variable
B187: Net external financing in US$ | O187: =O66 -> 2.152316712 | P187: =P66 -> 2.101584067 | Q187: 2.126950389 | R187: 2.114267228 | S187: 2.120608809 | U187: Policy Variable
B188: MONETARY SECTOR
B189: Money Demand: Income Velocity Function
B190: Trend velocity | O190: ='Deficits&Financing'!E111 -> 0
B191: Interest sensitivity | O191: ='Deficits&Financing'!E112 -> 2
B192: Policy rate | O192: =O85 -> 0.05 | P192: =P85 -> 0.05 | Q192: =Q85 -> 0.045 | R192: =R85 -> 0.043 | S192: =S85 -> 0.042 | U192: Policy Variable
B193: Market rate / Policy rate differential | O193: =O88 -> 0.01792088562 | P193: =P88 -> 0.01792088562 | Q193: =Q88 -> 0.01792088562 | R193: =R88 -> 0.01792088562 | S193: =S88 -> 0.01792088562
B194: Market rate / avg. lending rate differential (Domestic currency) | O194: =O90 -> 0.03850207272 | P194: =P90 -> 0.03850207272 | Q194: =Q90 -> 0.03850207272 | R194: =R90 -> 0.03850207272 | S194: =S90 -> 0.03850207272
B195: Market rate / avg. lending rate differential (Foreign currency) | O195: =O92 -> -0.02802226062 | P195: =P92 -> -0.02802226062 | Q195: =Q92 -> -0.02802226062 | R195: =R92 -> -0.02802226062 | S195: =S92 -> -0.02802226062
B196: Inflation target (mid) | O196: =O102 -> 0.04 | P196: =P102 -> 0.04 | Q196: =Q102 -> 0.04 | R196: =R102 -> 0.04 | S196: =S102 -> 0.04 | U196: Policy Variable
B197: Taylor Rule:
B198: Coefficient on inflation gap | O198: =O125 -> 0.5
B199: Coefficient on output gap | O199: =O126 -> 0.5
B200: Equilibrium interest rate | O200: =O104 -> 0.02 | P200: =P104 -> 0.02 | Q200: =Q104 -> 0.02 | R200: =R104 -> 0.02 | S200: =S104 -> 0.02
B201: Share of FX lending (for calculation of weighted interest rate) | O201: ='GDP&Prices'!O88 -> 0.2027557843 | P201: ='GDP&Prices'!P88 -> 0.2027557843 | Q201: ='GDP&Prices'!Q88 -> 0.2027557843 | R201: ='GDP&Prices'!R88 -> 0.2027557843 | S201: ='GDP&Prices'!S88 -> 0.2027557843
B202: Monetary survey: Other items of NDA (net) | O202: ='Deficits&Financing'!O93 -> -821312.389 | P202: ='Deficits&Financing'!P93 -> -895230.504 | Q202: ='Deficits&Financing'!Q93 -> -975801.2493 | R202: ='Deficits&Financing'!R93 -> -1063623.362 | S202: ='Deficits&Financing'!S93 -> -1159349.464
B203: Exchange rate (LC/US$, average), % change (+ = depreciation) | O203: =O107 -> 0.035 | P203: =P107 -> 0.035 | Q203: =Q107 -> 0.035 | R203: =R107 -> 0.035 | S203: =S107 -> 0.035 | U203: Policy Variable
B204: GLOBAL INDICATORS (percent change)
B205: Partners' real GDP | O205: ='Source Data'!O83 -> 2.887929256 | P205: ='Source Data'!P83 -> 2.611768756 | Q205: ='Source Data'!Q83 -> 2.418702969 | R205: ='Source Data'!R83 -> 2.421329936 | S205: ='Source Data'!S83 -> 2.402726498
B206: Partners' nonoil imports | O206: ='Source Data'!O84 -> 1.10090829 | P206: ='Source Data'!P84 -> 2.927958095 | Q206: ='Source Data'!Q84 -> 3.05917469 | R206: ='Source Data'!R84 -> 3.097297011 | S206: ='Source Data'!S84 -> 2.988721971
B207: Partners' nonoil export deflators (US$) | O207: ='Source Data'!O85 -> 0.3357986106 | P207: ='Source Data'!P85 -> 1.762651317 | Q207: ='Source Data'!Q85 -> 2.207556085 | R207: ='Source Data'!R85 -> 1.875933626 | S207: ='Source Data'!S85 -> 1.897176301
B208: Partners' CPI (US$) | O208: ='Source Data'!O86 -> 7.941764092 | P208: ='Source Data'!P86 -> 3.700441486 | Q208: ='Source Data'!Q86 -> 2.955716404 | R208: ='Source Data'!R86 -> 2.631606253 | S208: ='Source Data'!S86 -> 2.487453911
B209: Average petroleum spot price (APSP) | O209: ='Source Data'!O87 -> -2.463597693 | P209: ='Source Data'!P87 -> -6.271333627 | Q209: ='Source Data'!Q87 -> -4.232280458 | R209: ='Source Data'!R87 -> -2.648121786 | S209: ='Source Data'!S87 -> -1.334910344
... 1 more rows

Sheet SEI
B1: ="Country:"&" "&Country_Name&" - Selected Economic Indicators" -> Country: Macrofoundland - Selected Economic Indicators
S3: Baseline results are copied and pasted here
M4: First Year of Projection | O4: Active Scenario | S4: Baseline Scenario
B5: Year/Variable | C5: =+D5-1 -> 2014 | D5: 2015 | E5: 2016 | F5: 2017 | G5: 2018 | H5: 2019 | I5: 2020 | J5: 2021 | K5: 2022 | L5: =+M5-1 -> 2023 | M5: =First_Year -> 2024 | N5: =M5+1 -> 2025 | O5: =N5+1 -> 2026 | P5: 2027 | Q5: =P5+1 -> 2028 | S5: =M5 -> 2024 | T5: =N5 -> 2025 | U5: =O5 -> 2026 | V5: 2027 | W5: 2028
B6: Real GDP growth and the business cycle (percent) | H6: (In percent change)
B7: Actual | C7: =100*'GDP&Prices'!E55 -> 7.441014323 | D7: =100*'GDP&Prices'!F55 -> 6.538336528 | E7: =100*'GDP&Prices'!G55 -> 7.000394221 | F7: =100*'GDP&Prices'!H55 -> 4.332952192 | G7: =100*'GDP&Prices'!I55 -> 6.371269725 | H7: =100*'GDP&Prices'!J33 -> 5.655845721 | I7: =100*'GDP&Prices'!K33 -> -6.176355 | J7: =100*'GDP&Prices'!L33 -> 11.04147507 | K7: =100*'GDP&Prices'!M33 -> 5.40573308 | L7: =100*'GDP&Prices'!N33 -> 2.903835638 | M7: =100*'GDP&Prices'!O33 -> 3.655190137 | N7: =100*'GDP&Prices'!P33 -> 5.719722924 | O7: =100*'GDP&Prices'!Q33 -> 5.220163644 | P7: =100*'GDP&Prices'!R33 -> 5.174370418 | Q7: =100*'GDP&Prices'!S33 -> 5.106193028 | S7: 3.17245167 | T7: 5.604869794 | U7: 5.080131307 | V7: 5.241346854 | W7: 5.110552723
B8: Potential | C8: =100*'GDP&Prices'!E57 -> 5 | D8: =100*'GDP&Prices'!F57 -> 5 | E8: =100*'GDP&Prices'!G57 -> 5 | F8: =100*'GDP&Prices'!H57 -> 5 | G8: =100*'GDP&Prices'!I57 -> 5 | H8: =100*'GDP&Prices'!J57 -> 5 | I8: =100*'GDP&Prices'!K57 -> 3 | J8: =100*'GDP&Prices'!L57 -> 4 | K8: =100*'GDP&Prices'!M57 -> 5 | L8: =100*'GDP&Prices'!N57 -> 5 | M8: =100*'GDP&Prices'!O57 -> 5 | N8: =100*'GDP&Prices'!P57 -> 5 | O8: =100*'GDP&Prices'!Q57 -> 5 | P8: =100*'GDP&Prices'!R57 -> 5 | Q8: =100*'GDP&Prices'!S57 -> 5 | S8: 5 | T8: 5 | U8: 5 | V8: 5 | W8: 5
B9: Output gap | C9: =100*'GDP&Prices'!E58 -> 0 | D9: =100*'GDP&Prices'!F58 -> 1.465082408 | E9: =100*'GDP&Prices'!G58 -> 3.398131594 | F9: =100*'GDP&Prices'!H58 -> 2.741260193 | G9: =100*'GDP&Prices'!I58 -> 4.083031428 | H9: =100*'GDP&Prices'!J58 -> 4.733149626 | I9: =100*'GDP&Prices'!K58 -> -4.597613105 | J9: =100*'GDP&Prices'!L58 -> 1.861747746 | K9: =100*'GDP&Prices'!M58 -> 2.255354229 | L9: =100*'GDP&Prices'!N58 -> 0.2139825205 | M9: =100*'GDP&Prices'!O58 -> -1.069523573 | N9: =100*'GDP&Prices'!P58 -> -0.3914094495 | O9: =100*'GDP&Prices'!Q58 -> -0.1825499255 | P9: =100*'GDP&Prices'!R58 -> -0.01678616024 | Q9: =100*'GDP&Prices'!S58 -> 0.08433196044 | S9: -1.5302606 | T9: -0.9630123475 | U9: -0.8874324023 | V9: -0.6596169244 | W9: -0.5550178811
B10: Unemployment rate | C10: ='GDP&Prices'!E59 -> 8.366893836 | D10: ='GDP&Prices'!F59 -> 7.181445753 | E10: ='GDP&Prices'!G59 -> 6.938469869 | F10: ='GDP&Prices'!H59 -> 5.618970148 | G10: ='GDP&Prices'!I59 -> 5.76879761 | H10: ='GDP&Prices'!J59 -> 6.290347298 | I10: ='GDP&Prices'!K59 -> 5.945543738 | J10: ='GDP&Prices'!L59 -> 7.236260852 | K10: ='GDP&Prices'!M59 -> 5.399060775 | L10: ='GDP&Prices'!N59 -> 6.076 | M10: ='GDP&Prices'!O59 -> 6.427809429 | N10: ='GDP&Prices'!P59 -> 6.15656378 | O10: ='GDP&Prices'!Q59 -> 6.07301997 | P10: ='GDP&Prices'!R59 -> 6.006714464 | Q10: ='GDP&Prices'!S59 -> 5.966267216 | S10: 6.61210424 | T10: 6.385204939 | U10: 6.354972961 | V10: 6.26384677 | W10: 6.222007152
B11: Real GDP by production, growth (percent) | H11: (In percent change)
B12: Agriculture | C12: =100*'GDP&Prices'!E40 -> 2.414916118 | D12: =100*'GDP&Prices'!F40 -> 2.346529064 | E12: =100*'GDP&Prices'!G40 -> 5.644338001 | F12: =100*'GDP&Prices'!H40 -> 5.819229813 | G12: =100*'GDP&Prices'!I40 -> 5.499131802 | H12: =100*'GDP&Prices'!J40 -> 4.088768495 | I12: =100*'GDP&Prices'!K40 -> 2.835598738 | J12: =100*'GDP&Prices'!L40 -> 2.638431525 | K12: =100*'GDP&Prices'!M40 -> 5.037335642 | L12: =100*'GDP&Prices'!N40 -> 2.408562441 | M12: =100*'GDP&Prices'!O40 -> 3.301559223 | N12: =100*'GDP&Prices'!P40 -> 5.512950573 | O12: =100*'GDP&Prices'!Q40 -> 3.434351876 | P12: =100*'GDP&Prices'!R40 -> 4.449227317 | Q12: =100*'GDP&Prices'!S40 -> 4.302959767 | S12: 2.865523083 | T12: 5.412281825 | U12: 3.316297938 | V12: 4.501970295 | W12: 4.298076678
B13: Manufacturing | C13: =100*'GDP&Prices'!E42 -> 9.053918537 | D13: =100*'GDP&Prices'!F42 -> 7.647975909 | E13: =100*'GDP&Prices'!G42 -> 6.498788526 | F13: =100*'GDP&Prices'!H42 -> 5.714916718 | G13: =100*'GDP&Prices'!I42 -> 7.644817554 | H13: =100*'GDP&Prices'!J42 -> 6.259387529 | I13: =100*'GDP&Prices'!K42 -> -5.053829179 | J13: =100*'GDP&Prices'!L42 -> 18.45386574 | K13: =100*'GDP&Prices'!M42 -> -0.9317023331 | L13: =100*'GDP&Prices'!N42 -> 2.408562441 | M13: =100*'GDP&Prices'!O42 -> 4.102765466 | N13: =100*'GDP&Prices'!P42 -> 6.450329465 | O13: =100*'GDP&Prices'!Q42 -> 5.53960827 | P13: =100*'GDP&Prices'!R42 -> 3.969125899 | Q13: =100*'GDP&Prices'!S42 -> 5.060499016 | S13: 3.560914208 | T13: 6.321683554 | U13: 5.384442834 | V13: 3.959061971 | W13: 5.025089454
B14: Services | C14: =100*'GDP&Prices'!E44 -> 6.52395037 | D14: =100*'GDP&Prices'!F44 -> 6.133900303 | E14: =100*'GDP&Prices'!G44 -> 6.301881491 | F14: =100*'GDP&Prices'!H44 -> 3.736971725 | G14: =100*'GDP&Prices'!I44 -> 5.710478303 | H14: =100*'GDP&Prices'!J44 -> 4.169872518 | I14: =100*'GDP&Prices'!K44 -> -7.861221757 | J14: =100*'GDP&Prices'!L44 -> 7.852143555 | K14: =100*'GDP&Prices'!M44 -> 8.079168272 | L14: =100*'GDP&Prices'!N44 -> 2.408562441 | M14: =100*'GDP&Prices'!O44 -> 2.843426122 | N14: =100*'GDP&Prices'!P44 -> 4.5275725 | O14: =100*'GDP&Prices'!Q44 -> 4.672254346 | P14: =100*'GDP&Prices'!R44 -> 5.089956381 | Q14: =100*'GDP&Prices'!S44 -> 4.400952103 | S14: 2.467895512 | T14: 4.438920666 | U14: 4.559684899 | V14: 5.191034378 | W14: 4.42848768
B15: Real GDP by expenditure, growth (percent) | H15: (In percent change)
B16: Consumption | C16: =100*'GDP&Prices'!E8 -> 5.19697335 | D16: =100*'GDP&Prices'!F8 -> 6.487634095 | E16: =100*'GDP&Prices'!G8 -> 5.584935961 | F16: =100*'GDP&Prices'!H8 -> 3.974850033 | G16: =100*'GDP&Prices'!I8 -> 5.383965827 | H16: =100*'GDP&Prices'!J8 -> 4.798471407 | I16: =100*'GDP&Prices'!K8 -> -2.525295733 | J16: =100*'GDP&Prices'!L8 -> 5.87924825 | K16: =100*'GDP&Prices'!M8 -> 4.984405487 | L16: =100*'GDP&Prices'!N8 -> 3.743718763 | M16: =100*'GDP&Prices'!O8 -> 4.863369994 | N16: =100*'GDP&Prices'!P8 -> 5.259063908 | O16: =100*'GDP&Prices'!Q8 -> 5.357277714 | P16: =100*'GDP&Prices'!R8 -> 5.245919968 | Q16: =100*'GDP&Prices'!S8 -> 5.198761677 | S16: 4.276969841 | T16: 4.930243088 | U16: 5.097692518 | V16: 5.214340262 | W16: 5.166551001
B17: Private | C17: =100*'GDP&Prices'!E10 -> 5.306867593 | D17: =100*'GDP&Prices'!F10 -> 6.436484556 | E17: =100*'GDP&Prices'!G10 -> 6.03562865 | F17: =100*'GDP&Prices'!H10 -> 4.350059701 | G17: =100*'GDP&Prices'!I10 -> 5.679536373 | H17: =100*'GDP&Prices'!J10 -> 4.62524589 | I17: =100*'GDP&Prices'!K10 -> -3.37464985 | J17: =100*'GDP&Prices'!L10 -> 6.598751409 | K17: =100*'GDP&Prices'!M10 -> 5.11328986 | L17: =100*'GDP&Prices'!N10 -> 3.278039246 | M17: =100*'GDP&Prices'!O10 -> 4.751408822 | N17: =100*'GDP&Prices'!P10 -> 5.142190481 | O17: =100*'GDP&Prices'!Q10 -> 5.225813961 | P17: =100*'GDP&Prices'!R10 -> 5.08992884 | Q17: =100*'GDP&Prices'!S10 -> 5.033586949 | S17: 4.198354765 | T17: 4.870380419 | U17: 5.025262325 | V17: 5.144344932 | W17: 5.088077263
B18: Public | C18: =100*'GDP&Prices'!E14 -> 4.314962884 | D18: =100*'GDP&Prices'!F14 -> 6.902063547 | E18: =100*'GDP&Prices'!G14 -> 1.949187481 | F18: =100*'GDP&Prices'!H14 -> 0.8267002632 | G18: =100*'GDP&Prices'!I14 -> 2.817357099 | H18: =100*'GDP&Prices'!J14 -> 6.344561654 | I18: =100*'GDP&Prices'!K14 -> 4.932886275 | J18: =100*'GDP&Prices'!L14 -> 0.06148091925 | K18: =100*'GDP&Prices'!M14 -> 3.874185358 | L18: =100*'GDP&Prices'!N14 -> 7.802970349 | M18: =100*'GDP&Prices'!O14 -> 5.798352591 | N18: =100*'GDP&Prices'!P14 -> 6.225410309 | O18: =100*'GDP&Prices'!Q14 -> 6.433177165 | P18: =100*'GDP&Prices'!R14 -> 6.508069552 | Q18: =100*'GDP&Prices'!S14 -> 6.517422529 | S18: 4.933480721 | T18: 5.426651288 | U18: 5.695147169 | V18: 5.788051163 | W18: 5.805840648
B19: Investment | C19: =100*'GDP&Prices'!E16 -> 9.349138822 | D19: =100*'GDP&Prices'!F16 -> 18.87757127 | E19: =100*'GDP&Prices'!G16 -> 12.3170975 | F19: =100*'GDP&Prices'!H16 -> -0.2621933593 | G19: =100*'GDP&Prices'!I16 -> 13.33317805 | H19: =100*'GDP&Prices'!J16 -> 8.126676164 | I19: =100*'GDP&Prices'!K16 -> -12.06516271 | J19: =100*'GDP&Prices'!L16 -> 22.07143013 | K19: =100*'GDP&Prices'!M16 -> 4.020058695 | L19: =100*'GDP&Prices'!N16 -> 2 | M19: =100*'GDP&Prices'!O16 -> 7.091408633 | N19: =100*'GDP&Prices'!P16 -> 6.843558498 | O19: =100*'GDP&Prices'!Q16 -> 4.705842201 | P19: =100*'GDP&Prices'!R16 -> 5.002636406 | Q19: =100*'GDP&Prices'!S16 -> 4.998784895 | S19: 6.365061035 | T19: 7.094349325 | U19: 4.597580764 | V19: 5.197997639 | W19: 4.911686238
B20: Private | C20: .. | D20: =100*'GDP&Prices'!F18 -> 18.51573172 | E20: =100*'GDP&Prices'!G18 -> 14.73264095 | F20: =100*'GDP&Prices'!H18 -> -0.5694652539 | G20: =100*'GDP&Prices'!I18 -> 15.39441093 | H20: =100*'GDP&Prices'!J18 -> 8.421332434 | I20: =100*'GDP&Prices'!K18 -> -12.52452043 | J20: =100*'GDP&Prices'!L18 -> 23.61903069 | K20: =100*'GDP&Prices'!M18 -> 3.722207655 | L20: =100*'GDP&Prices'!N18 -> -0.2763179947 | M20: =100*'GDP&Prices'!O18 -> 7.152426261 | N20: =100*'GDP&Prices'!P18 -> 6.895239127 | O20: =100*'GDP&Prices'!Q18 -> 4.610729109 | P20: =100*'GDP&Prices'!R18 -> 4.924654877 | Q20: =100*'GDP&Prices'!S18 -> 4.928131075 | S20: 6.440993269 | T20: 7.234236733 | U20: 4.560422588 | V20: 5.201342859 | W20: 4.900757739
B21: Public | C21: .. | D21: =100*'GDP&Prices'!F22 -> 22.55965183 | E21: =100*'GDP&Prices'!G22 -> -11.45243211 | F21: =100*'GDP&Prices'!H22 -> 3.655576536 | G21: =100*'GDP&Prices'!I22 -> -11.87667128 | H21: =100*'GDP&Prices'!J22 -> 3.407645961 | I21: =100*'GDP&Prices'!K22 -> -4.351685995 | J21: =100*'GDP&Prices'!L22 -> -1.695169629 | K21: =100*'GDP&Prices'!M22 -> 9.77204401 | L21: =100*'GDP&Prices'!N22 -> 43.53666086 | M21: =100*'GDP&Prices'!O22 -> 6.317856761 | N21: =100*'GDP&Prices'!P22 -> 6.183233557 | O21: =100*'GDP&Prices'!Q22 -> 5.929253899 | P21: =100*'GDP&Prices'!R22 -> 5.993204632 | Q21: =100*'GDP&Prices'!S22 -> 5.887224314 | S21: 5.402429035 | T21: 5.303450556 | U21: 5.082018172 | V21: 5.154601914 | W21: 5.053518717
B22: Exports of goods and services | C22: =100*'GDP&Prices'!E24 -> 10.19739191 | D22: =100*'GDP&Prices'!F24 -> 1.699883873 | E22: =100*'GDP&Prices'!G24 -> 8.797880016 | F22: =100*'GDP&Prices'!H24 -> 3.596591612 | G22: =100*'GDP&Prices'!I24 -> 3.739238924 | H22: =100*'GDP&Prices'!J24 -> 3.803034384 | I22: =100*'GDP&Prices'!K24 -> -28.16828626 | J22: =100*'GDP&Prices'!L24 -> 29.09730985 | K22: =100*'GDP&Prices'!M24 -> 16.33186275 | L22: =100*'GDP&Prices'!N24 -> 0.3655287124 | M22: =100*'GDP&Prices'!O24 -> 4.026889541 | N22: =100*'GDP&Prices'!P24 -> 3.58962644 | O22: =100*'GDP&Prices'!Q24 -> 3.426227761 | P22: =100*'GDP&Prices'!R24 -> 3.333433851 | Q22: =100*'GDP&Prices'!S24 -> 3.193037632 | S22: 4.068129977 | T22: 3.664346624 | U22: 3.530007494 | V22: 3.446004277 | W22: 3.309675664
B23: Imports of goods and services | C23: =100*'GDP&Prices'!E28 -> 4.776261418 | D23: =100*'GDP&Prices'!F28 -> 11.0239841 | E23: =100*'GDP&Prices'!G28 -> 8.122949235 | F23: =100*'GDP&Prices'!H28 -> -2.975632355 | G23: =100*'GDP&Prices'!I28 -> 8.525654383 | H23: =100*'GDP&Prices'!J28 -> 5.812880445 | I23: =100*'GDP&Prices'!K28 -> -14.50932407 | J23: =100*'GDP&Prices'!L28 -> 25.66562157 | K23: =100*'GDP&Prices'!M28 -> 14.39488247 | L23: =100*'GDP&Prices'!N28 -> -4.069792948 | M23: =100*'GDP&Prices'!O28 -> 0.2161826972 | N23: =100*'GDP&Prices'!P28 -> 3.893675734 | O23: =100*'GDP&Prices'!Q28 -> 3.674350554 | P23: =100*'GDP&Prices'!R28 -> 3.750325809 | Q23: =100*'GDP&Prices'!S28 -> 3.749950008 | S23: -0.2836615918 | T23: 3.709847409 | U23: 3.437538869 | V23: 3.70138428 | W23: 3.637460059
B24: Inflation (percent) | H24: (In percent)
B25: Consumer Price Index (CPI) | C25: =100*'GDP&Prices'!E63 -> 2.938669416 | D25: =100*'GDP&Prices'!F63 -> 0.8200114198 | E25: =100*'GDP&Prices'!G63 -> 1.581882751 | F25: =100*'GDP&Prices'!H63 -> 3.213965808 | G25: =100*'GDP&Prices'!I63 -> 3.493145575 | H25: =100*'GDP&Prices'!J63 -> 1.81060377 | I25: =100*'GDP&Prices'!K63 -> 3.705411163 | J25: =100*'GDP&Prices'!L63 -> 8.077738123 | K25: =100*'GDP&Prices'!M63 -> 7.735348817 | L25: =100*'GDP&Prices'!N63 -> 4.690196693 | M25: =100*'GDP&Prices'!O63 -> 4.443970339 | N25: =100*'GDP&Prices'!P63 -> 4.02407454 | O25: =100*'GDP&Prices'!Q63 -> 3.821010462 | P25: =100*'GDP&Prices'!R63 -> 3.748007512 | Q25: =100*'GDP&Prices'!S63 -> 3.738897709 | S25: 4.351822934 | T25: 3.863680258 | U25: 3.599836826 | V25: 3.508854541 | W25: 3.491451256
B26: GDP deflator | C26: =100*'GDP&Prices'!E68 -> 4.449616792 | D26: =100*'GDP&Prices'!F68 -> 2.345987981 | E26: =100*'GDP&Prices'!G68 -> 2.084934904 | F26: =100*'GDP&Prices'!H68 -> 4.088244532 | G26: =100*'GDP&Prices'!I68 -> 4.013468227 | H26: =100*'GDP&Prices'!J68 -> 2.632094932 | I26: =100*'GDP&Prices'!K68 -> 4.78392022 | J26: =100*'GDP&Prices'!L68 -> 7.703668386 | K26: =100*'GDP&Prices'!M68 -> 10.72582053 | L26: =100*'GDP&Prices'!N68 -> 4.503329986 | M26: =100*'GDP&Prices'!O68 -> 7.690870428 | N26: =100*'GDP&Prices'!P68 -> 4.345293507 | O26: =100*'GDP&Prices'!Q68 -> 4.141894453 | P26: =100*'GDP&Prices'!R68 -> 4.02692753 | Q26: =100*'GDP&Prices'!S68 -> 4.003003944 | S26: 7.574065286 | T26: 4.184500027 | U26: 3.92084428 | V26: 3.788157007 | W26: 3.752468704
B27: External position (percent of GDP) | H27: (In percent of GDP)
B28: Current account balance | C28: ='Deficits&Financing'!E40 -> -3.146515432 | D28: ='Deficits&Financing'!F40 -> -1.760874745 | E28: ='Deficits&Financing'!G40 -> -1.049325572 | F28: ='Deficits&Financing'!H40 -> -0.1628812984 | G28: ='Deficits&Financing'!I40 -> -1.522680917 | H28: ='Deficits&Financing'!J40 -> -1.307560171 | I28: ='Deficits&Financing'!K40 -> -1.649973274 | J28: ='Deficits&Financing'!L40 -> -2.80083376 | K28: ='Deficits&Financing'!M40 -> -5.638241362 | L28: ='Deficits&Financing'!N40 -> -3.631055306 | M28: ='Deficits&Financing'!O40 -> -2.657156169 | N28: ='Deficits&Financing'!P40 -> -2.392945322 | O28: ='Deficits&Financing'!Q40 -> -2.21351336 | P28: ='Deficits&Financing'!R40 -> -2.131889462 | Q28: ='Deficits&Financing'!S40 -> -2.130946435 | S28: -2.527805739 | T28: -2.208216999 | U28: -1.953903885 | V28: -1.840639814 | W28: -1.792790215
B29: Financial and capital account | C29: =100*'Deficits&Financing'!E67/'Deficits&Financing'!E105 -> 3.364524536 | D29: =100*'Deficits&Financing'!F67/'Deficits&Financing'!F105 -> 2.318014214 | E29: =100*'Deficits&Financing'!G67/'Deficits&Financing'!G105 -> 2.392314976 | F29: =100*'Deficits&Financing'!H67/'Deficits&Financing'!H105 -> 0.80886355 | G29: =100*'Deficits&Financing'!I67/'Deficits&Financing'!I105 -> 2.482770485 | H29: =100*'Deficits&Financing'!J67/'Deficits&Financing'!J105 -> 2.557108826 | I29: =100*'Deficits&Financing'!K67/'Deficits&Financing'!K105 -> 4.109703023 | J29: =100*'Deficits&Financing'!L67/'Deficits&Financing'!L105 -> 5.069506206 | K29: =100*'Deficits&Financing'!M67/'Deficits&Financing'!M105 -> 6.853984872 | L29: =100*'Deficits&Financing'!N67/'Deficits&Financing'!N105 -> 3.734930564 | M29: =100*'Deficits&Financing'!O67/'Deficits&Financing'!O105 -> 2.971624382 | N29: =100*'Deficits&Financing'!P67/'Deficits&Financing'!P105 -> 2.767052643 | O29: =100*'Deficits&Financing'!Q67/'Deficits&Financing'!Q105 -> 2.669442888 | P29: =100*'Deficits&Financing'!R67/'Deficits&Financing'!R105 -> 2.544681076 | Q29: =100*'Deficits&Financing'!S67/'Deficits&Financing'!S105 -> 2.445956404 | S29: 2.988770247 | T29: 2.790344681 | U29: 2.701234229 | V29: 2.579267941 | W29: 2.48508481
B30: Change in reserves | C30: .. | D30: =100*('Deficits&Financing'!F78-'Deficits&Financing'!E78)/'Deficits&Financing'!F105 -> 0.5571394694 | E30: =100*('Deficits&Financing'!G78-'Deficits&Financing'!F78)/'Deficits&Financing'!G105 -> 1.342989404 | F30: =100*('Deficits&Financing'!H78-'Deficits&Financing'!G78)/'Deficits&Financing'!H105 -> 0.6459822516 | G30: =100*('Deficits&Financing'!I78-'Deficits&Financing'!H78)/'Deficits&Financing'!I105 -> 0.9600895681 | H30: =100*('Deficits&Financing'!J78-'Deficits&Financing'!I78)/'Deficits&Financing'!J105 -> 1.249548654 | I30: =100*('Deficits&Financing'!K78-'Deficits&Financing'!J78)/'Deficits&Financing'!K105 -> 2.459729749 | J30: =100*('Deficits&Financing'!L78-'Deficits&Financing'!K78)/'Deficits&Financing'!L105 -> 2.268672446 | K30: =100*('Deficits&Financing'!M78-'Deficits&Financing'!L78)/'Deficits&Financing'!M105 -> 1.21574351 | L30: =100*('Deficits&Financing'!N78-'Deficits&Financing'!M78)/'Deficits&Financing'!N105 -> 0.1038752584 | M30: =100*('Deficits&Financing'!O78-'Deficits&Financing'!N78)/'Deficits&Financing'!O105 -> 0.3144682132 | N30: =100*('Deficits&Financing'!P78-'Deficits&Financing'!O78)/'Deficits&Financing'!P105 -> 0.374107321 | O30: =100*('Deficits&Financing'!Q78-'Deficits&Financing'!P78)/'Deficits&Financing'!Q105 -> 0.4559295276 | P30: =100*('Deficits&Financing'!R78-'Deficits&Financing'!Q78)/'Deficits&Financing'!R105 -> 0.4127916134 | Q30: =100*('Deficits&Financing'!S78-'Deficits&Financing'!R78)/'Deficits&Financing'!S105 -> 0.3150099688 | S30: 0.4609645073 | T30: 0.5821276822 | U30: 0.7473303438 | V30: 0.7386281273 | W30: 0.6922945947
B31: Net international reserves (US$) | C31: ='Deficits&Financing'!E79 -> 3255.314046 | D31: ='Deficits&Financing'!F79 -> 3636.53787 | E31: ='Deficits&Financing'!G79 -> 4232.689984 | F31: ='Deficits&Financing'!H79 -> 4746.282156 | G31: ='Deficits&Financing'!I79 -> 5338.975519 | H31: ='Deficits&Financing'!J79 -> 6146.98082 | I31: ='Deficits&Financing'!K79 -> 7526.131834 | J31: ='Deficits&Financing'!L79 -> 9060.065705 | K31: ='Deficits&Financing'!M79 -> 10065.26595 | L31: ='Deficits&Financing'!N79 -> 10156.37801 | M31: ='Deficits&Financing'!O79 -> 10442.51805 | N31: ='Deficits&Financing'!P79 -> 10805.33418 | O31: ='Deficits&Financing'!Q79 -> 11273.47036 | P31: ='Deficits&Financing'!R79 -> 11721.51439 | Q31: ='Deficits&Financing'!S79 -> 12082.63141 | S31: 10573.41132 | T31: 11133.25684 | U31: 11891.56458 | V31: 12682.52103 | W31: 13463.64884
B32: Reserves in months of imports | C32: ='Deficits&Financing'!E48 -> 3.075888507 | D32: ='Deficits&Financing'!F48 -> 3.224073072 | E32: ='Deficits&Financing'!G48 -> 3.712733943 | F32: ='Deficits&Financing'!H48 -> 3.446566312 | G32: ='Deficits&Financing'!I48 -> 3.780958351 | H32: ='Deficits&Financing'!J48 -> 4.899688283 | I32: ='Deficits&Financing'!K48 -> 4.536684247 | J32: ='Deficits&Financing'!L48 -> 4.530260856 | K32: ='Deficits&Financing'!M48 -> 4.928559441 | L32: ='Deficits&Financing'!N48 -> 4.969187887 | M32: ='Deficits&Financing'!O48 -> 4.883579745 | N32: ='Deficits&Financing'!P48 -> 4.806872289 | O32: ='Deficits&Financing'!Q48 -> 4.768262178 | P32: ='Deficits&Financing'!R48 -> 4.704838445 | Q32: ='Deficits&Financing'!S48 -> 4.603970645 | S32: 4.97593957 | T32: 4.99215592 | U32: 5.068108855 | V32: 5.13103034 | W32: 5.172179551
B33: External debt | C33: =100*'Deficits&Financing'!E51 -> 44.57578028 | D33: =100*'Deficits&Financing'!F51 -> 40.64808773 | E33: =100*'Deficits&Financing'!G51 -> 40.76092113 | F33: =100*'Deficits&Financing'!H51 -> 41.04808093 | G33: =100*'Deficits&Financing'!I51 -> 39.68134492 | H33: =100*'Deficits&Financing'!J51 -> 41.0441254 | I33: =100*'Deficits&Financing'!K51 -> 54.83321095 | J33: =100*'Deficits&Financing'!L51 -> 47.84514367 | K33: =100*'Deficits&Financing'!M51 -> 39.71120975 | L33: =100*'Deficits&Financing'!N51 -> 40.61272917 | M33: =100*'Deficits&Financing'!O51 -> 37.95700947 | N33: =100*'Deficits&Financing'!P51 -> 35.73630053 | O33: =100*'Deficits&Financing'!Q51 -> 33.78943242 | P33: =100*'Deficits&Financing'!R51 -> 31.88020594 | Q33: =100*'Deficits&Financing'!S51 -> 30.00479637 | S33: 38.1760162 | T33: 36.03711566 | U33: 34.19184274 | V33: 32.31351619 | W33: 30.48478851
B34: Fiscal position (percent of GDP) | H34: (In percent of GDP)
B35: Revenue | C35: ='Policies&Assumptions'!E32 -> 14.12634946 | D35: ='Policies&Assumptions'!F32 -> 16.60189561 | E35: ='Policies&Assumptions'!G32 -> 13.77035062 | F35: ='Policies&Assumptions'!H32 -> 13.90730998 | G35: ='Policies&Assumptions'!I32 -> 14.22786904 | H35: ='Policies&Assumptions'!J32 -> 14.34010891 | I35: ='Policies&Assumptions'!K32 -> 14.03700117 | J35: ='Policies&Assumptions'!L32 -> 15.61786348 | K35: ='Policies&Assumptions'!M32 -> 15.18675648 | L35: ='Policies&Assumptions'!N32 -> 15.85823353 | M35: ='Policies&Assumptions'!O32 -> 15.6312675 | N35: ='Policies&Assumptions'!P32 -> 15.63063205 | O35: ='Policies&Assumptions'!Q32 -> 15.63041415 | P35: ='Policies&Assumptions'!R32 -> 15.63029173 | Q35: ='Policies&Assumptions'!S32 -> 15.63022354 | S35: 15.63162829 | T35: 15.63115305 | U35: 15.63114867 | V35: 15.63112836 | W35: 15.63120714
B36: Expenditure | C36: ='Policies&Assumptions'!E40 -> 16.9172375 | D36: ='Policies&Assumptions'!F40 -> 16.68115516 | E36: ='Policies&Assumptions'!G40 -> 16.90518599 | F36: ='Policies&Assumptions'!H40 -> 17.06411858 | G36: ='Policies&Assumptions'!I40 -> 16.46268661 | H36: ='Policies&Assumptions'!J40 -> 17.86131576 | I36: ='Policies&Assumptions'!K40 -> 21.95208234 | J36: ='Policies&Assumptions'!L40 -> 18.6365913 | K36: ='Policies&Assumptions'!M40 -> 18.51268594 | L36: ='Policies&Assumptions'!N40 -> 19.2170384 | M36: ='Policies&Assumptions'!O40 -> 18.3986788 | N36: ='Policies&Assumptions'!P40 -> 17.93213597 | O36: ='Policies&Assumptions'!Q40 -> 17.68517169 | P36: ='Policies&Assumptions'!R40 -> 17.74187215 | Q36: ='Policies&Assumptions'!S40 -> 17.76186015 | S36: 18.43934411 | T36: 17.88280401 | U36: 17.55664921 | V36: 17.47356364 | W36: 17.35311777
B37: Balance | C37: ='Policies&Assumptions'!E46 -> -2.790888045 | D37: ='Policies&Assumptions'!F46 -> -0.07925954198 | E37: ='Policies&Assumptions'!G46 -> -3.134835372 | F37: ='Policies&Assumptions'!H46 -> -3.156808609 | G37: ='Policies&Assumptions'!I46 -> -2.234817576 | H37: ='Policies&Assumptions'!J46 -> -3.521206851 | I37: ='Policies&Assumptions'!K46 -> -7.915081171 | J37: ='Policies&Assumptions'!L46 -> -3.018727829 | K37: ='Policies&Assumptions'!M46 -> -3.32592946 | L37: ='Policies&Assumptions'!N46 -> -3.358804873 | M37: ='Policies&Assumptions'!O46 -> -2.767411299 | N37: ='Policies&Assumptions'!P46 -> -2.301503917 | O37: ='Policies&Assumptions'!Q46 -> -2.054757542 | P37: ='Policies&Assumptions'!R46 -> -2.111580418 | Q37: ='Policies&Assumptions'!S46 -> -2.131636607 | S37: -2.807715825 | T37: -2.251650958 | U37: -1.925500533 | V37: -1.842435278 | W37: -1.721910631
B38: Primary balance | C38: ='Policies&Assumptions'!E69 -> 0.4559474841 | D38: ='Policies&Assumptions'!F69 -> 3.447848324 | E38: ='Policies&Assumptions'!G69 -> 0.7764190876 | F38: ='Policies&Assumptions'!H69 -> 0.9512327614 | G38: ='Policies&Assumptions'!I69 -> 1.95663775 | H38: ='Policies&Assumptions'!J69 -> 1.297786889 | I38: ='Policies&Assumptions'!K69 -> -2.493902521 | J38: ='Policies&Assumptions'!L69 -> 1.94655553 | K38: ='Policies&Assumptions'!M69 -> 1.36074652 | L38: ='Policies&Assumptions'!N69 -> 1.455439367 | M38: ='Policies&Assumptions'!O69 -> 1.373909111 | N38: ='Policies&Assumptions'!P69 -> 1.349176049 | O38: ='Policies&Assumptions'!Q69 -> 1.228828383 | P38: ='Policies&Assumptions'!R69 -> 1.085185376 | Q38: ='Policies&Assumptions'!S69 -> 0.9272561304 | S38: 1.421777228 | T38: 1.488965244 | U38: 1.450129337 | V38: 1.414802621 | W38: 1.356845241
B39: Public debt | C39: =100*'Policies&Assumptions'!E57 -> 44.69283278 | D39: =100*'Policies&Assumptions'!F57 -> 44.68747372 | E39: =100*'Policies&Assumptions'!G57 -> 46.40125503 | F39: =100*'Policies&Assumptions'!H57 -> 48.90642379 | G39: =100*'Policies&Assumptions'!I57 -> 50.80799061 | H39: =100*'Policies&Assumptions'!J57 -> 53.57925566 | I39: =100*'Policies&Assumptions'!K57 -> 71.08443525 | J39: =100*'Policies&Assumptions'!L57 -> 63.56278925 | K39: =100*'Policies&Assumptions'!M57 -> 59.5471175 | L39: =100*'Policies&Assumptions'!N57 -> 60.7993364 | M39: =100*'Policies&Assumptions'!O57 -> 60.46965699 | N39: =100*'Policies&Assumptions'!P57 -> 58.13812025 | O39: =100*'Policies&Assumptions'!Q57 -> 58.27502245 | P39: =100*'Policies&Assumptions'!R57 -> 56.46025279 | Q39: =100*'Policies&Assumptions'!S57 -> 56.87841433 | S39: 60.84289554 | T39: 58.58039922 | U39: 58.77217474 | V39: 56.74957186 | W39: 56.90609833
B40: Domestic | C40: =100*'Policies&Assumptions'!E59 -> 19.02390758 | D40: =100*'Policies&Assumptions'!F59 -> 20.8280955 | E40: =100*'Policies&Assumptions'!G59 -> 22.21181792 | F40: =100*'Policies&Assumptions'!H59 -> 24.28980092 | G40: =100*'Policies&Assumptions'!I59 -> 24.50636582 | H40: =100*'Policies&Assumptions'!J59 -> 25.98551255 | I40: =100*'Policies&Assumptions'!K59 -> 30.67470617 | J40: =100*'Policies&Assumptions'!L59 -> 26.80132405 | K40: =100*'Policies&Assumptions'!M59 -> 25.58176556 | L40: =100*'Policies&Assumptions'!N59 -> 25.69395075 | M40: =100*'Policies&Assumptions'!O59 -> 24.37407618 | N40: =100*'Policies&Assumptions'!P59 -> 23.172838 | O40: =100*'Policies&Assumptions'!Q59 -> 22.0686352 | P40: =100*'Policies&Assumptions'!R59 -> 21.26887274 | Q40: =100*'Policies&Assumptions'!S59 -> 20.67041608 | S40: 24.53904819 | T40: 23.320792 | U40: 22.13459279 | V40: 21.07987666 | W40: 20.11887419
B41: External | C41: =100*'Policies&Assumptions'!E64 -> 25.6689252 | D41: =100*'Policies&Assumptions'!F64 -> 23.85937822 | E41: =100*'Policies&Assumptions'!G64 -> 24.18943711 | F41: =100*'Policies&Assumptions'!H64 -> 24.61662286 | G41: =100*'Policies&Assumptions'!I64 -> 26.30162479 | H41: =100*'Policies&Assumptions'!J64 -> 27.59374311 | I41: =100*'Policies&Assumptions'!K64 -> 40.40972908 | J41: =100*'Policies&Assumptions'!L64 -> 36.7614652 | K41: =100*'Policies&Assumptions'!M64 -> 33.96535193 | L41: =100*'Policies&Assumptions'!N64 -> 35.10538565 | M41: =100*'Policies&Assumptions'!O64 -> 36.09558081 | N41: =100*'Policies&Assumptions'!P64 -> 34.96528224 | O41: =100*'Policies&Assumptions'!Q64 -> 36.20638726 | P41: =100*'Policies&Assumptions'!R64 -> 35.19138005 | Q41: =100*'Policies&Assumptions'!S64 -> 36.20799825 | S41: 36.30384735 | T41: 35.25960722 | U41: 36.63758195 | V41: 35.6696952 | W41: 36.78722413
B42: Interest and exchange rates | H42: (In percent)
B43: Local currency/US dollar (average) | C43: ='Policies&Assumptions'!E106 -> 42.62556729 | D43: ='Policies&Assumptions'!F106 -> 44.08933195 | E43: ='Policies&Assumptions'!G106 -> 45.09998253 | F43: ='Policies&Assumptions'!H106 -> 46.53504956 | G43: ='Policies&Assumptions'!I106 -> 48.47777427 | H43: ='Policies&Assumptions'!J106 -> 50.21800553 | I43: ='Policies&Assumptions'!K106 -> 55.33917337 | J43: ='Policies&Assumptions'!L106 -> 55.94932369 | K43: ='Policies&Assumptions'!M106 -> 53.9 | L43: ='Policies&Assumptions'!N106 -> 55.86 | M43: ='Policies&Assumptions'!O106 -> 57.8151 | N43: ='Policies&Assumptions'!P106 -> 59.8386285 | O43: ='Policies&Assumptions'!Q106 -> 61.9329805 | P43: ='Policies&Assumptions'!R106 -> 64.10063481 | Q43: ='Policies&Assumptions'!S106 -> 66.34415703 | S43: 57.8151 | T43: 59.8386285 | U43: 61.9329805 | V43: 64.10063481 | W43: 66.34415703
B44: percent change | C44: … | D44: =100*(D43/C43-1) -> 3.434006272 | E44: =100*(E43/D43-1) -> 2.292279205 | F44: =100*(F43/E43-1) -> 3.18196802 | G44: =100*(G43/F43-1) -> 4.174755876 | H44: =100*(H43/G43-1) -> 3.589750734 | I44: =100*(I43/H43-1) -> 10.19787183 | J44: =100*(J43/I43-1) -> 1.102564945 | K44: -3.662821209 | L44: 3.636363636 | M44: 3.5 | N44: 3.5 | O44: =100*(O43/N43-1) -> 3.5 | P44: =100*(P43/O43-1) -> 3.5 | Q44: =100*(Q43/P43-1) -> 3.5 | S44: 3.5 | T44: 3.5 | U44: 3.5 | V44: 3.5 | W44: 3.5
B45: Real effective exchange rate (percent change) | C45: =100*'Policies&Assumptions'!E116 -> -2.395600842 | D45: =100*'Policies&Assumptions'!F116 -> 3.838930379 | E45: =100*'Policies&Assumptions'!G116 -> 0.5319790473 | F45: =100*'Policies&Assumptions'!H116 -> -3.620615289 | G45: =100*'Policies&Assumptions'!I116 -> -4.141314524 | H45: =100*'Policies&Assumptions'!J116 -> -0.2995639255 | I45: =100*'Policies&Assumptions'!K116 -> -7.632862518 | J45: =100*'Policies&Assumptions'!L116 -> -2.874360697 | K45: =100*'Policies&Assumptions'!M116 -> 8.672257865 | L45: =100*'Policies&Assumptions'!N116 -> 1.355322306 | M45: =100*'Policies&Assumptions'!O116 -> -6.512507475 | N45: =100*'Policies&Assumptions'!P116 -> -3.080111548 | O45: =100*'Policies&Assumptions'!Q116 -> -2.569610956 | P45: =100*'Policies&Assumptions'!R116 -> -2.330651888 | Q45: =100*'Policies&Assumptions'!S116 -> -2.201864504 | S45: -6.594988348 | T45: -3.229551915 | U45: -2.777170421 | V45: -2.555792739 | W45: -2.435140568
B46: Policy interest rate (percent) | C46: =100*'Policies&Assumptions'!E84 -> 6.25 | D46: =100*'Policies&Assumptions'!F84 -> 5.25 | E46: =100*'Policies&Assumptions'!G84 -> 5.5 | F46: =100*'Policies&Assumptions'!H84 -> 5.5 | G46: =100*'Policies&Assumptions'!I84 -> 5.5 | H46: =100*'Policies&Assumptions'!J84 -> 4.75 | I46: =100*'Policies&Assumptions'!K84 -> 3 | J46: =100*'Policies&Assumptions'!L84 -> 3.25 | K46: =100*'Policies&Assumptions'!M84 -> 7.75 | L46: =100*'Policies&Assumptions'!N84 -> 6.75 | M46: =100*'Policies&Assumptions'!O84 -> 4.5 | N46: =100*'Policies&Assumptions'!P84 -> 4.5 | O46: =100*'Policies&Assumptions'!Q84 -> 4 | P46: =100*'Policies&Assumptions'!R84 -> 4 | Q46: =100*'Policies&Assumptions'!S84 -> 4 | S46: 5 | T46: 5 | U46: 4.5 | V46: 4.3 | W46: 4.2
B47: Effective average lending rate (percent) | C47: =100*'GDP&Prices'!E89 -> 13.2478627 | D47: =100*'GDP&Prices'!F89 -> 13.78577624 | E47: =100*'GDP&Prices'!G89 -> 13.6553606 | F47: =100*'GDP&Prices'!H89 -> 12.92282063 | G47: =100*'GDP&Prices'!I89 -> 11.99673694 | H47: =100*'GDP&Prices'!J89 -> 11.8150046 | I47: =100*'GDP&Prices'!K89 -> 11.71266053 | J47: =100*'GDP&Prices'!L89 -> 8.738985549 | K47: =100*'GDP&Prices'!M89 -> 9.682920423 | L47: =100*'GDP&Prices'!N89 -> 13.428221 | M47: =100*'GDP&Prices'!O89 -> 9.50312174 | N47: =100*'GDP&Prices'!P89 -> 9.50312174 | O47: =100*'GDP&Prices'!Q89 -> 9.00312174 | P47: =100*'GDP&Prices'!R89 -> 9.00312174 | Q47: =100*'GDP&Prices'!S89 -> 9.00312174 | S47: 10.00312174 | T47: 10.00312174 | U47: 9.50312174 | V47: 9.30312174 | W47: 9.20312174
B48: International developments (percent change) | H48: (In percent change)
B49: Partners' real GDP | C49: ='GDP&Prices'!E98 -> 3.082793128 | D49: ='GDP&Prices'!F98 -> 2.722189533 | E49: ='GDP&Prices'!G98 -> 1.083969622 | F49: ='GDP&Prices'!H98 -> 2.020833572 | G49: ='GDP&Prices'!I98 -> 1.886966447 | H49: ='GDP&Prices'!J98 -> 0.8305383476 | I49: ='GDP&Prices'!K98 -> -4.945487588 | J49: ='GDP&Prices'!L98 -> 6.269534846 | K49: ='GDP&Prices'!M98 -> 3.450561764 | L49: ='GDP&Prices'!N98 -> 3.062892006 | M49: ='GDP&Prices'!O98 -> 2.887929256 | N49: ='GDP&Prices'!P98 -> 2.611768756 | O49: ='GDP&Prices'!Q98 -> 2.418702969 | P49: ='GDP&Prices'!R98 -> 2.421329936 | Q49: ='GDP&Prices'!S98 -> 2.402726498 | S49: 2.887929256 | T49: 2.611768756 | U49: 2.418702969 | V49: 2.421329936 | W49: 2.402726498
B50: Partners' nonoil imports | C50: ='GDP&Prices'!E99 -> 6.914504792 | D50: ='GDP&Prices'!F99 -> 5.077183164 | E50: ='GDP&Prices'!G99 -> 1.034414724 | F50: ='GDP&Prices'!H99 -> 4.961370103 | G50: ='GDP&Prices'!I99 -> 5.461485302 | H50: ='GDP&Prices'!J99 -> -0.48417529 | I50: ='GDP&Prices'!K99 -> -5.89594438 | J50: ='GDP&Prices'!L99 -> 13.252916 | K50: ='GDP&Prices'!M99 -> 5.623301427 | L50: ='GDP&Prices'!N99 -> -1.040101626 | M50: ='GDP&Prices'!O99 -> 1.10090829 | N50: ='GDP&Prices'!P99 -> 2.927958095 | O50: ='GDP&Prices'!Q99 -> 3.05917469 | P50: ='GDP&Prices'!R99 -> 3.097297011 | Q50: ='GDP&Prices'!S99 -> 2.988721971 | S50: 1.10090829 | T50: 2.927958095 | U50: 3.05917469 | V50: 3.097297011 | W50: 2.988721971
B51: Average petroleum spot price (US$) | C51: ='GDP&Prices'!E102 -> -7.531488018 | D51: ='GDP&Prices'!F102 -> -47.14630018 | E51: ='GDP&Prices'!G102 -> -15.0221495 | F51: ='GDP&Prices'!H102 -> 22.45243102 | G51: ='GDP&Prices'!I102 -> 29.36122534 | H51: ='GDP&Prices'!J102 -> -10.36033041 | I51: ='GDP&Prices'!K102 -> -32.01381948 | J51: ='GDP&Prices'!L102 -> 65.80666405 | K51: ='GDP&Prices'!M102 -> 39.15103208 | L51: ='GDP&Prices'!N102 -> -16.36240652 | M51: ='GDP&Prices'!O102 -> -2.463597693 | N51: ='GDP&Prices'!P102 -> -6.271333627 | O51: ='GDP&Prices'!Q102 -> -4.232280458 | P51: ='GDP&Prices'!R102 -> -2.648121786 | Q51: ='GDP&Prices'!S102 -> -1.334910344 | S51: -2.463597693 | T51: -6.271333627 | U51: -4.232280458 | V51: -2.648121786 | W51: -1.334910344
B55: GDP | C55: ='GDP&Prices'!E32 -> 1375.506853 | D55: ='GDP&Prices'!F32 -> 1465.44212 | E55: ='GDP&Prices'!G32 -> 1568.028846 | F55: ='GDP&Prices'!H32 -> 1635.970786 | G55: ='GDP&Prices'!I32 -> 1740.202898 | H55: ='GDP&Prices'!J32 -> 1838.626089 | I55: ='GDP&Prices'!K32 -> 1725.066014 | J55: ='GDP&Prices'!L32 -> 1915.538748 | K55: ='GDP&Prices'!M32 -> 2019.08766 | L55: ='GDP&Prices'!N32 -> 2077.718647 | M55: ='GDP&Prices'!O32 -> 2153.663214 | N55: ='GDP&Prices'!P32 -> 2276.846783 | O55: ='GDP&Prices'!Q32 -> 2395.701911 | P55: ='GDP&Prices'!R32 -> 2519.664401 | Q55: ='GDP&Prices'!S32 -> 2648.323329
B56: Consumption | C56: ='GDP&Prices'!E7 -> 1107.266371 | D56: ='GDP&Prices'!F7 -> 1179.101761 | E56: ='GDP&Prices'!G7 -> 1244.953839 | F56: ='GDP&Prices'!H7 -> 1294.438888 | G56: ='GDP&Prices'!I7 -> 1364.131035 | H56: ='GDP&Prices'!J7 -> 1429.588473 | I56: ='GDP&Prices'!K7 -> 1393.487136 | J56: ='GDP&Prices'!L7 -> 1475.413704 | K56: ='GDP&Prices'!M7 -> 1548.954305 | L56: ='GDP&Prices'!N7 -> 1606.942798 | M56: ='GDP&Prices'!O7 -> 1685.094372 | N56: ='GDP&Prices'!P7 -> 1773.714562 | O56: ='GDP&Prices'!Q7 -> 1868.737377 | P56: ='GDP&Prices'!R7 -> 1966.769844 | Q56: ='GDP&Prices'!S7 -> 2069.017521
B57: Private | C57: ='GDP&Prices'!E9 -> 985.6196342 | D57: ='GDP&Prices'!F9 -> 1049.05889 | E57: ='GDP&Prices'!G9 -> 1112.376189 | F57: ='GDP&Prices'!H9 -> 1160.765217 | G57: ='GDP&Prices'!I9 -> 1226.6913 | H57: ='GDP&Prices'!J9 -> 1283.428789 | I57: ='GDP&Prices'!K9 -> 1240.117561 | J57: ='GDP&Prices'!L9 -> 1321.949836 | K57: ='GDP&Prices'!M9 -> 1389.544963 | L57: ='GDP&Prices'!N9 -> 1435.094792 | M57: ='GDP&Prices'!O9 -> 1503.282013 | N57: ='GDP&Prices'!P9 -> 1580.583637 | O57: ='GDP&Prices'!Q9 -> 1663.181997 | P57: ='GDP&Prices'!R9 -> 1747.836778 | Q57: ='GDP&Prices'!S9 -> 1835.815662
B58: Public | C58: ='GDP&Prices'!E13 -> 121.6467364 | D58: ='GDP&Prices'!F13 -> 130.0428715 | E58: ='GDP&Prices'!G13 -> 132.5776508 | F58: ='GDP&Prices'!H13 -> 133.6736706 | G58: ='GDP&Prices'!I13 -> 137.4397353 | H58: ='GDP&Prices'!J13 -> 146.159684 | I58: ='GDP&Prices'!K13 -> 153.369575 | J58: ='GDP&Prices'!L13 -> 153.463868 | K58: ='GDP&Prices'!M13 -> 159.4093427 | L58: ='GDP&Prices'!N13 -> 171.8480065 | M58: ='GDP&Prices'!O13 -> 181.8123598 | N58: ='GDP&Prices'!P13 -> 193.1309252 | O58: ='GDP&Prices'!Q13 -> 205.5553798 | P58: ='GDP&Prices'!R13 -> 218.9330669 | Q58: ='GDP&Prices'!S13 -> 233.2018599
B59: Investment | C59: ='GDP&Prices'!E15 -> 305.0571018 | D59: ='GDP&Prices'!F15 -> 362.6444736 | E59: ='GDP&Prices'!G15 -> 407.311747 | F59: ='GDP&Prices'!H15 -> 406.2438027 | G59: ='GDP&Prices'!I15 -> 460.4090122 | H59: ='GDP&Prices'!J15 -> 497.8249617 | I59: ='GDP&Prices'!K15 -> 437.76157 | J59: ='GDP&Prices'!L15 -> 534.381809 | K59: ='GDP&Prices'!M15 -> 555.8642714 | L59: ='GDP&Prices'!N15 -> 566.9815568 | M59: ='GDP&Prices'!O15 -> 607.1885359 | N59: ='GDP&Prices'!P15 -> 648.7418386 | O59: ='GDP&Prices'!Q15 -> 679.2706058 | P59: ='GDP&Prices'!R15 -> 713.2520444 | Q59: ='GDP&Prices'!S15 -> 748.9059799
B60: Private | C60: ='GDP&Prices'!E17 -> 277.7613784 | D60: ='GDP&Prices'!F17 -> 329.19093 | E60: ='GDP&Prices'!G17 -> 377.6894478 | F60: ='GDP&Prices'!H17 -> 375.5386376 | G60: ='GDP&Prices'!I17 -> 433.3505987 | H60: ='GDP&Prices'!J17 -> 469.8444932 | I60: ='GDP&Prices'!K17 -> 410.9987237 | J60: ='GDP&Prices'!L17 -> 508.0726383 | K60: ='GDP&Prices'!M17 -> 526.984157 | L60: ='GDP&Prices'!N17 -> 525.5280049 | M60: ='GDP&Prices'!O17 -> 563.116008 | N60: ='GDP&Prices'!P17 -> 601.9442033 | O60: ='GDP&Prices'!Q17 -> 629.6982199 | P60: ='GDP&Prices'!R17 -> 660.708684 | Q60: ='GDP&Prices'!S17 -> 693.2692739
B61: Public | C61: ='GDP&Prices'!E21 -> 27.29572344 | D61: ='GDP&Prices'!F21 -> 33.45354361 | E61: ='GDP&Prices'!G21 -> 29.62229924 | F61: ='GDP&Prices'!H21 -> 30.70516506 | G61: ='GDP&Prices'!I21 -> 27.05841354 | H61: ='GDP&Prices'!J21 -> 27.98046848 | I61: ='GDP&Prices'!K21 -> 26.76284635 | J61: ='GDP&Prices'!L21 -> 26.30917071 | K61: ='GDP&Prices'!M21 -> 28.88011445 | L61: ='GDP&Prices'!N21 -> 41.45355193 | M61: ='GDP&Prices'!O21 -> 44.07252797 | N61: ='GDP&Prices'!P21 -> 46.7976353 | O61: ='GDP&Prices'!Q21 -> 49.57238592 | P61: ='GDP&Prices'!R21 -> 52.54336045 | Q61: ='GDP&Prices'!S21 -> 55.63670594
B62: Exports of goods and services | C62: ='GDP&Prices'!E23 -> 376.7383773 | D62: ='GDP&Prices'!F23 -> 383.1424922 | E62: ='GDP&Prices'!G23 -> 416.850909 | F62: ='GDP&Prices'!H23 -> 431.8433338 | G62: ='GDP&Prices'!I23 -> 447.9909878 | H62: ='GDP&Prices'!J23 -> 465.0282391 | I62: ='GDP&Prices'!K23 -> 334.0377536 | J62: ='GDP&Prices'!L23 -> 431.2337537 | K62: ='GDP&Prices'!M23 -> 501.6622585 | L62: ='GDP&Prices'!N23 -> 503.4959781 | M62: ='GDP&Prices'!O23 -> 523.771205 | N62: ='GDP&Prices'!P23 -> 542.5726347 | O62: ='GDP&Prices'!Q23 -> 561.1624089 | P62: ='GDP&Prices'!R23 -> 579.8683866 | Q62: ='GDP&Prices'!S23 -> 598.3838024
B63: Imports of goods and services | C63: ='GDP&Prices'!E27 -> 419.1725414 | D63: ='GDP&Prices'!F27 -> 465.3820557 | E63: ='GDP&Prices'!G27 -> 503.1848038 | F63: ='GDP&Prices'!H27 -> 488.211874 | G63: ='GDP&Prices'!I27 -> 529.835131 | H63: ='GDP&Prices'!J27 -> 560.6338138 | I63: ='GDP&Prices'!K27 -> 479.2896369 | J63: ='GDP&Prices'!L27 -> 602.3023013 | K63: ='GDP&Prices'!M27 -> 689.0030096 | L63: ='GDP&Prices'!N27 -> 660.9620137 | M63: ='GDP&Prices'!O27 -> 662.3908993 | N63: ='GDP&Prices'!P27 -> 688.182253 | O63: ='GDP&Prices'!Q27 -> 713.4684814 | P63: ='GDP&Prices'!R27 -> 740.225874 | Q63: ='GDP&Prices'!S27 -> 767.9839742
B64: Statistical discrepancy | C64: ='GDP&Prices'!E31 -> 5.617545026 | D64: ='GDP&Prices'!F31 -> 5.935449073 | E64: ='GDP&Prices'!G31 -> 2.097154309 | F64: ='GDP&Prices'!H31 -> -8.343363845 | G64: ='GDP&Prices'!I31 -> -2.493006315 | H64: ='GDP&Prices'!J31 -> 6.818229116 | I64: ='GDP&Prices'!K31 -> 39.06919179 | J64: ='GDP&Prices'!L31 -> 76.81178279 | K64: ='GDP&Prices'!M31 -> 101.6098341 | L64: ='GDP&Prices'!N31 -> 61.26032727 | M64: ='GDP&Prices'!O31 -> 0 | N64: ='GDP&Prices'!P31 -> 0 | O64: ='GDP&Prices'!Q31 -> 0 | P64: ='GDP&Prices'!R31 -> 0 | Q64: ='GDP&Prices'!S31 -> 0
B66: GDP | C66: =C56+C59+C62-C63+C64 -> 1375.506853 | D66: =D56+D59+D62-D63+D64 -> 1465.44212 | E66: 1568.028846 | F66: 1635.970786 | G66: 1740.202898 | H66: 1838.626089 | I66: 1725.066014 | J66: 1915.538748 | K66: 2019.08766 | L66: 2077.718647 | M66: 2153.663214 | N66: 2276.846783 | O66: 2395.701911 | P66: 2519.664401 | Q66: 2648.323329
B67: check | C67: =C66-C55 -> 0 | D67: =D66-D55 -> 0 | E67: 0 | F67: 0 | G67: 0 | H67: 0 | I67: 0 | J67: 0 | K67: 0 | L67: 0 | M67: 0 | N67: 0 | O67: 0 | P67: 0 | Q67: 0
D68: =(D66-C66)/C66*100 -> 6.538336528 | E68: =(E66-D66)/D66*100 -> 7.000394221 | F68: 4.332952192 | G68: 6.371269725 | H68: 5.655845721 | I68: -6.176355 | J68: 11.04147507 | K68: 5.40573308 | L68: 2.903835638 | M68: 3.655190137 | N68: 5.719722924 | O68: 5.220163644 | P68: 5.174370418 | Q68: 5.106193028
B69: Contribution to GDP growth
B70: check:
B71: Consumption | D71: =(D56-C56)/C66*100 -> 5.222466933 | E71: =(E56-D56)/D66*100 -> 4.49366627 | F71: 3.155876132 | G71: 4.259987277 | H71: 3.761483086 | I71: -1.963495293 | J71: 4.749184516 | K71: 3.83916022 | L71: 2.872014629 | M71: 3.76141274 | N71: 4.11485832 | O71: 4.173439147 | P71: 4.092014403 | Q71: 4.057987917
B72: Private | D72: =(D57-C57)/C66*100 -> 4.612063937 | E72: =(E57-D57)/D66*100 -> 4.320695988 | F72: 3.085978197 | G72: 4.029783616 | H72: 3.260395038 | I72: -2.355629998 | J72: 4.743718463 | K72: 3.528778887 | L72: 2.255960953 | M72: 3.281831284 | N72: 3.58930886 | O72: 3.62775225 | P72: 3.533610746 | Q72: 3.491690555
B73: Public | D73: =(D58-C58)/C66*100 -> 0.6104029964 | E73: =(E58-D58)/D66*100 -> 0.1729702822 | F73: 0.06989793531 | G73: 0.2302036614 | H73: 0.5010880486 | I73: 0.3921347051 | J73: 0.005466053112 | K73: 0.3103813332 | L73: 0.6160536758 | M73: 0.4795814559 | N73: 0.5255494599 | O73: 0.5456868979 | P73: 0.5584036572 | Q73: 0.5662973614
B74: Investment | D74: =(D59-C59)/C66*100 -> 4.186629217 | E74: =(E59-D59)/D66*100 -> 3.048040776 | F74: -0.06810744299 | G74: 3.310891001 | H74: 2.150091205 | I74: -3.266754019 | J74: 5.600958934 | K74: 1.121484094 | L74: 0.5506093494 | M74: 1.935150321 | N74: 1.929424358 | O74: 1.34083538 | P74: 1.418433507 | Q74: 1.415027154
B75: Private | D75: =(D60-C60)/C66*100 -> 3.738952773 | E75: =(E60-D60)/D66*100 -> 3.309480264 | F75: -0.1371664927 | G75: 3.533801554 | H75: 2.097105721 | I75: -3.200529455 | J75: 5.627257964 | K75: 0.9872689161 | L75: -0.07211930834 | M75: 1.809099759 | N75: 1.80289077 | O75: 1.218967249 | P75: 1.294420811 | Q75: 1.292258999
B76: Public | D76: =(D61-C61)/C66*100 -> 0.4476764444 | E76: =(E61-D61)/D66*100 -> -0.2614394876 | F76: 0.06905904973 | G76: -0.2229105526 | H76: 0.05298548449 | I76: -0.06622456495 | J76: -0.02629903085 | K76: 0.134215178 | L76: 0.6227286578 | M76: 0.1260505621 | N76: 0.126533588 | O76: 0.1218681308 | P76: 0.1240126961 | Q76: 0.1227681547
B77: Exports of goods and services | D77: =(D62-C62)/C66*100 -> 0.4655821892 | E77: =(E62-D62)/D66*100 -> 2.300221639 | F77: 0.9561319529 | G77: 0.9870380428 | H77: 0.9790382103 | I77: -7.12436783 | J77: 5.634335113 | K77: 3.676694344 | L77: 0.09081921654 | M77: 0.9758408296 | N77: 0.8729976693 | O77: 0.8164701453 | P77: 0.7808140744 | Q77: 0.7348365833
B78: Imports of goods and services | D78: =-1*(D63-C63)/C66*100 -> -3.359453587 | E78: -2.579613866 | F78: 0.9548886723 | G78: -2.544254298 | H78: -1.76983286 | I78: 4.424182676 | J78: -7.130896059 | K78: -4.526178781 | L78: 1.388795368 | M78: -0.06877184795 | N78: -1.197557424 | O78: -1.110581029 | P78: -1.116891567 | Q78: -1.101658626
B79: Statistical discrepancy | D79: =(D64-C64)/C66*100 -> 0.0231117748 | E79: =(E64-D64)/D66*100 -> -0.2619205979 | F79: -0.6658371229 | G79: 0.3576077018 | H79: 0.5350660801 | I79: 1.754079466 | J79: 2.187892561 | K79: 1.294573203 | L79: -1.998402925 | M79: -2.948441906 | N79: 0 | O79: 0 | P79: 0 | Q79: 0
B80: GDP growth | D80: =D71+D74+D77+D78+D79 -> 6.538336528 | E80: =E71+E74+E77+E78+E79 -> 7.000394221 | F80: 4.332952192 | G80: 6.371269725 | H80: 5.655845721 | I80: -6.176355 | J80: 11.04147507 | K80: 5.40573308 | L80: 2.903835638 | M80: 3.655190137 | N80: 5.719722924 | O80: 5.220163644 | P80: 5.174370418 | Q80: 5.106193028
B82: check: | D82: =D54-D7 -> -6.538336528 | E82: -7.000394221 | F82: -4.332952192 | G82: -6.371269725 | H82: -5.655845721 | I82: 6.176355 | J82: -11.04147507 | K82: -5.40573308 | L82: -2.903835638 | M82: -3.655190137 | N82: =N54-N7 -> -5.719722924 | O82: =O54-O7 -> -5.220163644 | P82: -5.174370418 | Q82: -5.106193028
B84: Weights in real GDP | D84: =SUM(D85,D88,D91,D92) -> 99.59497213 | E84: 99.86625537 | F84: 100.5099947 | G84: 100.1432595 | H84: 99.62916717 | I84: 97.73520599 | J84: 95.99006896 | K84: 94.96753726 | L84: 97.05155809 | M84: =SUM(M85,M88,M91,M92) -> 100 | N84: =SUM(N85,N88,N91,N92) -> 100 | O84: 100 | P84: 100 | Q84: 100
B85: Consumption | D85: ='GDP&Prices'!F7/'GDP&Prices'!F$32*100 -> 80.46047979 | E85: ='GDP&Prices'!G7/'GDP&Prices'!G$32*100 -> 79.39610567 | F85: ='GDP&Prices'!H7/'GDP&Prices'!H$32*100 -> 79.12359429 | G85: ='GDP&Prices'!I7/'GDP&Prices'!I$32*100 -> 78.38919455 | H85: ='GDP&Prices'!J7/'GDP&Prices'!J$32*100 -> 77.7530832 | I85: ='GDP&Prices'!K7/'GDP&Prices'!K$32*100 -> 80.77877161 | J85: ='GDP&Prices'!L7/'GDP&Prices'!L$32*100 -> 77.02343298 | K85: ='GDP&Prices'!M7/'GDP&Prices'!M$32*100 -> 76.71555506 | L85: ='GDP&Prices'!N7/'GDP&Prices'!N$32*100 -> 77.34169402 | M85: ='GDP&Prices'!O7/'GDP&Prices'!O$32*100 -> 78.24317012 | N85: ='GDP&Prices'!P7/'GDP&Prices'!P$32*100 -> 77.90223637 | O85: ='GDP&Prices'!Q7/'GDP&Prices'!Q$32*100 -> 78.00375201 | P85: ='GDP&Prices'!R7/'GDP&Prices'!R$32*100 -> 78.05681754 | Q85: ='GDP&Prices'!S7/'GDP&Prices'!S$32*100 -> 78.12556339
B86: Private | D86: ='GDP&Prices'!F9/'GDP&Prices'!F$32*100 -> 71.58651134 | E86: ='GDP&Prices'!G9/'GDP&Prices'!G$32*100 -> 70.94105389 | F86: ='GDP&Prices'!H9/'GDP&Prices'!H$32*100 -> 70.95268612 | G86: ='GDP&Prices'!I9/'GDP&Prices'!I$32*100 -> 70.49128015 | H86: ='GDP&Prices'!J9/'GDP&Prices'!J$32*100 -> 69.80368637 | I86: ='GDP&Prices'!K9/'GDP&Prices'!K$32*100 -> 71.88812199 | J86: ='GDP&Prices'!L9/'GDP&Prices'!L$32*100 -> 69.01190786 | K86: ='GDP&Prices'!M9/'GDP&Prices'!M$32*100 -> 68.82043758 | L86: ='GDP&Prices'!N9/'GDP&Prices'!N$32*100 -> 69.07069897 | M86: ='GDP&Prices'!O9/'GDP&Prices'!O$32*100 -> 69.80116495 | N86: ='GDP&Prices'!P9/'GDP&Prices'!P$32*100 -> 69.4198507 | O86: ='GDP&Prices'!Q9/'GDP&Prices'!Q$32*100 -> 69.42357854 | P86: ='GDP&Prices'!R9/'GDP&Prices'!R$32*100 -> 69.36784028 | Q86: ='GDP&Prices'!S9/'GDP&Prices'!S$32*100 -> 69.31992182
B87: Public | D87: ='GDP&Prices'!F13/'GDP&Prices'!F$32*100 -> 8.873968453 | E87: ='GDP&Prices'!G13/'GDP&Prices'!G$32*100 -> 8.455051779 | F87: ='GDP&Prices'!H13/'GDP&Prices'!H$32*100 -> 8.170908169 | G87: ='GDP&Prices'!I13/'GDP&Prices'!I$32*100 -> 7.897914401 | H87: ='GDP&Prices'!J13/'GDP&Prices'!J$32*100 -> 7.94939683 | I87: ='GDP&Prices'!K13/'GDP&Prices'!K$32*100 -> 8.890649617 | J87: ='GDP&Prices'!L13/'GDP&Prices'!L$32*100 -> 8.011525121 | K87: ='GDP&Prices'!M13/'GDP&Prices'!M$32*100 -> 7.895117477 | L87: ='GDP&Prices'!N13/'GDP&Prices'!N$32*100 -> 8.270995051 | M87: ='GDP&Prices'!O13/'GDP&Prices'!O$32*100 -> 8.442005167 | N87: ='GDP&Prices'!P13/'GDP&Prices'!P$32*100 -> 8.482385669 | O87: ='GDP&Prices'!Q13/'GDP&Prices'!Q$32*100 -> 8.580173471 | P87: ='GDP&Prices'!R13/'GDP&Prices'!R$32*100 -> 8.688977259 | Q87: ='GDP&Prices'!S13/'GDP&Prices'!S$32*100 -> 8.805641565
B88: Investment | D88: ='GDP&Prices'!F15/'GDP&Prices'!F$32*100 -> 24.7464208 | E88: ='GDP&Prices'!G15/'GDP&Prices'!G$32*100 -> 25.97603661 | F88: ='GDP&Prices'!H15/'GDP&Prices'!H$32*100 -> 24.8319717 | G88: ='GDP&Prices'!I15/'GDP&Prices'!I$32*100 -> 26.45720294 | H88: ='GDP&Prices'!J15/'GDP&Prices'!J$32*100 -> 27.07592178 | I88: ='GDP&Prices'!K15/'GDP&Prices'!K$32*100 -> 25.37651118 | J88: ='GDP&Prices'!L15/'GDP&Prices'!L$32*100 -> 27.89720696 | K88: ='GDP&Prices'!M15/'GDP&Prices'!M$32*100 -> 27.53046747 | L88: ='GDP&Prices'!N15/'GDP&Prices'!N$32*100 -> 27.28865901 | M88: ='GDP&Prices'!O15/'GDP&Prices'!O$32*100 -> 28.19329095 | N88: ='GDP&Prices'!P15/'GDP&Prices'!P$32*100 -> 28.49299494 | O88: ='GDP&Prices'!Q15/'GDP&Prices'!Q$32*100 -> 28.35371975 | P88: ='GDP&Prices'!R15/'GDP&Prices'!R$32*100 -> 28.30742237 | Q88: ='GDP&Prices'!S15/'GDP&Prices'!S$32*100 -> 28.27849498
B89: Private | D89: ='GDP&Prices'!F17/'GDP&Prices'!F$32*100 -> 22.46359139 | E89: ='GDP&Prices'!G17/'GDP&Prices'!G$32*100 -> 24.08689411 | F89: ='GDP&Prices'!H17/'GDP&Prices'!H$32*100 -> 22.95509436 | G89: ='GDP&Prices'!I17/'GDP&Prices'!I$32*100 -> 24.90230302 | H89: ='GDP&Prices'!J17/'GDP&Prices'!J$32*100 -> 25.55410782 | I89: ='GDP&Prices'!K17/'GDP&Prices'!K$32*100 -> 23.8251012 | J89: ='GDP&Prices'!L17/'GDP&Prices'!L$32*100 -> 26.52374633 | K89: ='GDP&Prices'!M17/'GDP&Prices'!M$32*100 -> 26.10011281 | L89: ='GDP&Prices'!N17/'GDP&Prices'!N$32*100 -> 25.2935115 | M89: ='GDP&Prices'!O17/'GDP&Prices'!O$32*100 -> 26.14689262 | N89: ='GDP&Prices'!P17/'GDP&Prices'!P$32*100 -> 26.43762452 | O89: ='GDP&Prices'!Q17/'GDP&Prices'!Q$32*100 -> 26.28449796 | P89: ='GDP&Prices'!R17/'GDP&Prices'!R$32*100 -> 26.22209067 | Q89: ='GDP&Prices'!S17/'GDP&Prices'!S$32*100 -> 26.17766744
B90: Public | D90: ='GDP&Prices'!F21/'GDP&Prices'!F$32*100 -> 2.282829403 | E90: ='GDP&Prices'!G21/'GDP&Prices'!G$32*100 -> 1.889142494 | F90: ='GDP&Prices'!H21/'GDP&Prices'!H$32*100 -> 1.876877345 | G90: ='GDP&Prices'!I21/'GDP&Prices'!I$32*100 -> 1.554899925 | H90: ='GDP&Prices'!J21/'GDP&Prices'!J$32*100 -> 1.521813959 | I90: ='GDP&Prices'!K21/'GDP&Prices'!K$32*100 -> 1.551409983 | J90: ='GDP&Prices'!L21/'GDP&Prices'!L$32*100 -> 1.373460638 | K90: ='GDP&Prices'!M21/'GDP&Prices'!M$32*100 -> 1.430354661 | L90: ='GDP&Prices'!N21/'GDP&Prices'!N$32*100 -> 1.995147514 | M90: ='GDP&Prices'!O21/'GDP&Prices'!O$32*100 -> 2.046398326 | N90: ='GDP&Prices'!P21/'GDP&Prices'!P$32*100 -> 2.055370421 | O90: ='GDP&Prices'!Q21/'GDP&Prices'!Q$32*100 -> 2.069221789 | P90: ='GDP&Prices'!R21/'GDP&Prices'!R$32*100 -> 2.085331698 | Q90: ='GDP&Prices'!S21/'GDP&Prices'!S$32*100 -> 2.100827543
B91: Exports of goods and services | D91: ='GDP&Prices'!F23/'GDP&Prices'!F$32*100 -> 26.14518082 | E91: ='GDP&Prices'!G23/'GDP&Prices'!G$32*100 -> 26.58439034 | F91: ='GDP&Prices'!H23/'GDP&Prices'!H$32*100 -> 26.39676316 | G91: ='GDP&Prices'!I23/'GDP&Prices'!I$32*100 -> 25.74360659 | H91: ='GDP&Prices'!J23/'GDP&Prices'!J$32*100 -> 25.29215929 | I91: ='GDP&Prices'!K23/'GDP&Prices'!K$32*100 -> 19.36376642 | J91: ='GDP&Prices'!L23/'GDP&Prices'!L$32*100 -> 22.51240045 | K91: ='GDP&Prices'!M23/'GDP&Prices'!M$32*100 -> 24.84598705 | L91: ='GDP&Prices'!N23/'GDP&Prices'!N$32*100 -> 24.2331164 | M91: ='GDP&Prices'!O23/'GDP&Prices'!O$32*100 -> 24.32001446 | N91: ='GDP&Prices'!P23/'GDP&Prices'!P$32*100 -> 23.83000204 | O91: ='GDP&Prices'!Q23/'GDP&Prices'!Q$32*100 -> 23.42371588 | P91: ='GDP&Prices'!R23/'GDP&Prices'!R$32*100 -> 23.01371509 | Q91: ='GDP&Prices'!S23/'GDP&Prices'!S$32*100 -> 22.59481672
B92: Imports of goods and services | D92: =-'GDP&Prices'!F27/'GDP&Prices'!F$32*100 -> -31.75710929 | E92: =-'GDP&Prices'!G27/'GDP&Prices'!G$32*100 -> -32.09027724 | F92: =-'GDP&Prices'!H27/'GDP&Prices'!H$32*100 -> -29.84233448 | G92: =-'GDP&Prices'!I27/'GDP&Prices'!I$32*100 -> -30.44674456 | H92: =-'GDP&Prices'!J27/'GDP&Prices'!J$32*100 -> -30.49199711 | I92: =-'GDP&Prices'!K27/'GDP&Prices'!K$32*100 -> -27.78384322 | J92: =-'GDP&Prices'!L27/'GDP&Prices'!L$32*100 -> -31.44297143 | K92: =-'GDP&Prices'!M27/'GDP&Prices'!M$32*100 -> -34.12447232 | L92: =-'GDP&Prices'!N27/'GDP&Prices'!N$32*100 -> -31.81191133 | M92: =-'GDP&Prices'!O27/'GDP&Prices'!O$32*100 -> -30.75647552 | N92: =-'GDP&Prices'!P27/'GDP&Prices'!P$32*100 -> -30.22523335 | O92: =-'GDP&Prices'!Q27/'GDP&Prices'!Q$32*100 -> -29.78118764 | P92: =-'GDP&Prices'!R27/'GDP&Prices'!R$32*100 -> -29.377955 | Q92: =-'GDP&Prices'!S27/'GDP&Prices'!S$32*100 -> -28.99887509
C99: =C41/100-'Deficits&Financing'!E52 -> 0 | D99: =D41/100-'Deficits&Financing'!F52 -> 0 | E99: =E41/100-'Deficits&Financing'!G52 -> 0 | F99: =F41/100-'Deficits&Financing'!H52 -> 0 | G99: =G41/100-'Deficits&Financing'!I52 -> 0 | H99: =H41/100-'Deficits&Financing'!J52 -> 0 | I99: =I41/100-'Deficits&Financing'!K52 -> 0 | J99: =J41/100-'Deficits&Financing'!L52 -> 0 | K99: =K41/100-'Deficits&Financing'!M52 -> 0 | L99: =L41/100-'Deficits&Financing'!N52 -> 0 | M99: =M41/100-'Deficits&Financing'!O52 -> 0 | N99: =N41/100-'Deficits&Financing'!P52 -> 0 | O99: =O41/100-'Deficits&Financing'!Q52 -> 0 | P99: =P41/100-'Deficits&Financing'!R52 -> 0 | Q99: =Q41/100-'Deficits&Financing'!S52 -> 0

Sheet Control Panel
B3: The Control Panel can be completed after the model is finalized. Policy change values will need to be linked to the Policies & Assumptions sheet. More variables could be added to the Key Outcomes and aligned with the projection in the SEI sheet.
B4: =""&" "&Country_Name&" - Baseline and Alternative Policy Scenarios" -> Macrofoundland - Baseline and Alternative Policy Scenarios
B6: Policy Instruments | C6: =D6-1 -> 2023 | D6: =First_Year -> 2024 | E6: =D6+1 -> 2025 | F6: =E6+1 -> 2026 | G6: 2027 | H6: 2028
B7: Fiscal Policy (percent of GDP, unless otherwise indicated)
B8: Revenue: Baseline | C8: ='Policies&Assumptions'!N32 -> 15.85823353 | D8: =SEI!S35 -> 15.63162829 | E8: =SEI!T35 -> 15.63115305 | F8: =SEI!U35 -> 15.63114867 | G8: =SEI!V35 -> 15.63112836 | H8: =SEI!W35 -> 15.63120714
B9: Revenue: Scenario | C9: ='Policies&Assumptions'!N32 -> 15.85823353 | D9: ='Policies&Assumptions'!O32 -> 15.6312675 | E9: ='Policies&Assumptions'!P32 -> 15.63063205 | F9: ='Policies&Assumptions'!Q32 -> 15.63041415 | G9: ='Policies&Assumptions'!R32 -> 15.63029173 | H9: ='Policies&Assumptions'!S32 -> 15.63022354
B10: Additional revenue measures (please specify) | C10: … | D10: 0 | E10: 0 | F10: 0 | G10: 0 | H10: 0
B11: Changes in revenue (scenario minus baseline) | C11: =C9-C8 -> 0 | D11: -0.0003607865875 | E11: -0.0005210014689 | F11: -0.0007345230674 | G11: -0.0008366275982 | H11: -0.0009835952335
B12: Expenditure: Baseline | C12: ='Policies&Assumptions'!N40 -> 19.2170384 | D12: =SEI!S36 -> 18.43934411 | E12: =SEI!T36 -> 17.88280401 | F12: =SEI!U36 -> 17.55664921 | G12: =SEI!V36 -> 17.47356364 | H12: =SEI!W36 -> 17.35311777
B13: Baseline growth of noninterest expense (% y/y) | C13: … | D13: 0.095 | E13: 0.095 | F13: 0.095 | G13: 0.095 | H13: 0.095
B14: Baseline growth of capital expenditure (% y/y) | C14: … | D14: 0.095 | E14: 0.095 | F14: 0.095 | G14: 0.095 | H14: 0.095
B15: Expenditure: Scenario | C15: ='Policies&Assumptions'!N40 -> 19.2170384 | D15: ='Policies&Assumptions'!O40 -> 18.3986788 | E15: ='Policies&Assumptions'!P40 -> 17.93213597 | F15: ='Policies&Assumptions'!Q40 -> 17.68517169 | G15: ='Policies&Assumptions'!R40 -> 17.74187215 | H15: ='Policies&Assumptions'!S40 -> 17.76186015
B16: Growth of noninterest expense compared to baseline (% y/y) | C16: … | D16: 0.01 | E16: 0.01 | F16: 0.01 | G16: 0.01 | H16: 0.01
B17: Growth of capital expenditure compared to baseline (% y/y) | C17: … | D17: 0.01 | E17: 0.01 | F17: 0.01 | G17: 0.01 | H17: 0.01
B18: Changes in expenditure (scenario minus baseline) | C18: =C15-C12 -> 0 | D18: -0.04066531312 | E18: 0.04933195701 | F18: 0.1285224865 | G18: 0.2683085125 | H18: 0.408742381
B19: Fiscal balance: Baseline | C19: ='Policies&Assumptions'!N46 -> -3.358804873 | D19: =D8-D12 -> -2.807715825 | E19: =E8-E12 -> -2.251650958 | F19: =F8-F12 -> -1.925500533 | G19: =G8-G12 -> -1.842435278 | H19: =H8-H12 -> -1.721910631
B20: Fiscal balance: Scenario | C20: ='Policies&Assumptions'!N46 -> -3.358804873 | D20: ='Policies&Assumptions'!O46 -> -2.767411299 | E20: ='Policies&Assumptions'!P46 -> -2.301503917 | F20: ='Policies&Assumptions'!Q46 -> -2.054757542 | G20: ='Policies&Assumptions'!R46 -> -2.111580418 | H20: ='Policies&Assumptions'!S46 -> -2.131636607
B21: Changes in fiscal balance (scenario minus baseline) | C21: =C20-C19 -> 0 | D21: =D20-D19 -> 0.04030452653 | E21: =E20-E19 -> -0.04985295848 | F21: -0.1292570095 | G21: -0.2691451401 | H21: -0.4097259762
B22: Monetary Policy (percent)
B23: Policy rate: Baseline | C23: ='Policies&Assumptions'!N84 -> 0.0675 | D23: 0.05 | E23: 0.05 | F23: 0.045 | G23: 0.043 | H23: 0.042
B24: Policy rate: Scenario | C24: ='Policies&Assumptions'!N84 -> 0.0675 | D24: ='Policies&Assumptions'!O84 -> 0.045 | E24: ='Policies&Assumptions'!P84 -> 0.045 | F24: ='Policies&Assumptions'!Q84 -> 0.04 | G24: ='Policies&Assumptions'!R84 -> 0.04 | H24: ='Policies&Assumptions'!S84 -> 0.04
B25: Lower policy rate compared to baseline (%) | C25: … | D25: -0.005 | E25: -0.005 | F25: -0.005 | G25: -0.003 | H25: -0.002
B26: Exchange rate depreciation (LC/US$): Baseline | C26: ='Policies&Assumptions'!N107 -> 0.03636363636 | D26: 0.035 | E26: 0.035 | F26: 0.035 | G26: 0.035 | H26: 0.035
B27: Exchange rate depreciation (LC/US$): Scenario | C27: ='Policies&Assumptions'!N107 -> 0.03636363636 | D27: ='Policies&Assumptions'!O107 -> 0.035 | E27: ='Policies&Assumptions'!P107 -> 0.035 | F27: ='Policies&Assumptions'!Q107 -> 0.035 | G27: ='Policies&Assumptions'!R107 -> 0.035 | H27: ='Policies&Assumptions'!S107 -> 0.035
B28: Additional depreciation compared to baseline | C28: … | D28: 0 | E28: 0 | F28: 0 | G28: 0 | H28: 0
B30: Key Outcomes | C30: =C6 -> 2023 | D30: 2024 | E30: 2025 | F30: 2026 | G30: 2027 | H30: 2028
B31: Real GDP growth: Baseline (%) | C31: ='GDP&Prices'!N33 -> 0.02903835638 | D31: =SEI!S7/100 -> 0.0317245167 | E31: =SEI!T7/100 -> 0.05604869794 | F31: =SEI!U7/100 -> 0.05080131307 | G31: =SEI!V7/100 -> 0.05241346854 | H31: =SEI!W7/100 -> 0.05110552723
B32: Real GDP growth: Scenario (%) | C32: ='GDP&Prices'!N33 -> 0.02903835638 | D32: ='GDP&Prices'!O33 -> 0.03655190137 | E32: ='GDP&Prices'!P33 -> 0.05719722924 | F32: ='GDP&Prices'!Q33 -> 0.05220163644 | G32: ='GDP&Prices'!R33 -> 0.05174370418 | H32: ='GDP&Prices'!S33 -> 0.05106193028
B33: Output gap: Baseline (%) | C33: =SEI!L9/100 -> 0.002139825205 | D33: =SEI!S9/100 -> -0.015302606 | E33: =SEI!T9/100 -> -0.009630123475 | F33: =SEI!U9/100 -> -0.008874324023 | G33: =SEI!V9/100 -> -0.006596169244 | H33: =SEI!W9/100 -> -0.005550178811
B34: Output gap: Scenario (%) | C34: =SEI!L9/100 -> 0.002139825205 | D34: =SEI!M9/100 -> -0.01069523573 | E34: =SEI!N9/100 -> -0.003914094495 | F34: =SEI!O9/100 -> -0.001825499255 | G34: =SEI!P9/100 -> -0.0001678616024 | H34: =SEI!Q9/100 -> 0.0008433196044
B35: CPI inflation: Baseline (%) | C35: ='GDP&Prices'!N63 -> 0.04690196693 | D35: =SEI!S25/100 -> 0.04351822934 | E35: =SEI!T25/100 -> 0.03863680258 | F35: =SEI!U25/100 -> 0.03599836826 | G35: =SEI!V25/100 -> 0.03508854541 | H35: =SEI!W25/100 -> 0.03491451256
B36: CPI inflation: Scenario (%) | C36: ='GDP&Prices'!N63 -> 0.04690196693 | D36: ='GDP&Prices'!O63 -> 0.04443970339 | E36: ='GDP&Prices'!P63 -> 0.0402407454 | F36: ='GDP&Prices'!Q63 -> 0.03821010462 | G36: ='GDP&Prices'!R63 -> 0.03748007512 | H36: ='GDP&Prices'!S63 -> 0.03738897709
B37: Unemployment rate: Baseline (%) | C37: =SEI!L10/100 -> 0.06076 | D37: =SEI!S10/100 -> 0.0661210424 | E37: =SEI!T10/100 -> 0.06385204939 | F37: =SEI!U10/100 -> 0.06354972961 | G37: =SEI!V10/100 -> 0.0626384677 | H37: =SEI!W10/100 -> 0.06222007152
B38: Unemployment rate: Scenarios (%) | C38: =SEI!L10/100 -> 0.06076 | D38: =SEI!M10/100 -> 0.06427809429 | E38: =SEI!N10/100 -> 0.0615656378 | F38: =SEI!O10/100 -> 0.0607301997 | G38: =SEI!P10/100 -> 0.06006714464 | H38: =SEI!Q10/100 -> 0.05966267216
B39: Current account balance: Baseline (% of GDP) | C39: ='Deficits&Financing'!N40 -> -3.631055306 | D39: =SEI!S28 -> -2.527805739 | E39: =SEI!T28 -> -2.208216999 | F39: =SEI!U28 -> -1.953903885 | G39: =SEI!V28 -> -1.840639814 | H39: =SEI!W28 -> -1.792790215
B40: Current account balance: Scenario (% of GDP) | C40: ='Deficits&Financing'!N40 -> -3.631055306 | D40: ='Deficits&Financing'!O40 -> -2.657156169 | E40: ='Deficits&Financing'!P40 -> -2.392945322 | F40: ='Deficits&Financing'!Q40 -> -2.21351336 | G40: ='Deficits&Financing'!R40 -> -2.131889462 | H40: ='Deficits&Financing'!S40 -> -2.130946435
B41: Gross international reserves: Baseline (mo. of imports) | C41: =SEI!L32 -> 4.969187887 | D41: =SEI!S32 -> 4.97593957 | E41: =SEI!T32 -> 4.99215592 | F41: =SEI!U32 -> 5.068108855 | G41: =SEI!V32 -> 5.13103034 | H41: =SEI!W32 -> 5.172179551
B42: Gross international reserves: Scenario (mo. of imports) | C42: =SEI!L32 -> 4.969187887 | D42: =SEI!M32 -> 4.883579745 | E42: =SEI!N32 -> 4.806872289 | F42: =SEI!O32 -> 4.768262178 | G42: =SEI!P32 -> 4.704838445 | H42: =SEI!Q32 -> 4.603970645
B43: Fiscal Balance: Baseline (% of GDP) | C43: =SEI!L37 -> -3.358804873 | D43: =SEI!S37 -> -2.807715825 | E43: =SEI!T37 -> -2.251650958 | F43: =SEI!U37 -> -1.925500533 | G43: =SEI!V37 -> -1.842435278 | H43: =SEI!W37 -> -1.721910631
B44: Fiscal Balance: Scenario (% of GDP) | C44: =C43 -> -3.358804873 | D44: =SEI!M37 -> -2.767411299 | E44: =SEI!N37 -> -2.301503917 | F44: =SEI!O37 -> -2.054757542 | G44: =SEI!P37 -> -2.111580418 | H44: =SEI!Q37 -> -2.131636607
B45: Public debt: Baseline (% of GDP) | C45: =SEI!L39 -> 60.7993364 | D45: =SEI!S39 -> 60.84289554 | E45: =SEI!T39 -> 58.58039922 | F45: =SEI!U39 -> 58.77217474 | G45: =SEI!V39 -> 56.74957186 | H45: =SEI!W39 -> 56.90609833
B46: Public debt: Scenario (% of GDP) | C46: =SEI!L39 -> 60.7993364 | D46: =SEI!M39 -> 60.46965699 | E46: =SEI!N39 -> 58.13812025 | F46: =SEI!O39 -> 58.27502245 | G46: =SEI!P39 -> 56.46025279 | H46: =SEI!Q39 -> 56.87841433
B48: =""&" "&Country_Name&" - Baseline and Alternative Policy Scenarios" -> Macrofoundland - Baseline and Alternative Policy Scenarios
B107: Inflation target | C107: ='GDP&Prices'!N107 -> 0.04 | D107: ='GDP&Prices'!O107 -> 0.04 | E107: ='GDP&Prices'!P107 -> 0.04 | F107: ='GDP&Prices'!Q107 -> 0.04 | G107: ='GDP&Prices'!R107 -> 0.04 | H107: ='GDP&Prices'!S107 -> 0.04

Sheet DDT Input
A1: Cell codes: Yellow-shaded cells contain historical data to be populate by users. Grey (empty) cells refer to values to be generated by the template in other worksheets.
A4: Historical Data and Forecasts. Variables in percent or percent of GDP, unless otherwise indicated.
A5: ="Country:"&" "&Country_Name -> Country: Macrofoundland
L7: First Year of Projection
A8: Year/Variable | B8: =C8-1 -> 2014 | C8: 2015 | D8: 2016 | E8: 2017 | F8: 2018 | G8: 2019 | H8: 2020 | I8: 2021 | J8: 2022 | K8: =L8-1 -> 2023 | L8: =First_Year -> 2024 | M8: =L8+1 -> 2025 | N8: 2026 | O8: 2027 | P8: 2028
A9: dt (debt including uncalled guarantees): Stock of total gross public debt, percent of GDP | B9: ='Policies&Assumptions'!E57*100 -> 44.69283278 | C9: ='Policies&Assumptions'!F57*100 -> 44.68747372 | D9: ='Policies&Assumptions'!G57*100 -> 46.40125503 | E9: ='Policies&Assumptions'!H57*100 -> 48.90642379 | F9: ='Policies&Assumptions'!I57*100 -> 50.80799061 | G9: ='Policies&Assumptions'!J57*100 -> 53.57925566 | H9: ='Policies&Assumptions'!K57*100 -> 71.08443525 | I9: ='Policies&Assumptions'!L57*100 -> 63.56278925 | J9: ='Policies&Assumptions'!M57*100 -> 59.5471175 | K9: ='Policies&Assumptions'!N57*100 -> 60.7993364
A10: o/w stock of local-currency guarantees (uncalled): Stock of uncalled guarantees in local currency included in total debt, percent of GDP | B10: 0 | C10: 0 | D10: 0 | E10: 0 | F10: 0 | G10: 0 | H10: 0 | I10: 0 | J10: 0 | K10: 0 | L10: 0 | M10: 0 | N10: 0 | O10: 0 | P10: 0
A11: o/w stock of foreign-currency guarantees (uncalled): Stock of uncalled guarantees in foreign currency included in total debt, percent of GDP | B11: 0 | C11: 0 | D11: 0 | E11: 0 | F11: 0 | G11: 0 | H11: 0 | I11: 0 | J11: 0 | K11: 0 | L11: 0 | M11: 0 | N11: 0 | O11: 0 | P11: 0
A12: αt (share excl. guarantees): Share of foreign currency denominated debt in total debt, percent of total debt | B12: ='Policies&Assumptions'!E63/'Policies&Assumptions'!E56*100 -> 57.4340976 | C12: ='Policies&Assumptions'!F63/'Policies&Assumptions'!F56*100 -> 53.391647 | D12: ='Policies&Assumptions'!G63/'Policies&Assumptions'!G56*100 -> 52.13099753 | E12: ='Policies&Assumptions'!H63/'Policies&Assumptions'!H56*100 -> 50.33412987 | F12: ='Policies&Assumptions'!I63/'Policies&Assumptions'!I56*100 -> 51.76670928 | G12: ='Policies&Assumptions'!J63/'Policies&Assumptions'!J56*100 -> 51.50079591 | H12: ='Policies&Assumptions'!K63/'Policies&Assumptions'!K56*100 -> 56.84750669 | I12: ='Policies&Assumptions'!L63/'Policies&Assumptions'!L56*100 -> 57.83488363 | J12: ='Policies&Assumptions'!M63/'Policies&Assumptions'!M56*100 -> 57.03945608 | K12: ='Policies&Assumptions'!N63/'Policies&Assumptions'!N56*100 -> 57.73975133 | L12: ='Policies&Assumptions'!O63/'Policies&Assumptions'!O56*100 -> 59.69205484 | M12: ='Policies&Assumptions'!P63/'Policies&Assumptions'!P56*100 -> 60.14174881 | N12: ='Policies&Assumptions'!Q63/'Policies&Assumptions'!Q56*100 -> 62.13019872 | O12: ='Policies&Assumptions'!R63/'Policies&Assumptions'!R56*100 -> 62.3294766 | P12: ='Policies&Assumptions'!S63/'Policies&Assumptions'!S56*100 -> 63.65859294
A13: et (LCU/FCU, avg): Nominal average exchange rate, local currency per unit of foreign currency | B13: ='Policies&Assumptions'!E106 -> 42.62556729 | C13: ='Policies&Assumptions'!F106 -> 44.08933195 | D13: ='Policies&Assumptions'!G106 -> 45.09998253 | E13: ='Policies&Assumptions'!H106 -> 46.53504956 | F13: ='Policies&Assumptions'!I106 -> 48.47777427 | G13: ='Policies&Assumptions'!J106 -> 50.21800553 | H13: ='Policies&Assumptions'!K106 -> 55.33917337 | I13: ='Policies&Assumptions'!L106 -> 55.94932369 | J13: ='Policies&Assumptions'!M106 -> 53.9 | K13: ='Policies&Assumptions'!N106 -> 55.86 | L13: ='Policies&Assumptions'!O106 -> 57.8151 | M13: ='Policies&Assumptions'!P106 -> 59.8386285 | N13: ='Policies&Assumptions'!Q106 -> 61.9329805 | O13: ='Policies&Assumptions'!R106 -> 64.10063481 | P13: ='Policies&Assumptions'!S106 -> 66.34415703
A14: et (LCU/FCU, eop): Nominal end-of-period exchange rate, local currency per unit of foreign currency | B14: ='Policies&Assumptions'!E110 -> 43.394204 | C14: ='Policies&Assumptions'!F110 -> 44.601515 | D14: ='Policies&Assumptions'!G110 -> 45.728417 | E14: ='Policies&Assumptions'!H110 -> 47.281227 | F14: ='Policies&Assumptions'!I110 -> 49.23471 | G14: ='Policies&Assumptions'!J110 -> 51.872527 | H14: ='Policies&Assumptions'!K110 -> 57.05511 | I14: ='Policies&Assumptions'!L110 -> 56.196336 | J14: ='Policies&Assumptions'!M110 -> 54.88 | K14: ='Policies&Assumptions'!N110 -> 55.86 | L14: ='Policies&Assumptions'!O110 -> 59.7702 | M14: ='Policies&Assumptions'!P110 -> 59.907057 | N14: ='Policies&Assumptions'!Q110 -> 63.95890399 | O14: ='Policies&Assumptions'!R110 -> 64.24236563 | P14: ='Policies&Assumptions'!S110 -> 68.44594843
A15: itd: Nominal effective interest rate on local currency denominated debt, percent | C15: =('Policies&Assumptions'!F23/'Policies&Assumptions'!E58)*100 -> 14.32510406 | D15: =('Policies&Assumptions'!G23/'Policies&Assumptions'!F58)*100 -> 14.32071118 | E15: =('Policies&Assumptions'!H23/'Policies&Assumptions'!G58)*100 -> 14.02614456 | F15: =('Policies&Assumptions'!I23/'Policies&Assumptions'!H58)*100 -> 13.24837468 | G15: =('Policies&Assumptions'!J23/'Policies&Assumptions'!I58)*100 -> 14.34275792 | H15: =('Policies&Assumptions'!K23/'Policies&Assumptions'!J58)*100 -> 13.78421322 | I15: =('Policies&Assumptions'!L23/'Policies&Assumptions'!K58)*100 -> 13.07289622 | J15: =('Policies&Assumptions'!M23/'Policies&Assumptions'!L58)*100 -> 13.81824762 | K15: =('Policies&Assumptions'!N23/'Policies&Assumptions'!M58)*100 -> 13.6945933 | L15: =('Policies&Assumptions'!O23/'Policies&Assumptions'!N58)*100 -> 9.892998659 | M15: =('Policies&Assumptions'!P23/'Policies&Assumptions'!O58)*100 -> 9.407932173 | N15: =('Policies&Assumptions'!Q23/'Policies&Assumptions'!P58)*100 -> 9.355171038 | O15: =('Policies&Assumptions'!R23/'Policies&Assumptions'!Q58)*100 -> 9.715554444 | P15: =('Policies&Assumptions'!S23/'Policies&Assumptions'!R58)*100 -> 9.918860526
A16: itf: Nominal effective interest rate on foreign currency denominated debt, percent | C16: =('Policies&Assumptions'!F24/'Policies&Assumptions'!F106/('Policies&Assumptions'!E63/'Policies&Assumptions'!E110)*100) -> 4.297079462 | D16: =('Policies&Assumptions'!G24/'Policies&Assumptions'!G106/('Policies&Assumptions'!F63/'Policies&Assumptions'!F110)*100) -> 5.345189223 | E16: =('Policies&Assumptions'!H24/'Policies&Assumptions'!H106/('Policies&Assumptions'!G63/'Policies&Assumptions'!G110)*100) -> 5.467159066 | F16: =('Policies&Assumptions'!I24/'Policies&Assumptions'!I106/('Policies&Assumptions'!H63/'Policies&Assumptions'!H110)*100) -> 5.623865942 | G16: =('Policies&Assumptions'!J24/'Policies&Assumptions'!J106/('Policies&Assumptions'!I63/'Policies&Assumptions'!I110)*100) -> 6.37671 | H16: =('Policies&Assumptions'!K24/'Policies&Assumptions'!K106/('Policies&Assumptions'!J63/'Policies&Assumptions'!J110)*100) -> 5.937174755 | I16: =('Policies&Assumptions'!L24/'Policies&Assumptions'!L106/('Policies&Assumptions'!K63/'Policies&Assumptions'!K110)*100) -> 4.865917195 | J16: =('Policies&Assumptions'!M24/'Policies&Assumptions'!M106/('Policies&Assumptions'!L63/'Policies&Assumptions'!L110)*100) -> 5.009771969 | K16: =('Policies&Assumptions'!N24/'Policies&Assumptions'!N106/('Policies&Assumptions'!M63/'Policies&Assumptions'!M110)*100) -> 4.841565677 | L16: =('Policies&Assumptions'!O24/'Policies&Assumptions'!O106/('Policies&Assumptions'!N63/'Policies&Assumptions'!N110)*100) -> 5.727233075 | M16: =('Policies&Assumptions'!P24/'Policies&Assumptions'!P106/('Policies&Assumptions'!O63/'Policies&Assumptions'!O110)*100) -> 4.798690103 | N16: =('Policies&Assumptions'!Q24/'Policies&Assumptions'!Q106/('Policies&Assumptions'!P63/'Policies&Assumptions'!P110)*100) -> 3.95664703 | O16: =('Policies&Assumptions'!R24/'Policies&Assumptions'!R106/('Policies&Assumptions'!Q63/'Policies&Assumptions'!Q110)*100) -> 3.72997135 | P16: =('Policies&Assumptions'!S24/'Policies&Assumptions'!S106/('Policies&Assumptions'!R63/'Policies&Assumptions'!R110)*100) -> 3.395881707
A17: πt: GDP deflator inflation, percent | B17: ='GDP&Prices'!E68*100 -> 4.449616792 | C17: ='GDP&Prices'!F68*100 -> 2.345987981 | D17: ='GDP&Prices'!G68*100 -> 2.084934904 | E17: ='GDP&Prices'!H68*100 -> 4.088244532 | F17: ='GDP&Prices'!I68*100 -> 4.013468227 | G17: ='GDP&Prices'!J68*100 -> 2.632094932 | H17: ='GDP&Prices'!K68*100 -> 4.78392022 | I17: ='GDP&Prices'!L68*100 -> 7.703668386 | J17: ='GDP&Prices'!M68*100 -> 10.72582053 | K17: ='GDP&Prices'!N68*100 -> 4.503329986 | L17: ='GDP&Prices'!O68*100 -> 7.690870428 | M17: ='GDP&Prices'!P68*100 -> 4.345293507 | N17: ='GDP&Prices'!Q68*100 -> 4.141894453 | O17: ='GDP&Prices'!R68*100 -> 4.02692753 | P17: ='GDP&Prices'!S68*100 -> 4.003003944
A18: gt: Real GDP growth, percent | B18: ='GDP&Prices'!E33*100 -> 7.441014323 | C18: ='GDP&Prices'!F33*100 -> 6.538336528 | D18: ='GDP&Prices'!G33*100 -> 7.000394221 | E18: ='GDP&Prices'!H33*100 -> 4.332952192 | F18: ='GDP&Prices'!I33*100 -> 6.371269725 | G18: ='GDP&Prices'!J33*100 -> 5.655845721 | H18: ='GDP&Prices'!K33*100 -> -6.176355 | I18: ='GDP&Prices'!L33*100 -> 11.04147507 | J18: ='GDP&Prices'!M33*100 -> 5.40573308 | K18: ='GDP&Prices'!N33*100 -> 2.903835638 | L18: ='GDP&Prices'!O33*100 -> 3.655190137 | M18: ='GDP&Prices'!P33*100 -> 5.719722924 | N18: ='GDP&Prices'!Q33*100 -> 5.220163644 | O18: ='GDP&Prices'!R33*100 -> 5.174370418 | P18: ='GDP&Prices'!S33*100 -> 5.106193028
A19: pbt: Primary balance, percent of GDP | B19: =('Policies&Assumptions'!E32-('Policies&Assumptions'!E40-'Policies&Assumptions'!E42)) -> 0.4559474841 | C19: =('Policies&Assumptions'!F32-('Policies&Assumptions'!F40-'Policies&Assumptions'!F42)) -> 3.447848324 | D19: =('Policies&Assumptions'!G32-('Policies&Assumptions'!G40-'Policies&Assumptions'!G42)) -> 0.7764190876 | E19: =('Policies&Assumptions'!H32-('Policies&Assumptions'!H40-'Policies&Assumptions'!H42)) -> 0.9512327614 | F19: =('Policies&Assumptions'!I32-('Policies&Assumptions'!I40-'Policies&Assumptions'!I42)) -> 1.95663775 | G19: =('Policies&Assumptions'!J32-('Policies&Assumptions'!J40-'Policies&Assumptions'!J42)) -> 1.297786889 | H19: =('Policies&Assumptions'!K32-('Policies&Assumptions'!K40-'Policies&Assumptions'!K42)) -> -2.493902521 | I19: =('Policies&Assumptions'!L32-('Policies&Assumptions'!L40-'Policies&Assumptions'!L42)) -> 1.94655553 | J19: =('Policies&Assumptions'!M32-('Policies&Assumptions'!M40-'Policies&Assumptions'!M42)) -> 1.36074652 | K19: =('Policies&Assumptions'!N32-('Policies&Assumptions'!N40-'Policies&Assumptions'!N42)) -> 1.455439367 | L19: =('Policies&Assumptions'!O32-('Policies&Assumptions'!O40-'Policies&Assumptions'!O42)) -> 1.373909111 | M19: =('Policies&Assumptions'!P32-('Policies&Assumptions'!P40-'Policies&Assumptions'!P42)) -> 1.349176049 | N19: =('Policies&Assumptions'!Q32-('Policies&Assumptions'!Q40-'Policies&Assumptions'!Q42)) -> 1.228828383 | O19: =('Policies&Assumptions'!R32-('Policies&Assumptions'!R40-'Policies&Assumptions'!R42)) -> 1.085185376 | P19: =('Policies&Assumptions'!S32-('Policies&Assumptions'!S40-'Policies&Assumptions'!S42)) -> 0.9272561304
A20: oft: Other net debt-creating flows, percent of GDP | B20: ='Policies&Assumptions'!E53/'Policies&Assumptions'!E79*100 -> -0.3118434496 | C20: ='Policies&Assumptions'!F53/'Policies&Assumptions'!F79*100 -> 1.074327748 | D20: ='Policies&Assumptions'!G53/'Policies&Assumptions'!G79*100 -> 1.519158691 | E20: ='Policies&Assumptions'!H53/'Policies&Assumptions'!H79*100 -> 2.848679244 | F20: ='Policies&Assumptions'!I53/'Policies&Assumptions'!I79*100 -> 2.330589244 | G20: ='Policies&Assumptions'!J53/'Policies&Assumptions'!J79*100 -> 1.694281879 | H20: ='Policies&Assumptions'!K53/'Policies&Assumptions'!K79*100 -> 4.211627852 | I20: ='Policies&Assumptions'!L53/'Policies&Assumptions'!L79*100 -> -0.3843953396 | J20: ='Policies&Assumptions'!M53/'Policies&Assumptions'!M79*100 -> 2.064044396 | K20: ='Policies&Assumptions'!N53/'Policies&Assumptions'!N79*100 -> 0.9774203828 | L20: ='Policies&Assumptions'!O53/'Policies&Assumptions'!O79*100 -> 0.9544164672 | M20: ='Policies&Assumptions'!P53/'Policies&Assumptions'!P79*100 -> 0.9430518327 | N20: ='Policies&Assumptions'!Q53/'Policies&Assumptions'!Q79*100 -> 0.9380751085 | O20: ='Policies&Assumptions'!R53/'Policies&Assumptions'!R79*100 -> 0.9345626454 | P20: ='Policies&Assumptions'!S53/'Policies&Assumptions'!S79*100 -> 0.9318815891
A21: πft: Foreign GDP deflator inflation, percent (used in fan chart) | B21: ='GDP&Prices'!E101 -> 2.372469681 | C21: ='GDP&Prices'!F101 -> 1.561337287 | D21: ='GDP&Prices'!G101 -> 1.990749672 | E21: ='GDP&Prices'!H101 -> 2.704568196 | F21: ='GDP&Prices'!I101 -> 3.091593863 | G21: ='GDP&Prices'!J101 -> 3.310674432 | H21: ='GDP&Prices'!K101 -> 2.481533763 | I21: ='GDP&Prices'!L101 -> 4.387145914 | J21: ='GDP&Prices'!M101 -> 8.235045345 | K21: ='GDP&Prices'!N101 -> 6.57254212 | L21: ='GDP&Prices'!O101 -> 7.941764092 | M21: ='GDP&Prices'!P101 -> 3.700441486 | N21: ='GDP&Prices'!Q101 -> 2.955716404 | O21: ='GDP&Prices'!R101 -> 2.631606253 | P21: ='GDP&Prices'!S101 -> 2.487453911

Sheet DDT Debt Dynamics
A1: Cell code: Yellow cells are values to be inputted by the user. White cells refer to values generated by the template, or constructed to satisfy certain constraints, using formulas (e.g., accounting definitions, solutions to equations).
A4: Baseline Scenario. Units of macro fiscal variables are as indicated in "Input - Data".
A5: ="Country:"&" "&Country_Name -> Country: Macrofoundland
L7: First Year of Projection
A8: Year | B8: =C8-1 -> 2014 | C8: 2015 | D8: 2016 | E8: 2017 | F8: 2018 | G8: 2019 | H8: 2020 | I8: 2021 | J8: 2022 | K8: =L8-1 -> 2023 | L8: =First_Year -> 2024 | M8: =L8+1 -> 2025 | N8: 2026 | O8: 2027 | P8: 2028
A9: dt (debt including uncalled guarantees) | B9: ='DDT Input'!B9 -> 44.69283278 | C9: ='DDT Input'!C9 -> 44.68747372 | D9: ='DDT Input'!D9 -> 46.40125503 | E9: ='DDT Input'!E9 -> 48.90642379 | F9: ='DDT Input'!F9 -> 50.80799061 | G9: ='DDT Input'!G9 -> 53.57925566 | H9: ='DDT Input'!H9 -> 71.08443525 | I9: ='DDT Input'!I9 -> 63.56278925 | J9: ='DDT Input'!J9 -> 59.5471175 | K9: ='DDT Input'!K9 -> 60.7993364 | L9: =(K9-K10-K11)*(L23)-L20*L24+L20*L25+(L10+L11) -> 60.46966058 | M9: =(L9-L10-L11)*(M23)-M20*M24+M20*M25+(M10+M11) -> 58.13812065 | N9: =(M9-M10-M11)*(N23)-N20*N24+N20*N25+(N10+N11) -> 58.27502319 | O9: 56.46025343 | P9: 56.87841434
A10: o/w stock of local-currency guarantees (uncalled) | B10: ='DDT Input'!B10 -> 0 | C10: ='DDT Input'!C10 -> 0 | D10: ='DDT Input'!D10 -> 0 | E10: ='DDT Input'!E10 -> 0 | F10: ='DDT Input'!F10 -> 0 | G10: ='DDT Input'!G10 -> 0 | H10: ='DDT Input'!H10 -> 0 | I10: ='DDT Input'!I10 -> 0 | J10: ='DDT Input'!J10 -> 0 | K10: ='DDT Input'!K10 -> 0 | L10: ='DDT Input'!L10 -> 0 | M10: ='DDT Input'!M10 -> 0 | N10: ='DDT Input'!N10 -> 0 | O10: ='DDT Input'!O10 -> 0 | P10: ='DDT Input'!P10 -> 0
A11: o/w stock of foreign-currency guarantees (uncalled) | B11: ='DDT Input'!B11 -> 0 | C11: ='DDT Input'!C11 -> 0 | D11: ='DDT Input'!D11 -> 0 | E11: ='DDT Input'!E11 -> 0 | F11: ='DDT Input'!F11 -> 0 | G11: ='DDT Input'!G11 -> 0 | H11: ='DDT Input'!H11 -> 0 | I11: ='DDT Input'!I11 -> 0 | J11: ='DDT Input'!J11 -> 0 | K11: ='DDT Input'!K11 -> 0 | L11: ='DDT Input'!L11 -> 0 | M11: ='DDT Input'!M11 -> 0 | N11: ='DDT Input'!N11 -> 0 | O11: ='DDT Input'!O11 -> 0 | P11: ='DDT Input'!P11 -> 0
A12: 1 - αt (share excl. guarantees) | B12: =100-B13 -> 42.5659024 | C12: =100-C13 -> 46.608353 | D12: 47.86900247 | E12: 49.66587013 | F12: 48.23329072 | G12: 48.49920409 | H12: 43.15249331 | I12: 42.16511637 | J12: 42.96054392 | K12: 42.26024867 | L12: 40.30794516 | M12: 39.85825119 | N12: 37.86980128 | O12: 37.6705234 | P12: 36.34140706
A13: αt (share excl. guarantees) | B13: ='DDT Input'!B12 -> 57.4340976 | C13: ='DDT Input'!C12 -> 53.391647 | D13: ='DDT Input'!D12 -> 52.13099753 | E13: ='DDT Input'!E12 -> 50.33412987 | F13: ='DDT Input'!F12 -> 51.76670928 | G13: ='DDT Input'!G12 -> 51.50079591 | H13: ='DDT Input'!H12 -> 56.84750669 | I13: ='DDT Input'!I12 -> 57.83488363 | J13: ='DDT Input'!J12 -> 57.03945608 | K13: ='DDT Input'!K12 -> 57.73975133 | L13: ='DDT Input'!L12 -> 59.69205484 | M13: ='DDT Input'!M12 -> 60.14174881 | N13: ='DDT Input'!N12 -> 62.13019872 | O13: ='DDT Input'!O12 -> 62.3294766 | P13: ='DDT Input'!P12 -> 63.65859294
A14: et (avg) | B14: ='DDT Input'!B13 -> 42.62556729 | C14: ='DDT Input'!C13 -> 44.08933195 | D14: ='DDT Input'!D13 -> 45.09998253 | E14: ='DDT Input'!E13 -> 46.53504956 | F14: ='DDT Input'!F13 -> 48.47777427 | G14: ='DDT Input'!G13 -> 50.21800553 | H14: ='DDT Input'!H13 -> 55.33917337 | I14: ='DDT Input'!I13 -> 55.94932369 | J14: ='DDT Input'!J13 -> 53.9 | K14: ='DDT Input'!K13 -> 55.86 | L14: ='DDT Input'!L13 -> 57.8151 | M14: ='DDT Input'!M13 -> 59.8386285 | N14: ='DDT Input'!N13 -> 61.9329805 | O14: ='DDT Input'!O13 -> 64.10063481 | P14: ='DDT Input'!P13 -> 66.34415703
A15: et (eop) | B15: ='DDT Input'!B14 -> 43.394204 | C15: ='DDT Input'!C14 -> 44.601515 | D15: ='DDT Input'!D14 -> 45.728417 | E15: ='DDT Input'!E14 -> 47.281227 | F15: ='DDT Input'!F14 -> 49.23471 | G15: ='DDT Input'!G14 -> 51.872527 | H15: ='DDT Input'!H14 -> 57.05511 | I15: ='DDT Input'!I14 -> 56.196336 | J15: ='DDT Input'!J14 -> 54.88 | K15: ='DDT Input'!K14 -> 55.86 | L15: ='DDT Input'!L14 -> 59.7702 | M15: ='DDT Input'!M14 -> 59.907057 | N15: ='DDT Input'!N14 -> 63.95890399 | O15: ='DDT Input'!O14 -> 64.24236563 | P15: ='DDT Input'!P14 -> 68.44594843
A16: εt | B16: n.a. | C16: =(C15/B15-1)*100 -> 2.782194138 | D16: 2.526600274 | E16: 3.395722183 | F16: 4.13162501 | G16: 5.357636919 | H16: 9.99099774 | I16: -1.505165795 | J16: -2.342387589 | K16: 1.785714286 | L16: 7 | M16: 0.2289719626 | N16: 6.763555411 | O16: 0.4431933978 | P16: 6.543318814
A17: itd | B17: ='DDT Input'!B15 -> 0 | C17: ='DDT Input'!C15 -> 14.32510406 | D17: ='DDT Input'!D15 -> 14.32071118 | E17: ='DDT Input'!E15 -> 14.02614456 | F17: ='DDT Input'!F15 -> 13.24837468 | G17: ='DDT Input'!G15 -> 14.34275792 | H17: ='DDT Input'!H15 -> 13.78421322 | I17: ='DDT Input'!I15 -> 13.07289622 | J17: ='DDT Input'!J15 -> 13.81824762 | K17: ='DDT Input'!K15 -> 13.6945933 | L17: ='DDT Input'!L15 -> 9.892998659 | M17: ='DDT Input'!M15 -> 9.407932173 | N17: ='DDT Input'!N15 -> 9.355171038 | O17: ='DDT Input'!O15 -> 9.715554444 | P17: ='DDT Input'!P15 -> 9.918860526
A18: itf | B18: ='DDT Input'!B16 -> 0 | C18: ='DDT Input'!C16 -> 4.297079462 | D18: ='DDT Input'!D16 -> 5.345189223 | E18: ='DDT Input'!E16 -> 5.467159066 | F18: ='DDT Input'!F16 -> 5.623865942 | G18: ='DDT Input'!G16 -> 6.37671 | H18: ='DDT Input'!H16 -> 5.937174755 | I18: ='DDT Input'!I16 -> 4.865917195 | J18: ='DDT Input'!J16 -> 5.009771969 | K18: ='DDT Input'!K16 -> 4.841565677 | L18: ='DDT Input'!L16 -> 5.727233075 | M18: ='DDT Input'!M16 -> 4.798690103 | N18: ='DDT Input'!N16 -> 3.95664703 | O18: ='DDT Input'!O16 -> 3.72997135 | P18: ='DDT Input'!P16 -> 3.395881707
A19: π t | B19: ='DDT Input'!B17 -> 4.449616792 | C19: ='DDT Input'!C17 -> 2.345987981 | D19: ='DDT Input'!D17 -> 2.084934904 | E19: ='DDT Input'!E17 -> 4.088244532 | F19: ='DDT Input'!F17 -> 4.013468227 | G19: ='DDT Input'!G17 -> 2.632094932 | H19: ='DDT Input'!H17 -> 4.78392022 | I19: ='DDT Input'!I17 -> 7.703668386 | J19: ='DDT Input'!J17 -> 10.72582053 | K19: ='DDT Input'!K17 -> 4.503329986 | L19: ='DDT Input'!L17 -> 7.690870428 | M19: ='DDT Input'!M17 -> 4.345293507 | N19: ='DDT Input'!N17 -> 4.141894453 | O19: ='DDT Input'!O17 -> 4.02692753 | P19: ='DDT Input'!P17 -> 4.003003944
A20: µt | B20: =1/(1-B13/100*(1-B14/B15)) -> 1.010277796 | C20: 1.006169073 | D20: 1.007215932 | E20: 1.00800718 | F20: 1.008022475 | G20: 1.016700989 | H20: 1.017394319 | I20: 1.002548625 | J20: 1.010290432 | K20: 1 | L20: 1.019914273 | M20: 1.000687438 | N20: 1.020075062 | O20: 1.001377 | P20: 1.019937582
A21: rˆtw | B21: n.a. | C21: =(((1+C18/100)*(1+C16/100)*C14/C15*B13/100+(1+C17/100)*B12/100)*C20/(1+C19/100)-1)*100 -> 7.674795807 | D21: 8.685987828 | E21: 7.042993344 | F21: 7.336702474 | G21: 10.27536857 | H21: 10.09456497 | I21: -0.1655129 | J21: -3.061935884 | K21: 4.984932597 | L21: 3.822558799 | M21: 2.353987145 | N21: 6.004712115 | O21: 2.171303353 | P21: 5.875857384
A22: gt | B22: ='DDT Input'!B18 -> 7.441014323 | C22: ='DDT Input'!C18 -> 6.538336528 | D22: ='DDT Input'!D18 -> 7.000394221 | E22: ='DDT Input'!E18 -> 4.332952192 | F22: ='DDT Input'!F18 -> 6.371269725 | G22: ='DDT Input'!G18 -> 5.655845721 | H22: ='DDT Input'!H18 -> -6.176355 | I22: ='DDT Input'!I18 -> 11.04147507 | J22: ='DDT Input'!J18 -> 5.40573308 | K22: ='DDT Input'!K18 -> 2.903835638 | L22: ='DDT Input'!L18 -> 3.655190137 | M22: ='DDT Input'!M18 -> 5.719722924 | N22: ='DDT Input'!N18 -> 5.220163644 | O22: ='DDT Input'!O18 -> 5.174370418 | P22: ='DDT Input'!P18 -> 5.106193028
A23: φˆt | B23: n.a. | C23: =(1+C21/100)/(1+C22/100) -> 1.010667139 | D23: 1.015753153 | E23: 1.02597493 | F23: 1.009076067 | G23: 1.043722359 | H23: 1.17342025 | I23: 0.8990738554 | J23: 0.9196659544 | K23: 1.020223706 | L23: 1.001614667 | M23: 0.9681635963 | N23: 1.007456256 | O23: 0.9714467788 | P23: 1.007322731
A24: pbt | B24: ='DDT Input'!B19 -> 0.4559474841 | C24: ='DDT Input'!C19 -> 3.447848324 | D24: ='DDT Input'!D19 -> 0.7764190876 | E24: ='DDT Input'!E19 -> 0.9512327614 | F24: ='DDT Input'!F19 -> 1.95663775 | G24: ='DDT Input'!G19 -> 1.297786889 | H24: ='DDT Input'!H19 -> -2.493902521 | I24: ='DDT Input'!I19 -> 1.94655553 | J24: ='DDT Input'!J19 -> 1.36074652 | K24: ='DDT Input'!K19 -> 1.455439367 | L24: ='DDT Input'!L19 -> 1.373909111 | M24: ='DDT Input'!M19 -> 1.349176049 | N24: ='DDT Input'!N19 -> 1.228828383 | O24: ='DDT Input'!O19 -> 1.085185376 | P24: ='DDT Input'!P19 -> 0.9272561304
A25: oft (other net debt-creating flows) | B25: ='DDT Input'!B20 -> -0.3118434496 | C25: ='DDT Input'!C20 -> 1.074327748 | D25: ='DDT Input'!D20 -> 1.519158691 | E25: ='DDT Input'!E20 -> 2.848679244 | F25: ='DDT Input'!F20 -> 2.330589244 | G25: ='DDT Input'!G20 -> 1.694281879 | H25: ='DDT Input'!H20 -> 4.211627852 | I25: ='DDT Input'!I20 -> -0.3843953396 | J25: ='DDT Input'!J20 -> 2.064044396 | K25: ='DDT Input'!K20 -> 0.9774203828 | L25: ='DDT Input'!L20 -> 0.9544164672 | M25: ='DDT Input'!M20 -> 0.9430518327 | N25: ='DDT Input'!N20 -> 0.9380751085 | O25: ='DDT Input'!O20 -> 0.9345626454 | P25: ='DDT Input'!P20 -> 0.9318815891
A26: sfiert | B26: n.a. | C26: =((C15-C14)/C15)*((C13/100)*(C9-C10-C11)-(B13/100)*(B9-B10-B11)*(1+C16/100)/((1+C22/100)*(1+C19/100))) -> -0.003868972493 | D26: 0.02466222759 | E26: 0.02503019695 | F26: 0.04816933379 | G26: 0.06503509477 | H26: 0.28685635 | I26: 0.0153027413 | J26: 0.0572391313 | K26: 0 | L26: 0.07998932339 | M26: 0.002478059748 | N26: 0.06776164517 | O26: 0.004306971764 | P26: 0.05860353703
A27: adjt | B27: n.a. | C27: =C24-B24 -> 2.99190084 | D27: =D24-C24 -> -2.671429236 | E27: 0.1748136738 | F27: 1.005404988 | G27: -0.6588508604 | H27: -3.791689411 | I27: 4.440458051 | J27: -0.5858090102 | K27: 0.09469284746 | L27: -0.08153025648 | M27: -0.02473306156 | N27: -0.1203476659 | O27: -0.1436430077 | P27: -0.1579292453
A28: Int paymentst (excl. guarantees) | B28: n.a. | C28: =(B9-B10-B11)*(1/((1+C22/100)*(1+C19/100)))*(B13/100*(1+C16/100)*(C14/C15)*(C18/100)+B12/100*(C17/100)) -> 3.527107866 | D28: 3.911254459 | E28: 4.108041371 | F28: 4.191455325 | G28: 4.81899374 | H28: 5.42117865 | I28: 4.965283359 | J28: 4.68667598 | K28: 4.81424424 | L28: 4.141320654 | M28: 3.650679991 | N28: 3.283585967 | O28: 3.19676583 | P28: 3.058892738
A29: ifisct (excl. guarantees), used in final output | B29: n.a. | C29: =(B13/100)*(1+C16/100)*(C14/C15)*C18+(B12/100)*C17 -> 8.60513312 | D29: =(C13/100)*(1+D16/100)*(D14/D15)*D18+(C12/100)*D17 -> 9.560427259 | E29: 9.614534492 | F29: 9.482281757 | G29: 10.28492353 | H29: 9.947271845 | I29: 8.353822406 | J29: 8.605480459 | K29: 8.694188831 | L29: 7.603437125 | M29: 6.659860247 | N29: 6.188876961 | O29: 6.00183514 | P29: 5.922371067
A30: φˆobt | B30: n.a. | C30: =((1+C16/100)*C14/C15*B13/100+B12/100)*C20/((1+C19/100)*(1+C22/100)) -> 0.931261413 | D30: =((1+D16/100)*D14/D15*C13/100+C12/100)*D20/((1+D19/100)*(1+D22/100)) -> 0.9275969547 | E30: 0.936733051 | F30: 0.9226849377 | G30: 0.9472911554 | H30: 1.070479731 | I30: 0.8290453325 | J30: 0.8451741967 | K30: 0.939376061 | L30: 0.9321436453 | M30: 0.9077500009 | N30: 0.949843383 | O30: 0.9165147067 | P30: 0.9520647489
A31: obt | B31: n.a. | C31: =C24-C28 -> -0.07925954198 | D31: =D24-D28 -> -3.134835372 | E31: -3.156808609 | F31: -2.234817576 | G31: -3.521206851 | H31: -7.915081171 | I31: -3.018727829 | J31: -3.32592946 | K31: -3.358804873 | L31: -2.767411543 | M31: -2.301503942 | N31: -2.054757584 | O31: -2.111580454 | P31: -2.131636608
A32: residualt | B32: n.a. | C32: =((C9-C10-C11)-C23*(B9-B10-B11)+C20*C24-C20*C25)/C20 -> 1.894372741 | D32: =((D9-D10-D11)-D23*(C9-C10-C11)+D20*D24-D20*D25)/D20 -> 0.2598385486 | E32: -0.6078729335 | F32: 1.072136159 | G32: 0.1442931475 | H32: 1.367496496 | I32: 1.98446592 | J32: 0.3761781032 | K32: 0.5259744695 | L32: -4.354181733e-15 | M32: 1.442298441e-15 | N32: -1.523723392e-15 | O32: -1.55217489e-15 | P32: -4.027526059e-15
A33: πft: (used in fan chart) (US deflator) | B33: ='DDT Input'!B21 -> 2.372469681 | C33: ='DDT Input'!C21 -> 1.561337287 | D33: ='DDT Input'!D21 -> 1.990749672 | E33: ='DDT Input'!E21 -> 2.704568196 | F33: ='DDT Input'!F21 -> 3.091593863 | G33: ='DDT Input'!G21 -> 3.310674432 | H33: ='DDT Input'!H21 -> 2.481533763 | I33: ='DDT Input'!I21 -> 4.387145914 | J33: ='DDT Input'!J21 -> 8.235045345 | K33: ='DDT Input'!K21 -> 6.57254212 | L33: ='DDT Input'!L21 -> 7.941764092 | M33: ='DDT Input'!M21 -> 3.700441486 | N33: ='DDT Input'!N21 -> 2.955716404 | O33: ='DDT Input'!O21 -> 2.631606253 | P33: ='DDT Input'!P21 -> 2.487453911
A34: rˆtd (used in fan chart) | B34: n.a. | C34: =((1+C17/100)*C20/(1+C19/100)-1)*100 -> 12.39364257 | D34: =((1+D17/100)/(1+D19/100)*D20-1)*100 -> 12.79396103 | E34: 10.42473902 | F34: 9.752043584 | G34: 13.27099494 | H34: 10.4782221 | I34: 5.252753504 | J34: 3.850651959 | K34: 8.795187018 | L34: 4.077009905 | M34: 4.923892266 | N34: 7.113936707 | O34: 5.613647683 | P34: 7.795325721
A35: rˆtf (used in fan chart) | B35: n.a. | C35: =((1+C18/100)*(C14/C15)*C20/(1+C33/100)-1)*100 -> 2.140647846 | D35: 2.604572829 | E35: 1.878502903 | F35: 1.690482584 | G35: 1.348344374 | H35: 2.007052493 | I35: 0.2719873253 | J35: -3.731830431 | K35: -1.624223659 | L35: -3.368750114 | M35: 1.013017108 | N35: -0.2633224449 | O35: 0.9860882078 | P35: -0.2619055996
A36: zt (used in fan chart) | B36: n.a. | C36: =((1+C16/100)*(1+C33/100)/(1+C19/100)-1)*100 -> 1.994199204 | D36: 2.432007554 | E36: 2.021251755 | F36: 3.208703419 | G36: 6.054237067 | H36: 7.57419769 | I36: -4.538120344 | J36: -4.539193682 | K36: 3.801116428 | L36: 7.249284103 | M36: -0.3904412659 | N36: 5.547516596 | O36: -0.9040589742 | P36: 4.990750867
A37: iˆtw including all exchange rate valuation effects, for reference only | B37: n.a. | C37: =(((1+C18/100)*(1+C16/100)*C14/C15*B13/100+(1+C17/100)*B12/100)*C20-1)*100 -> 10.20083358 | D37: 10.95201992 | E37: 11.41917267 | F37: 11.64462692 | G37: 13.17792095 | H37: 15.36140112 | I37: 7.525404921 | J37: 7.335466894 | K37: 9.712750547 | L37: 11.80741727 | M37: 6.801568302 | N37: 10.39531541 | O37: 6.285667695 | P37: 10.11407213
A38: it w/o exchange rate valuation effects, used in debt decomposition | B38: n.a. | C38: =(B12/100*(1+C17/100)+B13/100*(1+C18/100)-1)*100 -> 8.565598624 | D38: 9.528532181 | E38: 9.564260042 | F38: 9.41064455 | G38: 10.21899705 | H38: 9.742925954 | I38: 8.407433269 | J38: 8.723875976 | K38: 8.644874496 | L38: 7.48769597 | M38: 6.656580869 | N38: 6.10840429 | O38: 5.996699773 | P38: 5.85312197
L55: First Year of Projection
B56: =C56-1 -> 2012 | C56: 2013 | D56: 2014 | E56: 2015 | F56: 2016 | G56: 2017 | H56: 2018 | I56: 2019 | J56: 2020 | K56: =L56-1 -> 2021 | L56: 2022 | M56: =L56+1 -> 2023 | N56: =M56+1 -> 2024 | O56: 2025 | P56: 2026
A58: Public sector debt 1/ | B58: =B9 -> 44.69283278 | C58: 44.68747372 | D58: 46.40125503 | E58: 48.90642379 | F58: 50.80799061 | G58: 53.57925566 | H58: 71.08443525 | I58: 63.56278925 | J58: 59.5471175 | K58: 60.7993364 | L58: 60.46966058 | M58: 58.13812065 | N58: 58.27502319 | O58: 56.46025343 | P58: 56.87841434
A59: o/w stock of foreign-currency denominated debt (excl. guarantees) | B59: =IF(B13="n.a.","n.a.",B13*(B9-B10-B11)/100) -> 25.6689252 | C59: 23.85937822 | D59: 24.18943711 | E59: 24.61662286 | F59: 26.30162479 | G59: 27.59374311 | H59: 40.40972908 | I59: 36.7614652 | J59: 33.96535193 | K59: 35.10538565 | L59: 36.09558295 | M59: 34.96528248 | N59: 36.20638772 | O59: 35.19138045 | P59: 36.20799825
A60: o/w stock of local-currency guarantees (uncalled) | B60: =IF(B10="n.a.","0",B10) -> 0 | C60: 0 | D60: 0 | E60: 0 | F60: 0 | G60: 0 | H60: 0 | I60: 0 | J60: 0 | K60: 0 | L60: 0 | M60: 0 | N60: 0 | O60: 0 | P60: 0
A61: o/w stock of foreign-currency guarantees (uncalled) | B61: =IF(B11="n.a.","0",B11) -> 0 | C61: 0 | D61: 0 | E61: 0 | F61: 0 | G61: 0 | H61: 0 | I61: 0 | J61: 0 | K61: 0 | L61: 0 | M61: 0 | N61: 0 | O61: 0 | P61: 0
A63: Change in public sector debt | C63: =C58-B58 -> -0.005359058726 | D63: 1.71378131 | E63: 2.505168758 | F63: 1.901566825 | G63: 2.771265053 | H63: 17.50517958 | I63: -7.521645998 | J63: -4.015671755 | K63: 1.252218906 | L63: -0.3296758249 | M63: -2.331539928 | N63: 0.136902543 | O63: -1.814769766 | P63: 0.4181609154
A64: Identified debt-creating flows | C64: =SUM(C65,C66,C72,C73,C74) -> -1.8997318 | D64: =SUM(D65,D66,D72,D73,D74) -> 1.453942761 | E64: 3.113041691 | F64: 0.8294306656 | G64: 2.626971905 | H64: 16.13768309 | I64: -9.506111918 | J64: -4.391849858 | K64: 0.7262444362 | L64: -0.3296758249 | M64: -2.331539928 | N64: 0.136902543 | O64: -1.814769766 | P64: 0.4181609154
A65: Primary deficit | C65: =-C24 -> -3.447848324 | D65: -0.7764190876 | E65: -0.9512327614 | F65: -1.95663775 | G65: -1.297786889 | H65: 2.493902521 | I65: -1.94655553 | J65: -1.36074652 | K65: -1.455439367 | L65: -1.373909111 | M65: -1.349176049 | N65: -1.228828383 | O65: -1.085185376 | P65: -0.9272561304
A66: Automatic debt dynamics 2/ | C66: =C67+C70 -> 0.4776577489 | D66: 0.6865409296 | E66: 1.190565012 | F66: 0.4073098374 | G66: 2.165441821 | H66: 9.145296365 | I66: -7.19046379 | J66: -5.152386865 | K66: 1.204263421 | L66: 0.009827495298 | M66: -1.927893771 | N66: 0.3598941726 | O66: -1.668454008 | P66: 0.3549319196
A67: Contribution from interest rate/growth differential 3/ | C67: =C68+C69 -> -0.1935122506 | D67: 0.1216073279 | E67: 0.4127132783 | F67: -0.5436098066 | G67: 0.8350434911 | H67: 6.229706674 | I67: -6.650024483 | J67: -4.350107234 | K67: 0.6129470571 | L67: -2.254627209 | M67: -2.004613077 | N67: -1.840981526 | O67: -1.817853016 | P67: -1.787328947
A68: Real interest rate | C68: =((C38/100-(1+C22/100)*C19/100)/C71)*(B58-B60-B61) -> 2.486448405 | D68: 2.985529867 | E68: 2.264071436 | F68: 2.272684109 | G68: 3.485086054 | H68: 2.863645669 | I68: -0.08727395637 | J68: -1.406062506 | K68: 2.220891659 | L68: -0.2637756823 | M68: 1.130719686 | N68: 0.9286414922 | O68: 0.9381791228 | P68: 0.850009476
A69: Real GDP growth | C69: =-((C22/100)/C71)*(B58-B60-B61) -> -2.679960656 | D69: -2.86392254 | E69: -1.851358157 | F69: -2.816293916 | G69: -2.650042563 | H69: 3.366061005 | I69: -6.562750527 | J69: -2.944044728 | K69: -1.607944602 | L69: -1.990851526 | M69: -3.135332763 | N69: -2.769623018 | O69: -2.756032139 | P69: -2.637338423
A70: Exchange rate depreciation | C70: =(B13/100*(B58-B60-B61))*(C16/100+(C18/100*((1+C16/100)*(C14/C15)-1)))/C71 -> 0.6711699996 | D70: 0.5649336017 | E70: 0.7778517332 | F70: 0.950919644 | G70: 1.33039833 | H70: 2.915589691 | I70: -0.5404393064 | J70: -0.8022796312 | K70: 0.5913163636 | L70: 2.264454704 | M70: 0.07671930582 | N70: 2.200875698 | O70: 0.1493990087 | P70: 2.142260867
A71: Denominator = 1+g+p+gp | C71: =(1+C22/100)*(1+C19/100) -> 1.090377131 | D71: 1.092312828 | E71: 1.085983384 | F71: 1.106404468 | G71: 1.084368079 | H71: 0.9831209332 | I71: 1.195957421 | J71: 1.167113628 | K71: 1.075379349 | L71: 1.116271765 | M71: 1.103135552 | N71: 1.095782718 | O71: 1.094096661 | P71: 1.093135981
A72: Other debt-creating flows | C72: =C25 -> 1.074327748 | D72: 1.519158691 | E72: 2.848679244 | F72: 2.330589244 | G72: 1.694281879 | H72: 4.211627852 | I72: -0.3843953396 | J72: 2.064044396 | K72: 0.9774203828 | L72: 0.9544164672 | M72: 0.9430518327 | N72: 0.9380751085 | O72: 0.9345626454 | P72: 0.9318815891
A73: Change in guarantees | C73: =(C60+C61)-(B60+B61) -> 0 | D73: 0 | E73: 0 | F73: 0 | G73: 0 | H73: 0 | I73: 0 | J73: 0 | K73: 0 | L73: 0 | M73: 0 | N73: 0 | O73: 0 | P73: 0
A74: SFA due to intra-year fx changes | C74: =((C15-C14)/C15)*((C13/100)*(C9-C10-C11)-(B13/100)*(B9-B10-B11)*(1+C16/100)/((1+C22/100)*(1+C19/100))) -> -0.003868972493 | D74: 0.02466222759 | E74: 0.02503019695 | F74: 0.04816933379 | G74: 0.06503509477 | H74: 0.28685635 | I74: 0.0153027413 | J74: 0.0572391313 | K74: 0 | L74: 0.07998932339 | M74: 0.002478059748 | N74: 0.06776164517 | O74: 0.004306971764 | P74: 0.05860353703
A75: Residual | C75: =((C9-C10-C11)-C23*(B9-B10-B11)+C20*C24-C20*C25)/C20 -> 1.894372741 | D75: 0.2598385486 | E75: -0.6078729335 | F75: 1.072136159 | G75: 0.1442931475 | H75: 1.367496496 | I75: 1.98446592 | J75: 0.3761781032 | K75: 0.5259744695 | L75: -4.354181733e-15 | M75: 1.442298441e-15 | N75: -1.523723392e-15 | O75: -1.55217489e-15 | P75: -4.027526059e-15
A77: Key Macroeconomic and Fiscal Assumptions
A78: Real GDP growth (in percent) | C78: =C22 -> 6.538336528 | D78: 7.000394221 | E78: 4.332952192 | F78: 6.371269725 | G78: 5.655845721 | H78: -6.176355 | I78: 11.04147507 | J78: 5.40573308 | K78: 2.903835638 | L78: 3.655190137 | M78: 5.719722924 | N78: 5.220163644 | O78: 5.174370418 | P78: 5.106193028
A79: Average nominal effective interest rate on public debt (in percent) 5/ | C79: =C29 -> 8.60513312 | D79: 9.560427259 | E79: 9.614534492 | F79: 9.482281757 | G79: 10.28492353 | H79: 9.947271845 | I79: 8.353822406 | J79: 8.605480459 | K79: 8.694188831 | L79: 7.603437125 | M79: 6.659860247 | N79: 6.188876961 | O79: 6.00183514 | P79: 5.922371067
A80: Average real effective interest rate on public debt (nominal rate minus change in GDP deflator, in percent) | C80: =C79-C83 -> 6.259145139 | D80: =D79-D83 -> 7.475492355 | E80: 5.52628996 | F80: 5.46881353 | G80: 7.652828602 | H80: 5.163351625 | I80: 0.65015402 | J80: -2.120340067 | K80: 4.190858845 | L80: -0.08743330304 | M80: 2.314566741 | N80: 2.046982508 | O80: 1.974907611 | P80: 1.919367123
A81: Exchange rate (LC per US dollar, eop) | C81: =C15 -> 44.601515 | D81: 45.728417 | E81: 47.281227 | F81: 49.23471 | G81: 51.872527 | H81: 57.05511 | I81: 56.196336 | J81: 54.88 | K81: 55.86 | L81: 59.7702 | M81: 59.907057 | N81: 63.95890399 | O81: 64.24236563 | P81: 68.44594843
A82: Nominal depreciation of local currency (LC per US dollar, eop, in percent) | C82: =C16 -> 2.782194138 | D82: 2.526600274 | E82: 3.395722183 | F82: 4.13162501 | G82: 5.357636919 | H82: 9.99099774 | I82: -1.505165795 | J82: -2.342387589 | K82: 1.785714286 | L82: 7 | M82: 0.2289719626 | N82: 6.763555411 | O82: 0.4431933978 | P82: 6.543318814
A83: Inflation rate (GDP deflator, in percent) | C83: =C19 -> 2.345987981 | D83: 2.084934904 | E83: 4.088244532 | F83: 4.013468227 | G83: 2.632094932 | H83: 4.78392022 | I83: 7.703668386 | J83: 10.72582053 | K83: 4.503329986 | L83: 7.690870428 | M83: 4.345293507 | N83: 4.141894453 | O83: 4.02692753 | P83: 4.003003944
A85: NOTES
A86: 1/ Indicate coverage of public sector, e.g., general government or nonfinancial public sector. Also whether net or gross debt is used.
A87: 2/ Derived as [(r - p(1+g) - g + ae(1+r)]/(1+g+p+gp)) times previous period debt ratio, with r = interest rate; p = growth rate of GDP deflator; g = real GDP growth rate; a = share of foreign-currency
A88: denominated debt; and e = nominal exchange rate depreciation (measured by increase in local currency value of U.S. dollar).
A89: 3/ The real interest rate contribution is derived from the denominator in footnote 2/ as r - π (1+g) and the real growth contribution as -g.
A90: 4/ The exchange rate contribution is derived from the numerator in footnote 2/ as ae(1+r).
A91: 5/ Derived as nominal interest expenditure divided by previous period debt stock.
E94: Cross checks MFT vs. DDT:
E95: Debt stock form the MFT projection | J95: ='Policies&Assumptions'!M57*100 -> 59.5471175 | K95: ='Policies&Assumptions'!N57*100 -> 60.7993364 | L95: ='Policies&Assumptions'!O57*100 -> 60.46965699 | M95: ='Policies&Assumptions'!P57*100 -> 58.13812025 | N95: ='Policies&Assumptions'!Q57*100 -> 58.27502245 | O95: ='Policies&Assumptions'!R57*100 -> 56.46025279 | P95: ='Policies&Assumptions'!S57*100 -> 56.87841433
E96: Debt stock projection from the DDT projection | J96: =J9 -> 59.5471175 | K96: =K9 -> 60.7993364 | L96: 60.46966058 | M96: 58.13812065 | N96: 58.27502319 | O96: 56.46025343 | P96: 56.87841434
E97: Check for MFT vs DDT consistency | J97: =J95-J96 -> 0 | K97: 0 | L97: -3.589811151e-06 | M97: -4.036370598e-07 | N97: -7.404696376e-07 | O97: -6.379519704e-07 | P97: -6.475957548e-09

Sheet DDT Output
K3: ACTIVE SCENARIO | AJ3: BASELINE
B4: =Country_Name&" - Public Sector Debt Dynamics" -> Macrofoundland - Public Sector Debt Dynamics
B5: (in percent of GDP unless otherwise indicated)
A7: Debt and Economic Indicators 1/
H9: Actual | L9: Est. | N9: Projections
H10: =CONCATENATE('DDT Debt Dynamics'!C8,"-",'DDT Debt Dynamics'!I8) -> 2015-2021 | J10: 2/ | K10: ='DDT Debt Dynamics'!J8 -> 2022 | L10: ='DDT Debt Dynamics'!K8 -> 2023 | N10: ='DDT Debt Dynamics'!L8 -> 2024 | O10: ='DDT Debt Dynamics'!M8 -> 2025 | P10: ='DDT Debt Dynamics'!N8 -> 2026 | Q10: ='DDT Debt Dynamics'!O8 -> 2027 | R10: ='DDT Debt Dynamics'!P8 -> 2028
B11: Nominal gross public debt | I11: =(AVERAGE('DDT Debt Dynamics'!C9:I9)) -> 54.14708904 | K11: ='DDT Debt Dynamics'!J9 -> 59.5471175 | L11: ='DDT Debt Dynamics'!K9 -> 60.7993364 | N11: ='DDT Debt Dynamics'!L9 -> 60.46966058 | O11: ='DDT Debt Dynamics'!M9 -> 58.13812065 | P11: ='DDT Debt Dynamics'!N9 -> 58.27502319 | Q11: ='DDT Debt Dynamics'!O9 -> 56.46025343 | R11: ='DDT Debt Dynamics'!P9 -> 56.87841434
B12: Of which: guarantees (uncalled) 3/ | I12: =IFERROR(AVERAGE('DDT Debt Dynamics'!C10:I10)+AVERAGE('DDT Debt Dynamics'!C11:I11),"0.0") -> 0 | K12: =IFERROR(SUM('DDT Debt Dynamics'!J10,'DDT Debt Dynamics'!J11),"…") -> 0 | L12: =IFERROR(SUM('DDT Debt Dynamics'!K10,'DDT Debt Dynamics'!K11),"…") -> 0 | N12: =IFERROR(SUM('DDT Debt Dynamics'!L10,'DDT Debt Dynamics'!L11),"…") -> 0 | O12: =IFERROR(SUM('DDT Debt Dynamics'!M10,'DDT Debt Dynamics'!M11),"…") -> 0 | P12: =IFERROR(SUM('DDT Debt Dynamics'!N10,'DDT Debt Dynamics'!N11),"…") -> 0 | Q12: =IFERROR(SUM('DDT Debt Dynamics'!O10,'DDT Debt Dynamics'!O11),"…") -> 0 | R12: =IFERROR(SUM('DDT Debt Dynamics'!P10,'DDT Debt Dynamics'!P11),"…") -> 0
B13: Real GDP growth (in percent) | I13: =(AVERAGE('DDT Debt Dynamics'!C22:I22)/100)*100 -> 4.966274065 | K13: ='DDT Debt Dynamics'!J22 -> 5.40573308 | L13: ='DDT Debt Dynamics'!K22 -> 2.903835638 | N13: ='DDT Debt Dynamics'!L22 -> 3.655190137 | O13: ='DDT Debt Dynamics'!M22 -> 5.719722924 | P13: ='DDT Debt Dynamics'!N22 -> 5.220163644 | Q13: ='DDT Debt Dynamics'!O22 -> 5.174370418 | R13: ='DDT Debt Dynamics'!P22 -> 5.106193028
B14: Inflation (GDP deflator, in percent) | I14: =(AVERAGE('DDT Debt Dynamics'!C19:I19)/100)*100 -> 3.950331312 | K14: ='DDT Debt Dynamics'!J19 -> 10.72582053 | L14: ='DDT Debt Dynamics'!K19 -> 4.503329986 | N14: ='DDT Debt Dynamics'!L19 -> 7.690870428 | O14: ='DDT Debt Dynamics'!M19 -> 4.345293507 | P14: ='DDT Debt Dynamics'!N19 -> 4.141894453 | Q14: ='DDT Debt Dynamics'!O19 -> 4.02692753 | R14: ='DDT Debt Dynamics'!P19 -> 4.003003944
B15: Nominal GDP growth (in percent) | I15: =((1+I13/100)*(1+I14/100)-1)*100 -> 9.112789656 | K15: =((1+K13/100)*(1+K14/100)-1)*100 -> 16.71136283 | L15: =((1+L13/100)*(1+L14/100)-1)*100 -> 7.537934925 | N15: =((1+N13/100)*(1+N14/100)-1)*100 -> 11.6271765 | O15: 10.31355518 | P15: 9.578271766 | Q15: 9.409666094 | R15: 9.31359808
